Workbook

Sheet PRP Application Attachments (hidden)
B1: File Name | C1: Description | D1: Applicability | E1: Application Worksheet | F1: Comments
A2: 1 | B2: PRP Application | C2: PLP Excel application | D2: Required | E2: Application workbook
A3: 2 | B3: Const Letter #1, #2, etc | C3: Proof(s) of construction financing (letter of interest or commitment letter). HCD will review for acceptability. | D3: Required | E3: Project, Applicant, Threshold | F3: May have up to seven files
A4: 3 | B4: App1 Cert & Legal | C4: See Certifications & Legal worksheet. | D4: Not required from public agencies | E4: Project, Applicant, Threshold
A5: 4 | B5: App1 Resolution | C5: Signature required; see Applicant Documents worksheet. | D5: Required | E5: Project, Applicant, Threshold
A6: 5 | B6: App1 OrgDoc1, OrgDoc2, etc… | C6: See Applicant Documents worksheet. | D6: Not required from public agencies | E6: Project, Applicant, Threshold | F6: May be eight separate documents; based on entity type see 'Applicant Documents' worksheet for full list
A7: 6 | B7: App1 OrgChart | C7: See Applicant Documents worksheet. | D7: Not required from public agencies | E7: Project, Applicant, Threshold
A8: 7 | B8: App1 Signature Block | C8: See Applicant Documents worksheet. | D8: Required | E8: Project, Applicant, Threshold
A9: 8 | B9: App1 Payee Data Record | C9: See Applicant Documents worksheet. | D9: Required | E9: Project, Applicant, Threshold
A10: 9 | B10: App1 TIN | C10: See Applicant Documents worksheet (not applicable for non-governmental entities) | D10: Not required from non-public agencies | E10: Project, Applicant, Threshold
A11: 10 | B11: App1 Cert of Good Standing | C11: Dated 30 days or less from the application due date. | D11: Not required from public agencies | E11: Project, Applicant, Threshold
A12: 11 | B12: App1 Tax-Exempt Status | C12: If applicable, evidence of tax-exempt status from IRS and Franchise Tax Board for Corps | D12: Not required from public agencies and for profits | E12: Project, Applicant, Threshold
A13: 12 | B13: App2 Cert & Legal | C13: See Certifications & Legal worksheet. | D13: Not required if there is not an Applicant 2; Not required from public agencies | E13: Project, Applicant, Threshold
A14: 13 | B14: App2 Resolution | C14: Signature required; see Applicant Documents worksheet. | D14: Not required if there is not an Applicant 2; Required | E14: Project, Applicant, Threshold
A15: 14 | B15: App2 OrgDoc1, OrgDoc2, etc… | C15: See Applicant Documents worksheet. | D15: Not required if there is not an Applicant 2; Not required from public agencies | E15: Project, Applicant, Threshold | F15: May be eight separate documents; based on entity type see 'Applicant Documents' worksheet for full list
A16: 15 | B16: App2 OrgChart | C16: See Applicant Documents worksheet. | D16: Not required if there is not an Applicant 2; Not required from public agencies | E16: Project, Applicant, Threshold
A17: 16 | B17: App2 Signature Block | C17: See Applicant Documents worksheet. | D17: Not required if there is not an Applicant 2; Required | E17: Project, Applicant, Threshold
A18: 17 | B18: App2 Payee Data Record | C18: See Applicant Documents worksheet. | D18: Not required if there is not an Applicant 2; Required | E18: Project, Applicant, Threshold
A19: 18 | B19: App2 TIN | C19: See Applicant Documents worksheet (not applicable for non-governmental entities) | D19: Not required if there is not an Applicant 2; Not required from non-public agencies | E19: Project, Applicant, Threshold
A20: 19 | B20: App2 Cert of Good Standing | C20: Dated 30 days or less from the application due date. | D20: Not required if there is not an Applicant 2; Not required from public agencies | E20: Project, Applicant, Threshold
A21: 20 | B21: App2 Tax-Exempt Status | C21: If applicable, evidence of tax-exempt status from IRS and Franchise Tax Board for Corps | D21: Not required if there is not an Applicant 2; Not required from public agencies and for profits | E21: Project, Applicant, Threshold
A22: 21 | B22: Ownership approval | C22: If Applicant is not the current owner, attach HCD approval letter regarding Applicant's capacity to acquire the Project. | D22: Not always required, may be N/A | E22: Project, Applicant, Threshold
A23: 22 | B23: Preservation compliance | C23: Documentation showing the Project and proposed transaction complies with Preservation Notice Law requirements Gov. Code §65863.11 and/or13 | D23: Required | E23: Project, Applicant, Threshold
A24: 23 | B24: Staff Chart | C24: Staffing chart illustrating capacity | D24: Not required from public agencies | E24: Project, Applicant, Threshold
A25: 24 | B25: Site Control | C25: Proof of site control per UMR §8303 | D25: Required | E25: Project, Applicant, Threshold
A26: 25 | B26: PCA | C26: Prepared within 12 months of the application submittal date that documents all physical needs and all repairs required within five years of the Property Condition Assessment (PCA) date. HCD will assume a $500 per unit annual deposit to the Replacement Reserve unless a different amount is approved by HCD pursuant to UMR §8309(b)(2). | D26: Required | E26: Project, Applicant, Threshold
A27: 26 | B27: Scope of Work | C27: Attach a scope of work for the Project that includes the repairs required in the next five years as identified in the PNA. Include a general timeline for the repairs. | D27: Required | E27: Project, Applicant, Threshold
A28: 27 | B28: Borrower Cert & Legal | C28: See Certifications & Legal worksheet. | D28: Not required from public agencies | E28: Borrower and Dev Team Contacts
A29: 28 | B29: Borrower Resolution | C29: Signature required; see Applicant Documents worksheet. | D29: Required | E29: Borrower and Dev Team Contacts
A30: 29 | B30: Borrower OrgDoc1, OrgDoc2, etc… | C30: See Applicant Documents worksheet. | D30: Not required from public agencies | E30: Borrower and Dev Team Contacts | F30: May be eight separate documents; based on entity type see 'Applicant Documents' worksheet for full list
A31: 30 | B31: Borrower OrgChart | C31: See Applicant Documents worksheet. | D31: Not required from public agencies | E31: Borrower and Dev Team Contacts
A32: 31 | B32: Borrower Signature Block | C32: See Applicant Documents worksheet. | D32: Required | E32: Borrower and Dev Team Contacts
A33: 32 | B33: Borrower Payee Data Record | C33: See Applicant Documents worksheet. | D33: Required | E33: Borrower and Dev Team Contacts
A34: 33 | B34: Borrower TIN | C34: See Applicant Documents worksheet (not applicable for non-governmental entities) | D34: Not required from non-public agencies | E34: Borrower and Dev Team Contacts
A35: 34 | B35: Borrower Cert of Good Standing | C35: Dated 30 days or less from the application due date. | D35: Not required from public agencies | E35: Borrower and Dev Team Contacts
A36: 35 | B36: Borrower Tax-Exempt Status | C36: If applicable, evidence of tax-exempt status from IRS and Franchise Tax Board for Corps | D36: Not required from public agencies and for profits | E36: Borrower and Dev Team Contacts
A37: 36 | B37: Party 1 Cert & Legal | C37: See Certifications & Legal worksheet. | D37: Not required if there is not a Party 1; Not required from public agencies | E37: Borrower and Dev Team Contacts
A38: 37 | B38: Party 1 Resolution | C38: Signature required; see Applicant Documents worksheet. | D38: Not required if there is not a Party 1; Required | E38: Borrower and Dev Team Contacts
A39: 38 | B39: Party 1 OrgDoc1, OrgDoc2, etc | C39: See Applicant Documents worksheet. | D39: Not required if there is not a Party 1; Not required from public agencies | E39: Borrower and Dev Team Contacts | F39: May be eight separate documents; based on entity type see 'Applicant Documents' worksheet for full list
A40: 39 | B40: Party 1 OrgChart | C40: See Applicant Documents worksheet. | D40: Not required if there is not a Party 1; Not required from public agencies | E40: Borrower and Dev Team Contacts
A41: 40 | B41: Party 1 Signature Block | C41: See Applicant Documents worksheet. | D41: Not required if there is not a Party 1; Required | E41: Borrower and Dev Team Contacts
A42: 41 | B42: Party 1 Payee Data Record | C42: See Applicant Documents worksheet. | D42: Not required if there is not a Party 1; Required | E42: Borrower and Dev Team Contacts
A43: 42 | B43: Party 1 TIN | C43: See Applicant Documents worksheet (not applicable for non-governmental entities) | D43: Not required if there is not a Party 1; Not required from non-public agencies | E43: Borrower and Dev Team Contacts
A44: 43 | B44: Party 1 Cert of Good Standing | C44: Dated 30 days or less from the application due date. | D44: Not required if there is not a Party 1; Not required from public agencies | E44: Borrower and Dev Team Contacts
A45: 44 | B45: Party 1 Tax-Exempt Status | C45: If applicable, evidence of tax-exempt status from IRS and Franchise Tax Board for Corps | D45: Not required if there is not a Party 1; Not required from public agencies and for profits | E45: Borrower and Dev Team Contacts
A46: 45 | B46: Party 2 Cert & Legal | C46: See Certifications & Legal worksheet. | D46: Not required if there is not a Party 2; Not required from public agencies | E46: Borrower and Dev Team Contacts
A47: 46 | B47: Party 2 Resolution | C47: Signature required; see Applicant Documents worksheet. | D47: Not required if there is not a Party 2; Required | E47: Borrower and Dev Team Contacts
A48: 47 | B48: Party 2 OrgDoc1, OrgDoc2, etc | C48: See Applicant Documents worksheet. | D48: Not required if there is not a Party 2; Not required from public agencies | E48: Borrower and Dev Team Contacts | F48: May be eight separate documents; based on entity type see 'Applicant Documents' worksheet for full list
A49: 48 | B49: Party 2 OrgChart | C49: See Applicant Documents worksheet. | D49: Not required if there is not a Party 2; Not required from public agencies | E49: Borrower and Dev Team Contacts
A50: 49 | B50: Party 2 Signature Block | C50: See Applicant Documents worksheet. | D50: Not required if there is not a Party 2; Required | E50: Borrower and Dev Team Contacts
A51: 50 | B51: Party 2 Payee Data Record | C51: See Applicant Documents worksheet. | D51: Not required if there is not a Party 2; Required | E51: Borrower and Dev Team Contacts
A52: 51 | B52: Party 2 TIN | C52: See Applicant Documents worksheet (not applicable for non-governmental entities) | D52: Not required if there is not a Party 2; Not required from non-public agencies | E52: Borrower and Dev Team Contacts
A53: 52 | B53: Party 2 Cert of Good Standing | C53: Dated 30 days or less from the application due date. | D53: Not required if there is not a Party 2; Not required from public agencies | E53: Borrower and Dev Team Contacts
A54: 53 | B54: Party 2 Tax-Exempt Status | C54: If applicable, evidence of tax-exempt status from IRS and Franchise Tax Board for Corps | D54: Not required if there is not a Party 2; Not required from public agencies and for profits | E54: Borrower and Dev Team Contacts
A55: 54 | B55: Party 3 Cert & Legal | C55: See Certifications & Legal worksheet. | D55: Not required if there is not a Party 3; Not required from public agencies | E55: Borrower and Dev Team Contacts
A56: 55 | B56: Party 3 Resolution | C56: Signature required; see Applicant Documents worksheet. | D56: Not required if there is not a Party 3; Required | E56: Borrower and Dev Team Contacts
A57: 56 | B57: Party 3 OrgDoc1, OrgDoc2, etc | C57: See Applicant Documents worksheet. | D57: Not required if there is not a Party 3; Not required from public agencies | E57: Borrower and Dev Team Contacts | F57: May be eight separate documents; based on entity type see 'Applicant Documents' worksheet for full list
A58: 57 | B58: Party 3 OrgChart | C58: See Applicant Documents worksheet. | D58: Not required if there is not a Party 3; Not required from public agencies | E58: Borrower and Dev Team Contacts
A59: 58 | B59: Party 3 Signature Block | C59: See Applicant Documents worksheet. | D59: Not required if there is not a Party 3; Required | E59: Borrower and Dev Team Contacts
A60: 59 | B60: Party 3 Payee Data Record | C60: See Applicant Documents worksheet. | D60: Not required if there is not a Party 3; Required | E60: Borrower and Dev Team Contacts
A61: 60 | B61: Party 3 TIN | C61: See Applicant Documents worksheet (not applicable for non-governmental entities) | D61: Not required if there is not a Party 3; Not required from non-public agencies | E61: Borrower and Dev Team Contacts
A62: 61 | B62: Party 3 Cert of Good Standing | C62: Dated 30 days or less from the application due date. | D62: Not required if there is not a Party 3; Not required from public agencies | E62: Borrower and Dev Team Contacts
A63: 62 | B63: Party 3 Tax-Exempt Status | C63: If applicable, evidence of tax-exempt status from IRS and Franchise Tax Board for Corps | D63: Not required if there is not a Party 3; Not required from public agencies and for profits | E63: Borrower and Dev Team Contacts
A64: 63 | B64: Utilities | C64: Monthly Utility Allowance must attach utility allowance chart | D64: Required | E64: Assisted Units
A65: 64 | B65: Relocation Plan | C65: Submit a relocation plan including costs of relocation | D65: Only required if requesting this funding boost | E65: Max Rehab Loan
A66: 65 | B66: Elevator study | C66: Submit elevator repair or replacement study | D66: Only required if requesting this funding boost | E66: Max Rehab Loan
A67: 66 | B67: Seismic letter | C67: Submit seismic work description as described in a letter from an enforcement agency | D67: Only required if requesting this funding boost | E67: Max Rehab Loan
A68: 67 | B68: Structural work | C68: Submit structural work as described in a letter from an enforcement agency | D68: Only required if requesting this funding boost | E68: Max Rehab Loan
A69: 68 | B69: Environmental remediation | C69: Submit environmental work as specified in a letter from a third-party environmental company | D69: Only required if requesting this funding boost | E69: Max Rehab Loan
A70: 69 | B70: Accessibility work | C70: Submit an accessibility study from a Certified Access Specialist | D70: Only required if requesting this funding boost | E70: Max Rehab Loan
A71: 70 | B71: Cert & Legal Explanation | C71: Letter of explanation for any "Yes" answers or red shaded items above. | D71: Only required if Yes answers on Cert & Legal worksheet | E71: Certification & Legal

Sheet PRP Cover Page
A4: Portfolio Reinvestment Program (PRP)
A6: Notice of Funding Availability (NOFA) March 28, 2022
A9: Rev. | B9: 2022-04-07
A27: State of California
A28: Gavin Newsom, Governor
A30: Lourdes M. Castro Ramírez, Secretary
A31: Business, Consumer Services and Housing Agency
A33: Gustavo Velasquez, Director
A34: Department of Housing and Community Development (HCD)
A36: 2020 West El Camino Avenue, Suite 150
A37: Sacramento, CA 95833
A38: Phone: (916) 263-2771
A39: Email: PortfolioReinvestment@hcd.ca.gov
A40: Website: https://www.hcd.ca.gov/portfolio-reinvestment-program
A41: Application Technical Support email:
A42: AppSupport@hcd.ca.gov

Sheet Mapping (hidden)
A1: App version date | B1: App submittal date | C1: Project name | D1: Project address | E1: Project city | F1: Project county | G1: County = non-metro MI | H1: Project zip | I1: Eligible set aside | J1: Requested set aside | K1: Eligible for Boost | L1: Proposed PRP Rehab | M1: Proposed PRP COSR | N1: Total Proposed | O1: Total Rehab costs | P1: PRP Admin Allowance | Q1: Total Units | R1: Total Assisted Units | S1: Total Non-Assisted Units | T1: Project address 2 | U1: Project city 2 | V1: Project county 2 | W1: Project zip 2 | X1: Project address 3 | Y1: Project city 3 | Z1: Project county 3 | AA1: Project zip 3 | AB1: Project address 4 | AC1: Project city 4 | AD1: Project county 4 | AE1: Project zip 4 | AF1: HCD (RA) # | AG1: Expiration date of RA | AH1: Second HCD RA # | AI1: Expiration date of RA | AJ1: Third HCD (RA) # | AK1: Expiration date of RA | AL1: Applicant | AM1: Organization Type | AN1: Profit basis | AO1: Authorized Rep | AP1: Auth Rep Title | AQ1: Auth Rep Phone | AR1: Contact Name | AS1: Contact Title | AT1: Contact Email | AU1: Contact Phone | AV1: Applicant 2 | AW1: Organization Type | AX1: Profit basis | AY1: Authorized Rep | AZ1: Auth Rep Title | BA1: Auth Rep Phone | BB1: Contact Name | BC1: Contact Title | BD1: Contact Email | BE1: Contact Phone | BF1: Borrower | BG1: Borrower Party 1 | BH1: Party 1 Title | BI1: Borrower Party 2 | BJ1: Party 2 Title | BK1: Property Manager | BL1: General Contractor | BM1: Consultant | BN1: Legal Counsel | BO1: Legal Counsel Contact | BP1: Legal Counsel phone | BQ1: §II(A)2 RA not terminated | BR1: 3a No Tax Credits | BS1: 3b Need for PRP | BT1: 3c Rehab fully funded | BU1: 3d 10 year prohibition | BV1: 4 Construction sources | BW1: 5 Rental Hsng Dev | BX1: 6 Not 2 or more sites | BY1: §II(B)(1)(b) JV app compliance | BZ1: d app current owner | CA1: e Capacity | CB1: f Other capacity | CC1: g Other reliance | CD1: h Tribal app | CE1: 2 Not in breach | CF1: 3 Site control | CG1: §II(D)1 Rehab w/i 180 days | CH1: Construction start date | CI1: Construction completion date | CJ1: Construction loan close date | CK1: 2 Comply with NOFA | CL1: 3 Complete app | CM1: 4a PCA | CN1: PCA date | CO1: 4b Scope shows PCA repairs | CP1: 5 Fiscal Integrity | CQ1: 6 Docs submitted | CR1: 7 Std Agreement | CS1: 8 Misrepresentation | CT1: Construction 1 | CU1: Amount | CV1: Construction 2 | CW1: Amount | CX1: Construction 3 | CY1: Amount | CZ1: Construction 4 | DA1: Amount | DB1: Construction 5 | DC1: Amount | DD1: Construction 6 | DE1: Amount | DF1: Construction 7 | DG1: Amount | DH1: Construction 8 | DI1: Amount | DJ1: Construction 9 | DK1: Amount | DL1: Perm 1 | DM1: Amount | DN1: Perm 2 | DO1: Amount | DP1: Perm 3 | DQ1: Amount | DR1: Perm 4 | DS1: Amount | DT1: Perm 5 | DU1: Amount | DV1: Perm 6 | DW1: Amount | DX1: Perm 7 | DY1: Amount | DZ1: Perm 8 | EA1: Amount | EB1: Perm 9 | EC1: Amount
A2: ='Project, Applicant, Threshold'!AK1 -> 2022-04-07 | B2: ='Project, Applicant, Threshold'!V18 -> 00:00:00 | C2: ='Project, Applicant, Threshold'!E22 -> 0 | D2: ='Project, Applicant, Threshold'!E24 -> 0 | E2: ='Project, Applicant, Threshold'!U24 -> 0 | F2: ='Project, Applicant, Threshold'!AD24 -> 0 | G2: ='Project, Applicant, Threshold'!AK4 ->  | H2: ='Project, Applicant, Threshold'!AI24 -> 0 | I2: ='Project, Applicant, Threshold'!V5 -> No qualifying set-aside | J2: ='Project, Applicant, Threshold'!V6 ->  | K2: ='Max Rehab Loan'!AI12 -> Yes | L2: ='Project, Applicant, Threshold'!V7 -> 0 | M2: ='Project, Applicant, Threshold'!V14 -> 0 | N2: ='Project, Applicant, Threshold'!V17 -> 0 | O2: ='Dev Sources'!J28 -> 0 | P2: ='PRP Admin Allowance'!H8 -> 0 | Q2: ='Max Rehab Loan'!M6 -> 0 | R2: ='Max Rehab Loan'!Z6 -> 0 | S2: ='Non Assisted Units'!C10 -> 0 | T2: ='Project, Applicant, Threshold'!E26 -> 0 | U2: ='Project, Applicant, Threshold'!U26 -> 0 | V2: ='Project, Applicant, Threshold'!AD26 -> 0 | W2: ='Project, Applicant, Threshold'!AI26 -> 0 | X2: ='Project, Applicant, Threshold'!E27 -> 0 | Y2: ='Project, Applicant, Threshold'!U27 -> 0 | Z2: ='Project, Applicant, Threshold'!AD27 -> 0 | AA2: ='Project, Applicant, Threshold'!AI27 -> 0 | AB2: ='Project, Applicant, Threshold'!E28 -> 0 | AC2: ='Project, Applicant, Threshold'!U28 -> 0 | AD2: ='Project, Applicant, Threshold'!AD28 -> 0 | AE2: ='Project, Applicant, Threshold'!AI28 -> 0 | AF2: ='Project, Applicant, Threshold'!C21 -> 0 | AG2: ='Project, Applicant, Threshold'!J21 -> 00:00:00 | AH2: ='Project, Applicant, Threshold'!P21 -> 0 | AI2: ='Project, Applicant, Threshold'!W21 -> 00:00:00 | AJ2: ='Project, Applicant, Threshold'!AC21 -> 0 | AK2: ='Project, Applicant, Threshold'!AJ21 -> 00:00:00 | AL2: ='Project, Applicant, Threshold'!D40 -> 0 | AM2: ='Project, Applicant, Threshold'!AE40 -> 0 | AN2: ='Project, Applicant, Threshold'!AE71 -> 0 | AO2: ='Project, Applicant, Threshold'!D42 -> 0 | AP2: ='Project, Applicant, Threshold'!N42 -> 0 | AQ2: ='Project, Applicant, Threshold'!AI42 -> 0 | AR2: ='Project, Applicant, Threshold'!D43 -> 0 | AS2: ='Project, Applicant, Threshold'!N43 -> 0 | AT2: ='Project, Applicant, Threshold'!X43 -> 0 | AU2: ='Project, Applicant, Threshold'!AI43 -> 0 | AV2: ='Project, Applicant, Threshold'!D55 -> 0 | AW2: ='Project, Applicant, Threshold'!AE55 -> 0 | AX2: ='Project, Applicant, Threshold'!AE72 -> 0 | AY2: ='Project, Applicant, Threshold'!D57 -> 0 | AZ2: ='Project, Applicant, Threshold'!N57 -> 0 | BA2: ='Project, Applicant, Threshold'!AI57 -> 0 | BB2: ='Project, Applicant, Threshold'!D58 -> 0 | BC2: ='Project, Applicant, Threshold'!N58 -> 0 | BD2: ='Project, Applicant, Threshold'!X58 -> 0 | BE2: ='Project, Applicant, Threshold'!AI58 -> 0 | BF2: ='Borrower and Dev Team Contacts'!D4 -> 0 | BG2: ='Borrower and Dev Team Contacts'!D20 -> 0 | BH2: ='Borrower and Dev Team Contacts'!H19 -> 0 | BI2: ='Borrower and Dev Team Contacts'!D36 -> 0 | BJ2: ='Borrower and Dev Team Contacts'!H35 -> 0 | BK2: ='Borrower and Dev Team Contacts'!D67 -> 0 | BL2: ='Borrower and Dev Team Contacts'!D79 -> 0 | BM2: ='Borrower and Dev Team Contacts'!D70 -> 0 | BN2: ='Borrower and Dev Team Contacts'!D76 -> 0 | BO2: ='Borrower and Dev Team Contacts'!S76 -> 0 | BP2: ='Borrower and Dev Team Contacts'!C77 -> 0 | BQ2: ='Project, Applicant, Threshold'!AK29 -> 0 | BR2: ='Project, Applicant, Threshold'!AK30 -> 0 | BS2: ='Project, Applicant, Threshold'!AK31 -> 0 | BT2: ='Project, Applicant, Threshold'!AK32 -> 0 | BU2: ='Project, Applicant, Threshold'!AK33 -> 0 | BV2: ='Project, Applicant, Threshold'!AK34 -> 0 | BW2: ='Project, Applicant, Threshold'!AK36 -> 0 | BX2: ='Project, Applicant, Threshold'!AK37 -> 0 | BY2: ='Project, Applicant, Threshold'!AK70 -> 0 | BZ2: ='Project, Applicant, Threshold'!AK73 -> 0 | CA2: ='Project, Applicant, Threshold'!AK77 -> 0 | CB2: ='Project, Applicant, Threshold'!AK79 -> 0 | CC2: ='Project, Applicant, Threshold'!AK81 -> 0 | CD2: ='Project, Applicant, Threshold'!AK87 -> 0 | CE2: ='Project, Applicant, Threshold'!AK87 -> 0 | CF2: ='Project, Applicant, Threshold'!AK88 -> 0 | CG2: ='Project, Applicant, Threshold'!S91 -> 0 | CH2: ='Project, Applicant, Threshold'!AA91 -> 00:00:00 | CI2: ='Project, Applicant, Threshold'!AJ91 -> 00:00:00 | CJ2: ='COSR Calculation'!J2 -> 00:00:00 | CK2: ='Project, Applicant, Threshold'!AK92 -> 0 | CL2: ='Project, Applicant, Threshold'!AK93 -> 0 | CM2: ='Project, Applicant, Threshold'!AA94 -> 0 | CN2: ='Project, Applicant, Threshold'!AJ94 -> 00:00:00 | CO2: ='Project, Applicant, Threshold'!AK95 -> 0 | CP2: ='Project, Applicant, Threshold'!AK98 -> 0 | CQ2: ='Project, Applicant, Threshold'!AK99 -> 0 | CR2: ='Project, Applicant, Threshold'!AK100 -> 0 | CS2: ='Project, Applicant, Threshold'!AK101 -> 0 | CT2: ='Dev Sources'!C5 -> 0 | CU2: ='Dev Sources'!J5 -> 0 | CV2: ='Dev Sources'!C6 -> 0 | CW2: ='Dev Sources'!J6 -> 0 | CX2: ='Dev Sources'!C7 -> 0 | CY2: ='Dev Sources'!J7 -> 0 | CZ2: ='Dev Sources'!C8 -> 0 | DA2: ='Dev Sources'!J8 -> 0 | DB2: ='Dev Sources'!C9 -> 0 | DC2: ='Dev Sources'!J9 -> 0 | DD2: ='Dev Sources'!C10 -> 0 | DE2: ='Dev Sources'!J10 -> 0 | DF2: ='Dev Sources'!C11 -> 0 | DG2: ='Dev Sources'!J11 -> 0 | DH2: ='Dev Sources'!C12 -> 0 | DI2: ='Dev Sources'!J12 -> 0 | DJ2: ='Dev Sources'!C13 -> Deferred costs (detail at right) | DK2: ='Dev Sources'!J13 -> 0 | DL2: ='Dev Sources'!C19 -> HCD PRP Rehab Loan | DM2: ='Dev Sources'!J19 -> 0 | DN2: ='Dev Sources'!C20 -> Residential Source Name: | DO2: ='Dev Sources'!J20 -> 0 | DP2: ='Dev Sources'!C21 -> Residential Source Name: | DQ2: ='Dev Sources'!J21 -> 0 | DR2: ='Dev Sources'!C22 -> Residential Source Name: | DS2: ='Dev Sources'!J22 -> 0 | DT2: ='Dev Sources'!C23 -> Residential Source Name: | DU2: ='Dev Sources'!J23 -> 0 | DV2: ='Dev Sources'!C24 -> Private mortgage financing | DW2: ='Dev Sources'!J24 -> 0 | DX2: ='Dev Sources'!C25 -> Deferred costs | DY2: ='Dev Sources'!J25 -> 0 | DZ2: ='Dev Sources'!C26 -> Commercial Source Name: | EA2: ='Dev Sources'!J26 -> 0 | EB2: ='Dev Sources'!C27 -> Commercial Source Name: | EC2: ='Dev Sources'!J27 -> 0

Sheet Project, Applicant, Threshold
A1: Project, Applicant, and Threshold | AK1: ='PRP Cover Page'!B9 -> 2022-04-07
A2: Instructions: Provide answers to application questions and requirements within all yellow shaded cells beginning with this worksheet. After completing this worksheet, proceed to the worksheets from left to right and fill in those yellow shaded cells. Please do not copy and paste data from an external file into this application. Cell comments (red triangles in upper right portion of the cell) have been added to clarify red shading and inputs. Please contact PRP staff at portfolioreinvestment@hcd.ca.gov for red shaded cell questions or concerns. Orange shaded cells indicate documentation that must be submitted with your application. If you have issues, comments or questions regarding the application, please note them on the last worksheet "App Customer Service" and email your application to: AppSupport@hcd.ca.gov.
A3: Project Summary (application must be fully completed for this summary section to properly populate)
A4: Is Project in a county where the 100% AMI for four persons equals the statewide non-metro median income? | AK4: =IF(AD24="","",IF('Assisted Units'!Z1='Assisted Units'!Z2,"Yes","No")) -> 
A5: 1 | B5: Funding set-aside Applicant is eligible for (from "Max Rehab Loan" worksheet cell J8) | V5: ='Max Rehab Loan'!J8 -> No qualifying set-aside
A6: 2 | B6: Funding set-aside Applicant is applying for (from "Max Rehab Loan" worksheet cell AG8) | V6: =IF('Max Rehab Loan'!AG8="","",'Max Rehab Loan'!AG8) -> 
A7: PRP Rehab Loan Summary - proposed amount (lesser of max and requested) | V7: ='Max Rehab Loan'!AI3 -> 0 | Z7: from "Max Rehab Loan" worksheet cell AI3
A8: 3 | B8: Max rehab loan per NOFA §II(G) | V8: ='Max Rehab Loan'!G9 -> 20000000
A9: 4 | B9: Max rehab loan based on $200,000 per Assisted unit | V9: ='Max Rehab Loan'!Q9 -> 0 | Z9: from "Max Rehab Loan" worksheet cell Q9
A10: 5 | B10: Max base rehab loan amount - lesser of 3 or 4 above | V10: =MIN(V8,V9) -> 0
A11: 6 | B11: Max rehab loan Boost amount | V11: ='Max Rehab Loan'!AI13 -> 0 | Z11: from "Max Rehab Loan" worksheet cell AI13
A12: 7 | B12: Max Rehab loan (base plus Boost; not exceeding NOFA limit) - 5 plus 6 | V12: =V10+V11 -> 0
A13: 8 | B13: Rehab requested loan amount | V13: ='Max Rehab Loan'!Z3 -> 0 | Z13: from "Max Rehab Loan" worksheet cell Z3
A14: PRP COSR Funding Summary - proposed amount (lesser of max and requested) | V14: ='COSR Calculation'!I14 -> 0 | Z14: from "COSR Calculation" worksheet cell I14
A15: 9 | B15: Max COSR amount NOFA §II(F): | V15: ='COSR Calculation'!I12 -> 0 | Z15: from "COSR Calculation" worksheet cell I12
A16: 10 | B16: COSR requested amount | V16: ='COSR Calculation'!I13 -> 0 | Z16: from "COSR Calculation" worksheet cell I13
A17: 11 | B17: Total proposed PRP Project funding (lesser of max and requested amounts) | V17: =V7+V14 -> 0
A18: Enter the date your PRP Application is submitted to HCD: | AO18: =IF(V18="","",V18-365) -> 
A19: Eligible Project NOFA §II(A): must currently have an Original HCD Loan recorded on the property and meet all the following additional requirements
A20: 1. Have all HCD Project Regulatory Agreement(s) (RA) expired or will they expire on or before 12/31/26? If Yes, enter the HCD Project RA #(s) below.
A21: HCD (RA) # | G21: Expiration date of RA | M21: Second HCD RA # | T21: Expiration date of RA 2 | Z21: Third HCD RA # | AG21: Expiration date of RA 3
A22: Project name:
A23: If the Project was formerly known under another name(s), provide name(s):
A24: Project address: | S24: City: | AB24: County: | AH24: Zip:
A25: If Project has multiple sites, provide addresses for the additional sites:
A26: Project address: | S26: City: | AB26: County: | AH26: Zip:
A27: Project address: | S27: City: | AB27: County: | AH27: Zip:
A28: Project address: | S28: City: | AB28: County: | AH28: Zip:
A29: ="2. Applicant acknowledges and agrees that "&C21&" RA has not been terminated by HCD?" -> 2. Applicant acknowledges and agrees that RA has not been terminated by HCD?
A30: 3a. The 'Dev Sources' worksheet within this application demonstrates the Project rehabilitation costs will not be funded through low-income housing tax credits?
A31: 3b. The 'Dev Sources' worksheet within this application validates the need for the PRP loan?
A32: 3c. The 'Dev Sources' worksheet within this application is fully funded for the rehabilitation costs as reported in the 'Dev Budget' worksheet?
A33: 3d. Applicant acknowledges and agrees that tax credits, private activity bonds, and recycled bonds may not be used to fund the Project for at least ten years after the PRP RA is recorded?
A34: 4. Applicant has Project construction period rehabilitation financing provided by another lender(s), as evidenced by a letter of interest or commitment letter?
A35: File Name | D35: Const Letter #1, #2, etc | L35: Proof(s) of construction financing (letter of interest or commitment letter). HCD will review for acceptability. | AF35: Uploaded to HCD?
A36: 5. Project will comply with the definition of Rental Housing Development as defined in Health and Safety Code §50675.2?
A37: 6. Project will not comprise two or more sites unless the Original HCD Loan is already secured on each of those sites?
A38: Eligible Sponsor (Applicant) NOFA §II(B)(1)(a)
A39: Applicant #1 (1)(a)
A40: Entity name | AA40: Organization type | AM40: =IF(E40="","",E40) ->  | AO40: Individual Sole Proprietorship
A41: Address | V41: City | AC41: State | AH41: Zip | AM41: =IF(D55="","",D55) ->  | AO41: General Partnership
A42: Auth Rep | M42: Title | V42: Email | AG42: Phone | AO42: Limited Partnership
A43: Contact | M43: Title | V43: Email | AG43: Phone | AO43: Trust
A44: Address | V44: City | AC44: State | AH44: Zip | AO44: Non-profit Corporation
A45: File Name | D45: App1 Cert & Legal | L45: See Certifications & Legal worksheet. | AF45: Uploaded to HCD? | AO45: Non-profit Public Benefit Corporation
A46: File Name | D46: App1 Resolution | L46: Signature required; see Applicant Documents worksheet. | AF46: Uploaded to HCD? | AO46: For-profit Corporation
A47: File Name | D47: App1 OrgDoc1, OrgDoc2, etc… | L47: See Applicant Documents worksheet. | AF47: Uploaded to HCD? | AO47: Limited Liability Company
A48: File Name | D48: App1 OrgChart | L48: See Applicant Documents worksheet. | AF48: Uploaded to HCD? | AO48: Public Agency
A49: File Name | D49: App1 Signature Block | L49: See Applicant Documents worksheet. | AF49: Uploaded to HCD? | AO49: Tribal Entity
A50: File Name | D50: App1 Payee Data Record | L50: See Applicant Documents worksheet. | AF50: Uploaded to HCD?
A51: File Name | D51: App1 TIN | L51: See Applicant Documents worksheet (not applicable for non-governmental entities) | AF51: Uploaded to HCD?
A52: File Name | D52: App1 Cert of Good Standing | L52: Dated 30 days or less from the application submittal date. | AF52: Uploaded to HCD?
A53: File Name | D53: App1 Tax-Exempt Status | L53: If applicable, evidence of tax-exempt status from IRS and Franchise Tax Board for Corps | AF53: Uploaded to HCD?
A54: Applicant #2 (1)(a)
A55: Entity name | AA55: Organization type
A56: Address | V56: City | AC56: State | AH56: Zip
A57: Auth Rep | M57: Title | V57: Email | AG57: Phone
A58: Contact | M58: Title | V58: Email | AG58: Phone
A59: Address | V59: City | AC59: State | AH59: Zip
A60: File Name | D60: App2 Cert & Legal | L60: See Certifications & Legal worksheet. | AF60: Uploaded to HCD?
A61: File Name | D61: App2 Resolution | L61: Signature required; see Applicant Documents worksheet. | AF61: Uploaded to HCD?
A62: File Name | D62: App2 OrgDoc1, OrgDoc2, etc… | L62: See Applicant Documents worksheet. | AF62: Uploaded to HCD?
A63: File Name | D63: App2 OrgChart | L63: See Applicant Documents worksheet. | AF63: Uploaded to HCD?
A64: File Name | D64: App2 Signature Block | L64: See Applicant Documents worksheet. | AF64: Uploaded to HCD?
A65: File Name | D65: App2 Payee Data Record | L65: See Applicant Documents worksheet. | AF65: Uploaded to HCD?
A66: File Name | D66: App2 TIN | L66: See Applicant Documents worksheet (not applicable for non-governmental entities) | AF66: Uploaded to HCD?
A67: File Name | D67: App2 Cert of Good Standing | L67: Dated 30 days or less from the application submittal date. | AF67: Uploaded to HCD?
A68: File Name | D68: App2 Tax-Exempt Status | L68: If applicable, evidence of tax-exempt status from IRS and Franchise Tax Board for Corps | AF68: Uploaded to HCD?
A70: 1b. Applicant acknowledges if it is a Joint Venture and qualifies as an eligible Sponsor under this section based on the experience of only one joint venture partner, that partner must have a controlling interest in the Joint Venture and a substantial and continued role in the Project’s ongoing operations, as evidenced in the documents governing the Joint Venture?
A71: 1c. On what profit basis is Applicant #1 above organized?
A72: 1c. On what profit basis is Applicant #2 above organized?
A73: 1d. Is the Applicant the current owner of the Project?
A74: If Applicant(s) is not the current owner of the Project, the current owner has requested HCD approval of a change of ownership no less than 30 days prior to submittal of its application, and HCD has issued a formal approval of the change of ownership prior to submittal of the application. In addition, Applicant has site control in compliance with UMR §8303? If No (Applicant is not the current owner and has not complied with this subsection), explain below. NOFA §II(B)(3)
A76: File Name | D76: Ownership approval | L76: If Applicant is not the current owner, attach HCD approval letter regarding Applicant's capacity to acquire the Project including financial resources, an office, payroll, and subsections i through iii. | AF76: Uploaded to HCD?
A77: 1e. Applicant certifies their capacity to rehabilitate, own, and manage the Project?
A78: File Name | D78: Staff Chart | L78: Staffing chart illustrating capacity; this is not applicable to Local Public Entity Applicants. | AF78: Uploaded to HCD?
A79: 1f. Is Applicant an entity (not an individual) relying on the capacity of a parent organization, specific employee, or other entity having control of the Applicant? If Yes, identify the parent organization, specific employee, or other entity having control of the Applicant below.
A81: 1g. Is Applicant an entity (not an individual) relying on the experience of its principal to meet eligibility requirements? If Yes, indicate principal's experience below.
A82: Affordable rental housing project name and address | N82: Name, title and phone number of principal who provides the ownership and development experience | AG82: Latest date owned | AJ82: Latest date developed
A85: 1h. If Applicant is a Tribal Entity, does the Tribal Entity have a fully executed contract at time of application submission that will be in effect at least until permanent loan closing with an experienced developer who will not be a general partner to meet the requirements of this section? If Yes, must upload executed contract.
A86: File Name | D86: Tribal Contract | L86: Executed contract with an experienced developer | AF86: Uploaded to HCD?
A87: 2. Applicant(s) and borrower certify that they are not in breach or default of the Original HCD Loan nor under any other HCD programs, except for the maturity of an unpaid loan? NOFA §II(B)(2)
A88: 3. Does Applicant have site control in compliance with UMR §8303?
A89: File Name | D89: Site Control | L89: Proof of site control per UMR §8303 | AF89: Uploaded to HCD?
A90: Threshold NOFA §II(D)
A91: 1. Applicant will commence rehabilitation (the first alteration of any wall, ceiling, floor, or other structural part of a building) within 180 days of PRP award? | U91: Estimated construction start date | AD91: Estimated construction completion date
A92: 2. Applicant will comply and to the best of its knowledge is in compliance with all the requirements specified in this NOFA?
A93: 3. Applicant has submitted a complete HCD PRP application by the application deadline, used unaltered application forms, included all required attachments, and adhered to application submittal protocols?
A94: 4a. Applicant has a third-party Property Condition Assessment (PCA) prepared within 12 months of the application submittal date that documents all physical needs and all repairs required within five years of the PNA date? | AC94: If Yes, enter the date PCA was prepared
A95: 4b. Applicant acknowledges all PCA identified required repairs within five years are included in the rehabilitation scope of work submitted with the application?
A96: File Name | D96: PCA | L96: Prepared within 12 months of the application submittal date that documents all physical needs and all repairs required within five years of the PCA date. HCD will assume a $500 per unit annual deposit to the Replacement Reserve unless a different amount is approved by HCD pursuant to UMR §8309(b)(2). PCA must include the total residential and commercial square feet, number of elevators, and number of parking spaces. | AF96: Uploaded to HCD?
A97: File Name | D97: Scope of Work | L97: Attach a scope of work for the Project that includes the repairs required in the next five years as identified in the PCA. Include a general timeline for the repairs. | AF97: Uploaded to HCD?
A98: 5. Application demonstrates Fiscal Integrity per MHP Guideline §7301(j) by the 10th year after the date of recordation of the PRP Rehabilitation loan? MHP §7301(j) "total operating income plus funds released pursuant to the regulatory agreement from the operating reserve account is sufficient to: (1) pay all current operating expenses; (2) pay all current debt service (excluding deferred interest); (3) fully fund all reserve accounts (other than the operating reserve account) established pursuant to the Regulatory Agreement; and (4) pay other extraordinary costs permitted by the Regulatory Agreement."
A99: 6. Each Applicant has submitted their organizational documents and all amendments thereto (excluding governmental entities) with the application. Each Applicant has also submitted an authorizing resolution that materially comports with the PRP requirements and is legally sufficient?
A100: 7. Applicant acknowledges HCD will not approve a PRP Standard Agreement until it receives a complete set of authorizing, formational, and organizational documents from the Applicant, as required?
A101: 8. Applicant acknowledges any Applicant that has misrepresented any material facts related to the Applicant's compliance with any of HCD's loans will not be eligible for a PRP award and any misrepresentation of material facts is grounds for PRP award ineligibility?

Sheet Unit Des Table (hidden)
A1: Individual Sole Proprietorship | B1: Joint Venture | C1: General Partnership | D1: Limited Partnership | E1: Trust | F1: Corporation | G1: Limited Liability Company | H1: Local Public Entity | I1: Tribal Entity
A2: Individual | B2: Individual Sole Proprietorship | C2: General Partner | D2: General Partner | E2: Trustee | F2: President | G2: Manager | H2: Chairperson of the Board | I2: Tribal Council Leader | K2: Individual
B3: General Partnership | C3: Co-General Partner | D3: Co-General Partner | E3: Co-Trustee | F3: Chief Executive Officer | G3: Member | H3: Chief Executive Officer | I3: Tribal Council Representative | K3: Joint Venture
B4: Limited Partnership | C4: Special General Partner | D4: Managing General Partner | E4: Executor | F4: Vice President | G4: Member/Manager | H4: Chief Administrative Officer | I4: Authorized Federal Official | K4: Partnership
B5: Trust | D5: Administrative General Partner | F5: Chief Operating Officer | H5: City Manager | K5: Limited Partnership
B6: Non-profit Corporation | F6: Treasurer | H6: Assistant City Manager | K6: Trust
B7: Non-profit Public Benefit Corporation | F7: Chief Financial Officer | H7: Finance Director | K7: Corporation
B8: For-profit Corporation | F8: Secretary | H8: Chief Financial Officer | K8: Limited Liability Company
B9: Limited Liability Company | H9: Mayor | K9: Local Public Entity
B10: Public Agency | H10: Chancellor | K10: Tribal Entity
B11: Tribal Entity | H11: Superintendent
H12: Director
H13: Secretary

Sheet Dropdowns (hidden)
A1: CALDAP | B1: 0.15
A2: CHRP-R | B2: 0.2
A3: DDS | B3: 0.25
A4: DPRLP | B4: 0.3
A5: DRP | B5: 0.35
A6: FHDP | B6: 0.4
A7: FWHG | B7: 0.45
A8: HLCP-E | B8: 0.5
A9: HLCP-N | B9: 0.55
A10: HOME | B10: 0.6
A11: Manager | B11: 0.8
A12: New PRP
A13: RHCP-B
A14: RHCP-O
A15: SERA
A16: SUHRP

Sheet Rent Limits (hidden)
A1: County | B1: 1 | C1: 2 | D1: 3 | E1: 4 | F1: 5 | G1: 6 | H1: 7 | I1: 8 | J1: County | K1: 0 | L1: 1 | M1: 2 | N1: 3 | O1: 4 | P1: 5
A2: Alameda0.15 | B2: =B9*2*0.15 -> 14385 | C2: =C9*2*0.15 -> 16440 | D2: =D9*2*0.15 -> 18495 | E2: =E9*2*0.15 -> 20550 | F2: =F9*2*0.15 -> 22200 | G2: =G9*2*0.15 -> 23850 | H2: 25485 | I2: 27135 | J2: Alameda0.15 | K2: =TRUNC(B2/12*0.3) -> 359 | L2: =TRUNC((B2+C2)/2/12*0.3) -> 385 | M2: =TRUNC((D2)/12*0.3) -> 462 | N2: =TRUNC(((E2+F2)/2)/12*0.3) -> 534 | O2: =TRUNC(G2/12*0.3) -> 596 | P2: =TRUNC(((H2+I2)/2)/12*0.3) -> 657
A3: Alameda0.2 | B3: =B9*2*0.2 -> 19180 | C3: =C9*2*0.2 -> 21920 | D3: 24660 | E3: 27400 | F3: 29600 | G3: 31800 | H3: 33980 | I3: 36180 | J3: Alameda0.2 | K3: 479 | L3: 513 | M3: 616 | N3: 712 | O3: 795 | P3: 877
A4: Alameda0.25 | B4: =B9*2*0.25 -> 23975 | C4: =C9*2*0.25 -> 27400 | D4: 30825 | E4: 34250 | F4: 37000 | G4: 39750 | H4: 42475 | I4: 45225 | J4: Alameda0.25 | K4: 599 | L4: 642 | M4: 770 | N4: 890 | O4: 993 | P4: 1096
A5: Alameda0.3 | B5: =B9*2*0.3 -> 28770 | C5: =C9*2*0.3 -> 32880 | D5: 36990 | E5: 41100 | F5: 44400 | G5: 47700 | H5: 50970 | I5: 54270 | J5: Alameda0.3 | K5: 719 | L5: 770 | M5: 924 | N5: 1068 | O5: 1192 | P5: 1315
A6: Alameda0.35 | B6: =B9*2*0.35 -> 33565 | C6: =C9*2*0.35 -> 38360 | D6: 43155 | E6: 47950 | F6: 51800 | G6: 55650 | H6: 59465 | I6: 63315 | J6: Alameda0.35 | K6: 839 | L6: 899 | M6: 1078 | N6: 1246 | O6: 1391 | P6: 1534
A7: Alameda0.4 | B7: =B9*2*0.4 -> 38360 | C7: =C9*2*0.4 -> 43840 | D7: 49320 | E7: 54800 | F7: 59200 | G7: 63600 | H7: 67960 | I7: 72360 | J7: Alameda0.4 | K7: 959 | L7: 1027 | M7: 1233 | N7: 1425 | O7: 1590 | P7: 1754
A8: Alameda0.45 | B8: =B9*2*0.45 -> 43155 | C8: =C9*2*0.45 -> 49320 | D8: 55485 | E8: 61650 | F8: 66600 | G8: 71550 | H8: 76455 | I8: 81405 | J8: Alameda0.45 | K8: 1078 | L8: 1155 | M8: 1387 | N8: 1603 | O8: 1788 | P8: 1973
A9: Alameda0.5 | B9: ='MTSP 50% Income Limits'!B2 -> 47950 | C9: ='MTSP 50% Income Limits'!C2 -> 54800 | D9: ='MTSP 50% Income Limits'!D2 -> 61650 | E9: ='MTSP 50% Income Limits'!E2 -> 68500 | F9: ='MTSP 50% Income Limits'!F2 -> 74000 | G9: ='MTSP 50% Income Limits'!G2 -> 79500 | H9: ='MTSP 50% Income Limits'!H2 -> 84950 | I9: ='MTSP 50% Income Limits'!I2 -> 90450 | J9: Alameda0.5 | K9: =TRUNC(B9/12*0.3) -> 1198 | L9: =TRUNC((B9+C9)/2/12*0.3) -> 1284 | M9: =TRUNC((D9)/12*0.3) -> 1541 | N9: =TRUNC(((E9+F9)/2)/12*0.3) -> 1781 | O9: =TRUNC(G9/12*0.3) -> 1987 | P9: =TRUNC(((H9+I9)/2)/12*0.3) -> 2192
A10: Alameda0.55 | B10: =B9*2*0.55 -> 52745 | C10: =C9*2*0.55 -> 60280 | D10: 67815 | E10: 75350 | F10: 81400 | G10: 87450 | H10: 93445 | I10: 99495 | J10: Alameda0.55 | K10: =TRUNC(B10/12*0.3) -> 1318 | L10: =TRUNC((B10+C10)/2/12*0.3) -> 1412 | M10: =TRUNC((D10)/12*0.3) -> 1695 | N10: =TRUNC(((E10+F10)/2)/12*0.3) -> 1959 | O10: =TRUNC(G10/12*0.3) -> 2186 | P10: =TRUNC(((H10+I10)/2)/12*0.3) -> 2411
A11: Alameda0.6 | B11: =B9*2*0.6 -> 57540 | C11: =C9*2*0.6 -> 65760 | D11: 73980 | E11: 82200 | F11: 88800 | G11: 95400 | H11: 101940 | I11: 108540 | J11: Alameda0.6 | K11: 1438 | L11: 1541 | M11: 1849 | N11: 2137 | O11: 2385 | P11: 2631
A12: Alameda0.65 | B12: =B9*2*0.65 -> 62335 | C12: =C9*2*0.65 -> 71240 | D12: 80145 | E12: 89050 | F12: 96200 | G12: 103350 | H12: 110435 | I12: 117585 | J12: Alameda0.65 | K12: 1558 | L12: 1669 | M12: 2003 | N12: 2315 | O12: 2583 | P12: 2850
A13: Alameda0.7 | B13: =B9*2*0.7 -> 67130 | C13: =C9*2*0.7 -> 76720 | D13: 86310 | E13: 95900 | F13: 103600 | G13: 111300 | H13: 118930 | I13: 126630 | J13: Alameda0.7 | K13: 1678 | L13: 1798 | M13: 2157 | N13: 2493 | O13: 2782 | P13: 3069
A14: Alameda0.75 | B14: =B9*2*0.75 -> 71925 | C14: =C9*2*0.75 -> 82200 | D14: 92475 | E14: 102750 | F14: 111000 | G14: 119250 | H14: 127425 | I14: 135675 | J14: Alameda0.75 | K14: 1798 | L14: 1926 | M14: 2311 | N14: 2671 | O14: 2981 | P14: 3288
A15: Alameda0.8 | B15: =B9*2*0.8 -> 76720 | C15: =C9*2*0.8 -> 87680 | D15: 98640 | E15: 109600 | F15: 118400 | G15: 127200 | H15: 135920 | I15: 144720 | J15: Alameda0.8 | K15: 1918 | L15: 2055 | M15: 2466 | N15: 2850 | O15: 3180 | P15: 3508
A16: Alameda0.9 | B16: =B9*2*0.9 -> 86310 | C16: =C9*2*0.9 -> 98640 | D16: 110970 | E16: 123300 | F16: 133200 | G16: 143100 | H16: 152910 | I16: 162810 | J16: Alameda0.9 | K16: 2157 | L16: 2311 | M16: 2774 | N16: 3206 | O16: 3577 | P16: 3946
A17: Alameda1 | B17: =B9*2 -> 95900 | C17: =C9*2 -> 109600 | D17: 123300 | E17: 137000 | F17: 148000 | G17: 159000 | H17: 169900 | I17: 180900 | J17: Alameda1 | K17: =K9*2 -> 2396 | L17: =L9*2 -> 2568 | M17: 3082 | N17: 3562 | O17: 3974 | P17: 4384
A18: Alameda1.1 | B18: =B9*2*1.1 -> 105490 | C18: =C9*2*1.1 -> 120560 | D18: 135630 | E18: 150700 | F18: 162800 | G18: 174900 | H18: 186890 | I18: 198990 | J18: Alameda1.1 | K18: 2637 | L18: 2825 | M18: 3390 | N18: 3918 | O18: 4372 | P18: 4823
A19: Alameda1.2 | B19: =B9*2*1.2 -> 115080 | C19: =C9*2*1.2 -> 131520 | D19: 147960 | E19: 164400 | F19: 177600 | G19: 190800 | H19: 203880 | I19: 217080 | J19: Alameda1.2 | K19: 2877 | L19: 3082 | M19: 3699 | N19: 4275 | O19: 4770 | P19: 5262
A20: Alpine0.15 | B20: =B27*2*0.15 -> 8535 | C20: =C27*2*0.15 -> 9750 | D20: =D27*2*0.15 -> 10965 | E20: =E27*2*0.15 -> 12180 | F20: =F27*2*0.15 -> 13155 | G20: =G27*2*0.15 -> 14130 | H20: 15105 | I20: 16080 | J20: Alpine0.15 | K20: 213 | L20: 228 | M20: 274 | N20: 316 | O20: 353 | P20: 389
A21: Alpine0.2 | B21: =B27*2*0.2 -> 11380 | C21: =C27*2*0.2 -> 13000 | D21: 14620 | E21: 16240 | F21: 17540 | G21: 18840 | H21: 20140 | I21: 21440 | J21: Alpine0.2 | K21: 284 | L21: 304 | M21: 365 | N21: 422 | O21: 471 | P21: 519
A22: Alpine0.25 | B22: =B27*2*0.25 -> 14225 | C22: =C27*2*0.25 -> 16250 | D22: 18275 | E22: 20300 | F22: 21925 | G22: 23550 | H22: 25175 | I22: 26800 | J22: Alpine0.25 | K22: 355 | L22: 380 | M22: 456 | N22: 527 | O22: 588 | P22: 649
A23: Alpine0.3 | B23: =B27*2*0.3 -> 17070 | C23: =C27*2*0.3 -> 19500 | D23: 21930 | E23: 24360 | F23: 26310 | G23: 28260 | H23: 30210 | I23: 32160 | J23: Alpine0.3 | K23: 426 | L23: 457 | M23: 548 | N23: 633 | O23: 706 | P23: 779
A24: Alpine0.35 | B24: =B27*2*0.35 -> 19915 | C24: =C27*2*0.35 -> 22750 | D24: 25585 | E24: 28420 | F24: 30695 | G24: 32970 | H24: 35245 | I24: 37520 | J24: Alpine0.35 | K24: 497 | L24: 533 | M24: 639 | N24: 738 | O24: 824 | P24: 909
A25: Alpine0.4 | B25: =B27*2*0.4 -> 22760 | C25: =C27*2*0.4 -> 26000 | D25: 29240 | E25: 32480 | F25: 35080 | G25: 37680 | H25: 40280 | I25: 42880 | J25: Alpine0.4 | K25: 569 | L25: 609 | M25: 731 | N25: 844 | O25: 942 | P25: 1039
A26: Alpine0.45 | B26: =B27*2*0.45 -> 25605 | C26: =C27*2*0.45 -> 29250 | D26: 32895 | E26: 36540 | F26: 39465 | G26: 42390 | H26: 45315 | I26: 48240 | J26: Alpine0.45 | K26: 640 | L26: 685 | M26: 822 | N26: 950 | O26: 1059 | P26: 1169
A27: Alpine0.5 | B27: ='MTSP 50% Income Limits'!B3 -> 28450 | C27: ='MTSP 50% Income Limits'!C3 -> 32500 | D27: ='MTSP 50% Income Limits'!D3 -> 36550 | E27: ='MTSP 50% Income Limits'!E3 -> 40600 | F27: ='MTSP 50% Income Limits'!F3 -> 43850 | G27: ='MTSP 50% Income Limits'!G3 -> 47100 | H27: ='MTSP 50% Income Limits'!H3 -> 50350 | I27: ='MTSP 50% Income Limits'!I3 -> 53600 | J27: Alpine0.5 | K27: =TRUNC(B27/12*0.3) -> 711 | L27: =TRUNC((B27+C27)/2/12*0.3) -> 761 | M27: =TRUNC((D27)/12*0.3) -> 913 | N27: =TRUNC(((E27+F27)/2)/12*0.3) -> 1055 | O27: =TRUNC(G27/12*0.3) -> 1177 | P27: =TRUNC(((H27+I27)/2)/12*0.3) -> 1299
A28: Alpine0.55 | B28: =B27*2*0.55 -> 31295 | C28: =C27*2*0.55 -> 35750 | D28: 40205 | E28: 44660 | F28: 48235 | G28: 51810 | H28: 55385 | I28: 58960 | J28: Alpine0.55 | K28: =TRUNC(B28/12*0.3) -> 782 | L28: =TRUNC((B28+C28)/2/12*0.3) -> 838 | M28: =TRUNC((D28)/12*0.3) -> 1005 | N28: =TRUNC(((E28+F28)/2)/12*0.3) -> 1161 | O28: =TRUNC(G28/12*0.3) -> 1295 | P28: =TRUNC(((H28+I28)/2)/12*0.3) -> 1429
A29: Alpine0.6 | B29: =B27*2*0.6 -> 34140 | C29: =C27*2*0.6 -> 39000 | D29: 43860 | E29: 48720 | F29: 52620 | G29: 56520 | H29: 60420 | I29: 64320 | J29: Alpine0.6 | K29: 853 | L29: 914 | M29: 1096 | N29: 1266 | O29: 1413 | P29: 1559
A30: Alpine0.65 | B30: =B27*2*0.65 -> 36985 | C30: =C27*2*0.65 -> 42250 | D30: 47515 | E30: 52780 | F30: 57005 | G30: 61230 | H30: 65455 | I30: 69680 | J30: Alpine0.65 | K30: 924 | L30: 990 | M30: 1187 | N30: 1372 | O30: 1530 | P30: 1689
A31: Alpine0.7 | B31: =B27*2*0.7 -> 39830 | C31: =C27*2*0.7 -> 45500 | D31: 51170 | E31: 56840 | F31: 61390 | G31: 65940 | H31: 70490 | I31: 75040 | J31: Alpine0.7 | K31: 995 | L31: 1066 | M31: 1279 | N31: 1477 | O31: 1648 | P31: 1819
A32: Alpine0.75 | B32: =B27*2*0.75 -> 42675 | C32: =C27*2*0.75 -> 48750 | D32: 54825 | E32: 60900 | F32: 65775 | G32: 70650 | H32: 75525 | I32: 80400 | J32: Alpine0.75 | K32: 1066 | L32: 1142 | M32: 1370 | N32: 1583 | O32: 1766 | P32: 1949
A33: Alpine0.8 | B33: =B27*2*0.8 -> 45520 | C33: =C27*2*0.8 -> 52000 | D33: 58480 | E33: 64960 | F33: 70160 | G33: 75360 | H33: 80560 | I33: 85760 | J33: Alpine0.8 | K33: 1138 | L33: 1219 | M33: 1462 | N33: 1689 | O33: 1884 | P33: 2079
A34: Alpine0.9 | B34: =B27*2*0.9 -> 51210 | C34: =C27*2*0.9 -> 58500 | D34: 65790 | E34: 73080 | F34: 78930 | G34: 84780 | H34: 90630 | I34: 96480 | J34: Alpine0.9 | K34: 1280 | L34: 1371 | M34: 1644 | N34: 1900 | O34: 2119 | P34: 2338
A35: Alpine1 | B35: =B27*2 -> 56900 | C35: =C27*2 -> 65000 | D35: 73100 | E35: 81200 | F35: 87700 | G35: 94200 | H35: 100700 | I35: 107200 | J35: Alpine1 | K35: =K27*2 -> 1422 | L35: =L27*2 -> 1522 | M35: 1826 | N35: 2110 | O35: 2354 | P35: 2598
A36: Alpine1.1 | B36: =B27*2*1.1 -> 62590 | C36: =C27*2*1.1 -> 71500 | D36: 80410 | E36: 89320 | F36: 96470 | G36: 103620 | H36: 110770 | I36: 117920 | J36: Alpine1.1 | K36: =TRUNC(B36/12*0.3) -> 1564 | L36: =TRUNC((B36+C36)/2/12*0.3) -> 1676 | M36: =TRUNC((D36)/12*0.3) -> 2010 | N36: =TRUNC(((E36+F36)/2)/12*0.3) -> 2322 | O36: =TRUNC(G36/12*0.3) -> 2590 | P36: =TRUNC(((H36+I36)/2)/12*0.3) -> 2858
A37: Alpine1.2 | B37: =B27*2*1.2 -> 68280 | C37: =C27*2*1.2 -> 78000 | D37: 87720 | E37: 97440 | F37: 105240 | G37: 113040 | H37: 120840 | I37: 128640 | J37: Alpine1.2 | K37: 1707 | L37: 1828 | M37: 2193 | N37: 2533 | O37: 2826 | P37: 3118
A38: Amador0.15 | B38: =B45*2*0.15 -> 8190 | C38: =C45*2*0.15 -> 9360 | D38: =D45*2*0.15 -> 10530 | E38: =E45*2*0.15 -> 11685 | F38: =F45*2*0.15 -> 12630 | G38: =G45*2*0.15 -> 13560 | H38: 14490 | I38: 15435 | J38: Amador0.15 | K38: 204 | L38: 219 | M38: 263 | N38: 303 | O38: 339 | P38: 374
A39: Amador0.2 | B39: =B45*2*0.2 -> 10920 | C39: =C45*2*0.2 -> 12480 | D39: 14040 | E39: 15580 | F39: 16840 | G39: 18080 | H39: 19320 | I39: 20580 | J39: Amador0.2 | K39: 273 | L39: 292 | M39: 351 | N39: 405 | O39: 452 | P39: 498
A40: Amador0.25 | B40: =B45*2*0.25 -> 13650 | C40: =C45*2*0.25 -> 15600 | D40: 17550 | E40: 19475 | F40: 21050 | G40: 22600 | H40: 24150 | I40: 25725 | J40: Amador0.25 | K40: 341 | L40: 365 | M40: 438 | N40: 506 | O40: 565 | P40: 623
A41: Amador0.3 | B41: =B45*2*0.3 -> 16380 | C41: =C45*2*0.3 -> 18720 | D41: 21060 | E41: 23370 | F41: 25260 | G41: 27120 | H41: 28980 | I41: 30870 | J41: Amador0.3 | K41: 409 | L41: 438 | M41: 526 | N41: 607 | O41: 678 | P41: 748
A42: Amador0.35 | B42: =B45*2*0.35 -> 19110 | C42: =C45*2*0.35 -> 21840 | D42: 24570 | E42: 27265 | F42: 29470 | G42: 31640 | H42: 33810 | I42: 36015 | J42: Amador0.35 | K42: 477 | L42: 511 | M42: 614 | N42: 709 | O42: 791 | P42: 872
A43: Amador0.4 | B43: =B45*2*0.4 -> 21840 | C43: =C45*2*0.4 -> 24960 | D43: 28080 | E43: 31160 | F43: 33680 | G43: 36160 | H43: 38640 | I43: 41160 | J43: Amador0.4 | K43: 546 | L43: 585 | M43: 702 | N43: 810 | O43: 904 | P43: 997
A44: Amador0.45 | B44: =B45*2*0.45 -> 24570 | C44: =C45*2*0.45 -> 28080 | D44: 31590 | E44: 35055 | F44: 37890 | G44: 40680 | H44: 43470 | I44: 46305 | J44: Amador0.45 | K44: 614 | L44: 658 | M44: 789 | N44: 911 | O44: 1017 | P44: 1122
A45: Amador0.5 | B45: ='MTSP 50% Income Limits'!B4 -> 27300 | C45: ='MTSP 50% Income Limits'!C4 -> 31200 | D45: ='MTSP 50% Income Limits'!D4 -> 35100 | E45: ='MTSP 50% Income Limits'!E4 -> 38950 | F45: ='MTSP 50% Income Limits'!F4 -> 42100 | G45: ='MTSP 50% Income Limits'!G4 -> 45200 | H45: ='MTSP 50% Income Limits'!H4 -> 48300 | I45: ='MTSP 50% Income Limits'!I4 -> 51450 | J45: Amador0.5 | K45: =TRUNC(B45/12*0.3) -> 682 | L45: =TRUNC((B45+C45)/2/12*0.3) -> 731 | M45: =TRUNC((D45)/12*0.3) -> 877 | N45: =TRUNC(((E45+F45)/2)/12*0.3) -> 1013 | O45: =TRUNC(G45/12*0.3) -> 1130 | P45: =TRUNC(((H45+I45)/2)/12*0.3) -> 1246
A46: Amador0.55 | B46: =B45*2*0.55 -> 30030 | C46: =C45*2*0.55 -> 34320 | D46: 38610 | E46: 42845 | F46: 46310 | G46: 49720 | H46: 53130 | I46: 56595 | J46: Amador0.55 | K46: =TRUNC(B46/12*0.3) -> 750 | L46: =TRUNC((B46+C46)/2/12*0.3) -> 804 | M46: =TRUNC((D46)/12*0.3) -> 965 | N46: =TRUNC(((E46+F46)/2)/12*0.3) -> 1114 | O46: =TRUNC(G46/12*0.3) -> 1243 | P46: =TRUNC(((H46+I46)/2)/12*0.3) -> 1371
A47: Amador0.6 | B47: =B45*2*0.6 -> 32760 | C47: =C45*2*0.6 -> 37440 | D47: 42120 | E47: 46740 | F47: 50520 | G47: 54240 | H47: 57960 | I47: 61740 | J47: Amador0.6 | K47: 819 | L47: 877 | M47: 1053 | N47: 1215 | O47: 1356 | P47: 1496
A48: Amador0.65 | B48: =B45*2*0.65 -> 35490 | C48: =C45*2*0.65 -> 40560 | D48: 45630 | E48: 50635 | F48: 54730 | G48: 58760 | H48: 62790 | I48: 66885 | J48: Amador0.65 | K48: 887 | L48: 950 | M48: 1140 | N48: 1317 | O48: 1469 | P48: 1620
A49: Amador0.7 | B49: =B45*2*0.7 -> 38220 | C49: =C45*2*0.7 -> 43680 | D49: 49140 | E49: 54530 | F49: 58940 | G49: 63280 | H49: 67620 | I49: 72030 | J49: Amador0.7 | K49: 955 | L49: 1023 | M49: 1228 | N49: 1418 | O49: 1582 | P49: 1745
A50: Amador0.75 | B50: =B45*2*0.75 -> 40950 | C50: =C45*2*0.75 -> 46800 | D50: 52650 | E50: 58425 | F50: 63150 | G50: 67800 | H50: 72450 | I50: 77175 | J50: Amador0.75 | K50: 1023 | L50: 1096 | M50: 1316 | N50: 1519 | O50: 1695 | P50: 1870
A51: Amador0.8 | B51: =B45*2*0.8 -> 43680 | C51: =C45*2*0.8 -> 49920 | D51: 56160 | E51: 62320 | F51: 67360 | G51: 72320 | H51: 77280 | I51: 82320 | J51: Amador0.8 | K51: 1092 | L51: 1170 | M51: 1404 | N51: 1621 | O51: 1808 | P51: 1995
A52: Amador0.9 | B52: =B45*2*0.9 -> 49140 | C52: =C45*2*0.9 -> 56160 | D52: 63180 | E52: 70110 | F52: 75780 | G52: 81360 | H52: 86940 | I52: 92610 | J52: Amador0.9 | K52: 1228 | L52: 1316 | M52: 1579 | N52: 1823 | O52: 2034 | P52: 2244
A53: Amador1 | B53: =B45*2 -> 54600 | C53: =C45*2 -> 62400 | D53: 70200 | E53: 77900 | F53: 84200 | G53: 90400 | H53: 96600 | I53: 102900 | J53: Amador1 | K53: =K45*2 -> 1364 | L53: =L45*2 -> 1462 | M53: 1754 | N53: 2026 | O53: 2260 | P53: 2492
A54: Amador1.1 | B54: =B45*2*1.1 -> 60060 | C54: =C45*2*1.1 -> 68640 | D54: 77220 | E54: 85690 | F54: 92620 | G54: 99440 | H54: 106260 | I54: 113190 | J54: Amador1.1 | K54: =TRUNC(B54/12*0.3) -> 1501 | L54: =TRUNC((B54+C54)/2/12*0.3) -> 1608 | M54: =TRUNC((D54)/12*0.3) -> 1930 | N54: =TRUNC(((E54+F54)/2)/12*0.3) -> 2228 | O54: =TRUNC(G54/12*0.3) -> 2486 | P54: =TRUNC(((H54+I54)/2)/12*0.3) -> 2743
A55: Amador1.2 | B55: =B45*2*1.2 -> 65520 | C55: =C45*2*1.2 -> 74880 | D55: 84240 | E55: 93480 | F55: 101040 | G55: 108480 | H55: 115920 | I55: 123480 | J55: Amador1.2 | K55: 1638 | L55: 1755 | M55: 2106 | N55: 2431 | O55: 2712 | P55: 2992
A56: Butte0.15 | B56: =B63*2*0.15 -> 7320 | C56: =C63*2*0.15 -> 8370 | D56: =D63*2*0.15 -> 9420 | E56: =E63*2*0.15 -> 10455 | F56: =F63*2*0.15 -> 11295 | G56: =G63*2*0.15 -> 12135 | H56: 12975 | I56: 13815 | J56: Butte0.15 | K56: 183 | L56: 196 | M56: 235 | N56: 271 | O56: 303 | P56: 334
A57: Butte0.2 | B57: =B63*2*0.2 -> 9760 | C57: =C63*2*0.2 -> 11160 | D57: 12560 | E57: 13940 | F57: 15060 | G57: 16180 | H57: 17300 | I57: 18420 | J57: Butte0.2 | K57: 244 | L57: 261 | M57: 314 | N57: 362 | O57: 404 | P57: 446
A58: Butte0.25 | B58: =B63*2*0.25 -> 12200 | C58: =C63*2*0.25 -> 13950 | D58: 15700 | E58: 17425 | F58: 18825 | G58: 20225 | H58: 21625 | I58: 23025 | J58: Butte0.25 | K58: 305 | L58: 326 | M58: 392 | N58: 453 | O58: 505 | P58: 558
A59: Butte0.3 | B59: =B63*2*0.3 -> 14640 | C59: =C63*2*0.3 -> 16740 | D59: 18840 | E59: 20910 | F59: 22590 | G59: 24270 | H59: 25950 | I59: 27630 | J59: Butte0.3 | K59: 366 | L59: 392 | M59: 471 | N59: 543 | O59: 606 | P59: 669
A60: Butte0.35 | B60: =B63*2*0.35 -> 17080 | C60: =C63*2*0.35 -> 19530 | D60: 21980 | E60: 24395 | F60: 26355 | G60: 28315 | H60: 30275 | I60: 32235 | J60: Butte0.35 | K60: 427 | L60: 457 | M60: 549 | N60: 634 | O60: 707 | P60: 781
A61: Butte0.4 | B61: =B63*2*0.4 -> 19520 | C61: =C63*2*0.4 -> 22320 | D61: 25120 | E61: 27880 | F61: 30120 | G61: 32360 | H61: 34600 | I61: 36840 | J61: Butte0.4 | K61: 488 | L61: 523 | M61: 628 | N61: 725 | O61: 809 | P61: 893
A62: Butte0.45 | B62: =B63*2*0.45 -> 21960 | C62: =C63*2*0.45 -> 25110 | D62: 28260 | E62: 31365 | F62: 33885 | G62: 36405 | H62: 38925 | I62: 41445 | J62: Butte0.45 | K62: 549 | L62: 588 | M62: 706 | N62: 815 | O62: 910 | P62: 1004
A63: Butte0.5 | B63: ='MTSP 50% Income Limits'!B5 -> 24400 | C63: ='MTSP 50% Income Limits'!C5 -> 27900 | D63: ='MTSP 50% Income Limits'!D5 -> 31400 | E63: ='MTSP 50% Income Limits'!E5 -> 34850 | F63: ='MTSP 50% Income Limits'!F5 -> 37650 | G63: ='MTSP 50% Income Limits'!G5 -> 40450 | H63: ='MTSP 50% Income Limits'!H5 -> 43250 | I63: ='MTSP 50% Income Limits'!I5 -> 46050 | J63: Butte0.5 | K63: =TRUNC(B63/12*0.3) -> 610 | L63: =TRUNC((B63+C63)/2/12*0.3) -> 653 | M63: =TRUNC((D63)/12*0.3) -> 785 | N63: =TRUNC(((E63+F63)/2)/12*0.3) -> 906 | O63: =TRUNC(G63/12*0.3) -> 1011 | P63: =TRUNC(((H63+I63)/2)/12*0.3) -> 1116
A64: Butte0.55 | B64: =B63*2*0.55 -> 26840 | C64: =C63*2*0.55 -> 30690 | D64: 34540 | E64: 38335 | F64: 41415 | G64: 44495 | H64: 47575 | I64: 50655 | J64: Butte0.55 | K64: =TRUNC(B64/12*0.3) -> 671 | L64: =TRUNC((B64+C64)/2/12*0.3) -> 719 | M64: =TRUNC((D64)/12*0.3) -> 863 | N64: =TRUNC(((E64+F64)/2)/12*0.3) -> 996 | O64: =TRUNC(G64/12*0.3) -> 1112 | P64: =TRUNC(((H64+I64)/2)/12*0.3) -> 1227
A65: Butte0.6 | B65: =B63*2*0.6 -> 29280 | C65: =C63*2*0.6 -> 33480 | D65: 37680 | E65: 41820 | F65: 45180 | G65: 48540 | H65: 51900 | I65: 55260 | J65: Butte0.6 | K65: 732 | L65: 784 | M65: 942 | N65: 1087 | O65: 1213 | P65: 1339
A66: Butte0.65 | B66: =B63*2*0.65 -> 31720 | C66: =C63*2*0.65 -> 36270 | D66: 40820 | E66: 45305 | F66: 48945 | G66: 52585 | H66: 56225 | I66: 59865 | J66: Butte0.65 | K66: 793 | L66: 849 | M66: 1020 | N66: 1178 | O66: 1314 | P66: 1451
A67: Butte0.7 | B67: =B63*2*0.7 -> 34160 | C67: =C63*2*0.7 -> 39060 | D67: 43960 | E67: 48790 | F67: 52710 | G67: 56630 | H67: 60550 | I67: 64470 | J67: Butte0.7 | K67: 854 | L67: 915 | M67: 1099 | N67: 1268 | O67: 1415 | P67: 1562
A68: Butte0.75 | B68: =B63*2*0.75 -> 36600 | C68: =C63*2*0.75 -> 41850 | D68: 47100 | E68: 52275 | F68: 56475 | G68: 60675 | H68: 64875 | I68: 69075 | J68: Butte0.75 | K68: 915 | L68: 980 | M68: 1177 | N68: 1359 | O68: 1516 | P68: 1674
A69: Butte0.8 | B69: =B63*2*0.8 -> 39040 | C69: =C63*2*0.8 -> 44640 | D69: 50240 | E69: 55760 | F69: 60240 | G69: 64720 | H69: 69200 | I69: 73680 | J69: Butte0.8 | K69: 976 | L69: 1046 | M69: 1256 | N69: 1450 | O69: 1618 | P69: 1786
A70: Butte0.9 | B70: =B63*2*0.9 -> 43920 | C70: =C63*2*0.9 -> 50220 | D70: 56520 | E70: 62730 | F70: 67770 | G70: 72810 | H70: 77850 | I70: 82890 | J70: Butte0.9 | K70: 1098 | L70: 1176 | M70: 1413 | N70: 1631 | O70: 1820 | P70: 2009
A71: Butte1 | B71: =B63*2 -> 48800 | C71: =C63*2 -> 55800 | D71: 62800 | E71: 69700 | F71: 75300 | G71: 80900 | H71: 86500 | I71: 92100 | J71: Butte1 | K71: =K63*2 -> 1220 | L71: =L63*2 -> 1306 | M71: 1570 | N71: 1812 | O71: 2022 | P71: 2232
A72: Butte1.1 | B72: =B63*2*1.1 -> 53680 | C72: =C63*2*1.1 -> 61380 | D72: 69080 | E72: 76670 | F72: 82830 | G72: 88990 | H72: 95150 | I72: 101310 | J72: Butte1.1 | K72: =TRUNC(B72/12*0.3) -> 1342 | L72: =TRUNC((B72+C72)/2/12*0.3) -> 1438 | M72: =TRUNC((D72)/12*0.3) -> 1727 | N72: =TRUNC(((E72+F72)/2)/12*0.3) -> 1993 | O72: =TRUNC(G72/12*0.3) -> 2224 | P72: =TRUNC(((H72+I72)/2)/12*0.3) -> 2455
A73: Butte1.2 | B73: =B63*2*1.2 -> 58560 | C73: =C63*2*1.2 -> 66960 | D73: 75360 | E73: 83640 | F73: 90360 | G73: 97080 | H73: 103800 | I73: 110520 | J73: Butte1.2 | K73: 1464 | L73: 1569 | M73: 1884 | N73: 2175 | O73: 2427 | P73: 2679
A74: Calaveras0.15 | B74: =B81*2*0.15 -> 8580 | C74: =C81*2*0.15 -> 9810 | D74: =D81*2*0.15 -> 11040 | E74: =E81*2*0.15 -> 12255 | F74: =F81*2*0.15 -> 13245 | G74: =G81*2*0.15 -> 14220 | H74: 15210 | I74: 16185 | J74: Calaveras0.15 | K74: 214 | L74: 229 | M74: 276 | N74: 318 | O74: 355 | P74: 392
A75: Calaveras0.2 | B75: =B81*2*0.2 -> 11440 | C75: =C81*2*0.2 -> 13080 | D75: 14720 | E75: 16340 | F75: 17660 | G75: 18960 | H75: 20280 | I75: 21580 | J75: Calaveras0.2 | K75: 286 | L75: 306 | M75: 368 | N75: 425 | O75: 474 | P75: 523
A76: Calaveras0.25 | B76: =B81*2*0.25 -> 14300 | C76: =C81*2*0.25 -> 16350 | D76: 18400 | E76: 20425 | F76: 22075 | G76: 23700 | H76: 25350 | I76: 26975 | J76: Calaveras0.25 | K76: 357 | L76: 383 | M76: 460 | N76: 531 | O76: 592 | P76: 654
A77: Calaveras0.3 | B77: =B81*2*0.3 -> 17160 | C77: =C81*2*0.3 -> 19620 | D77: 22080 | E77: 24510 | F77: 26490 | G77: 28440 | H77: 30420 | I77: 32370 | J77: Calaveras0.3 | K77: 429 | L77: 459 | M77: 552 | N77: 637 | O77: 711 | P77: 784
A78: Calaveras0.35 | B78: =B81*2*0.35 -> 20020 | C78: =C81*2*0.35 -> 22890 | D78: 25760 | E78: 28595 | F78: 30905 | G78: 33180 | H78: 35490 | I78: 37765 | J78: Calaveras0.35 | K78: 500 | L78: 536 | M78: 644 | N78: 743 | O78: 829 | P78: 915
A79: Calaveras0.4 | B79: =B81*2*0.4 -> 22880 | C79: =C81*2*0.4 -> 26160 | D79: 29440 | E79: 32680 | F79: 35320 | G79: 37920 | H79: 40560 | I79: 43160 | J79: Calaveras0.4 | K79: 572 | L79: 613 | M79: 736 | N79: 850 | O79: 948 | P79: 1046
A80: Calaveras0.45 | B80: =B81*2*0.45 -> 25740 | C80: =C81*2*0.45 -> 29430 | D80: 33120 | E80: 36765 | F80: 39735 | G80: 42660 | H80: 45630 | I80: 48555 | J80: Calaveras0.45 | K80: 643 | L80: 689 | M80: 828 | N80: 956 | O80: 1066 | P80: 1177
A81: Calaveras0.5 | B81: ='MTSP 50% Income Limits'!B6 -> 28600 | C81: ='MTSP 50% Income Limits'!C6 -> 32700 | D81: ='MTSP 50% Income Limits'!D6 -> 36800 | E81: ='MTSP 50% Income Limits'!E6 -> 40850 | F81: ='MTSP 50% Income Limits'!F6 -> 44150 | G81: ='MTSP 50% Income Limits'!G6 -> 47400 | H81: ='MTSP 50% Income Limits'!H6 -> 50700 | I81: ='MTSP 50% Income Limits'!I6 -> 53950 | J81: Calaveras0.5 | K81: =TRUNC(B81/12*0.3) -> 715 | L81: =TRUNC((B81+C81)/2/12*0.3) -> 766 | M81: =TRUNC((D81)/12*0.3) -> 920 | N81: =TRUNC(((E81+F81)/2)/12*0.3) -> 1062 | O81: =TRUNC(G81/12*0.3) -> 1185 | P81: =TRUNC(((H81+I81)/2)/12*0.3) -> 1308
A82: Calaveras0.55 | B82: =B81*2*0.55 -> 31460 | C82: =C81*2*0.55 -> 35970 | D82: 40480 | E82: 44935 | F82: 48565 | G82: 52140 | H82: 55770 | I82: 59345 | J82: Calaveras0.55 | K82: =TRUNC(B82/12*0.3) -> 786 | L82: =TRUNC((B82+C82)/2/12*0.3) -> 842 | M82: =TRUNC((D82)/12*0.3) -> 1012 | N82: =TRUNC(((E82+F82)/2)/12*0.3) -> 1168 | O82: =TRUNC(G82/12*0.3) -> 1303 | P82: =TRUNC(((H82+I82)/2)/12*0.3) -> 1438
A83: Calaveras0.6 | B83: =B81*2*0.6 -> 34320 | C83: =C81*2*0.6 -> 39240 | D83: 44160 | E83: 49020 | F83: 52980 | G83: 56880 | H83: 60840 | I83: 64740 | J83: Calaveras0.6 | K83: 858 | L83: 919 | M83: 1104 | N83: 1275 | O83: 1422 | P83: 1569
A84: Calaveras0.65 | B84: =B81*2*0.65 -> 37180 | C84: =C81*2*0.65 -> 42510 | D84: 47840 | E84: 53105 | F84: 57395 | G84: 61620 | H84: 65910 | I84: 70135 | J84: Calaveras0.65 | K84: 929 | L84: 996 | M84: 1196 | N84: 1381 | O84: 1540 | P84: 1700
A85: Calaveras0.7 | B85: =B81*2*0.7 -> 40040 | C85: =C81*2*0.7 -> 45780 | D85: 51520 | E85: 57190 | F85: 61810 | G85: 66360 | H85: 70980 | I85: 75530 | J85: Calaveras0.7 | K85: 1001 | L85: 1072 | M85: 1288 | N85: 1487 | O85: 1659 | P85: 1831
A86: Calaveras0.75 | B86: =B81*2*0.75 -> 42900 | C86: =C81*2*0.75 -> 49050 | D86: 55200 | E86: 61275 | F86: 66225 | G86: 71100 | H86: 76050 | I86: 80925 | J86: Calaveras0.75 | K86: 1072 | L86: 1149 | M86: 1380 | N86: 1593 | O86: 1777 | P86: 1962
A87: Calaveras0.8 | B87: =B81*2*0.8 -> 45760 | C87: =C81*2*0.8 -> 52320 | D87: 58880 | E87: 65360 | F87: 70640 | G87: 75840 | H87: 81120 | I87: 86320 | J87: Calaveras0.8 | K87: 1144 | L87: 1226 | M87: 1472 | N87: 1700 | O87: 1896 | P87: 2093
A88: Calaveras0.9 | B88: =B81*2*0.9 -> 51480 | C88: =C81*2*0.9 -> 58860 | D88: 66240 | E88: 73530 | F88: 79470 | G88: 85320 | H88: 91260 | I88: 97110 | J88: Calaveras0.9 | K88: 1287 | L88: 1379 | M88: 1656 | N88: 1912 | O88: 2133 | P88: 2354
A89: Calaveras1 | B89: =B81*2 -> 57200 | C89: =C81*2 -> 65400 | D89: 73600 | E89: 81700 | F89: 88300 | G89: 94800 | H89: 101400 | I89: 107900 | J89: Calaveras1 | K89: =K81*2 -> 1430 | L89: =L81*2 -> 1532 | M89: 1840 | N89: 2124 | O89: 2370 | P89: 2616
A90: Calaveras1.1 | B90: =B81*2*1.1 -> 62920 | C90: =C81*2*1.1 -> 71940 | D90: 80960 | E90: 89870 | F90: 97130 | G90: 104280 | H90: 111540 | I90: 118690 | J90: Calaveras1.1 | K90: =TRUNC(B90/12*0.3) -> 1573 | L90: =TRUNC((B90+C90)/2/12*0.3) -> 1685 | M90: =TRUNC((D90)/12*0.3) -> 2024 | N90: =TRUNC(((E90+F90)/2)/12*0.3) -> 2337 | O90: =TRUNC(G90/12*0.3) -> 2607 | P90: =TRUNC(((H90+I90)/2)/12*0.3) -> 2877
A91: Calaveras1.2 | B91: =B81*2*1.2 -> 68640 | C91: =C81*2*1.2 -> 78480 | D91: 88320 | E91: 98040 | F91: 105960 | G91: 113760 | H91: 121680 | I91: 129480 | J91: Calaveras1.2 | K91: 1716 | L91: 1839 | M91: 2208 | N91: 2550 | O91: 2844 | P91: 3139
A92: Colusa0.15 | B92: =B99*2*0.15 -> 7320 | C92: =C99*2*0.15 -> 8370 | D92: =D99*2*0.15 -> 9420 | E92: =E99*2*0.15 -> 10455 | F92: =F99*2*0.15 -> 11295 | G92: =G99*2*0.15 -> 12135 | H92: 12975 | I92: 13815 | J92: Colusa0.15 | K92: 183 | L92: 196 | M92: 235 | N92: 271 | O92: 303 | P92: 334
A93: Colusa0.2 | B93: =B99*2*0.2 -> 9760 | C93: =C99*2*0.2 -> 11160 | D93: 12560 | E93: 13940 | F93: 15060 | G93: 16180 | H93: 17300 | I93: 18420 | J93: Colusa0.2 | K93: 244 | L93: 261 | M93: 314 | N93: 362 | O93: 404 | P93: 446
A94: Colusa0.25 | B94: =B99*2*0.25 -> 12200 | C94: =C99*2*0.25 -> 13950 | D94: 15700 | E94: 17425 | F94: 18825 | G94: 20225 | H94: 21625 | I94: 23025 | J94: Colusa0.25 | K94: 305 | L94: 326 | M94: 392 | N94: 453 | O94: 505 | P94: 558
A95: Colusa0.3 | B95: =B99*2*0.3 -> 14640 | C95: =C99*2*0.3 -> 16740 | D95: 18840 | E95: 20910 | F95: 22590 | G95: 24270 | H95: 25950 | I95: 27630 | J95: Colusa0.3 | K95: 366 | L95: 392 | M95: 471 | N95: 543 | O95: 606 | P95: 669
A96: Colusa0.35 | B96: =B99*2*0.35 -> 17080 | C96: =C99*2*0.35 -> 19530 | D96: 21980 | E96: 24395 | F96: 26355 | G96: 28315 | H96: 30275 | I96: 32235 | J96: Colusa0.35 | K96: 427 | L96: 457 | M96: 549 | N96: 634 | O96: 707 | P96: 781
A97: Colusa0.4 | B97: =B99*2*0.4 -> 19520 | C97: =C99*2*0.4 -> 22320 | D97: 25120 | E97: 27880 | F97: 30120 | G97: 32360 | H97: 34600 | I97: 36840 | J97: Colusa0.4 | K97: 488 | L97: 523 | M97: 628 | N97: 725 | O97: 809 | P97: 893
A98: Colusa0.45 | B98: =B99*2*0.45 -> 21960 | C98: =C99*2*0.45 -> 25110 | D98: 28260 | E98: 31365 | F98: 33885 | G98: 36405 | H98: 38925 | I98: 41445 | J98: Colusa0.45 | K98: 549 | L98: 588 | M98: 706 | N98: 815 | O98: 910 | P98: 1004
A99: Colusa0.5 | B99: ='MTSP 50% Income Limits'!B7 -> 24400 | C99: ='MTSP 50% Income Limits'!C7 -> 27900 | D99: ='MTSP 50% Income Limits'!D7 -> 31400 | E99: ='MTSP 50% Income Limits'!E7 -> 34850 | F99: ='MTSP 50% Income Limits'!F7 -> 37650 | G99: ='MTSP 50% Income Limits'!G7 -> 40450 | H99: ='MTSP 50% Income Limits'!H7 -> 43250 | I99: ='MTSP 50% Income Limits'!I7 -> 46050 | J99: Colusa0.5 | K99: =TRUNC(B99/12*0.3) -> 610 | L99: =TRUNC((B99+C99)/2/12*0.3) -> 653 | M99: =TRUNC((D99)/12*0.3) -> 785 | N99: =TRUNC(((E99+F99)/2)/12*0.3) -> 906 | O99: =TRUNC(G99/12*0.3) -> 1011 | P99: =TRUNC(((H99+I99)/2)/12*0.3) -> 1116
A100: Colusa0.55 | B100: =B99*2*0.55 -> 26840 | C100: =C99*2*0.55 -> 30690 | D100: 34540 | E100: 38335 | F100: 41415 | G100: 44495 | H100: 47575 | I100: 50655 | J100: Colusa0.55 | K100: =TRUNC(B100/12*0.3) -> 671 | L100: =TRUNC((B100+C100)/2/12*0.3) -> 719 | M100: =TRUNC((D100)/12*0.3) -> 863 | N100: =TRUNC(((E100+F100)/2)/12*0.3) -> 996 | O100: =TRUNC(G100/12*0.3) -> 1112 | P100: =TRUNC(((H100+I100)/2)/12*0.3) -> 1227
A101: Colusa0.6 | B101: =B99*2*0.6 -> 29280 | C101: =C99*2*0.6 -> 33480 | D101: 37680 | E101: 41820 | F101: 45180 | G101: 48540 | H101: 51900 | I101: 55260 | J101: Colusa0.6 | K101: 732 | L101: 784 | M101: 942 | N101: 1087 | O101: 1213 | P101: 1339
A102: Colusa0.65 | B102: =B99*2*0.65 -> 31720 | C102: =C99*2*0.65 -> 36270 | D102: 40820 | E102: 45305 | F102: 48945 | G102: 52585 | H102: 56225 | I102: 59865 | J102: Colusa0.65 | K102: 793 | L102: 849 | M102: 1020 | N102: 1178 | O102: 1314 | P102: 1451
A103: Colusa0.7 | B103: =B99*2*0.7 -> 34160 | C103: =C99*2*0.7 -> 39060 | D103: 43960 | E103: 48790 | F103: 52710 | G103: 56630 | H103: 60550 | I103: 64470 | J103: Colusa0.7 | K103: 854 | L103: 915 | M103: 1099 | N103: 1268 | O103: 1415 | P103: 1562
A104: Colusa0.75 | B104: =B99*2*0.75 -> 36600 | C104: =C99*2*0.75 -> 41850 | D104: 47100 | E104: 52275 | F104: 56475 | G104: 60675 | H104: 64875 | I104: 69075 | J104: Colusa0.75 | K104: 915 | L104: 980 | M104: 1177 | N104: 1359 | O104: 1516 | P104: 1674
A105: Colusa0.8 | B105: =B99*2*0.8 -> 39040 | C105: =C99*2*0.8 -> 44640 | D105: 50240 | E105: 55760 | F105: 60240 | G105: 64720 | H105: 69200 | I105: 73680 | J105: Colusa0.8 | K105: 976 | L105: 1046 | M105: 1256 | N105: 1450 | O105: 1618 | P105: 1786
A106: Colusa0.9 | B106: =B99*2*0.9 -> 43920 | C106: =C99*2*0.9 -> 50220 | D106: 56520 | E106: 62730 | F106: 67770 | G106: 72810 | H106: 77850 | I106: 82890 | J106: Colusa0.9 | K106: 1098 | L106: 1176 | M106: 1413 | N106: 1631 | O106: 1820 | P106: 2009
A107: Colusa1 | B107: =B99*2 -> 48800 | C107: =C99*2 -> 55800 | D107: 62800 | E107: 69700 | F107: 75300 | G107: 80900 | H107: 86500 | I107: 92100 | J107: Colusa1 | K107: =K99*2 -> 1220 | L107: =L99*2 -> 1306 | M107: 1570 | N107: 1812 | O107: 2022 | P107: 2232
A108: Colusa1.1 | B108: =B99*2*1.1 -> 53680 | C108: =C99*2*1.1 -> 61380 | D108: 69080 | E108: 76670 | F108: 82830 | G108: 88990 | H108: 95150 | I108: 101310 | J108: Colusa1.1 | K108: =TRUNC(B108/12*0.3) -> 1342 | L108: =TRUNC((B108+C108)/2/12*0.3) -> 1438 | M108: =TRUNC((D108)/12*0.3) -> 1727 | N108: =TRUNC(((E108+F108)/2)/12*0.3) -> 1993 | O108: =TRUNC(G108/12*0.3) -> 2224 | P108: =TRUNC(((H108+I108)/2)/12*0.3) -> 2455
A109: Colusa1.2 | B109: =B99*2*1.2 -> 58560 | C109: =C99*2*1.2 -> 66960 | D109: 75360 | E109: 83640 | F109: 90360 | G109: 97080 | H109: 103800 | I109: 110520 | J109: Colusa1.2 | K109: 1464 | L109: 1569 | M109: 1884 | N109: 2175 | O109: 2427 | P109: 2679
A110: Contra Costa0.15 | B110: =B117*2*0.15 -> 14385 | C110: =C117*2*0.15 -> 16440 | D110: =D117*2*0.15 -> 18495 | E110: =E117*2*0.15 -> 20550 | F110: =F117*2*0.15 -> 22200 | G110: =G117*2*0.15 -> 23850 | H110: 25485 | I110: 27135 | J110: Contra Costa0.15 | K110: 359 | L110: 385 | M110: 462 | N110: 534 | O110: 596 | P110: 657
A111: Contra Costa0.2 | B111: =B117*2*0.2 -> 19180 | C111: =C117*2*0.2 -> 21920 | D111: 24660 | E111: 27400 | F111: 29600 | G111: 31800 | H111: 33980 | I111: 36180 | J111: Contra Costa0.2 | K111: 479 | L111: 513 | M111: 616 | N111: 712 | O111: 795 | P111: 877
A112: Contra Costa0.25 | B112: =B117*2*0.25 -> 23975 | C112: =C117*2*0.25 -> 27400 | D112: 30825 | E112: 34250 | F112: 37000 | G112: 39750 | H112: 42475 | I112: 45225 | J112: Contra Costa0.25 | K112: 599 | L112: 642 | M112: 770 | N112: 890 | O112: 993 | P112: 1096
A113: Contra Costa0.3 | B113: =B117*2*0.3 -> 28770 | C113: =C117*2*0.3 -> 32880 | D113: 36990 | E113: 41100 | F113: 44400 | G113: 47700 | H113: 50970 | I113: 54270 | J113: Contra Costa0.3 | K113: 719 | L113: 770 | M113: 924 | N113: 1068 | O113: 1192 | P113: 1315
A114: Contra Costa0.35 | B114: =B117*2*0.35 -> 33565 | C114: =C117*2*0.35 -> 38360 | D114: 43155 | E114: 47950 | F114: 51800 | G114: 55650 | H114: 59465 | I114: 63315 | J114: Contra Costa0.35 | K114: 839 | L114: 899 | M114: 1078 | N114: 1246 | O114: 1391 | P114: 1534
A115: Contra Costa0.4 | B115: =B117*2*0.4 -> 38360 | C115: =C117*2*0.4 -> 43840 | D115: 49320 | E115: 54800 | F115: 59200 | G115: 63600 | H115: 67960 | I115: 72360 | J115: Contra Costa0.4 | K115: 959 | L115: 1027 | M115: 1233 | N115: 1425 | O115: 1590 | P115: 1754
A116: Contra Costa0.45 | B116: =B117*2*0.45 -> 43155 | C116: =C117*2*0.45 -> 49320 | D116: 55485 | E116: 61650 | F116: 66600 | G116: 71550 | H116: 76455 | I116: 81405 | J116: Contra Costa0.45 | K116: 1078 | L116: 1155 | M116: 1387 | N116: 1603 | O116: 1788 | P116: 1973
A117: Contra Costa0.5 | B117: ='MTSP 50% Income Limits'!B8 -> 47950 | C117: ='MTSP 50% Income Limits'!C8 -> 54800 | D117: ='MTSP 50% Income Limits'!D8 -> 61650 | E117: ='MTSP 50% Income Limits'!E8 -> 68500 | F117: ='MTSP 50% Income Limits'!F8 -> 74000 | G117: ='MTSP 50% Income Limits'!G8 -> 79500 | H117: ='MTSP 50% Income Limits'!H8 -> 84950 | I117: ='MTSP 50% Income Limits'!I8 -> 90450 | J117: Contra Costa0.5 | K117: =TRUNC(B117/12*0.3) -> 1198 | L117: =TRUNC((B117+C117)/2/12*0.3) -> 1284 | M117: =TRUNC((D117)/12*0.3) -> 1541 | N117: =TRUNC(((E117+F117)/2)/12*0.3) -> 1781 | O117: =TRUNC(G117/12*0.3) -> 1987 | P117: =TRUNC(((H117+I117)/2)/12*0.3) -> 2192
A118: Contra Costa0.55 | B118: =B117*2*0.55 -> 52745 | C118: =C117*2*0.55 -> 60280 | D118: 67815 | E118: 75350 | F118: 81400 | G118: 87450 | H118: 93445 | I118: 99495 | J118: Contra Costa0.55 | K118: =TRUNC(B118/12*0.3) -> 1318 | L118: =TRUNC((B118+C118)/2/12*0.3) -> 1412 | M118: =TRUNC((D118)/12*0.3) -> 1695 | N118: =TRUNC(((E118+F118)/2)/12*0.3) -> 1959 | O118: =TRUNC(G118/12*0.3) -> 2186 | P118: =TRUNC(((H118+I118)/2)/12*0.3) -> 2411
A119: Contra Costa0.6 | B119: =B117*2*0.6 -> 57540 | C119: =C117*2*0.6 -> 65760 | D119: 73980 | E119: 82200 | F119: 88800 | G119: 95400 | H119: 101940 | I119: 108540 | J119: Contra Costa0.6 | K119: 1438 | L119: 1541 | M119: 1849 | N119: 2137 | O119: 2385 | P119: 2631
A120: Contra Costa0.65 | B120: =B117*2*0.65 -> 62335 | C120: =C117*2*0.65 -> 71240 | D120: 80145 | E120: 89050 | F120: 96200 | G120: 103350 | H120: 110435 | I120: 117585 | J120: Contra Costa0.65 | K120: 1558 | L120: 1669 | M120: 2003 | N120: 2315 | O120: 2583 | P120: 2850
A121: Contra Costa0.7 | B121: =B117*2*0.7 -> 67130 | C121: =C117*2*0.7 -> 76720 | D121: 86310 | E121: 95900 | F121: 103600 | G121: 111300 | H121: 118930 | I121: 126630 | J121: Contra Costa0.7 | K121: 1678 | L121: 1798 | M121: 2157 | N121: 2493 | O121: 2782 | P121: 3069
A122: Contra Costa0.75 | B122: =B117*2*0.75 -> 71925 | C122: =C117*2*0.75 -> 82200 | D122: 92475 | E122: 102750 | F122: 111000 | G122: 119250 | H122: 127425 | I122: 135675 | J122: Contra Costa0.75 | K122: 1798 | L122: 1926 | M122: 2311 | N122: 2671 | O122: 2981 | P122: 3288
A123: Contra Costa0.8 | B123: =B117*2*0.8 -> 76720 | C123: =C117*2*0.8 -> 87680 | D123: 98640 | E123: 109600 | F123: 118400 | G123: 127200 | H123: 135920 | I123: 144720 | J123: Contra Costa0.8 | K123: 1918 | L123: 2055 | M123: 2466 | N123: 2850 | O123: 3180 | P123: 3508
A124: Contra Costa0.9 | B124: =B117*2*0.9 -> 86310 | C124: =C117*2*0.9 -> 98640 | D124: 110970 | E124: 123300 | F124: 133200 | G124: 143100 | H124: 152910 | I124: 162810 | J124: Contra Costa0.9 | K124: 2157 | L124: 2311 | M124: 2774 | N124: 3206 | O124: 3577 | P124: 3946
A125: Contra Costa1 | B125: =B117*2 -> 95900 | C125: =C117*2 -> 109600 | D125: 123300 | E125: 137000 | F125: 148000 | G125: 159000 | H125: 169900 | I125: 180900 | J125: Contra Costa1 | K125: =K117*2 -> 2396 | L125: =L117*2 -> 2568 | M125: 3082 | N125: 3562 | O125: 3974 | P125: 4384
A126: Contra Costa1.1 | B126: =B117*2*1.1 -> 105490 | C126: =C117*2*1.1 -> 120560 | D126: 135630 | E126: 150700 | F126: 162800 | G126: 174900 | H126: 186890 | I126: 198990 | J126: Contra Costa1.1 | K126: =TRUNC(B126/12*0.3) -> 2637 | L126: =TRUNC((B126+C126)/2/12*0.3) -> 2825 | M126: =TRUNC((D126)/12*0.3) -> 3390 | N126: =TRUNC(((E126+F126)/2)/12*0.3) -> 3918 | O126: =TRUNC(G126/12*0.3) -> 4372 | P126: =TRUNC(((H126+I126)/2)/12*0.3) -> 4823
A127: Contra Costa1.2 | B127: =B117*2*1.2 -> 115080 | C127: =C117*2*1.2 -> 131520 | D127: 147960 | E127: 164400 | F127: 177600 | G127: 190800 | H127: 203880 | I127: 217080 | J127: Contra Costa1.2 | K127: 2877 | L127: 3082 | M127: 3699 | N127: 4275 | O127: 4770 | P127: 5262
A128: Del Norte0.15 | B128: =B135*2*0.15 -> 7320 | C128: =C135*2*0.15 -> 8370 | D128: =D135*2*0.15 -> 9420 | E128: =E135*2*0.15 -> 10455 | F128: =F135*2*0.15 -> 11295 | G128: =G135*2*0.15 -> 12135 | H128: 12975 | I128: 13815 | J128: Del Norte0.15 | K128: 183 | L128: 196 | M128: 235 | N128: 271 | O128: 303 | P128: 334
A129: Del Norte0.2 | B129: =B135*2*0.2 -> 9760 | C129: =C135*2*0.2 -> 11160 | D129: 12560 | E129: 13940 | F129: 15060 | G129: 16180 | H129: 17300 | I129: 18420 | J129: Del Norte0.2 | K129: 244 | L129: 261 | M129: 314 | N129: 362 | O129: 404 | P129: 446
A130: Del Norte0.25 | B130: =B135*2*0.25 -> 12200 | C130: =C135*2*0.25 -> 13950 | D130: 15700 | E130: 17425 | F130: 18825 | G130: 20225 | H130: 21625 | I130: 23025 | J130: Del Norte0.25 | K130: 305 | L130: 326 | M130: 392 | N130: 453 | O130: 505 | P130: 558
A131: Del Norte0.3 | B131: =B135*2*0.3 -> 14640 | C131: =C135*2*0.3 -> 16740 | D131: 18840 | E131: 20910 | F131: 22590 | G131: 24270 | H131: 25950 | I131: 27630 | J131: Del Norte0.3 | K131: 366 | L131: 392 | M131: 471 | N131: 543 | O131: 606 | P131: 669
A132: Del Norte0.35 | B132: =B135*2*0.35 -> 17080 | C132: =C135*2*0.35 -> 19530 | D132: 21980 | E132: 24395 | F132: 26355 | G132: 28315 | H132: 30275 | I132: 32235 | J132: Del Norte0.35 | K132: 427 | L132: 457 | M132: 549 | N132: 634 | O132: 707 | P132: 781
A133: Del Norte0.4 | B133: =B135*2*0.4 -> 19520 | C133: =C135*2*0.4 -> 22320 | D133: 25120 | E133: 27880 | F133: 30120 | G133: 32360 | H133: 34600 | I133: 36840 | J133: Del Norte0.4 | K133: 488 | L133: 523 | M133: 628 | N133: 725 | O133: 809 | P133: 893
A134: Del Norte0.45 | B134: =B135*2*0.45 -> 21960 | C134: =C135*2*0.45 -> 25110 | D134: 28260 | E134: 31365 | F134: 33885 | G134: 36405 | H134: 38925 | I134: 41445 | J134: Del Norte0.45 | K134: 549 | L134: 588 | M134: 706 | N134: 815 | O134: 910 | P134: 1004
A135: Del Norte0.5 | B135: ='MTSP 50% Income Limits'!B9 -> 24400 | C135: ='MTSP 50% Income Limits'!C9 -> 27900 | D135: ='MTSP 50% Income Limits'!D9 -> 31400 | E135: ='MTSP 50% Income Limits'!E9 -> 34850 | F135: ='MTSP 50% Income Limits'!F9 -> 37650 | G135: ='MTSP 50% Income Limits'!G9 -> 40450 | H135: ='MTSP 50% Income Limits'!H9 -> 43250 | I135: ='MTSP 50% Income Limits'!I9 -> 46050 | J135: Del Norte0.5 | K135: =TRUNC(B135/12*0.3) -> 610 | L135: =TRUNC((B135+C135)/2/12*0.3) -> 653 | M135: =TRUNC((D135)/12*0.3) -> 785 | N135: =TRUNC(((E135+F135)/2)/12*0.3) -> 906 | O135: =TRUNC(G135/12*0.3) -> 1011 | P135: =TRUNC(((H135+I135)/2)/12*0.3) -> 1116
A136: Del Norte0.55 | B136: =B135*2*0.55 -> 26840 | C136: =C135*2*0.55 -> 30690 | D136: 34540 | E136: 38335 | F136: 41415 | G136: 44495 | H136: 47575 | I136: 50655 | J136: Del Norte0.55 | K136: =TRUNC(B136/12*0.3) -> 671 | L136: =TRUNC((B136+C136)/2/12*0.3) -> 719 | M136: =TRUNC((D136)/12*0.3) -> 863 | N136: =TRUNC(((E136+F136)/2)/12*0.3) -> 996 | O136: =TRUNC(G136/12*0.3) -> 1112 | P136: =TRUNC(((H136+I136)/2)/12*0.3) -> 1227
A137: Del Norte0.6 | B137: =B135*2*0.6 -> 29280 | C137: =C135*2*0.6 -> 33480 | D137: 37680 | E137: 41820 | F137: 45180 | G137: 48540 | H137: 51900 | I137: 55260 | J137: Del Norte0.6 | K137: 732 | L137: 784 | M137: 942 | N137: 1087 | O137: 1213 | P137: 1339
A138: Del Norte0.65 | B138: =B135*2*0.65 -> 31720 | C138: =C135*2*0.65 -> 36270 | D138: 40820 | E138: 45305 | F138: 48945 | G138: 52585 | H138: 56225 | I138: 59865 | J138: Del Norte0.65 | K138: 793 | L138: 849 | M138: 1020 | N138: 1178 | O138: 1314 | P138: 1451
A139: Del Norte0.7 | B139: =B135*2*0.7 -> 34160 | C139: =C135*2*0.7 -> 39060 | D139: 43960 | E139: 48790 | F139: 52710 | G139: 56630 | H139: 60550 | I139: 64470 | J139: Del Norte0.7 | K139: 854 | L139: 915 | M139: 1099 | N139: 1268 | O139: 1415 | P139: 1562
A140: Del Norte0.75 | B140: =B135*2*0.75 -> 36600 | C140: =C135*2*0.75 -> 41850 | D140: 47100 | E140: 52275 | F140: 56475 | G140: 60675 | H140: 64875 | I140: 69075 | J140: Del Norte0.75 | K140: 915 | L140: 980 | M140: 1177 | N140: 1359 | O140: 1516 | P140: 1674
A141: Del Norte0.8 | B141: =B135*2*0.8 -> 39040 | C141: =C135*2*0.8 -> 44640 | D141: 50240 | E141: 55760 | F141: 60240 | G141: 64720 | H141: 69200 | I141: 73680 | J141: Del Norte0.8 | K141: 976 | L141: 1046 | M141: 1256 | N141: 1450 | O141: 1618 | P141: 1786
A142: Del Norte0.9 | B142: =B135*2*0.9 -> 43920 | C142: =C135*2*0.9 -> 50220 | D142: 56520 | E142: 62730 | F142: 67770 | G142: 72810 | H142: 77850 | I142: 82890 | J142: Del Norte0.9 | K142: 1098 | L142: 1176 | M142: 1413 | N142: 1631 | O142: 1820 | P142: 2009
A143: Del Norte1 | B143: =B135*2 -> 48800 | C143: =C135*2 -> 55800 | D143: 62800 | E143: 69700 | F143: 75300 | G143: 80900 | H143: 86500 | I143: 92100 | J143: Del Norte1 | K143: =K135*2 -> 1220 | L143: =L135*2 -> 1306 | M143: 1570 | N143: 1812 | O143: 2022 | P143: 2232
A144: Del Norte1.1 | B144: =B135*2*1.1 -> 53680 | C144: =C135*2*1.1 -> 61380 | D144: 69080 | E144: 76670 | F144: 82830 | G144: 88990 | H144: 95150 | I144: 101310 | J144: Del Norte1.1 | K144: =TRUNC(B144/12*0.3) -> 1342 | L144: =TRUNC((B144+C144)/2/12*0.3) -> 1438 | M144: =TRUNC((D144)/12*0.3) -> 1727 | N144: =TRUNC(((E144+F144)/2)/12*0.3) -> 1993 | O144: =TRUNC(G144/12*0.3) -> 2224 | P144: =TRUNC(((H144+I144)/2)/12*0.3) -> 2455
A145: Del Norte1.2 | B145: =B135*2*1.2 -> 58560 | C145: =C135*2*1.2 -> 66960 | D145: 75360 | E145: 83640 | F145: 90360 | G145: 97080 | H145: 103800 | I145: 110520 | J145: Del Norte1.2 | K145: 1464 | L145: 1569 | M145: 1884 | N145: 2175 | O145: 2427 | P145: 2679
A146: El Dorado0.15 | B146: =B153*2*0.15 -> 9525 | C146: =C153*2*0.15 -> 10875 | D146: =D153*2*0.15 -> 12240 | E146: =E153*2*0.15 -> 13590 | F146: =F153*2*0.15 -> 14685 | G146: =G153*2*0.15 -> 15765 | H146: 16860 | I146: 17940 | J146: El Dorado0.15 | K146: 238 | L146: 255 | M146: 306 | N146: 353 | O146: 394 | P146: 435
A147: El Dorado0.2 | B147: =B153*2*0.2 -> 12700 | C147: =C153*2*0.2 -> 14500 | D147: 16320 | E147: 18120 | F147: 19580 | G147: 21020 | H147: 22480 | I147: 23920 | J147: El Dorado0.2 | K147: 317 | L147: 340 | M147: 408 | N147: 471 | O147: 525 | P147: 580
A148: El Dorado0.25 | B148: =B153*2*0.25 -> 15875 | C148: =C153*2*0.25 -> 18125 | D148: 20400 | E148: 22650 | F148: 24475 | G148: 26275 | H148: 28100 | I148: 29900 | J148: El Dorado0.25 | K148: 396 | L148: 425 | M148: 510 | N148: 589 | O148: 656 | P148: 725
A149: El Dorado0.3 | B149: =B153*2*0.3 -> 19050 | C149: =C153*2*0.3 -> 21750 | D149: 24480 | E149: 27180 | F149: 29370 | G149: 31530 | H149: 33720 | I149: 35880 | J149: El Dorado0.3 | K149: 476 | L149: 510 | M149: 612 | N149: 706 | O149: 788 | P149: 870
A150: El Dorado0.35 | B150: =B153*2*0.35 -> 22225 | C150: =C153*2*0.35 -> 25375 | D150: 28560 | E150: 31710 | F150: 34265 | G150: 36785 | H150: 39340 | I150: 41860 | J150: El Dorado0.35 | K150: 555 | L150: 595 | M150: 714 | N150: 824 | O150: 919 | P150: 1015
A151: El Dorado0.4 | B151: =B153*2*0.4 -> 25400 | C151: =C153*2*0.4 -> 29000 | D151: 32640 | E151: 36240 | F151: 39160 | G151: 42040 | H151: 44960 | I151: 47840 | J151: El Dorado0.4 | K151: 635 | L151: 680 | M151: 816 | N151: 942 | O151: 1051 | P151: 1160
A152: El Dorado0.45 | B152: =B153*2*0.45 -> 28575 | C152: =C153*2*0.45 -> 32625 | D152: 36720 | E152: 40770 | F152: 44055 | G152: 47295 | H152: 50580 | I152: 53820 | J152: El Dorado0.45 | K152: 714 | L152: 765 | M152: 918 | N152: 1060 | O152: 1182 | P152: 1305
A153: El Dorado0.5 | B153: ='MTSP 50% Income Limits'!B10 -> 31750 | C153: ='MTSP 50% Income Limits'!C10 -> 36250 | D153: ='MTSP 50% Income Limits'!D10 -> 40800 | E153: ='MTSP 50% Income Limits'!E10 -> 45300 | F153: ='MTSP 50% Income Limits'!F10 -> 48950 | G153: ='MTSP 50% Income Limits'!G10 -> 52550 | H153: ='MTSP 50% Income Limits'!H10 -> 56200 | I153: ='MTSP 50% Income Limits'!I10 -> 59800 | J153: El Dorado0.5 | K153: =TRUNC(B153/12*0.3) -> 793 | L153: =TRUNC((B153+C153)/2/12*0.3) -> 850 | M153: =TRUNC((D153)/12*0.3) -> 1020 | N153: =TRUNC(((E153+F153)/2)/12*0.3) -> 1178 | O153: =TRUNC(G153/12*0.3) -> 1313 | P153: =TRUNC(((H153+I153)/2)/12*0.3) -> 1450
A154: El Dorado0.55 | B154: =B153*2*0.55 -> 34925 | C154: =C153*2*0.55 -> 39875 | D154: 44880 | E154: 49830 | F154: 53845 | G154: 57805 | H154: 61820 | I154: 65780 | J154: El Dorado0.55 | K154: =TRUNC(B154/12*0.3) -> 873 | L154: =TRUNC((B154+C154)/2/12*0.3) -> 935 | M154: =TRUNC((D154)/12*0.3) -> 1122 | N154: =TRUNC(((E154+F154)/2)/12*0.3) -> 1295 | O154: =TRUNC(G154/12*0.3) -> 1445 | P154: =TRUNC(((H154+I154)/2)/12*0.3) -> 1595
A155: El Dorado0.6 | B155: =B153*2*0.6 -> 38100 | C155: =C153*2*0.6 -> 43500 | D155: 48960 | E155: 54360 | F155: 58740 | G155: 63060 | H155: 67440 | I155: 71760 | J155: El Dorado0.6 | K155: 952 | L155: 1020 | M155: 1224 | N155: 1413 | O155: 1576 | P155: 1740
A156: El Dorado0.65 | B156: =B153*2*0.65 -> 41275 | C156: =C153*2*0.65 -> 47125 | D156: 53040 | E156: 58890 | F156: 63635 | G156: 68315 | H156: 73060 | I156: 77740 | J156: El Dorado0.65 | K156: 1031 | L156: 1105 | M156: 1326 | N156: 1531 | O156: 1707 | P156: 1885
A157: El Dorado0.7 | B157: =B153*2*0.7 -> 44450 | C157: =C153*2*0.7 -> 50750 | D157: 57120 | E157: 63420 | F157: 68530 | G157: 73570 | H157: 78680 | I157: 83720 | J157: El Dorado0.7 | K157: 1111 | L157: 1190 | M157: 1428 | N157: 1649 | O157: 1839 | P157: 2030
A158: El Dorado0.75 | B158: =B153*2*0.75 -> 47625 | C158: =C153*2*0.75 -> 54375 | D158: 61200 | E158: 67950 | F158: 73425 | G158: 78825 | H158: 84300 | I158: 89700 | J158: El Dorado0.75 | K158: 1190 | L158: 1275 | M158: 1530 | N158: 1767 | O158: 1970 | P158: 2175
A159: El Dorado0.8 | B159: =B153*2*0.8 -> 50800 | C159: =C153*2*0.8 -> 58000 | D159: 65280 | E159: 72480 | F159: 78320 | G159: 84080 | H159: 89920 | I159: 95680 | J159: El Dorado0.8 | K159: 1270 | L159: 1360 | M159: 1632 | N159: 1885 | O159: 2102 | P159: 2320
A160: El Dorado0.9 | B160: =B153*2*0.9 -> 57150 | C160: =C153*2*0.9 -> 65250 | D160: 73440 | E160: 81540 | F160: 88110 | G160: 94590 | H160: 101160 | I160: 107640 | J160: El Dorado0.9 | K160: 1428 | L160: 1530 | M160: 1836 | N160: 2120 | O160: 2364 | P160: 2610
A161: El Dorado1 | B161: =B153*2 -> 63500 | C161: =C153*2 -> 72500 | D161: 81600 | E161: 90600 | F161: 97900 | G161: 105100 | H161: 112400 | I161: 119600 | J161: El Dorado1 | K161: =K153*2 -> 1586 | L161: =L153*2 -> 1700 | M161: 2040 | N161: 2356 | O161: 2626 | P161: 2900
A162: El Dorado1.1 | B162: =B153*2*1.1 -> 69850 | C162: =C153*2*1.1 -> 79750 | D162: 89760 | E162: 99660 | F162: 107690 | G162: 115610 | H162: 123640 | I162: 131560 | J162: El Dorado1.1 | K162: =TRUNC(B162/12*0.3) -> 1746 | L162: =TRUNC((B162+C162)/2/12*0.3) -> 1870 | M162: =TRUNC((D162)/12*0.3) -> 2244 | N162: =TRUNC(((E162+F162)/2)/12*0.3) -> 2591 | O162: =TRUNC(G162/12*0.3) -> 2890 | P162: =TRUNC(((H162+I162)/2)/12*0.3) -> 3190
A163: El Dorado1.2 | B163: =B153*2*1.2 -> 76200 | C163: =C153*2*1.2 -> 87000 | D163: 97920 | E163: 108720 | F163: 117480 | G163: 126120 | H163: 134880 | I163: 143520 | J163: El Dorado1.2 | K163: 1905 | L163: 2040 | M163: 2448 | N163: 2827 | O163: 3153 | P163: 3480
A164: Fresno0.15 | B164: =B171*2*0.15 -> 7320 | C164: =C171*2*0.15 -> 8370 | D164: =D171*2*0.15 -> 9420 | E164: =E171*2*0.15 -> 10455 | F164: =F171*2*0.15 -> 11295 | G164: =G171*2*0.15 -> 12135 | H164: 12975 | I164: 13815 | J164: Fresno0.15 | K164: 183 | L164: 196 | M164: 235 | N164: 271 | O164: 303 | P164: 334
A165: Fresno0.2 | B165: =B171*2*0.2 -> 9760 | C165: =C171*2*0.2 -> 11160 | D165: 12560 | E165: 13940 | F165: 15060 | G165: 16180 | H165: 17300 | I165: 18420 | J165: Fresno0.2 | K165: 244 | L165: 261 | M165: 314 | N165: 362 | O165: 404 | P165: 446
A166: Fresno0.25 | B166: =B171*2*0.25 -> 12200 | C166: =C171*2*0.25 -> 13950 | D166: 15700 | E166: 17425 | F166: 18825 | G166: 20225 | H166: 21625 | I166: 23025 | J166: Fresno0.25 | K166: 305 | L166: 326 | M166: 392 | N166: 453 | O166: 505 | P166: 558
A167: Fresno0.3 | B167: =B171*2*0.3 -> 14640 | C167: =C171*2*0.3 -> 16740 | D167: 18840 | E167: 20910 | F167: 22590 | G167: 24270 | H167: 25950 | I167: 27630 | J167: Fresno0.3 | K167: 366 | L167: 392 | M167: 471 | N167: 543 | O167: 606 | P167: 669
A168: Fresno0.35 | B168: =B171*2*0.35 -> 17080 | C168: =C171*2*0.35 -> 19530 | D168: 21980 | E168: 24395 | F168: 26355 | G168: 28315 | H168: 30275 | I168: 32235 | J168: Fresno0.35 | K168: 427 | L168: 457 | M168: 549 | N168: 634 | O168: 707 | P168: 781
A169: Fresno0.4 | B169: =B171*2*0.4 -> 19520 | C169: =C171*2*0.4 -> 22320 | D169: 25120 | E169: 27880 | F169: 30120 | G169: 32360 | H169: 34600 | I169: 36840 | J169: Fresno0.4 | K169: 488 | L169: 523 | M169: 628 | N169: 725 | O169: 809 | P169: 893
A170: Fresno0.45 | B170: =B171*2*0.45 -> 21960 | C170: =C171*2*0.45 -> 25110 | D170: 28260 | E170: 31365 | F170: 33885 | G170: 36405 | H170: 38925 | I170: 41445 | J170: Fresno0.45 | K170: 549 | L170: 588 | M170: 706 | N170: 815 | O170: 910 | P170: 1004
A171: Fresno0.5 | B171: ='MTSP 50% Income Limits'!B11 -> 24400 | C171: ='MTSP 50% Income Limits'!C11 -> 27900 | D171: ='MTSP 50% Income Limits'!D11 -> 31400 | E171: ='MTSP 50% Income Limits'!E11 -> 34850 | F171: ='MTSP 50% Income Limits'!F11 -> 37650 | G171: ='MTSP 50% Income Limits'!G11 -> 40450 | H171: ='MTSP 50% Income Limits'!H11 -> 43250 | I171: ='MTSP 50% Income Limits'!I11 -> 46050 | J171: Fresno0.5 | K171: =TRUNC(B171/12*0.3) -> 610 | L171: =TRUNC((B171+C171)/2/12*0.3) -> 653 | M171: =TRUNC((D171)/12*0.3) -> 785 | N171: =TRUNC(((E171+F171)/2)/12*0.3) -> 906 | O171: =TRUNC(G171/12*0.3) -> 1011 | P171: =TRUNC(((H171+I171)/2)/12*0.3) -> 1116
A172: Fresno0.55 | B172: =B171*2*0.55 -> 26840 | C172: =C171*2*0.55 -> 30690 | D172: 34540 | E172: 38335 | F172: 41415 | G172: 44495 | H172: 47575 | I172: 50655 | J172: Fresno0.55 | K172: =TRUNC(B172/12*0.3) -> 671 | L172: =TRUNC((B172+C172)/2/12*0.3) -> 719 | M172: =TRUNC((D172)/12*0.3) -> 863 | N172: =TRUNC(((E172+F172)/2)/12*0.3) -> 996 | O172: =TRUNC(G172/12*0.3) -> 1112 | P172: =TRUNC(((H172+I172)/2)/12*0.3) -> 1227
A173: Fresno0.6 | B173: =B171*2*0.6 -> 29280 | C173: =C171*2*0.6 -> 33480 | D173: 37680 | E173: 41820 | F173: 45180 | G173: 48540 | H173: 51900 | I173: 55260 | J173: Fresno0.6 | K173: 732 | L173: 784 | M173: 942 | N173: 1087 | O173: 1213 | P173: 1339
A174: Fresno0.65 | B174: =B171*2*0.65 -> 31720 | C174: =C171*2*0.65 -> 36270 | D174: 40820 | E174: 45305 | F174: 48945 | G174: 52585 | H174: 56225 | I174: 59865 | J174: Fresno0.65 | K174: 793 | L174: 849 | M174: 1020 | N174: 1178 | O174: 1314 | P174: 1451
A175: Fresno0.7 | B175: =B171*2*0.7 -> 34160 | C175: =C171*2*0.7 -> 39060 | D175: 43960 | E175: 48790 | F175: 52710 | G175: 56630 | H175: 60550 | I175: 64470 | J175: Fresno0.7 | K175: 854 | L175: 915 | M175: 1099 | N175: 1268 | O175: 1415 | P175: 1562
A176: Fresno0.75 | B176: =B171*2*0.75 -> 36600 | C176: =C171*2*0.75 -> 41850 | D176: 47100 | E176: 52275 | F176: 56475 | G176: 60675 | H176: 64875 | I176: 69075 | J176: Fresno0.75 | K176: 915 | L176: 980 | M176: 1177 | N176: 1359 | O176: 1516 | P176: 1674
A177: Fresno0.8 | B177: =B171*2*0.8 -> 39040 | C177: =C171*2*0.8 -> 44640 | D177: 50240 | E177: 55760 | F177: 60240 | G177: 64720 | H177: 69200 | I177: 73680 | J177: Fresno0.8 | K177: 976 | L177: 1046 | M177: 1256 | N177: 1450 | O177: 1618 | P177: 1786
A178: Fresno0.9 | B178: =B171*2*0.9 -> 43920 | C178: =C171*2*0.9 -> 50220 | D178: 56520 | E178: 62730 | F178: 67770 | G178: 72810 | H178: 77850 | I178: 82890 | J178: Fresno0.9 | K178: 1098 | L178: 1176 | M178: 1413 | N178: 1631 | O178: 1820 | P178: 2009
A179: Fresno1 | B179: =B171*2 -> 48800 | C179: =C171*2 -> 55800 | D179: 62800 | E179: 69700 | F179: 75300 | G179: 80900 | H179: 86500 | I179: 92100 | J179: Fresno1 | K179: =K171*2 -> 1220 | L179: =L171*2 -> 1306 | M179: 1570 | N179: 1812 | O179: 2022 | P179: 2232
A180: Fresno1.1 | B180: =B171*2*1.1 -> 53680 | C180: =C171*2*1.1 -> 61380 | D180: 69080 | E180: 76670 | F180: 82830 | G180: 88990 | H180: 95150 | I180: 101310 | J180: Fresno1.1 | K180: =TRUNC(B180/12*0.3) -> 1342 | L180: =TRUNC((B180+C180)/2/12*0.3) -> 1438 | M180: =TRUNC((D180)/12*0.3) -> 1727 | N180: =TRUNC(((E180+F180)/2)/12*0.3) -> 1993 | O180: =TRUNC(G180/12*0.3) -> 2224 | P180: =TRUNC(((H180+I180)/2)/12*0.3) -> 2455
A181: Fresno1.2 | B181: =B171*2*1.2 -> 58560 | C181: =C171*2*1.2 -> 66960 | D181: 75360 | E181: 83640 | F181: 90360 | G181: 97080 | H181: 103800 | I181: 110520 | J181: Fresno1.2 | K181: 1464 | L181: 1569 | M181: 1884 | N181: 2175 | O181: 2427 | P181: 2679
A182: Glenn0.15 | B182: =B189*2*0.15 -> 7320 | C182: =C189*2*0.15 -> 8370 | D182: =D189*2*0.15 -> 9420 | E182: =E189*2*0.15 -> 10455 | F182: =F189*2*0.15 -> 11295 | G182: =G189*2*0.15 -> 12135 | H182: 12975 | I182: 13815 | J182: Glenn0.15 | K182: 183 | L182: 196 | M182: 235 | N182: 271 | O182: 303 | P182: 334
A183: Glenn0.2 | B183: =B189*2*0.2 -> 9760 | C183: =C189*2*0.2 -> 11160 | D183: 12560 | E183: 13940 | F183: 15060 | G183: 16180 | H183: 17300 | I183: 18420 | J183: Glenn0.2 | K183: 244 | L183: 261 | M183: 314 | N183: 362 | O183: 404 | P183: 446
A184: Glenn0.25 | B184: =B189*2*0.25 -> 12200 | C184: =C189*2*0.25 -> 13950 | D184: 15700 | E184: 17425 | F184: 18825 | G184: 20225 | H184: 21625 | I184: 23025 | J184: Glenn0.25 | K184: 305 | L184: 326 | M184: 392 | N184: 453 | O184: 505 | P184: 558
A185: Glenn0.3 | B185: =B189*2*0.3 -> 14640 | C185: =C189*2*0.3 -> 16740 | D185: 18840 | E185: 20910 | F185: 22590 | G185: 24270 | H185: 25950 | I185: 27630 | J185: Glenn0.3 | K185: 366 | L185: 392 | M185: 471 | N185: 543 | O185: 606 | P185: 669
A186: Glenn0.35 | B186: =B189*2*0.35 -> 17080 | C186: =C189*2*0.35 -> 19530 | D186: 21980 | E186: 24395 | F186: 26355 | G186: 28315 | H186: 30275 | I186: 32235 | J186: Glenn0.35 | K186: 427 | L186: 457 | M186: 549 | N186: 634 | O186: 707 | P186: 781
A187: Glenn0.4 | B187: =B189*2*0.4 -> 19520 | C187: =C189*2*0.4 -> 22320 | D187: 25120 | E187: 27880 | F187: 30120 | G187: 32360 | H187: 34600 | I187: 36840 | J187: Glenn0.4 | K187: 488 | L187: 523 | M187: 628 | N187: 725 | O187: 809 | P187: 893
A188: Glenn0.45 | B188: =B189*2*0.45 -> 21960 | C188: =C189*2*0.45 -> 25110 | D188: 28260 | E188: 31365 | F188: 33885 | G188: 36405 | H188: 38925 | I188: 41445 | J188: Glenn0.45 | K188: 549 | L188: 588 | M188: 706 | N188: 815 | O188: 910 | P188: 1004
A189: Glenn0.5 | B189: ='MTSP 50% Income Limits'!B12 -> 24400 | C189: ='MTSP 50% Income Limits'!C12 -> 27900 | D189: ='MTSP 50% Income Limits'!D12 -> 31400 | E189: ='MTSP 50% Income Limits'!E12 -> 34850 | F189: ='MTSP 50% Income Limits'!F12 -> 37650 | G189: ='MTSP 50% Income Limits'!G12 -> 40450 | H189: ='MTSP 50% Income Limits'!H12 -> 43250 | I189: ='MTSP 50% Income Limits'!I12 -> 46050 | J189: Glenn0.5 | K189: =TRUNC(B189/12*0.3) -> 610 | L189: =TRUNC((B189+C189)/2/12*0.3) -> 653 | M189: =TRUNC((D189)/12*0.3) -> 785 | N189: =TRUNC(((E189+F189)/2)/12*0.3) -> 906 | O189: =TRUNC(G189/12*0.3) -> 1011 | P189: =TRUNC(((H189+I189)/2)/12*0.3) -> 1116
A190: Glenn0.55 | B190: =B189*2*0.55 -> 26840 | C190: =C189*2*0.55 -> 30690 | D190: 34540 | E190: 38335 | F190: 41415 | G190: 44495 | H190: 47575 | I190: 50655 | J190: Glenn0.55 | K190: =TRUNC(B190/12*0.3) -> 671 | L190: =TRUNC((B190+C190)/2/12*0.3) -> 719 | M190: =TRUNC((D190)/12*0.3) -> 863 | N190: =TRUNC(((E190+F190)/2)/12*0.3) -> 996 | O190: =TRUNC(G190/12*0.3) -> 1112 | P190: =TRUNC(((H190+I190)/2)/12*0.3) -> 1227
A191: Glenn0.6 | B191: =B189*2*0.6 -> 29280 | C191: =C189*2*0.6 -> 33480 | D191: 37680 | E191: 41820 | F191: 45180 | G191: 48540 | H191: 51900 | I191: 55260 | J191: Glenn0.6 | K191: 732 | L191: 784 | M191: 942 | N191: 1087 | O191: 1213 | P191: 1339
A192: Glenn0.65 | B192: =B189*2*0.65 -> 31720 | C192: =C189*2*0.65 -> 36270 | D192: 40820 | E192: 45305 | F192: 48945 | G192: 52585 | H192: 56225 | I192: 59865 | J192: Glenn0.65 | K192: 793 | L192: 849 | M192: 1020 | N192: 1178 | O192: 1314 | P192: 1451
A193: Glenn0.7 | B193: =B189*2*0.7 -> 34160 | C193: =C189*2*0.7 -> 39060 | D193: 43960 | E193: 48790 | F193: 52710 | G193: 56630 | H193: 60550 | I193: 64470 | J193: Glenn0.7 | K193: 854 | L193: 915 | M193: 1099 | N193: 1268 | O193: 1415 | P193: 1562
A194: Glenn0.75 | B194: =B189*2*0.75 -> 36600 | C194: =C189*2*0.75 -> 41850 | D194: 47100 | E194: 52275 | F194: 56475 | G194: 60675 | H194: 64875 | I194: 69075 | J194: Glenn0.75 | K194: 915 | L194: 980 | M194: 1177 | N194: 1359 | O194: 1516 | P194: 1674
A195: Glenn0.8 | B195: =B189*2*0.8 -> 39040 | C195: =C189*2*0.8 -> 44640 | D195: 50240 | E195: 55760 | F195: 60240 | G195: 64720 | H195: 69200 | I195: 73680 | J195: Glenn0.8 | K195: 976 | L195: 1046 | M195: 1256 | N195: 1450 | O195: 1618 | P195: 1786
A196: Glenn0.9 | B196: =B189*2*0.9 -> 43920 | C196: =C189*2*0.9 -> 50220 | D196: 56520 | E196: 62730 | F196: 67770 | G196: 72810 | H196: 77850 | I196: 82890 | J196: Glenn0.9 | K196: 1098 | L196: 1176 | M196: 1413 | N196: 1631 | O196: 1820 | P196: 2009
A197: Glenn1 | B197: =B189*2 -> 48800 | C197: =C189*2 -> 55800 | D197: 62800 | E197: 69700 | F197: 75300 | G197: 80900 | H197: 86500 | I197: 92100 | J197: Glenn1 | K197: =K189*2 -> 1220 | L197: =L189*2 -> 1306 | M197: 1570 | N197: 1812 | O197: 2022 | P197: 2232
A198: Glenn1.1 | B198: =B189*2*1.1 -> 53680 | C198: =C189*2*1.1 -> 61380 | D198: 69080 | E198: 76670 | F198: 82830 | G198: 88990 | H198: 95150 | I198: 101310 | J198: Glenn1.1 | K198: =TRUNC(B198/12*0.3) -> 1342 | L198: =TRUNC((B198+C198)/2/12*0.3) -> 1438 | M198: =TRUNC((D198)/12*0.3) -> 1727 | N198: =TRUNC(((E198+F198)/2)/12*0.3) -> 1993 | O198: =TRUNC(G198/12*0.3) -> 2224 | P198: =TRUNC(((H198+I198)/2)/12*0.3) -> 2455
A199: Glenn1.2 | B199: =B189*2*1.2 -> 58560 | C199: =C189*2*1.2 -> 66960 | D199: 75360 | E199: 83640 | F199: 90360 | G199: 97080 | H199: 103800 | I199: 110520 | J199: Glenn1.2 | K199: 1464 | L199: 1569 | M199: 1884 | N199: 2175 | O199: 2427 | P199: 2679
A200: Humboldt0.15 | B200: =B207*2*0.15 -> 7320 | C200: =C207*2*0.15 -> 8370 | D200: =D207*2*0.15 -> 9420 | E200: =E207*2*0.15 -> 10455 | F200: =F207*2*0.15 -> 11295 | G200: =G207*2*0.15 -> 12135 | H200: 12975 | I200: 13815 | J200: Humboldt0.15 | K200: 183 | L200: 196 | M200: 235 | N200: 271 | O200: 303 | P200: 334
... 845 more rows

Sheet MTSP 50% Income Limits (hidden)
A1: county_name | B1: lim50_21p1 | C1: lim50_21p2 | D1: lim50_21p3 | E1: lim50_21p4 | F1: lim50_21p5 | G1: lim50_21p6 | H1: lim50_21p7 | I1: lim50_21p8
A2: Alameda | B2: 47950 | C2: 54800 | D2: 61650 | E2: 68500 | F2: 74000 | G2: 79500 | H2: 84950 | I2: 90450
A3: Alpine | B3: 28450 | C3: 32500 | D3: 36550 | E3: 40600 | F3: 43850 | G3: 47100 | H3: 50350 | I3: 53600
A4: Amador | B4: 27300 | C4: 31200 | D4: 35100 | E4: 38950 | F4: 42100 | G4: 45200 | H4: 48300 | I4: 51450
A5: Butte | B5: 24400 | C5: 27900 | D5: 31400 | E5: 34850 | F5: 37650 | G5: 40450 | H5: 43250 | I5: 46050
A6: Calaveras | B6: 28600 | C6: 32700 | D6: 36800 | E6: 40850 | F6: 44150 | G6: 47400 | H6: 50700 | I6: 53950
A7: Colusa | B7: 24400 | C7: 27900 | D7: 31400 | E7: 34850 | F7: 37650 | G7: 40450 | H7: 43250 | I7: 46050
A8: Contra Costa | B8: 47950 | C8: 54800 | D8: 61650 | E8: 68500 | F8: 74000 | G8: 79500 | H8: 84950 | I8: 90450
A9: Del Norte | B9: 24400 | C9: 27900 | D9: 31400 | E9: 34850 | F9: 37650 | G9: 40450 | H9: 43250 | I9: 46050
A10: El Dorado | B10: 31750 | C10: 36250 | D10: 40800 | E10: 45300 | F10: 48950 | G10: 52550 | H10: 56200 | I10: 59800
A11: Fresno | B11: 24400 | C11: 27900 | D11: 31400 | E11: 34850 | F11: 37650 | G11: 40450 | H11: 43250 | I11: 46050
A12: Glenn | B12: 24400 | C12: 27900 | D12: 31400 | E12: 34850 | F12: 37650 | G12: 40450 | H12: 43250 | I12: 46050
A13: Humboldt | B13: 24400 | C13: 27900 | D13: 31400 | E13: 34850 | F13: 37650 | G13: 40450 | H13: 43250 | I13: 46050
A14: Imperial | B14: 24400 | C14: 27900 | D14: 31400 | E14: 34850 | F14: 37650 | G14: 40450 | H14: 43250 | I14: 46050
A15: Inyo | B15: 25950 | C15: 29650 | D15: 33350 | E15: 37050 | F15: 40050 | G15: 43000 | H15: 45950 | I15: 48950
A16: Kern | B16: 24400 | C16: 27900 | D16: 31400 | E16: 34850 | F16: 37650 | G16: 40450 | H16: 43250 | I16: 46050
A17: Kings | B17: 24400 | C17: 27900 | D17: 31400 | E17: 34850 | F17: 37650 | G17: 40450 | H17: 43250 | I17: 46050
A18: Lake | B18: 24400 | C18: 27900 | D18: 31400 | E18: 34850 | F18: 37650 | G18: 40450 | H18: 43250 | I18: 46050
A19: Lassen | B19: 25300 | C19: 28900 | D19: 32500 | E19: 36100 | F19: 39000 | G19: 41900 | H19: 44800 | I19: 47700
A20: Los Angeles | B20: 41400 | C20: 47300 | D20: 53200 | E20: 59100 | F20: 63850 | G20: 68600 | H20: 73300 | I20: 78050
A21: Madera | B21: 24400 | C21: 27900 | D21: 31400 | E21: 34850 | F21: 37650 | G21: 40450 | H21: 43250 | I21: 46050
A22: Marin | B22: 63950 | C22: 73100 | D22: 82250 | E22: 91350 | F22: 98700 | G22: 106000 | H22: 113300 | I22: 120600
A23: Mariposa | B23: 24400 | C23: 27900 | D23: 31400 | E23: 34850 | F23: 37650 | G23: 40450 | H23: 43250 | I23: 46050
A24: Mendocino | B24: 25350 | C24: 28950 | D24: 32550 | E24: 36150 | F24: 39050 | G24: 41950 | H24: 44850 | I24: 47750
A25: Merced | B25: 24400 | C25: 27900 | D25: 31400 | E25: 34850 | F25: 37650 | G25: 40450 | H25: 43250 | I25: 46050
A26: Modoc | B26: 24400 | C26: 27900 | D26: 31400 | E26: 34850 | F26: 37650 | G26: 40450 | H26: 43250 | I26: 46050
A27: Mono | B27: 27650 | C27: 31600 | D27: 35550 | E27: 39450 | F27: 42650 | G27: 45800 | H27: 48950 | I27: 52100
A28: Monterey | B28: 35600 | C28: 40700 | D28: 45800 | E28: 50850 | F28: 54950 | G28: 59000 | H28: 63100 | I28: 67150
A29: Napa | B29: 39800 | C29: 45500 | D29: 51200 | E29: 56850 | F29: 61400 | G29: 65950 | H29: 70500 | I29: 75050
A30: Nevada | B30: 31450 | C30: 35950 | D30: 40450 | E30: 44900 | F30: 48500 | G30: 52100 | H30: 55700 | I30: 59300
A31: Orange | B31: 47100 | C31: 53800 | D31: 60550 | E31: 67250 | F31: 72650 | G31: 78050 | H31: 83400 | I31: 88800
A32: Placer | B32: 31750 | C32: 36250 | D32: 40800 | E32: 45300 | F32: 48950 | G32: 52550 | H32: 56200 | I32: 59800
A33: Plumas | B33: 25600 | C33: 29250 | D33: 32900 | E33: 36550 | F33: 39500 | G33: 42400 | H33: 45350 | I33: 48250
A34: Riverside | B34: 27650 | C34: 31600 | D34: 35550 | E34: 39500 | F34: 42700 | G34: 45850 | H34: 49000 | I34: 52150
A35: Sacramento | B35: 31750 | C35: 36250 | D35: 40800 | E35: 45300 | F35: 48950 | G35: 52550 | H35: 56200 | I35: 59800
A36: San Benito | B36: 34200 | C36: 39050 | D36: 43950 | E36: 48800 | F36: 52750 | G36: 56650 | H36: 60550 | I36: 64450
A37: San Bernardino | B37: 27650 | C37: 31600 | D37: 35550 | E37: 39500 | F37: 42700 | G37: 45850 | H37: 49000 | I37: 52150
A38: San Diego | B38: 42450 | C38: 48500 | D38: 54550 | E38: 60600 | F38: 65450 | G38: 70300 | H38: 75150 | I38: 80000
A39: San Francisco | B39: 63950 | C39: 73100 | D39: 82250 | E39: 91350 | F39: 98700 | G39: 106000 | H39: 113300 | I39: 120600
A40: San Joaquin | B40: 25900 | C40: 29600 | D40: 33300 | E40: 37000 | F40: 40000 | G40: 42950 | H40: 45900 | I40: 48850
A41: San Luis Obispo | B41: 34250 | C41: 39150 | D41: 44050 | E41: 48900 | F41: 52850 | G41: 56750 | H41: 60650 | I41: 64550
A42: San Mateo | B42: 63950 | C42: 73100 | D42: 82250 | E42: 91350 | F42: 98700 | G42: 106000 | H42: 113300 | I42: 120600
A43: Santa Barbara | B43: 43750 | C43: 50000 | D43: 56250 | E43: 62450 | F43: 67450 | G43: 72450 | H43: 77450 | I43: 82450
A44: Santa Clara | B44: 58000 | C44: 66300 | D44: 74600 | E44: 82850 | F44: 89500 | G44: 96150 | H44: 102750 | I44: 109400
A45: Santa Cruz | B45: 48650 | C45: 55600 | D45: 62550 | E45: 69500 | F45: 75100 | G45: 80650 | H45: 86200 | I45: 91750
A46: Shasta | B46: 24850 | C46: 28400 | D46: 31950 | E46: 35500 | F46: 38350 | G46: 41200 | H46: 44050 | I46: 46900
A47: Sierra | B47: 29600 | C47: 33800 | D47: 38050 | E47: 42250 | F47: 45650 | G47: 49050 | H47: 52400 | I47: 55800
A48: Siskiyou | B48: 24400 | C48: 27900 | D48: 31400 | E48: 34850 | F48: 37650 | G48: 40450 | H48: 43250 | I48: 46050
A49: Solano | B49: 34000 | C49: 38850 | D49: 43700 | E49: 48550 | F49: 52450 | G49: 56350 | H49: 60250 | I49: 64100
A50: Sonoma | B50: 40750 | C50: 46550 | D50: 52350 | E50: 58150 | F50: 62850 | G50: 67500 | H50: 72150 | I50: 76800
A51: Stanislaus | B51: 25000 | C51: 28550 | D51: 32100 | E51: 35650 | F51: 38550 | G51: 41400 | H51: 44250 | I51: 47100
A52: Sutter | B52: 24400 | C52: 27900 | D52: 31400 | E52: 34850 | F52: 37650 | G52: 40450 | H52: 43250 | I52: 46050
A53: Tehama | B53: 24400 | C53: 27900 | D53: 31400 | E53: 34850 | F53: 37650 | G53: 40450 | H53: 43250 | I53: 46050
A54: Trinity | B54: 24400 | C54: 27900 | D54: 31400 | E54: 34850 | F54: 37650 | G54: 40450 | H54: 43250 | I54: 46050
A55: Tulare | B55: 24400 | C55: 27900 | D55: 31400 | E55: 34850 | F55: 37650 | G55: 40450 | H55: 43250 | I55: 46050
A56: Tuolumne | B56: 26050 | C56: 29800 | D56: 33500 | E56: 37200 | F56: 40200 | G56: 43200 | H56: 46150 | I56: 49150
A57: Ventura | B57: 39250 | C57: 44850 | D57: 50450 | E57: 56050 | F57: 60550 | G57: 65050 | H57: 69550 | I57: 74000
A58: Yolo | B58: 31050 | C58: 35450 | D58: 39900 | E58: 44300 | F58: 47850 | G58: 51400 | H58: 54950 | I58: 58500
A59: Yuba | B59: 24400 | C59: 27900 | D59: 31400 | E59: 34850 | F59: 37650 | G59: 40450 | H59: 43250 | I59: 46050

Sheet Borrower and Dev Team Contacts
A1: Owner/Borrower and Development Team Contacts | AK1: ='PRP Cover Page'!B9 -> 2022-04-07
A2: Development Team Contacts (provide information that is currently available) | AN2: Individual
A3: Owner/Borrower Entity | AN3: Joint Venture
A4: Legal name | AA4: Organization type | AN4: Partnership
A5: Address | V5: City | AC5: State | AH5: Zip | AN5: Limited Partnership
A6: Auth Rep | M6: Title | V6: Email | AG6: Phone | AN6: Trust
A7: Contact | M7: Title | V7: Email | AG7: Phone | AN7: Corporation
A8: Address | V8: City | AC8: State | AH8: Zip | AN8: Limited Liability Company
A9: File Name | D9: Borrower Cert & Legal | L9: See Certifications & Legal worksheet. | AF9: Uploaded to HCD? | AN9: Local Public Entity
A10: File Name | D10: Borrower Resolution | L10: Signature required; see Applicant Documents worksheet. | AF10: Uploaded to HCD? | AN10: Tribal Entity
A11: File Name | D11: Borrower OrgDoc1, OrgDoc2, etc… | L11: See Applicant Documents worksheet. | AF11: Uploaded to HCD?
A12: File Name | D12: Borrower OrgChart | L12: See Applicant Documents worksheet. | AF12: Uploaded to HCD?
A13: File Name | D13: Borrower Signature Block | L13: See Applicant Documents worksheet. | AF13: Uploaded to HCD?
A14: File Name | D14: Borrower Payee Data Record | L14: See Applicant Documents worksheet. | AF14: Uploaded to HCD?
A15: File Name | D15: Borrower TIN | L15: See Applicant Documents worksheet (not applicable for non-governmental entities) | AF15: Uploaded to HCD?
A16: File Name | D16: Borrower Cert of Good Standing | L16: Dated 30 days or less from the application submittal date. | AF16: Uploaded to HCD?
A17: File Name | D17: Borrower Tax-Exempt Status | L17: If applicable, evidence of tax-exempt status from IRS and Franchise Tax Board for Corps | AF17: Uploaded to HCD?
A18: In the cell below, select an applicable controlling party to the organization type in cell AE4
A19: Controlling party #1 title
A20: Legal name | AA20: Organization type
A21: Address | V21: City | AC21: State | AH21: Zip
A22: Auth Rep | M22: Title | V22: Email | AG22: Phone
A23: Contact | M23: Title | V23: Email | AG23: Phone
A24: Address | V24: City | AC24: State | AH24: Zip
A25: File Name | D25: Party 1 Cert & Legal | L25: See Certifications & Legal worksheet. | AF25: Uploaded to HCD?
A26: File Name | D26: Party 1 Resolution | L26: Signature required; see Applicant Documents worksheet. | AF26: Uploaded to HCD?
A27: File Name | D27: Party 1 OrgDoc1, OrgDoc2, etc | L27: See Applicant Documents worksheet. | AF27: Uploaded to HCD?
A28: File Name | D28: Party 1 OrgChart | L28: See Applicant Documents worksheet. | AF28: Uploaded to HCD?
A29: File Name | D29: Party 1 Signature Block | L29: See Applicant Documents worksheet. | AF29: Uploaded to HCD?
A30: File Name | D30: Party 1 Payee Data Record | L30: See Applicant Documents worksheet. | AF30: Uploaded to HCD?
A31: File Name | D31: Party 1 TIN | L31: See Applicant Documents worksheet (not applicable for non-governmental entities) | AF31: Uploaded to HCD?
A32: File Name | D32: Party 1 Cert of Good Standing | L32: Dated 30 days or less from the application submittal date. | AF32: Uploaded to HCD?
A33: File Name | D33: Party 1 Tax-Exempt Status | L33: If applicable, evidence of tax-exempt status from IRS and Franchise Tax Board for Corps | AF33: Uploaded to HCD?
A34: In the cell below, select an applicable controlling party to the organization type in cell AE4
A35: Controlling party #2 title
A36: Legal name | AA36: Organization type
A37: Address | V37: City | AC37: State | AH37: Zip
A38: Auth Rep | M38: Title | V38: Email | AG38: Phone
A39: Contact | M39: Title | V39: Email | AG39: Phone
A40: Address | V40: City | AC40: State | AH40: Zip
A41: File Name | D41: Party 2 Cert & Legal | L41: See Certifications & Legal worksheet. | AF41: Uploaded to HCD?
A42: File Name | D42: Party 2 Resolution | L42: Signature required; see Applicant Documents worksheet. | AF42: Uploaded to HCD?
A43: File Name | D43: Party 2 OrgDoc1, OrgDoc2, etc | L43: See Applicant Documents worksheet. | AF43: Uploaded to HCD?
A44: File Name | D44: Party 2 OrgChart | L44: See Applicant Documents worksheet. | AF44: Uploaded to HCD?
A45: File Name | D45: Party 2 Signature Block | L45: See Applicant Documents worksheet. | AF45: Uploaded to HCD?
A46: File Name | D46: Party 2 Payee Data Record | L46: See Applicant Documents worksheet. | AF46: Uploaded to HCD?
A47: File Name | D47: Party 2 TIN | L47: See Applicant Documents worksheet (not applicable for non-governmental entities) | AF47: Uploaded to HCD?
A48: File Name | D48: Party 2 Cert of Good Standing | L48: Dated 30 days or less from the application submittal date. | AF48: Uploaded to HCD?
A49: File Name | D49: Party 2 Tax-Exempt Status | L49: If applicable, evidence of tax-exempt status from IRS and Franchise Tax Board for Corps | AF49: Uploaded to HCD?
A50: In the cell below, select an applicable controlling party to the organization type in cell AE4
A51: Controlling party #3 title
A52: Legal name | AA52: Organization type
A53: Address | V53: City | AC53: State | AH53: Zip
A54: Auth Rep | M54: Title | V54: Email | AG54: Phone
A55: Contact | M55: Title | V55: Email | AG55: Phone
A56: Address | V56: City | AC56: State | AH56: Zip
A57: File Name | D57: Party 3 Cert & Legal | L57: See Certifications & Legal worksheet. | AF57: Uploaded to HCD?
A58: File Name | D58: Party 3 Resolution | L58: Signature required; see Applicant Documents worksheet. | AF58: Uploaded to HCD?
A59: File Name | D59: Party 3 OrgDoc1, OrgDoc2, etc | L59: See Applicant Documents worksheet. | AF59: Uploaded to HCD?
A60: File Name | D60: Party 3 OrgChart | L60: See Applicant Documents worksheet. | AF60: Uploaded to HCD?
A61: File Name | D61: Party 3 Signature Block | L61: See Applicant Documents worksheet. | AF61: Uploaded to HCD?
A62: File Name | D62: Party 3 Payee Data Record | L62: See Applicant Documents worksheet. | AF62: Uploaded to HCD?
A63: File Name | D63: Party 3 TIN | L63: See Applicant Documents worksheet (not applicable for non-governmental entities) | AF63: Uploaded to HCD?
A64: File Name | D64: Party 3 Cert of Good Standing | L64: Dated 30 days or less from the application submittal date. | AF64: Uploaded to HCD?
A65: File Name | D65: Party 3 Tax-Exempt Status | L65: If applicable, evidence of tax-exempt status from IRS and Franchise Tax Board for Corps | AF65: Uploaded to HCD?
A66: Property Management Agent
A67: Legal name | P67: Contact | AB67: Email
A68: Phone | H68: Address | V68: City | AD68: State | AH68: Zip
A69: Financial Consultant
A70: Legal name | P70: Contact | AB70: Email
A71: Phone | H71: Address | V71: City | AD71: State | AH71: Zip
A72: Primary Supportive Service Provider
A73: Legal name | P73: Contact | AB73: Email
A74: Phone | H74: Address | V74: City | AD74: State | AH74: Zip
A75: Borrower Legal Counsel
A76: Legal name | P76: Contact | AB76: Email
A77: Phone | H77: Address | V77: City | AD77: State | AH77: Zip
A78: General Contractor
A79: Legal name | P79: Contact | AB79: Email
A80: Phone | H80: Address | V80: City | AD80: State | AH80: Zip
A81: Development Funding Source
A82: Legal name | P82: Contact | AB82: Email
A83: Phone | H83: Address | V83: City | AD83: State | AH83: Zip
A84: Development Funding Source
A85: Legal name | P85: Contact | AB85: Email
A86: Phone | H86: Address | V86: City | AD86: State | AH86: Zip
A87: Development Funding Source
A88: Legal name | P88: Contact | AB88: Email
A89: Phone | H89: Address | V89: City | AD89: State | AH89: Zip
A90: Rent/Operating Subsidy Source
A91: Legal name | P91: Contact | AB91: Email
A92: Phone | H92: Address | V92: City | AD92: State | AH92: Zip
A93: Rent/Operating Subsidy Source
A94: Legal name | P94: Contact | AB94: Email
A95: Phone | H95: Address | V95: City | AD95: State | AH95: Zip

Sheet Project Description (hidden)
A1: Project Description | AK1: ='PRP Cover Page'!B9 -> 2022-04-07
A2: 1) Sponsor/Developer Experience
A4: 2) Topography and Special Site Features
A6: 3) Specific Issues (relocation, environmental, historical, etc.)
A8: 4) Rehabilitation and scope of work
A10: 5) Will Prevailing Wage be paid

Sheet Assisted Units
A1: Manager Units and PRP Assisted Units (designated Assisted units in the Original HCD RA) Note: enter Non-Assisted, Market Rate, and Other Restricted units on the 'Non-Assisted Units' worksheet | X1: ='PRP Cover Page'!B9 -> 2022-04-07 | Z1: 69700 | AA1: < = Statewide non-metro median income
A2: Unit Number (include Manager units) Hide unused yellow rows by clicking down arrow and unchecking (Blanks) box. | B2: Manager Unit | C2: Household ID | D2: Number of Persons in Household (if Vacant, select Vacant) | E2: Bedroom Size (if GHOCC, SRO or Studio apts, use 0) | F2: Household Income Certification Date (must be within one year of application submittal) | G2: Existing Annual Household Income (Certified) | H2: Current Monthly Tenant Rent | I2: HCD Approved Current Monthly Tenant Rent (enter from prior year HCD approved SRI; see cell comments) | J2: Original HCD RA Unit Designation | K2: Original HCD RA Targeted Income Level | L2: HCD New PRP RA Targeted AMI Level (see cell comments) | M2: 35% AMI Income Limit for Existing Tenants §E(3)(a) and (b) | N2: % Rent Increase for Existing Tenants §E(3)(a) and (b) | O2: A PRP Unit Monthly Rent Limit Existing Tenants Current Rents + % increase §E(3)(a) and (b) | P2: B PRP Unit Gross Monthly Rent Limit 2021 AMI Rents §E(2) | Q2: C PRP Unit Gross Monthly Rent Limit 50% of Household Income §E(3)(d) | R2: D Current Monthly Tenant Rent Limit | S2: Monthly Rent Limit based on A, B, C or D (indicated by green shading) | T2: Monthly Utility Allowance (attach utility allowance chart; see cell comments) | U2: Monthly Net Rent | V2: Annual Assisted Net Rent | W2: Enter rent subsidy source #1 here & monthly amounts below | X2: Enter rent subsidy source #2 here & monthly amounts below | Y2: Approved Annual Gross Rent as % of Annual Household Income | Z2: =IFERROR(VLOOKUP('Project, Applicant, Threshold'!AD24,'MTSP 50% Income Limits'!$A$1:$I$59,5,FALSE)*2,0) -> 0 | AA2: <= 100% AMI for four persons | AD2: Look up field | AE2: Look up field
M3: =IFERROR(INDEX('Rent Limits'!$A$1:$I$1045,MATCH(AE3,'Rent Limits'!$A$1:$A$1045,0),MATCH(D3,'Rent Limits'!$A$1:$I$1,0)),0) -> 0 | N3: =IF(OR(G3="",D3="Vacant"),0,IF(G3<=M3,0.05,0.1)) -> 0 | O3: =H3*(1+N3) -> 0 | P3: =IFERROR(INDEX('Rent Limits'!$J$1:$P$1045,MATCH(AD3,'Rent Limits'!$A$1:$A$1045,0),MATCH(E3,'Rent Limits'!$J$1:$P$1)),0) -> 0 | Q3: =ROUND(G3*0.5/12,0) -> 0 | R3: =H3 -> 0 | S3: =IF(OR(D3="Vacant",J3="New PRP"),P3,MAX(R3,MIN(P3,O3,Q3))) -> 0 | T3: 0 | U3: =IF(D3="Vacant",S3-T3,S3) -> 0 | V3: =U3*12 -> 0 | W3: 0 | X3: 0 | Y3: =IFERROR(S3*12/G3,0) -> 0 | Z3: =IF(OR(AND(K3="VLI",L3>0.3),AND(K3="LI",L3>$AA$3),AND(OR(J3="New PRP",K3="New PRP"),L3=0.8)),"Yes","No") -> No | AA3: =IF($Z$1=$Z$2,0.8,0.6) -> 0.6 | AD3: =CONCATENATE('Project, Applicant, Threshold'!$AD$24,'Assisted Units'!L3) ->  | AE3: =CONCATENATE('Project, Applicant, Threshold'!$AD$24,"0.35") -> 0.35
M4: =IFERROR(INDEX('Rent Limits'!$A$1:$I$1045,MATCH(AE4,'Rent Limits'!$A$1:$A$1045,0),MATCH(D4,'Rent Limits'!$A$1:$I$1,0)),0) -> 0 | N4: =IF(OR(G4="",D4="Vacant"),0,IF(G4<=M4,0.05,0.1)) -> 0 | O4: 0 | P4: =IFERROR(INDEX('Rent Limits'!$J$1:$P$1045,MATCH(AD4,'Rent Limits'!$A$1:$A$1045,0),MATCH(E4,'Rent Limits'!$J$1:$P$1)),0) -> 0 | Q4: 0 | R4: =H4 -> 0 | S4: 0 | T4: 0 | U4: 0 | V4: 0 | W4: 0 | X4: 0 | Y4: 0 | Z4: =IF(OR(AND(K4="VLI",L4>0.3),AND(K4="LI",L4>$AA$3),AND(OR(J4="New PRP",K4="New PRP"),L4=0.8)),"Yes","No") -> No | AD4: =CONCATENATE('Project, Applicant, Threshold'!$AD$24,'Assisted Units'!L4) ->  | AE4: =CONCATENATE('Project, Applicant, Threshold'!$AD$24,"0.35") -> 0.35
M5: =IFERROR(INDEX('Rent Limits'!$A$1:$I$1045,MATCH(AE5,'Rent Limits'!$A$1:$A$1045,0),MATCH(D5,'Rent Limits'!$A$1:$I$1,0)),0) -> 0 | N5: 0 | O5: 0 | P5: =IFERROR(INDEX('Rent Limits'!$J$1:$P$1045,MATCH(AD5,'Rent Limits'!$A$1:$A$1045,0),MATCH(E5,'Rent Limits'!$J$1:$P$1)),0) -> 0 | Q5: 0 | R5: 0 | S5: =IF(OR(D5="Vacant",J5="New PRP"),P5,MAX(R5,MIN(P5,O5,Q5))) -> 0 | T5: 0 | U5: 0 | V5: 0 | W5: 0 | X5: 0 | Y5: 0 | Z5: No | AD5: =CONCATENATE('Project, Applicant, Threshold'!$AD$24,'Assisted Units'!L5) ->  | AE5: =CONCATENATE('Project, Applicant, Threshold'!$AD$24,"0.35") -> 0.35
M6: =IFERROR(INDEX('Rent Limits'!$A$1:$I$1045,MATCH(AE6,'Rent Limits'!$A$1:$A$1045,0),MATCH(D6,'Rent Limits'!$A$1:$I$1,0)),0) -> 0 | N6: 0 | O6: 0 | P6: =IFERROR(INDEX('Rent Limits'!$J$1:$P$1045,MATCH(AD6,'Rent Limits'!$A$1:$A$1045,0),MATCH(E6,'Rent Limits'!$J$1:$P$1)),0) -> 0 | Q6: 0 | R6: 0 | S6: =IF(OR(D6="Vacant",J6="New PRP"),P6,MAX(R6,MIN(P6,O6,Q6))) -> 0 | T6: 0 | U6: 0 | V6: 0 | W6: 0 | X6: 0 | Y6: 0 | Z6: No | AD6: =CONCATENATE('Project, Applicant, Threshold'!$AD$24,'Assisted Units'!L6) ->  | AE6: =CONCATENATE('Project, Applicant, Threshold'!$AD$24,"0.35") -> 0.35
M7: =IFERROR(INDEX('Rent Limits'!$A$1:$I$1045,MATCH(AE7,'Rent Limits'!$A$1:$A$1045,0),MATCH(D7,'Rent Limits'!$A$1:$I$1,0)),0) -> 0 | N7: 0 | O7: 0 | P7: =IFERROR(INDEX('Rent Limits'!$J$1:$P$1045,MATCH(AD7,'Rent Limits'!$A$1:$A$1045,0),MATCH(E7,'Rent Limits'!$J$1:$P$1)),0) -> 0 | Q7: 0 | R7: 0 | S7: 0 | T7: 0 | U7: 0 | V7: 0 | W7: 0 | X7: 0 | Y7: 0 | Z7: No | AD7: =CONCATENATE('Project, Applicant, Threshold'!$AD$24,'Assisted Units'!L7) ->  | AE7: =CONCATENATE('Project, Applicant, Threshold'!$AD$24,"0.35") -> 0.35
M8: =IFERROR(INDEX('Rent Limits'!$A$1:$I$1045,MATCH(AE8,'Rent Limits'!$A$1:$A$1045,0),MATCH(D8,'Rent Limits'!$A$1:$I$1,0)),0) -> 0 | N8: 0 | O8: 0 | P8: =IFERROR(INDEX('Rent Limits'!$J$1:$P$1045,MATCH(AD8,'Rent Limits'!$A$1:$A$1045,0),MATCH(E8,'Rent Limits'!$J$1:$P$1)),0) -> 0 | Q8: 0 | R8: 0 | S8: 0 | T8: 0 | U8: 0 | V8: 0 | W8: 0 | X8: 0 | Y8: 0 | Z8: No | AD8: =CONCATENATE('Project, Applicant, Threshold'!$AD$24,'Assisted Units'!L8) ->  | AE8: =CONCATENATE('Project, Applicant, Threshold'!$AD$24,"0.35") -> 0.35
M9: =IFERROR(INDEX('Rent Limits'!$A$1:$I$1045,MATCH(AE9,'Rent Limits'!$A$1:$A$1045,0),MATCH(D9,'Rent Limits'!$A$1:$I$1,0)),0) -> 0 | N9: 0 | O9: 0 | P9: =IFERROR(INDEX('Rent Limits'!$J$1:$P$1045,MATCH(AD9,'Rent Limits'!$A$1:$A$1045,0),MATCH(E9,'Rent Limits'!$J$1:$P$1)),0) -> 0 | Q9: 0 | R9: 0 | S9: 0 | T9: 0 | U9: 0 | V9: 0 | W9: 0 | X9: 0 | Y9: 0 | Z9: No | AD9: =CONCATENATE('Project, Applicant, Threshold'!$AD$24,'Assisted Units'!L9) ->  | AE9: =CONCATENATE('Project, Applicant, Threshold'!$AD$24,"0.35") -> 0.35
M10: =IFERROR(INDEX('Rent Limits'!$A$1:$I$1045,MATCH(AE10,'Rent Limits'!$A$1:$A$1045,0),MATCH(D10,'Rent Limits'!$A$1:$I$1,0)),0) -> 0 | N10: 0 | O10: 0 | P10: =IFERROR(INDEX('Rent Limits'!$J$1:$P$1045,MATCH(AD10,'Rent Limits'!$A$1:$A$1045,0),MATCH(E10,'Rent Limits'!$J$1:$P$1)),0) -> 0 | Q10: 0 | R10: 0 | S10: 0 | T10: 0 | U10: 0 | V10: 0 | W10: 0 | X10: 0 | Y10: 0 | Z10: No | AD10: =CONCATENATE('Project, Applicant, Threshold'!$AD$24,'Assisted Units'!L10) ->  | AE10: =CONCATENATE('Project, Applicant, Threshold'!$AD$24,"0.35") -> 0.35
M11: =IFERROR(INDEX('Rent Limits'!$A$1:$I$1045,MATCH(AE11,'Rent Limits'!$A$1:$A$1045,0),MATCH(D11,'Rent Limits'!$A$1:$I$1,0)),0) -> 0 | N11: 0 | O11: 0 | P11: =IFERROR(INDEX('Rent Limits'!$J$1:$P$1045,MATCH(AD11,'Rent Limits'!$A$1:$A$1045,0),MATCH(E11,'Rent Limits'!$J$1:$P$1)),0) -> 0 | Q11: 0 | R11: 0 | S11: 0 | T11: 0 | U11: 0 | V11: 0 | W11: 0 | X11: 0 | Y11: 0 | Z11: No | AD11: =CONCATENATE('Project, Applicant, Threshold'!$AD$24,'Assisted Units'!L11) ->  | AE11: =CONCATENATE('Project, Applicant, Threshold'!$AD$24,"0.35") -> 0.35
M12: =IFERROR(INDEX('Rent Limits'!$A$1:$I$1045,MATCH(AE12,'Rent Limits'!$A$1:$A$1045,0),MATCH(D12,'Rent Limits'!$A$1:$I$1,0)),0) -> 0 | N12: 0 | O12: 0 | P12: =IFERROR(INDEX('Rent Limits'!$J$1:$P$1045,MATCH(AD12,'Rent Limits'!$A$1:$A$1045,0),MATCH(E12,'Rent Limits'!$J$1:$P$1)),0) -> 0 | Q12: 0 | R12: 0 | S12: 0 | T12: 0 | U12: 0 | V12: 0 | W12: 0 | X12: 0 | Y12: 0 | Z12: No | AD12: =CONCATENATE('Project, Applicant, Threshold'!$AD$24,'Assisted Units'!L12) ->  | AE12: =CONCATENATE('Project, Applicant, Threshold'!$AD$24,"0.35") -> 0.35
M13: =IFERROR(INDEX('Rent Limits'!$A$1:$I$1045,MATCH(AE13,'Rent Limits'!$A$1:$A$1045,0),MATCH(D13,'Rent Limits'!$A$1:$I$1,0)),0) -> 0 | N13: 0 | O13: 0 | P13: =IFERROR(INDEX('Rent Limits'!$J$1:$P$1045,MATCH(AD13,'Rent Limits'!$A$1:$A$1045,0),MATCH(E13,'Rent Limits'!$J$1:$P$1)),0) -> 0 | Q13: 0 | R13: 0 | S13: 0 | T13: 0 | U13: 0 | V13: 0 | W13: 0 | X13: 0 | Y13: 0 | Z13: No | AD13: =CONCATENATE('Project, Applicant, Threshold'!$AD$24,'Assisted Units'!L13) ->  | AE13: =CONCATENATE('Project, Applicant, Threshold'!$AD$24,"0.35") -> 0.35
M14: =IFERROR(INDEX('Rent Limits'!$A$1:$I$1045,MATCH(AE14,'Rent Limits'!$A$1:$A$1045,0),MATCH(D14,'Rent Limits'!$A$1:$I$1,0)),0) -> 0 | N14: 0 | O14: 0 | P14: =IFERROR(INDEX('Rent Limits'!$J$1:$P$1045,MATCH(AD14,'Rent Limits'!$A$1:$A$1045,0),MATCH(E14,'Rent Limits'!$J$1:$P$1)),0) -> 0 | Q14: 0 | R14: 0 | S14: 0 | T14: 0 | U14: 0 | V14: 0 | W14: 0 | X14: 0 | Y14: 0 | Z14: No | AD14: =CONCATENATE('Project, Applicant, Threshold'!$AD$24,'Assisted Units'!L14) ->  | AE14: =CONCATENATE('Project, Applicant, Threshold'!$AD$24,"0.35") -> 0.35
M15: =IFERROR(INDEX('Rent Limits'!$A$1:$I$1045,MATCH(AE15,'Rent Limits'!$A$1:$A$1045,0),MATCH(D15,'Rent Limits'!$A$1:$I$1,0)),0) -> 0 | N15: 0 | O15: 0 | P15: =IFERROR(INDEX('Rent Limits'!$J$1:$P$1045,MATCH(AD15,'Rent Limits'!$A$1:$A$1045,0),MATCH(E15,'Rent Limits'!$J$1:$P$1)),0) -> 0 | Q15: 0 | R15: 0 | S15: 0 | T15: 0 | U15: 0 | V15: 0 | W15: 0 | X15: 0 | Y15: 0 | Z15: No | AD15: =CONCATENATE('Project, Applicant, Threshold'!$AD$24,'Assisted Units'!L15) ->  | AE15: =CONCATENATE('Project, Applicant, Threshold'!$AD$24,"0.35") -> 0.35
M16: =IFERROR(INDEX('Rent Limits'!$A$1:$I$1045,MATCH(AE16,'Rent Limits'!$A$1:$A$1045,0),MATCH(D16,'Rent Limits'!$A$1:$I$1,0)),0) -> 0 | N16: 0 | O16: 0 | P16: =IFERROR(INDEX('Rent Limits'!$J$1:$P$1045,MATCH(AD16,'Rent Limits'!$A$1:$A$1045,0),MATCH(E16,'Rent Limits'!$J$1:$P$1)),0) -> 0 | Q16: 0 | R16: 0 | S16: 0 | T16: 0 | U16: 0 | V16: 0 | W16: 0 | X16: 0 | Y16: 0 | Z16: No | AD16: =CONCATENATE('Project, Applicant, Threshold'!$AD$24,'Assisted Units'!L16) ->  | AE16: =CONCATENATE('Project, Applicant, Threshold'!$AD$24,"0.35") -> 0.35
M17: =IFERROR(INDEX('Rent Limits'!$A$1:$I$1045,MATCH(AE17,'Rent Limits'!$A$1:$A$1045,0),MATCH(D17,'Rent Limits'!$A$1:$I$1,0)),0) -> 0 | N17: 0 | O17: 0 | P17: =IFERROR(INDEX('Rent Limits'!$J$1:$P$1045,MATCH(AD17,'Rent Limits'!$A$1:$A$1045,0),MATCH(E17,'Rent Limits'!$J$1:$P$1)),0) -> 0 | Q17: 0 | R17: 0 | S17: 0 | T17: 0 | U17: 0 | V17: 0 | W17: 0 | X17: 0 | Y17: 0 | Z17: No | AD17: =CONCATENATE('Project, Applicant, Threshold'!$AD$24,'Assisted Units'!L17) ->  | AE17: =CONCATENATE('Project, Applicant, Threshold'!$AD$24,"0.35") -> 0.35
M18: =IFERROR(INDEX('Rent Limits'!$A$1:$I$1045,MATCH(AE18,'Rent Limits'!$A$1:$A$1045,0),MATCH(D18,'Rent Limits'!$A$1:$I$1,0)),0) -> 0 | N18: 0 | O18: 0 | P18: =IFERROR(INDEX('Rent Limits'!$J$1:$P$1045,MATCH(AD18,'Rent Limits'!$A$1:$A$1045,0),MATCH(E18,'Rent Limits'!$J$1:$P$1)),0) -> 0 | Q18: 0 | R18: 0 | S18: 0 | T18: 0 | U18: 0 | V18: 0 | W18: 0 | X18: 0 | Y18: 0 | Z18: No | AD18: =CONCATENATE('Project, Applicant, Threshold'!$AD$24,'Assisted Units'!L18) ->  | AE18: =CONCATENATE('Project, Applicant, Threshold'!$AD$24,"0.35") -> 0.35
M19: =IFERROR(INDEX('Rent Limits'!$A$1:$I$1045,MATCH(AE19,'Rent Limits'!$A$1:$A$1045,0),MATCH(D19,'Rent Limits'!$A$1:$I$1,0)),0) -> 0 | N19: 0 | O19: 0 | P19: =IFERROR(INDEX('Rent Limits'!$J$1:$P$1045,MATCH(AD19,'Rent Limits'!$A$1:$A$1045,0),MATCH(E19,'Rent Limits'!$J$1:$P$1)),0) -> 0 | Q19: 0 | R19: 0 | S19: 0 | T19: 0 | U19: 0 | V19: 0 | W19: 0 | X19: 0 | Y19: 0 | Z19: No | AD19: =CONCATENATE('Project, Applicant, Threshold'!$AD$24,'Assisted Units'!L19) ->  | AE19: =CONCATENATE('Project, Applicant, Threshold'!$AD$24,"0.35") -> 0.35
M20: =IFERROR(INDEX('Rent Limits'!$A$1:$I$1045,MATCH(AE20,'Rent Limits'!$A$1:$A$1045,0),MATCH(D20,'Rent Limits'!$A$1:$I$1,0)),0) -> 0 | N20: 0 | O20: 0 | P20: =IFERROR(INDEX('Rent Limits'!$J$1:$P$1045,MATCH(AD20,'Rent Limits'!$A$1:$A$1045,0),MATCH(E20,'Rent Limits'!$J$1:$P$1)),0) -> 0 | Q20: 0 | R20: 0 | S20: 0 | T20: 0 | U20: 0 | V20: 0 | W20: 0 | X20: 0 | Y20: 0 | Z20: No | AD20: =CONCATENATE('Project, Applicant, Threshold'!$AD$24,'Assisted Units'!L20) ->  | AE20: =CONCATENATE('Project, Applicant, Threshold'!$AD$24,"0.35") -> 0.35
M21: =IFERROR(INDEX('Rent Limits'!$A$1:$I$1045,MATCH(AE21,'Rent Limits'!$A$1:$A$1045,0),MATCH(D21,'Rent Limits'!$A$1:$I$1,0)),0) -> 0 | N21: 0 | O21: 0 | P21: =IFERROR(INDEX('Rent Limits'!$J$1:$P$1045,MATCH(AD21,'Rent Limits'!$A$1:$A$1045,0),MATCH(E21,'Rent Limits'!$J$1:$P$1)),0) -> 0 | Q21: 0 | R21: 0 | S21: 0 | T21: 0 | U21: 0 | V21: 0 | W21: 0 | X21: 0 | Y21: 0 | Z21: No | AD21: =CONCATENATE('Project, Applicant, Threshold'!$AD$24,'Assisted Units'!L21) ->  | AE21: =CONCATENATE('Project, Applicant, Threshold'!$AD$24,"0.35") -> 0.35
M22: =IFERROR(INDEX('Rent Limits'!$A$1:$I$1045,MATCH(AE22,'Rent Limits'!$A$1:$A$1045,0),MATCH(D22,'Rent Limits'!$A$1:$I$1,0)),0) -> 0 | N22: 0 | O22: 0 | P22: =IFERROR(INDEX('Rent Limits'!$J$1:$P$1045,MATCH(AD22,'Rent Limits'!$A$1:$A$1045,0),MATCH(E22,'Rent Limits'!$J$1:$P$1)),0) -> 0 | Q22: 0 | R22: 0 | S22: 0 | T22: 0 | U22: 0 | V22: 0 | W22: 0 | X22: 0 | Y22: 0 | Z22: No | AD22: =CONCATENATE('Project, Applicant, Threshold'!$AD$24,'Assisted Units'!L22) ->  | AE22: =CONCATENATE('Project, Applicant, Threshold'!$AD$24,"0.35") -> 0.35
M23: =IFERROR(INDEX('Rent Limits'!$A$1:$I$1045,MATCH(AE23,'Rent Limits'!$A$1:$A$1045,0),MATCH(D23,'Rent Limits'!$A$1:$I$1,0)),0) -> 0 | N23: 0 | O23: 0 | P23: =IFERROR(INDEX('Rent Limits'!$J$1:$P$1045,MATCH(AD23,'Rent Limits'!$A$1:$A$1045,0),MATCH(E23,'Rent Limits'!$J$1:$P$1)),0) -> 0 | Q23: 0 | R23: 0 | S23: 0 | T23: 0 | U23: 0 | V23: 0 | W23: 0 | X23: 0 | Y23: 0 | Z23: No | AD23: =CONCATENATE('Project, Applicant, Threshold'!$AD$24,'Assisted Units'!L23) ->  | AE23: =CONCATENATE('Project, Applicant, Threshold'!$AD$24,"0.35") -> 0.35
M24: =IFERROR(INDEX('Rent Limits'!$A$1:$I$1045,MATCH(AE24,'Rent Limits'!$A$1:$A$1045,0),MATCH(D24,'Rent Limits'!$A$1:$I$1,0)),0) -> 0 | N24: 0 | O24: 0 | P24: =IFERROR(INDEX('Rent Limits'!$J$1:$P$1045,MATCH(AD24,'Rent Limits'!$A$1:$A$1045,0),MATCH(E24,'Rent Limits'!$J$1:$P$1)),0) -> 0 | Q24: 0 | R24: 0 | S24: 0 | T24: 0 | U24: 0 | V24: 0 | W24: 0 | X24: 0 | Y24: 0 | Z24: No | AD24: =CONCATENATE('Project, Applicant, Threshold'!$AD$24,'Assisted Units'!L24) ->  | AE24: =CONCATENATE('Project, Applicant, Threshold'!$AD$24,"0.35") -> 0.35
M25: =IFERROR(INDEX('Rent Limits'!$A$1:$I$1045,MATCH(AE25,'Rent Limits'!$A$1:$A$1045,0),MATCH(D25,'Rent Limits'!$A$1:$I$1,0)),0) -> 0 | N25: 0 | O25: 0 | P25: =IFERROR(INDEX('Rent Limits'!$J$1:$P$1045,MATCH(AD25,'Rent Limits'!$A$1:$A$1045,0),MATCH(E25,'Rent Limits'!$J$1:$P$1)),0) -> 0 | Q25: 0 | R25: 0 | S25: 0 | T25: 0 | U25: 0 | V25: 0 | W25: 0 | X25: 0 | Y25: 0 | Z25: No | AD25: =CONCATENATE('Project, Applicant, Threshold'!$AD$24,'Assisted Units'!L25) ->  | AE25: =CONCATENATE('Project, Applicant, Threshold'!$AD$24,"0.35") -> 0.35
M26: =IFERROR(INDEX('Rent Limits'!$A$1:$I$1045,MATCH(AE26,'Rent Limits'!$A$1:$A$1045,0),MATCH(D26,'Rent Limits'!$A$1:$I$1,0)),0) -> 0 | N26: 0 | O26: 0 | P26: =IFERROR(INDEX('Rent Limits'!$J$1:$P$1045,MATCH(AD26,'Rent Limits'!$A$1:$A$1045,0),MATCH(E26,'Rent Limits'!$J$1:$P$1)),0) -> 0 | Q26: 0 | R26: 0 | S26: 0 | T26: 0 | U26: 0 | V26: 0 | W26: 0 | X26: 0 | Y26: 0 | Z26: No | AD26: =CONCATENATE('Project, Applicant, Threshold'!$AD$24,'Assisted Units'!L26) ->  | AE26: =CONCATENATE('Project, Applicant, Threshold'!$AD$24,"0.35") -> 0.35
M27: =IFERROR(INDEX('Rent Limits'!$A$1:$I$1045,MATCH(AE27,'Rent Limits'!$A$1:$A$1045,0),MATCH(D27,'Rent Limits'!$A$1:$I$1,0)),0) -> 0 | N27: 0 | O27: 0 | P27: =IFERROR(INDEX('Rent Limits'!$J$1:$P$1045,MATCH(AD27,'Rent Limits'!$A$1:$A$1045,0),MATCH(E27,'Rent Limits'!$J$1:$P$1)),0) -> 0 | Q27: 0 | R27: 0 | S27: 0 | T27: 0 | U27: 0 | V27: 0 | W27: 0 | X27: 0 | Y27: 0 | Z27: No | AD27: =CONCATENATE('Project, Applicant, Threshold'!$AD$24,'Assisted Units'!L27) ->  | AE27: =CONCATENATE('Project, Applicant, Threshold'!$AD$24,"0.35") -> 0.35
M28: =IFERROR(INDEX('Rent Limits'!$A$1:$I$1045,MATCH(AE28,'Rent Limits'!$A$1:$A$1045,0),MATCH(D28,'Rent Limits'!$A$1:$I$1,0)),0) -> 0 | N28: 0 | O28: 0 | P28: =IFERROR(INDEX('Rent Limits'!$J$1:$P$1045,MATCH(AD28,'Rent Limits'!$A$1:$A$1045,0),MATCH(E28,'Rent Limits'!$J$1:$P$1)),0) -> 0 | Q28: 0 | R28: 0 | S28: 0 | T28: 0 | U28: 0 | V28: 0 | W28: 0 | X28: 0 | Y28: 0 | Z28: No | AD28: =CONCATENATE('Project, Applicant, Threshold'!$AD$24,'Assisted Units'!L28) ->  | AE28: =CONCATENATE('Project, Applicant, Threshold'!$AD$24,"0.35") -> 0.35
M29: =IFERROR(INDEX('Rent Limits'!$A$1:$I$1045,MATCH(AE29,'Rent Limits'!$A$1:$A$1045,0),MATCH(D29,'Rent Limits'!$A$1:$I$1,0)),0) -> 0 | N29: 0 | O29: 0 | P29: =IFERROR(INDEX('Rent Limits'!$J$1:$P$1045,MATCH(AD29,'Rent Limits'!$A$1:$A$1045,0),MATCH(E29,'Rent Limits'!$J$1:$P$1)),0) -> 0 | Q29: 0 | R29: 0 | S29: 0 | T29: 0 | U29: 0 | V29: 0 | W29: 0 | X29: 0 | Y29: 0 | Z29: No | AD29: =CONCATENATE('Project, Applicant, Threshold'!$AD$24,'Assisted Units'!L29) ->  | AE29: =CONCATENATE('Project, Applicant, Threshold'!$AD$24,"0.35") -> 0.35
M30: =IFERROR(INDEX('Rent Limits'!$A$1:$I$1045,MATCH(AE30,'Rent Limits'!$A$1:$A$1045,0),MATCH(D30,'Rent Limits'!$A$1:$I$1,0)),0) -> 0 | N30: 0 | O30: 0 | P30: =IFERROR(INDEX('Rent Limits'!$J$1:$P$1045,MATCH(AD30,'Rent Limits'!$A$1:$A$1045,0),MATCH(E30,'Rent Limits'!$J$1:$P$1)),0) -> 0 | Q30: 0 | R30: 0 | S30: 0 | T30: 0 | U30: 0 | V30: 0 | W30: 0 | X30: 0 | Y30: 0 | Z30: No | AD30: =CONCATENATE('Project, Applicant, Threshold'!$AD$24,'Assisted Units'!L30) ->  | AE30: =CONCATENATE('Project, Applicant, Threshold'!$AD$24,"0.35") -> 0.35
M31: =IFERROR(INDEX('Rent Limits'!$A$1:$I$1045,MATCH(AE31,'Rent Limits'!$A$1:$A$1045,0),MATCH(D31,'Rent Limits'!$A$1:$I$1,0)),0) -> 0 | N31: 0 | O31: 0 | P31: =IFERROR(INDEX('Rent Limits'!$J$1:$P$1045,MATCH(AD31,'Rent Limits'!$A$1:$A$1045,0),MATCH(E31,'Rent Limits'!$J$1:$P$1)),0) -> 0 | Q31: 0 | R31: 0 | S31: 0 | T31: 0 | U31: 0 | V31: 0 | W31: 0 | X31: 0 | Y31: 0 | Z31: No | AD31: =CONCATENATE('Project, Applicant, Threshold'!$AD$24,'Assisted Units'!L31) ->  | AE31: =CONCATENATE('Project, Applicant, Threshold'!$AD$24,"0.35") -> 0.35
M32: =IFERROR(INDEX('Rent Limits'!$A$1:$I$1045,MATCH(AE32,'Rent Limits'!$A$1:$A$1045,0),MATCH(D32,'Rent Limits'!$A$1:$I$1,0)),0) -> 0 | N32: 0 | O32: 0 | P32: =IFERROR(INDEX('Rent Limits'!$J$1:$P$1045,MATCH(AD32,'Rent Limits'!$A$1:$A$1045,0),MATCH(E32,'Rent Limits'!$J$1:$P$1)),0) -> 0 | Q32: 0 | R32: 0 | S32: 0 | T32: 0 | U32: 0 | V32: 0 | W32: 0 | X32: 0 | Y32: 0 | Z32: No | AD32: =CONCATENATE('Project, Applicant, Threshold'!$AD$24,'Assisted Units'!L32) ->  | AE32: =CONCATENATE('Project, Applicant, Threshold'!$AD$24,"0.35") -> 0.35
M33: =IFERROR(INDEX('Rent Limits'!$A$1:$I$1045,MATCH(AE33,'Rent Limits'!$A$1:$A$1045,0),MATCH(D33,'Rent Limits'!$A$1:$I$1,0)),0) -> 0 | N33: 0 | O33: 0 | P33: =IFERROR(INDEX('Rent Limits'!$J$1:$P$1045,MATCH(AD33,'Rent Limits'!$A$1:$A$1045,0),MATCH(E33,'Rent Limits'!$J$1:$P$1)),0) -> 0 | Q33: 0 | R33: 0 | S33: 0 | T33: 0 | U33: 0 | V33: 0 | W33: 0 | X33: 0 | Y33: 0 | Z33: No | AD33: =CONCATENATE('Project, Applicant, Threshold'!$AD$24,'Assisted Units'!L33) ->  | AE33: =CONCATENATE('Project, Applicant, Threshold'!$AD$24,"0.35") -> 0.35
M34: =IFERROR(INDEX('Rent Limits'!$A$1:$I$1045,MATCH(AE34,'Rent Limits'!$A$1:$A$1045,0),MATCH(D34,'Rent Limits'!$A$1:$I$1,0)),0) -> 0 | N34: 0 | O34: 0 | P34: =IFERROR(INDEX('Rent Limits'!$J$1:$P$1045,MATCH(AD34,'Rent Limits'!$A$1:$A$1045,0),MATCH(E34,'Rent Limits'!$J$1:$P$1)),0) -> 0 | Q34: 0 | R34: 0 | S34: 0 | T34: 0 | U34: 0 | V34: 0 | W34: 0 | X34: 0 | Y34: 0 | Z34: No | AD34: =CONCATENATE('Project, Applicant, Threshold'!$AD$24,'Assisted Units'!L34) ->  | AE34: =CONCATENATE('Project, Applicant, Threshold'!$AD$24,"0.35") -> 0.35
M35: =IFERROR(INDEX('Rent Limits'!$A$1:$I$1045,MATCH(AE35,'Rent Limits'!$A$1:$A$1045,0),MATCH(D35,'Rent Limits'!$A$1:$I$1,0)),0) -> 0 | N35: 0 | O35: 0 | P35: =IFERROR(INDEX('Rent Limits'!$J$1:$P$1045,MATCH(AD35,'Rent Limits'!$A$1:$A$1045,0),MATCH(E35,'Rent Limits'!$J$1:$P$1)),0) -> 0 | Q35: 0 | R35: 0 | S35: 0 | T35: 0 | U35: 0 | V35: 0 | W35: 0 | X35: 0 | Y35: 0 | Z35: No | AD35: =CONCATENATE('Project, Applicant, Threshold'!$AD$24,'Assisted Units'!L35) ->  | AE35: =CONCATENATE('Project, Applicant, Threshold'!$AD$24,"0.35") -> 0.35
M36: =IFERROR(INDEX('Rent Limits'!$A$1:$I$1045,MATCH(AE36,'Rent Limits'!$A$1:$A$1045,0),MATCH(D36,'Rent Limits'!$A$1:$I$1,0)),0) -> 0 | N36: 0 | O36: 0 | P36: =IFERROR(INDEX('Rent Limits'!$J$1:$P$1045,MATCH(AD36,'Rent Limits'!$A$1:$A$1045,0),MATCH(E36,'Rent Limits'!$J$1:$P$1)),0) -> 0 | Q36: 0 | R36: 0 | S36: 0 | T36: 0 | U36: 0 | V36: 0 | W36: 0 | X36: 0 | Y36: 0 | Z36: No | AD36: =CONCATENATE('Project, Applicant, Threshold'!$AD$24,'Assisted Units'!L36) ->  | AE36: =CONCATENATE('Project, Applicant, Threshold'!$AD$24,"0.35") -> 0.35
M37: =IFERROR(INDEX('Rent Limits'!$A$1:$I$1045,MATCH(AE37,'Rent Limits'!$A$1:$A$1045,0),MATCH(D37,'Rent Limits'!$A$1:$I$1,0)),0) -> 0 | N37: 0 | O37: 0 | P37: =IFERROR(INDEX('Rent Limits'!$J$1:$P$1045,MATCH(AD37,'Rent Limits'!$A$1:$A$1045,0),MATCH(E37,'Rent Limits'!$J$1:$P$1)),0) -> 0 | Q37: 0 | R37: 0 | S37: 0 | T37: 0 | U37: 0 | V37: 0 | W37: 0 | X37: 0 | Y37: 0 | Z37: No | AD37: =CONCATENATE('Project, Applicant, Threshold'!$AD$24,'Assisted Units'!L37) ->  | AE37: =CONCATENATE('Project, Applicant, Threshold'!$AD$24,"0.35") -> 0.35
M38: =IFERROR(INDEX('Rent Limits'!$A$1:$I$1045,MATCH(AE38,'Rent Limits'!$A$1:$A$1045,0),MATCH(D38,'Rent Limits'!$A$1:$I$1,0)),0) -> 0 | N38: 0 | O38: 0 | P38: =IFERROR(INDEX('Rent Limits'!$J$1:$P$1045,MATCH(AD38,'Rent Limits'!$A$1:$A$1045,0),MATCH(E38,'Rent Limits'!$J$1:$P$1)),0) -> 0 | Q38: 0 | R38: 0 | S38: 0 | T38: 0 | U38: 0 | V38: 0 | W38: 0 | X38: 0 | Y38: 0 | Z38: No | AD38: =CONCATENATE('Project, Applicant, Threshold'!$AD$24,'Assisted Units'!L38) ->  | AE38: =CONCATENATE('Project, Applicant, Threshold'!$AD$24,"0.35") -> 0.35
M39: =IFERROR(INDEX('Rent Limits'!$A$1:$I$1045,MATCH(AE39,'Rent Limits'!$A$1:$A$1045,0),MATCH(D39,'Rent Limits'!$A$1:$I$1,0)),0) -> 0 | N39: 0 | O39: 0 | P39: =IFERROR(INDEX('Rent Limits'!$J$1:$P$1045,MATCH(AD39,'Rent Limits'!$A$1:$A$1045,0),MATCH(E39,'Rent Limits'!$J$1:$P$1)),0) -> 0 | Q39: 0 | R39: 0 | S39: 0 | T39: 0 | U39: 0 | V39: 0 | W39: 0 | X39: 0 | Y39: 0 | Z39: No | AD39: =CONCATENATE('Project, Applicant, Threshold'!$AD$24,'Assisted Units'!L39) ->  | AE39: =CONCATENATE('Project, Applicant, Threshold'!$AD$24,"0.35") -> 0.35
M40: =IFERROR(INDEX('Rent Limits'!$A$1:$I$1045,MATCH(AE40,'Rent Limits'!$A$1:$A$1045,0),MATCH(D40,'Rent Limits'!$A$1:$I$1,0)),0) -> 0 | N40: 0 | O40: 0 | P40: =IFERROR(INDEX('Rent Limits'!$J$1:$P$1045,MATCH(AD40,'Rent Limits'!$A$1:$A$1045,0),MATCH(E40,'Rent Limits'!$J$1:$P$1)),0) -> 0 | Q40: 0 | R40: 0 | S40: 0 | T40: 0 | U40: 0 | V40: 0 | W40: 0 | X40: 0 | Y40: 0 | Z40: No | AD40: =CONCATENATE('Project, Applicant, Threshold'!$AD$24,'Assisted Units'!L40) ->  | AE40: =CONCATENATE('Project, Applicant, Threshold'!$AD$24,"0.35") -> 0.35
M41: =IFERROR(INDEX('Rent Limits'!$A$1:$I$1045,MATCH(AE41,'Rent Limits'!$A$1:$A$1045,0),MATCH(D41,'Rent Limits'!$A$1:$I$1,0)),0) -> 0 | N41: 0 | O41: 0 | P41: =IFERROR(INDEX('Rent Limits'!$J$1:$P$1045,MATCH(AD41,'Rent Limits'!$A$1:$A$1045,0),MATCH(E41,'Rent Limits'!$J$1:$P$1)),0) -> 0 | Q41: 0 | R41: 0 | S41: 0 | T41: 0 | U41: 0 | V41: 0 | W41: 0 | X41: 0 | Y41: 0 | Z41: No | AD41: =CONCATENATE('Project, Applicant, Threshold'!$AD$24,'Assisted Units'!L41) ->  | AE41: =CONCATENATE('Project, Applicant, Threshold'!$AD$24,"0.35") -> 0.35
M42: =IFERROR(INDEX('Rent Limits'!$A$1:$I$1045,MATCH(AE42,'Rent Limits'!$A$1:$A$1045,0),MATCH(D42,'Rent Limits'!$A$1:$I$1,0)),0) -> 0 | N42: 0 | O42: 0 | P42: =IFERROR(INDEX('Rent Limits'!$J$1:$P$1045,MATCH(AD42,'Rent Limits'!$A$1:$A$1045,0),MATCH(E42,'Rent Limits'!$J$1:$P$1)),0) -> 0 | Q42: 0 | R42: 0 | S42: 0 | T42: 0 | U42: 0 | V42: 0 | W42: 0 | X42: 0 | Y42: 0 | Z42: No | AD42: =CONCATENATE('Project, Applicant, Threshold'!$AD$24,'Assisted Units'!L42) ->  | AE42: =CONCATENATE('Project, Applicant, Threshold'!$AD$24,"0.35") -> 0.35
M43: =IFERROR(INDEX('Rent Limits'!$A$1:$I$1045,MATCH(AE43,'Rent Limits'!$A$1:$A$1045,0),MATCH(D43,'Rent Limits'!$A$1:$I$1,0)),0) -> 0 | N43: 0 | O43: 0 | P43: =IFERROR(INDEX('Rent Limits'!$J$1:$P$1045,MATCH(AD43,'Rent Limits'!$A$1:$A$1045,0),MATCH(E43,'Rent Limits'!$J$1:$P$1)),0) -> 0 | Q43: 0 | R43: 0 | S43: 0 | T43: 0 | U43: 0 | V43: 0 | W43: 0 | X43: 0 | Y43: 0 | Z43: No | AD43: =CONCATENATE('Project, Applicant, Threshold'!$AD$24,'Assisted Units'!L43) ->  | AE43: =CONCATENATE('Project, Applicant, Threshold'!$AD$24,"0.35") -> 0.35
M44: =IFERROR(INDEX('Rent Limits'!$A$1:$I$1045,MATCH(AE44,'Rent Limits'!$A$1:$A$1045,0),MATCH(D44,'Rent Limits'!$A$1:$I$1,0)),0) -> 0 | N44: 0 | O44: 0 | P44: =IFERROR(INDEX('Rent Limits'!$J$1:$P$1045,MATCH(AD44,'Rent Limits'!$A$1:$A$1045,0),MATCH(E44,'Rent Limits'!$J$1:$P$1)),0) -> 0 | Q44: 0 | R44: 0 | S44: 0 | T44: 0 | U44: 0 | V44: 0 | W44: 0 | X44: 0 | Y44: 0 | Z44: No | AD44: =CONCATENATE('Project, Applicant, Threshold'!$AD$24,'Assisted Units'!L44) ->  | AE44: =CONCATENATE('Project, Applicant, Threshold'!$AD$24,"0.35") -> 0.35
M45: =IFERROR(INDEX('Rent Limits'!$A$1:$I$1045,MATCH(AE45,'Rent Limits'!$A$1:$A$1045,0),MATCH(D45,'Rent Limits'!$A$1:$I$1,0)),0) -> 0 | N45: 0 | O45: 0 | P45: =IFERROR(INDEX('Rent Limits'!$J$1:$P$1045,MATCH(AD45,'Rent Limits'!$A$1:$A$1045,0),MATCH(E45,'Rent Limits'!$J$1:$P$1)),0) -> 0 | Q45: 0 | R45: 0 | S45: 0 | T45: 0 | U45: 0 | V45: 0 | W45: 0 | X45: 0 | Y45: 0 | Z45: No | AD45: =CONCATENATE('Project, Applicant, Threshold'!$AD$24,'Assisted Units'!L45) ->  | AE45: =CONCATENATE('Project, Applicant, Threshold'!$AD$24,"0.35") -> 0.35
M46: =IFERROR(INDEX('Rent Limits'!$A$1:$I$1045,MATCH(AE46,'Rent Limits'!$A$1:$A$1045,0),MATCH(D46,'Rent Limits'!$A$1:$I$1,0)),0) -> 0 | N46: 0 | O46: 0 | P46: =IFERROR(INDEX('Rent Limits'!$J$1:$P$1045,MATCH(AD46,'Rent Limits'!$A$1:$A$1045,0),MATCH(E46,'Rent Limits'!$J$1:$P$1)),0) -> 0 | Q46: 0 | R46: 0 | S46: 0 | T46: 0 | U46: 0 | V46: 0 | W46: 0 | X46: 0 | Y46: 0 | Z46: No | AD46: =CONCATENATE('Project, Applicant, Threshold'!$AD$24,'Assisted Units'!L46) ->  | AE46: =CONCATENATE('Project, Applicant, Threshold'!$AD$24,"0.35") -> 0.35
M47: =IFERROR(INDEX('Rent Limits'!$A$1:$I$1045,MATCH(AE47,'Rent Limits'!$A$1:$A$1045,0),MATCH(D47,'Rent Limits'!$A$1:$I$1,0)),0) -> 0 | N47: 0 | O47: 0 | P47: =IFERROR(INDEX('Rent Limits'!$J$1:$P$1045,MATCH(AD47,'Rent Limits'!$A$1:$A$1045,0),MATCH(E47,'Rent Limits'!$J$1:$P$1)),0) -> 0 | Q47: 0 | R47: 0 | S47: 0 | T47: 0 | U47: 0 | V47: 0 | W47: 0 | X47: 0 | Y47: 0 | Z47: No | AD47: =CONCATENATE('Project, Applicant, Threshold'!$AD$24,'Assisted Units'!L47) ->  | AE47: =CONCATENATE('Project, Applicant, Threshold'!$AD$24,"0.35") -> 0.35
M48: =IFERROR(INDEX('Rent Limits'!$A$1:$I$1045,MATCH(AE48,'Rent Limits'!$A$1:$A$1045,0),MATCH(D48,'Rent Limits'!$A$1:$I$1,0)),0) -> 0 | N48: 0 | O48: 0 | P48: =IFERROR(INDEX('Rent Limits'!$J$1:$P$1045,MATCH(AD48,'Rent Limits'!$A$1:$A$1045,0),MATCH(E48,'Rent Limits'!$J$1:$P$1)),0) -> 0 | Q48: 0 | R48: 0 | S48: 0 | T48: 0 | U48: 0 | V48: 0 | W48: 0 | X48: 0 | Y48: 0 | Z48: No | AD48: =CONCATENATE('Project, Applicant, Threshold'!$AD$24,'Assisted Units'!L48) ->  | AE48: =CONCATENATE('Project, Applicant, Threshold'!$AD$24,"0.35") -> 0.35
M49: =IFERROR(INDEX('Rent Limits'!$A$1:$I$1045,MATCH(AE49,'Rent Limits'!$A$1:$A$1045,0),MATCH(D49,'Rent Limits'!$A$1:$I$1,0)),0) -> 0 | N49: 0 | O49: 0 | P49: =IFERROR(INDEX('Rent Limits'!$J$1:$P$1045,MATCH(AD49,'Rent Limits'!$A$1:$A$1045,0),MATCH(E49,'Rent Limits'!$J$1:$P$1)),0) -> 0 | Q49: 0 | R49: 0 | S49: 0 | T49: 0 | U49: 0 | V49: 0 | W49: 0 | X49: 0 | Y49: 0 | Z49: No | AD49: =CONCATENATE('Project, Applicant, Threshold'!$AD$24,'Assisted Units'!L49) ->  | AE49: =CONCATENATE('Project, Applicant, Threshold'!$AD$24,"0.35") -> 0.35
M50: =IFERROR(INDEX('Rent Limits'!$A$1:$I$1045,MATCH(AE50,'Rent Limits'!$A$1:$A$1045,0),MATCH(D50,'Rent Limits'!$A$1:$I$1,0)),0) -> 0 | N50: 0 | O50: 0 | P50: =IFERROR(INDEX('Rent Limits'!$J$1:$P$1045,MATCH(AD50,'Rent Limits'!$A$1:$A$1045,0),MATCH(E50,'Rent Limits'!$J$1:$P$1)),0) -> 0 | Q50: 0 | R50: 0 | S50: 0 | T50: 0 | U50: 0 | V50: 0 | W50: 0 | X50: 0 | Y50: 0 | Z50: No | AD50: =CONCATENATE('Project, Applicant, Threshold'!$AD$24,'Assisted Units'!L50) ->  | AE50: =CONCATENATE('Project, Applicant, Threshold'!$AD$24,"0.35") -> 0.35
M51: =IFERROR(INDEX('Rent Limits'!$A$1:$I$1045,MATCH(AE51,'Rent Limits'!$A$1:$A$1045,0),MATCH(D51,'Rent Limits'!$A$1:$I$1,0)),0) -> 0 | N51: 0 | O51: 0 | P51: =IFERROR(INDEX('Rent Limits'!$J$1:$P$1045,MATCH(AD51,'Rent Limits'!$A$1:$A$1045,0),MATCH(E51,'Rent Limits'!$J$1:$P$1)),0) -> 0 | Q51: 0 | R51: 0 | S51: 0 | T51: 0 | U51: 0 | V51: 0 | W51: 0 | X51: 0 | Y51: 0 | Z51: No | AD51: =CONCATENATE('Project, Applicant, Threshold'!$AD$24,'Assisted Units'!L51) ->  | AE51: =CONCATENATE('Project, Applicant, Threshold'!$AD$24,"0.35") -> 0.35
M52: =IFERROR(INDEX('Rent Limits'!$A$1:$I$1045,MATCH(AE52,'Rent Limits'!$A$1:$A$1045,0),MATCH(D52,'Rent Limits'!$A$1:$I$1,0)),0) -> 0 | N52: 0 | O52: 0 | P52: =IFERROR(INDEX('Rent Limits'!$J$1:$P$1045,MATCH(AD52,'Rent Limits'!$A$1:$A$1045,0),MATCH(E52,'Rent Limits'!$J$1:$P$1)),0) -> 0 | Q52: 0 | R52: 0 | S52: 0 | T52: 0 | U52: 0 | V52: 0 | W52: 0 | X52: 0 | Y52: 0 | Z52: No | AD52: =CONCATENATE('Project, Applicant, Threshold'!$AD$24,'Assisted Units'!L52) ->  | AE52: =CONCATENATE('Project, Applicant, Threshold'!$AD$24,"0.35") -> 0.35
M53: =IFERROR(INDEX('Rent Limits'!$A$1:$I$1045,MATCH(AE53,'Rent Limits'!$A$1:$A$1045,0),MATCH(D53,'Rent Limits'!$A$1:$I$1,0)),0) -> 0 | N53: 0 | O53: 0 | P53: =IFERROR(INDEX('Rent Limits'!$J$1:$P$1045,MATCH(AD53,'Rent Limits'!$A$1:$A$1045,0),MATCH(E53,'Rent Limits'!$J$1:$P$1)),0) -> 0 | Q53: 0 | R53: 0 | S53: 0 | T53: 0 | U53: 0 | V53: 0 | W53: 0 | X53: 0 | Y53: 0 | Z53: No | AD53: =CONCATENATE('Project, Applicant, Threshold'!$AD$24,'Assisted Units'!L53) ->  | AE53: =CONCATENATE('Project, Applicant, Threshold'!$AD$24,"0.35") -> 0.35
M54: =IFERROR(INDEX('Rent Limits'!$A$1:$I$1045,MATCH(AE54,'Rent Limits'!$A$1:$A$1045,0),MATCH(D54,'Rent Limits'!$A$1:$I$1,0)),0) -> 0 | N54: 0 | O54: 0 | P54: =IFERROR(INDEX('Rent Limits'!$J$1:$P$1045,MATCH(AD54,'Rent Limits'!$A$1:$A$1045,0),MATCH(E54,'Rent Limits'!$J$1:$P$1)),0) -> 0 | Q54: 0 | R54: 0 | S54: 0 | T54: 0 | U54: 0 | V54: 0 | W54: 0 | X54: 0 | Y54: 0 | Z54: No | AD54: =CONCATENATE('Project, Applicant, Threshold'!$AD$24,'Assisted Units'!L54) ->  | AE54: =CONCATENATE('Project, Applicant, Threshold'!$AD$24,"0.35") -> 0.35
M55: =IFERROR(INDEX('Rent Limits'!$A$1:$I$1045,MATCH(AE55,'Rent Limits'!$A$1:$A$1045,0),MATCH(D55,'Rent Limits'!$A$1:$I$1,0)),0) -> 0 | N55: 0 | O55: 0 | P55: =IFERROR(INDEX('Rent Limits'!$J$1:$P$1045,MATCH(AD55,'Rent Limits'!$A$1:$A$1045,0),MATCH(E55,'Rent Limits'!$J$1:$P$1)),0) -> 0 | Q55: 0 | R55: 0 | S55: 0 | T55: 0 | U55: 0 | V55: 0 | W55: 0 | X55: 0 | Y55: 0 | Z55: No | AD55: =CONCATENATE('Project, Applicant, Threshold'!$AD$24,'Assisted Units'!L55) ->  | AE55: =CONCATENATE('Project, Applicant, Threshold'!$AD$24,"0.35") -> 0.35
M56: =IFERROR(INDEX('Rent Limits'!$A$1:$I$1045,MATCH(AE56,'Rent Limits'!$A$1:$A$1045,0),MATCH(D56,'Rent Limits'!$A$1:$I$1,0)),0) -> 0 | N56: 0 | O56: 0 | P56: =IFERROR(INDEX('Rent Limits'!$J$1:$P$1045,MATCH(AD56,'Rent Limits'!$A$1:$A$1045,0),MATCH(E56,'Rent Limits'!$J$1:$P$1)),0) -> 0 | Q56: 0 | R56: 0 | S56: 0 | T56: 0 | U56: 0 | V56: 0 | W56: 0 | X56: 0 | Y56: 0 | Z56: No | AD56: =CONCATENATE('Project, Applicant, Threshold'!$AD$24,'Assisted Units'!L56) ->  | AE56: =CONCATENATE('Project, Applicant, Threshold'!$AD$24,"0.35") -> 0.35
M57: =IFERROR(INDEX('Rent Limits'!$A$1:$I$1045,MATCH(AE57,'Rent Limits'!$A$1:$A$1045,0),MATCH(D57,'Rent Limits'!$A$1:$I$1,0)),0) -> 0 | N57: 0 | O57: 0 | P57: =IFERROR(INDEX('Rent Limits'!$J$1:$P$1045,MATCH(AD57,'Rent Limits'!$A$1:$A$1045,0),MATCH(E57,'Rent Limits'!$J$1:$P$1)),0) -> 0 | Q57: 0 | R57: 0 | S57: 0 | T57: 0 | U57: 0 | V57: 0 | W57: 0 | X57: 0 | Y57: 0 | Z57: No | AD57: =CONCATENATE('Project, Applicant, Threshold'!$AD$24,'Assisted Units'!L57) ->  | AE57: =CONCATENATE('Project, Applicant, Threshold'!$AD$24,"0.35") -> 0.35
M58: =IFERROR(INDEX('Rent Limits'!$A$1:$I$1045,MATCH(AE58,'Rent Limits'!$A$1:$A$1045,0),MATCH(D58,'Rent Limits'!$A$1:$I$1,0)),0) -> 0 | N58: 0 | O58: 0 | P58: =IFERROR(INDEX('Rent Limits'!$J$1:$P$1045,MATCH(AD58,'Rent Limits'!$A$1:$A$1045,0),MATCH(E58,'Rent Limits'!$J$1:$P$1)),0) -> 0 | Q58: 0 | R58: 0 | S58: 0 | T58: 0 | U58: 0 | V58: 0 | W58: 0 | X58: 0 | Y58: 0 | Z58: No | AD58: =CONCATENATE('Project, Applicant, Threshold'!$AD$24,'Assisted Units'!L58) ->  | AE58: =CONCATENATE('Project, Applicant, Threshold'!$AD$24,"0.35") -> 0.35
M59: =IFERROR(INDEX('Rent Limits'!$A$1:$I$1045,MATCH(AE59,'Rent Limits'!$A$1:$A$1045,0),MATCH(D59,'Rent Limits'!$A$1:$I$1,0)),0) -> 0 | N59: 0 | O59: 0 | P59: =IFERROR(INDEX('Rent Limits'!$J$1:$P$1045,MATCH(AD59,'Rent Limits'!$A$1:$A$1045,0),MATCH(E59,'Rent Limits'!$J$1:$P$1)),0) -> 0 | Q59: 0 | R59: 0 | S59: 0 | T59: 0 | U59: 0 | V59: 0 | W59: 0 | X59: 0 | Y59: 0 | Z59: No | AD59: =CONCATENATE('Project, Applicant, Threshold'!$AD$24,'Assisted Units'!L59) ->  | AE59: =CONCATENATE('Project, Applicant, Threshold'!$AD$24,"0.35") -> 0.35
M60: =IFERROR(INDEX('Rent Limits'!$A$1:$I$1045,MATCH(AE60,'Rent Limits'!$A$1:$A$1045,0),MATCH(D60,'Rent Limits'!$A$1:$I$1,0)),0) -> 0 | N60: 0 | O60: 0 | P60: =IFERROR(INDEX('Rent Limits'!$J$1:$P$1045,MATCH(AD60,'Rent Limits'!$A$1:$A$1045,0),MATCH(E60,'Rent Limits'!$J$1:$P$1)),0) -> 0 | Q60: 0 | R60: 0 | S60: 0 | T60: 0 | U60: 0 | V60: 0 | W60: 0 | X60: 0 | Y60: 0 | Z60: No | AD60: =CONCATENATE('Project, Applicant, Threshold'!$AD$24,'Assisted Units'!L60) ->  | AE60: =CONCATENATE('Project, Applicant, Threshold'!$AD$24,"0.35") -> 0.35
M61: =IFERROR(INDEX('Rent Limits'!$A$1:$I$1045,MATCH(AE61,'Rent Limits'!$A$1:$A$1045,0),MATCH(D61,'Rent Limits'!$A$1:$I$1,0)),0) -> 0 | N61: 0 | O61: 0 | P61: =IFERROR(INDEX('Rent Limits'!$J$1:$P$1045,MATCH(AD61,'Rent Limits'!$A$1:$A$1045,0),MATCH(E61,'Rent Limits'!$J$1:$P$1)),0) -> 0 | Q61: 0 | R61: 0 | S61: 0 | T61: 0 | U61: 0 | V61: 0 | W61: 0 | X61: 0 | Y61: 0 | Z61: No | AD61: =CONCATENATE('Project, Applicant, Threshold'!$AD$24,'Assisted Units'!L61) ->  | AE61: =CONCATENATE('Project, Applicant, Threshold'!$AD$24,"0.35") -> 0.35
M62: =IFERROR(INDEX('Rent Limits'!$A$1:$I$1045,MATCH(AE62,'Rent Limits'!$A$1:$A$1045,0),MATCH(D62,'Rent Limits'!$A$1:$I$1,0)),0) -> 0 | N62: 0 | O62: 0 | P62: =IFERROR(INDEX('Rent Limits'!$J$1:$P$1045,MATCH(AD62,'Rent Limits'!$A$1:$A$1045,0),MATCH(E62,'Rent Limits'!$J$1:$P$1)),0) -> 0 | Q62: 0 | R62: 0 | S62: 0 | T62: 0 | U62: 0 | V62: 0 | W62: 0 | X62: 0 | Y62: 0 | Z62: No | AD62: =CONCATENATE('Project, Applicant, Threshold'!$AD$24,'Assisted Units'!L62) ->  | AE62: =CONCATENATE('Project, Applicant, Threshold'!$AD$24,"0.35") -> 0.35
M63: =IFERROR(INDEX('Rent Limits'!$A$1:$I$1045,MATCH(AE63,'Rent Limits'!$A$1:$A$1045,0),MATCH(D63,'Rent Limits'!$A$1:$I$1,0)),0) -> 0 | N63: 0 | O63: 0 | P63: =IFERROR(INDEX('Rent Limits'!$J$1:$P$1045,MATCH(AD63,'Rent Limits'!$A$1:$A$1045,0),MATCH(E63,'Rent Limits'!$J$1:$P$1)),0) -> 0 | Q63: 0 | R63: 0 | S63: 0 | T63: 0 | U63: 0 | V63: 0 | W63: 0 | X63: 0 | Y63: 0 | Z63: No | AD63: =CONCATENATE('Project, Applicant, Threshold'!$AD$24,'Assisted Units'!L63) ->  | AE63: =CONCATENATE('Project, Applicant, Threshold'!$AD$24,"0.35") -> 0.35
M64: =IFERROR(INDEX('Rent Limits'!$A$1:$I$1045,MATCH(AE64,'Rent Limits'!$A$1:$A$1045,0),MATCH(D64,'Rent Limits'!$A$1:$I$1,0)),0) -> 0 | N64: 0 | O64: 0 | P64: =IFERROR(INDEX('Rent Limits'!$J$1:$P$1045,MATCH(AD64,'Rent Limits'!$A$1:$A$1045,0),MATCH(E64,'Rent Limits'!$J$1:$P$1)),0) -> 0 | Q64: 0 | R64: 0 | S64: 0 | T64: 0 | U64: 0 | V64: 0 | W64: 0 | X64: 0 | Y64: 0 | Z64: No | AD64: =CONCATENATE('Project, Applicant, Threshold'!$AD$24,'Assisted Units'!L64) ->  | AE64: =CONCATENATE('Project, Applicant, Threshold'!$AD$24,"0.35") -> 0.35
M65: =IFERROR(INDEX('Rent Limits'!$A$1:$I$1045,MATCH(AE65,'Rent Limits'!$A$1:$A$1045,0),MATCH(D65,'Rent Limits'!$A$1:$I$1,0)),0) -> 0 | N65: 0 | O65: 0 | P65: =IFERROR(INDEX('Rent Limits'!$J$1:$P$1045,MATCH(AD65,'Rent Limits'!$A$1:$A$1045,0),MATCH(E65,'Rent Limits'!$J$1:$P$1)),0) -> 0 | Q65: 0 | R65: 0 | S65: 0 | T65: 0 | U65: 0 | V65: 0 | W65: 0 | X65: 0 | Y65: 0 | Z65: No | AD65: =CONCATENATE('Project, Applicant, Threshold'!$AD$24,'Assisted Units'!L65) ->  | AE65: =CONCATENATE('Project, Applicant, Threshold'!$AD$24,"0.35") -> 0.35
M66: =IFERROR(INDEX('Rent Limits'!$A$1:$I$1045,MATCH(AE66,'Rent Limits'!$A$1:$A$1045,0),MATCH(D66,'Rent Limits'!$A$1:$I$1,0)),0) -> 0 | N66: 0 | O66: 0 | P66: =IFERROR(INDEX('Rent Limits'!$J$1:$P$1045,MATCH(AD66,'Rent Limits'!$A$1:$A$1045,0),MATCH(E66,'Rent Limits'!$J$1:$P$1)),0) -> 0 | Q66: 0 | R66: 0 | S66: 0 | T66: 0 | U66: 0 | V66: 0 | W66: 0 | X66: 0 | Y66: 0 | Z66: No | AD66: =CONCATENATE('Project, Applicant, Threshold'!$AD$24,'Assisted Units'!L66) ->  | AE66: =CONCATENATE('Project, Applicant, Threshold'!$AD$24,"0.35") -> 0.35
M67: =IFERROR(INDEX('Rent Limits'!$A$1:$I$1045,MATCH(AE67,'Rent Limits'!$A$1:$A$1045,0),MATCH(D67,'Rent Limits'!$A$1:$I$1,0)),0) -> 0 | N67: 0 | O67: =H67*(1+N67) -> 0 | P67: =IFERROR(INDEX('Rent Limits'!$J$1:$P$1045,MATCH(AD67,'Rent Limits'!$A$1:$A$1045,0),MATCH(E67,'Rent Limits'!$J$1:$P$1)),0) -> 0 | Q67: =ROUND(G67*0.5/12,0) -> 0 | R67: 0 | S67: 0 | T67: 0 | U67: =IF(D67="Vacant",S67-T67,S67) -> 0 | V67: =U67*12 -> 0 | W67: 0 | X67: 0 | Y67: =IFERROR(S67*12/G67,0) -> 0 | Z67: No | AD67: =CONCATENATE('Project, Applicant, Threshold'!$AD$24,'Assisted Units'!L67) ->  | AE67: =CONCATENATE('Project, Applicant, Threshold'!$AD$24,"0.35") -> 0.35
M68: =IFERROR(INDEX('Rent Limits'!$A$1:$I$1045,MATCH(AE68,'Rent Limits'!$A$1:$A$1045,0),MATCH(D68,'Rent Limits'!$A$1:$I$1,0)),0) -> 0 | N68: =IF(OR(G68="",D68="Vacant"),0,IF(G68<=M68,0.05,0.1)) -> 0 | O68: 0 | P68: =IFERROR(INDEX('Rent Limits'!$J$1:$P$1045,MATCH(AD68,'Rent Limits'!$A$1:$A$1045,0),MATCH(E68,'Rent Limits'!$J$1:$P$1)),0) -> 0 | Q68: 0 | R68: =H68 -> 0 | S68: 0 | T68: 0 | U68: 0 | V68: 0 | W68: 0 | X68: 0 | Y68: 0 | Z68: =IF(OR(AND(K68="VLI",L68>0.3),AND(K68="LI",L68>$AA$3),AND(OR(J68="New PRP",K68="New PRP"),L68=0.8)),"Yes","No") -> No | AD68: =CONCATENATE('Project, Applicant, Threshold'!$AD$24,'Assisted Units'!L68) ->  | AE68: =CONCATENATE('Project, Applicant, Threshold'!$AD$24,"0.35") -> 0.35
M69: =IFERROR(INDEX('Rent Limits'!$A$1:$I$1045,MATCH(AE69,'Rent Limits'!$A$1:$A$1045,0),MATCH(D69,'Rent Limits'!$A$1:$I$1,0)),0) -> 0 | N69: 0 | O69: 0 | P69: =IFERROR(INDEX('Rent Limits'!$J$1:$P$1045,MATCH(AD69,'Rent Limits'!$A$1:$A$1045,0),MATCH(E69,'Rent Limits'!$J$1:$P$1)),0) -> 0 | Q69: 0 | R69: 0 | S69: 0 | T69: 0 | U69: 0 | V69: 0 | W69: 0 | X69: 0 | Y69: 0 | Z69: No | AD69: =CONCATENATE('Project, Applicant, Threshold'!$AD$24,'Assisted Units'!L69) ->  | AE69: =CONCATENATE('Project, Applicant, Threshold'!$AD$24,"0.35") -> 0.35
M70: =IFERROR(INDEX('Rent Limits'!$A$1:$I$1045,MATCH(AE70,'Rent Limits'!$A$1:$A$1045,0),MATCH(D70,'Rent Limits'!$A$1:$I$1,0)),0) -> 0 | N70: 0 | O70: 0 | P70: =IFERROR(INDEX('Rent Limits'!$J$1:$P$1045,MATCH(AD70,'Rent Limits'!$A$1:$A$1045,0),MATCH(E70,'Rent Limits'!$J$1:$P$1)),0) -> 0 | Q70: 0 | R70: 0 | S70: =IF(OR(D70="Vacant",J70="New PRP"),P70,MAX(R70,MIN(P70,O70,Q70))) -> 0 | T70: 0 | U70: 0 | V70: 0 | W70: 0 | X70: 0 | Y70: 0 | Z70: No | AD70: =CONCATENATE('Project, Applicant, Threshold'!$AD$24,'Assisted Units'!L70) ->  | AE70: =CONCATENATE('Project, Applicant, Threshold'!$AD$24,"0.35") -> 0.35
M71: =IFERROR(INDEX('Rent Limits'!$A$1:$I$1045,MATCH(AE71,'Rent Limits'!$A$1:$A$1045,0),MATCH(D71,'Rent Limits'!$A$1:$I$1,0)),0) -> 0 | N71: 0 | O71: 0 | P71: =IFERROR(INDEX('Rent Limits'!$J$1:$P$1045,MATCH(AD71,'Rent Limits'!$A$1:$A$1045,0),MATCH(E71,'Rent Limits'!$J$1:$P$1)),0) -> 0 | Q71: 0 | R71: 0 | S71: 0 | T71: 0 | U71: 0 | V71: 0 | W71: 0 | X71: 0 | Y71: 0 | Z71: No | AD71: =CONCATENATE('Project, Applicant, Threshold'!$AD$24,'Assisted Units'!L71) ->  | AE71: =CONCATENATE('Project, Applicant, Threshold'!$AD$24,"0.35") -> 0.35
M72: =IFERROR(INDEX('Rent Limits'!$A$1:$I$1045,MATCH(AE72,'Rent Limits'!$A$1:$A$1045,0),MATCH(D72,'Rent Limits'!$A$1:$I$1,0)),0) -> 0 | N72: 0 | O72: 0 | P72: =IFERROR(INDEX('Rent Limits'!$J$1:$P$1045,MATCH(AD72,'Rent Limits'!$A$1:$A$1045,0),MATCH(E72,'Rent Limits'!$J$1:$P$1)),0) -> 0 | Q72: 0 | R72: 0 | S72: 0 | T72: 0 | U72: 0 | V72: 0 | W72: 0 | X72: 0 | Y72: 0 | Z72: No | AD72: =CONCATENATE('Project, Applicant, Threshold'!$AD$24,'Assisted Units'!L72) ->  | AE72: =CONCATENATE('Project, Applicant, Threshold'!$AD$24,"0.35") -> 0.35
M73: =IFERROR(INDEX('Rent Limits'!$A$1:$I$1045,MATCH(AE73,'Rent Limits'!$A$1:$A$1045,0),MATCH(D73,'Rent Limits'!$A$1:$I$1,0)),0) -> 0 | N73: 0 | O73: 0 | P73: =IFERROR(INDEX('Rent Limits'!$J$1:$P$1045,MATCH(AD73,'Rent Limits'!$A$1:$A$1045,0),MATCH(E73,'Rent Limits'!$J$1:$P$1)),0) -> 0 | Q73: 0 | R73: 0 | S73: 0 | T73: 0 | U73: 0 | V73: 0 | W73: 0 | X73: 0 | Y73: 0 | Z73: No | AD73: =CONCATENATE('Project, Applicant, Threshold'!$AD$24,'Assisted Units'!L73) ->  | AE73: =CONCATENATE('Project, Applicant, Threshold'!$AD$24,"0.35") -> 0.35
M74: =IFERROR(INDEX('Rent Limits'!$A$1:$I$1045,MATCH(AE74,'Rent Limits'!$A$1:$A$1045,0),MATCH(D74,'Rent Limits'!$A$1:$I$1,0)),0) -> 0 | N74: 0 | O74: 0 | P74: =IFERROR(INDEX('Rent Limits'!$J$1:$P$1045,MATCH(AD74,'Rent Limits'!$A$1:$A$1045,0),MATCH(E74,'Rent Limits'!$J$1:$P$1)),0) -> 0 | Q74: 0 | R74: 0 | S74: 0 | T74: 0 | U74: 0 | V74: 0 | W74: 0 | X74: 0 | Y74: 0 | Z74: No | AD74: =CONCATENATE('Project, Applicant, Threshold'!$AD$24,'Assisted Units'!L74) ->  | AE74: =CONCATENATE('Project, Applicant, Threshold'!$AD$24,"0.35") -> 0.35
M75: =IFERROR(INDEX('Rent Limits'!$A$1:$I$1045,MATCH(AE75,'Rent Limits'!$A$1:$A$1045,0),MATCH(D75,'Rent Limits'!$A$1:$I$1,0)),0) -> 0 | N75: 0 | O75: 0 | P75: =IFERROR(INDEX('Rent Limits'!$J$1:$P$1045,MATCH(AD75,'Rent Limits'!$A$1:$A$1045,0),MATCH(E75,'Rent Limits'!$J$1:$P$1)),0) -> 0 | Q75: 0 | R75: 0 | S75: 0 | T75: 0 | U75: 0 | V75: 0 | W75: 0 | X75: 0 | Y75: 0 | Z75: No | AD75: =CONCATENATE('Project, Applicant, Threshold'!$AD$24,'Assisted Units'!L75) ->  | AE75: =CONCATENATE('Project, Applicant, Threshold'!$AD$24,"0.35") -> 0.35
M76: =IFERROR(INDEX('Rent Limits'!$A$1:$I$1045,MATCH(AE76,'Rent Limits'!$A$1:$A$1045,0),MATCH(D76,'Rent Limits'!$A$1:$I$1,0)),0) -> 0 | N76: 0 | O76: 0 | P76: =IFERROR(INDEX('Rent Limits'!$J$1:$P$1045,MATCH(AD76,'Rent Limits'!$A$1:$A$1045,0),MATCH(E76,'Rent Limits'!$J$1:$P$1)),0) -> 0 | Q76: 0 | R76: 0 | S76: 0 | T76: 0 | U76: 0 | V76: 0 | W76: 0 | X76: 0 | Y76: 0 | Z76: No | AD76: =CONCATENATE('Project, Applicant, Threshold'!$AD$24,'Assisted Units'!L76) ->  | AE76: =CONCATENATE('Project, Applicant, Threshold'!$AD$24,"0.35") -> 0.35
M77: =IFERROR(INDEX('Rent Limits'!$A$1:$I$1045,MATCH(AE77,'Rent Limits'!$A$1:$A$1045,0),MATCH(D77,'Rent Limits'!$A$1:$I$1,0)),0) -> 0 | N77: 0 | O77: 0 | P77: =IFERROR(INDEX('Rent Limits'!$J$1:$P$1045,MATCH(AD77,'Rent Limits'!$A$1:$A$1045,0),MATCH(E77,'Rent Limits'!$J$1:$P$1)),0) -> 0 | Q77: 0 | R77: 0 | S77: 0 | T77: 0 | U77: 0 | V77: 0 | W77: 0 | X77: 0 | Y77: 0 | Z77: No | AD77: =CONCATENATE('Project, Applicant, Threshold'!$AD$24,'Assisted Units'!L77) ->  | AE77: =CONCATENATE('Project, Applicant, Threshold'!$AD$24,"0.35") -> 0.35
M78: =IFERROR(INDEX('Rent Limits'!$A$1:$I$1045,MATCH(AE78,'Rent Limits'!$A$1:$A$1045,0),MATCH(D78,'Rent Limits'!$A$1:$I$1,0)),0) -> 0 | N78: 0 | O78: 0 | P78: =IFERROR(INDEX('Rent Limits'!$J$1:$P$1045,MATCH(AD78,'Rent Limits'!$A$1:$A$1045,0),MATCH(E78,'Rent Limits'!$J$1:$P$1)),0) -> 0 | Q78: 0 | R78: 0 | S78: 0 | T78: 0 | U78: 0 | V78: 0 | W78: 0 | X78: 0 | Y78: 0 | Z78: No | AD78: =CONCATENATE('Project, Applicant, Threshold'!$AD$24,'Assisted Units'!L78) ->  | AE78: =CONCATENATE('Project, Applicant, Threshold'!$AD$24,"0.35") -> 0.35
M79: =IFERROR(INDEX('Rent Limits'!$A$1:$I$1045,MATCH(AE79,'Rent Limits'!$A$1:$A$1045,0),MATCH(D79,'Rent Limits'!$A$1:$I$1,0)),0) -> 0 | N79: 0 | O79: 0 | P79: =IFERROR(INDEX('Rent Limits'!$J$1:$P$1045,MATCH(AD79,'Rent Limits'!$A$1:$A$1045,0),MATCH(E79,'Rent Limits'!$J$1:$P$1)),0) -> 0 | Q79: 0 | R79: 0 | S79: 0 | T79: 0 | U79: 0 | V79: 0 | W79: 0 | X79: 0 | Y79: 0 | Z79: No | AD79: =CONCATENATE('Project, Applicant, Threshold'!$AD$24,'Assisted Units'!L79) ->  | AE79: =CONCATENATE('Project, Applicant, Threshold'!$AD$24,"0.35") -> 0.35
M80: =IFERROR(INDEX('Rent Limits'!$A$1:$I$1045,MATCH(AE80,'Rent Limits'!$A$1:$A$1045,0),MATCH(D80,'Rent Limits'!$A$1:$I$1,0)),0) -> 0 | N80: 0 | O80: 0 | P80: =IFERROR(INDEX('Rent Limits'!$J$1:$P$1045,MATCH(AD80,'Rent Limits'!$A$1:$A$1045,0),MATCH(E80,'Rent Limits'!$J$1:$P$1)),0) -> 0 | Q80: 0 | R80: 0 | S80: 0 | T80: 0 | U80: 0 | V80: 0 | W80: 0 | X80: 0 | Y80: 0 | Z80: No | AD80: =CONCATENATE('Project, Applicant, Threshold'!$AD$24,'Assisted Units'!L80) ->  | AE80: =CONCATENATE('Project, Applicant, Threshold'!$AD$24,"0.35") -> 0.35
M81: =IFERROR(INDEX('Rent Limits'!$A$1:$I$1045,MATCH(AE81,'Rent Limits'!$A$1:$A$1045,0),MATCH(D81,'Rent Limits'!$A$1:$I$1,0)),0) -> 0 | N81: 0 | O81: 0 | P81: =IFERROR(INDEX('Rent Limits'!$J$1:$P$1045,MATCH(AD81,'Rent Limits'!$A$1:$A$1045,0),MATCH(E81,'Rent Limits'!$J$1:$P$1)),0) -> 0 | Q81: 0 | R81: 0 | S81: 0 | T81: 0 | U81: 0 | V81: 0 | W81: 0 | X81: 0 | Y81: 0 | Z81: No | AD81: =CONCATENATE('Project, Applicant, Threshold'!$AD$24,'Assisted Units'!L81) ->  | AE81: =CONCATENATE('Project, Applicant, Threshold'!$AD$24,"0.35") -> 0.35
M82: =IFERROR(INDEX('Rent Limits'!$A$1:$I$1045,MATCH(AE82,'Rent Limits'!$A$1:$A$1045,0),MATCH(D82,'Rent Limits'!$A$1:$I$1,0)),0) -> 0 | N82: 0 | O82: 0 | P82: =IFERROR(INDEX('Rent Limits'!$J$1:$P$1045,MATCH(AD82,'Rent Limits'!$A$1:$A$1045,0),MATCH(E82,'Rent Limits'!$J$1:$P$1)),0) -> 0 | Q82: 0 | R82: 0 | S82: 0 | T82: 0 | U82: 0 | V82: 0 | W82: 0 | X82: 0 | Y82: 0 | Z82: No | AD82: =CONCATENATE('Project, Applicant, Threshold'!$AD$24,'Assisted Units'!L82) ->  | AE82: =CONCATENATE('Project, Applicant, Threshold'!$AD$24,"0.35") -> 0.35
M83: =IFERROR(INDEX('Rent Limits'!$A$1:$I$1045,MATCH(AE83,'Rent Limits'!$A$1:$A$1045,0),MATCH(D83,'Rent Limits'!$A$1:$I$1,0)),0) -> 0 | N83: 0 | O83: 0 | P83: =IFERROR(INDEX('Rent Limits'!$J$1:$P$1045,MATCH(AD83,'Rent Limits'!$A$1:$A$1045,0),MATCH(E83,'Rent Limits'!$J$1:$P$1)),0) -> 0 | Q83: 0 | R83: 0 | S83: 0 | T83: 0 | U83: 0 | V83: 0 | W83: 0 | X83: 0 | Y83: 0 | Z83: No | AD83: =CONCATENATE('Project, Applicant, Threshold'!$AD$24,'Assisted Units'!L83) ->  | AE83: =CONCATENATE('Project, Applicant, Threshold'!$AD$24,"0.35") -> 0.35
M84: =IFERROR(INDEX('Rent Limits'!$A$1:$I$1045,MATCH(AE84,'Rent Limits'!$A$1:$A$1045,0),MATCH(D84,'Rent Limits'!$A$1:$I$1,0)),0) -> 0 | N84: 0 | O84: 0 | P84: =IFERROR(INDEX('Rent Limits'!$J$1:$P$1045,MATCH(AD84,'Rent Limits'!$A$1:$A$1045,0),MATCH(E84,'Rent Limits'!$J$1:$P$1)),0) -> 0 | Q84: 0 | R84: 0 | S84: 0 | T84: 0 | U84: 0 | V84: 0 | W84: 0 | X84: 0 | Y84: 0 | Z84: No | AD84: =CONCATENATE('Project, Applicant, Threshold'!$AD$24,'Assisted Units'!L84) ->  | AE84: =CONCATENATE('Project, Applicant, Threshold'!$AD$24,"0.35") -> 0.35
M85: =IFERROR(INDEX('Rent Limits'!$A$1:$I$1045,MATCH(AE85,'Rent Limits'!$A$1:$A$1045,0),MATCH(D85,'Rent Limits'!$A$1:$I$1,0)),0) -> 0 | N85: 0 | O85: 0 | P85: =IFERROR(INDEX('Rent Limits'!$J$1:$P$1045,MATCH(AD85,'Rent Limits'!$A$1:$A$1045,0),MATCH(E85,'Rent Limits'!$J$1:$P$1)),0) -> 0 | Q85: 0 | R85: 0 | S85: 0 | T85: 0 | U85: 0 | V85: 0 | W85: 0 | X85: 0 | Y85: 0 | Z85: No | AD85: =CONCATENATE('Project, Applicant, Threshold'!$AD$24,'Assisted Units'!L85) ->  | AE85: =CONCATENATE('Project, Applicant, Threshold'!$AD$24,"0.35") -> 0.35
M86: =IFERROR(INDEX('Rent Limits'!$A$1:$I$1045,MATCH(AE86,'Rent Limits'!$A$1:$A$1045,0),MATCH(D86,'Rent Limits'!$A$1:$I$1,0)),0) -> 0 | N86: 0 | O86: 0 | P86: =IFERROR(INDEX('Rent Limits'!$J$1:$P$1045,MATCH(AD86,'Rent Limits'!$A$1:$A$1045,0),MATCH(E86,'Rent Limits'!$J$1:$P$1)),0) -> 0 | Q86: 0 | R86: 0 | S86: 0 | T86: 0 | U86: 0 | V86: 0 | W86: 0 | X86: 0 | Y86: 0 | Z86: No | AD86: =CONCATENATE('Project, Applicant, Threshold'!$AD$24,'Assisted Units'!L86) ->  | AE86: =CONCATENATE('Project, Applicant, Threshold'!$AD$24,"0.35") -> 0.35
M87: =IFERROR(INDEX('Rent Limits'!$A$1:$I$1045,MATCH(AE87,'Rent Limits'!$A$1:$A$1045,0),MATCH(D87,'Rent Limits'!$A$1:$I$1,0)),0) -> 0 | N87: 0 | O87: 0 | P87: =IFERROR(INDEX('Rent Limits'!$J$1:$P$1045,MATCH(AD87,'Rent Limits'!$A$1:$A$1045,0),MATCH(E87,'Rent Limits'!$J$1:$P$1)),0) -> 0 | Q87: 0 | R87: 0 | S87: 0 | T87: 0 | U87: 0 | V87: 0 | W87: 0 | X87: 0 | Y87: 0 | Z87: No | AD87: =CONCATENATE('Project, Applicant, Threshold'!$AD$24,'Assisted Units'!L87) ->  | AE87: =CONCATENATE('Project, Applicant, Threshold'!$AD$24,"0.35") -> 0.35
M88: =IFERROR(INDEX('Rent Limits'!$A$1:$I$1045,MATCH(AE88,'Rent Limits'!$A$1:$A$1045,0),MATCH(D88,'Rent Limits'!$A$1:$I$1,0)),0) -> 0 | N88: 0 | O88: 0 | P88: =IFERROR(INDEX('Rent Limits'!$J$1:$P$1045,MATCH(AD88,'Rent Limits'!$A$1:$A$1045,0),MATCH(E88,'Rent Limits'!$J$1:$P$1)),0) -> 0 | Q88: 0 | R88: 0 | S88: 0 | T88: 0 | U88: 0 | V88: 0 | W88: 0 | X88: 0 | Y88: 0 | Z88: No | AD88: =CONCATENATE('Project, Applicant, Threshold'!$AD$24,'Assisted Units'!L88) ->  | AE88: =CONCATENATE('Project, Applicant, Threshold'!$AD$24,"0.35") -> 0.35
M89: =IFERROR(INDEX('Rent Limits'!$A$1:$I$1045,MATCH(AE89,'Rent Limits'!$A$1:$A$1045,0),MATCH(D89,'Rent Limits'!$A$1:$I$1,0)),0) -> 0 | N89: 0 | O89: 0 | P89: =IFERROR(INDEX('Rent Limits'!$J$1:$P$1045,MATCH(AD89,'Rent Limits'!$A$1:$A$1045,0),MATCH(E89,'Rent Limits'!$J$1:$P$1)),0) -> 0 | Q89: 0 | R89: 0 | S89: 0 | T89: 0 | U89: 0 | V89: 0 | W89: 0 | X89: 0 | Y89: 0 | Z89: No | AD89: =CONCATENATE('Project, Applicant, Threshold'!$AD$24,'Assisted Units'!L89) ->  | AE89: =CONCATENATE('Project, Applicant, Threshold'!$AD$24,"0.35") -> 0.35
M90: =IFERROR(INDEX('Rent Limits'!$A$1:$I$1045,MATCH(AE90,'Rent Limits'!$A$1:$A$1045,0),MATCH(D90,'Rent Limits'!$A$1:$I$1,0)),0) -> 0 | N90: 0 | O90: 0 | P90: =IFERROR(INDEX('Rent Limits'!$J$1:$P$1045,MATCH(AD90,'Rent Limits'!$A$1:$A$1045,0),MATCH(E90,'Rent Limits'!$J$1:$P$1)),0) -> 0 | Q90: 0 | R90: 0 | S90: 0 | T90: 0 | U90: 0 | V90: 0 | W90: 0 | X90: 0 | Y90: 0 | Z90: No | AD90: =CONCATENATE('Project, Applicant, Threshold'!$AD$24,'Assisted Units'!L90) ->  | AE90: =CONCATENATE('Project, Applicant, Threshold'!$AD$24,"0.35") -> 0.35
M91: =IFERROR(INDEX('Rent Limits'!$A$1:$I$1045,MATCH(AE91,'Rent Limits'!$A$1:$A$1045,0),MATCH(D91,'Rent Limits'!$A$1:$I$1,0)),0) -> 0 | N91: 0 | O91: 0 | P91: =IFERROR(INDEX('Rent Limits'!$J$1:$P$1045,MATCH(AD91,'Rent Limits'!$A$1:$A$1045,0),MATCH(E91,'Rent Limits'!$J$1:$P$1)),0) -> 0 | Q91: 0 | R91: 0 | S91: 0 | T91: 0 | U91: 0 | V91: 0 | W91: 0 | X91: 0 | Y91: 0 | Z91: No | AD91: =CONCATENATE('Project, Applicant, Threshold'!$AD$24,'Assisted Units'!L91) ->  | AE91: =CONCATENATE('Project, Applicant, Threshold'!$AD$24,"0.35") -> 0.35
M92: =IFERROR(INDEX('Rent Limits'!$A$1:$I$1045,MATCH(AE92,'Rent Limits'!$A$1:$A$1045,0),MATCH(D92,'Rent Limits'!$A$1:$I$1,0)),0) -> 0 | N92: 0 | O92: 0 | P92: =IFERROR(INDEX('Rent Limits'!$J$1:$P$1045,MATCH(AD92,'Rent Limits'!$A$1:$A$1045,0),MATCH(E92,'Rent Limits'!$J$1:$P$1)),0) -> 0 | Q92: 0 | R92: 0 | S92: 0 | T92: 0 | U92: 0 | V92: 0 | W92: 0 | X92: 0 | Y92: 0 | Z92: No | AD92: =CONCATENATE('Project, Applicant, Threshold'!$AD$24,'Assisted Units'!L92) ->  | AE92: =CONCATENATE('Project, Applicant, Threshold'!$AD$24,"0.35") -> 0.35
M93: =IFERROR(INDEX('Rent Limits'!$A$1:$I$1045,MATCH(AE93,'Rent Limits'!$A$1:$A$1045,0),MATCH(D93,'Rent Limits'!$A$1:$I$1,0)),0) -> 0 | N93: 0 | O93: 0 | P93: =IFERROR(INDEX('Rent Limits'!$J$1:$P$1045,MATCH(AD93,'Rent Limits'!$A$1:$A$1045,0),MATCH(E93,'Rent Limits'!$J$1:$P$1)),0) -> 0 | Q93: 0 | R93: 0 | S93: 0 | T93: 0 | U93: 0 | V93: 0 | W93: 0 | X93: 0 | Y93: 0 | Z93: No | AD93: =CONCATENATE('Project, Applicant, Threshold'!$AD$24,'Assisted Units'!L93) ->  | AE93: =CONCATENATE('Project, Applicant, Threshold'!$AD$24,"0.35") -> 0.35
M94: =IFERROR(INDEX('Rent Limits'!$A$1:$I$1045,MATCH(AE94,'Rent Limits'!$A$1:$A$1045,0),MATCH(D94,'Rent Limits'!$A$1:$I$1,0)),0) -> 0 | N94: 0 | O94: 0 | P94: =IFERROR(INDEX('Rent Limits'!$J$1:$P$1045,MATCH(AD94,'Rent Limits'!$A$1:$A$1045,0),MATCH(E94,'Rent Limits'!$J$1:$P$1)),0) -> 0 | Q94: 0 | R94: 0 | S94: 0 | T94: 0 | U94: 0 | V94: 0 | W94: 0 | X94: 0 | Y94: 0 | Z94: No | AD94: =CONCATENATE('Project, Applicant, Threshold'!$AD$24,'Assisted Units'!L94) ->  | AE94: =CONCATENATE('Project, Applicant, Threshold'!$AD$24,"0.35") -> 0.35
M95: =IFERROR(INDEX('Rent Limits'!$A$1:$I$1045,MATCH(AE95,'Rent Limits'!$A$1:$A$1045,0),MATCH(D95,'Rent Limits'!$A$1:$I$1,0)),0) -> 0 | N95: 0 | O95: 0 | P95: =IFERROR(INDEX('Rent Limits'!$J$1:$P$1045,MATCH(AD95,'Rent Limits'!$A$1:$A$1045,0),MATCH(E95,'Rent Limits'!$J$1:$P$1)),0) -> 0 | Q95: 0 | R95: 0 | S95: 0 | T95: 0 | U95: 0 | V95: 0 | W95: 0 | X95: 0 | Y95: 0 | Z95: No | AD95: =CONCATENATE('Project, Applicant, Threshold'!$AD$24,'Assisted Units'!L95) ->  | AE95: =CONCATENATE('Project, Applicant, Threshold'!$AD$24,"0.35") -> 0.35
M96: =IFERROR(INDEX('Rent Limits'!$A$1:$I$1045,MATCH(AE96,'Rent Limits'!$A$1:$A$1045,0),MATCH(D96,'Rent Limits'!$A$1:$I$1,0)),0) -> 0 | N96: 0 | O96: 0 | P96: =IFERROR(INDEX('Rent Limits'!$J$1:$P$1045,MATCH(AD96,'Rent Limits'!$A$1:$A$1045,0),MATCH(E96,'Rent Limits'!$J$1:$P$1)),0) -> 0 | Q96: 0 | R96: 0 | S96: 0 | T96: 0 | U96: 0 | V96: 0 | W96: 0 | X96: 0 | Y96: 0 | Z96: No | AD96: =CONCATENATE('Project, Applicant, Threshold'!$AD$24,'Assisted Units'!L96) ->  | AE96: =CONCATENATE('Project, Applicant, Threshold'!$AD$24,"0.35") -> 0.35
M97: =IFERROR(INDEX('Rent Limits'!$A$1:$I$1045,MATCH(AE97,'Rent Limits'!$A$1:$A$1045,0),MATCH(D97,'Rent Limits'!$A$1:$I$1,0)),0) -> 0 | N97: 0 | O97: 0 | P97: =IFERROR(INDEX('Rent Limits'!$J$1:$P$1045,MATCH(AD97,'Rent Limits'!$A$1:$A$1045,0),MATCH(E97,'Rent Limits'!$J$1:$P$1)),0) -> 0 | Q97: 0 | R97: 0 | S97: 0 | T97: 0 | U97: 0 | V97: 0 | W97: 0 | X97: 0 | Y97: 0 | Z97: No | AD97: =CONCATENATE('Project, Applicant, Threshold'!$AD$24,'Assisted Units'!L97) ->  | AE97: =CONCATENATE('Project, Applicant, Threshold'!$AD$24,"0.35") -> 0.35
M98: =IFERROR(INDEX('Rent Limits'!$A$1:$I$1045,MATCH(AE98,'Rent Limits'!$A$1:$A$1045,0),MATCH(D98,'Rent Limits'!$A$1:$I$1,0)),0) -> 0 | N98: 0 | O98: 0 | P98: =IFERROR(INDEX('Rent Limits'!$J$1:$P$1045,MATCH(AD98,'Rent Limits'!$A$1:$A$1045,0),MATCH(E98,'Rent Limits'!$J$1:$P$1)),0) -> 0 | Q98: 0 | R98: 0 | S98: 0 | T98: 0 | U98: 0 | V98: 0 | W98: 0 | X98: 0 | Y98: 0 | Z98: No | AD98: =CONCATENATE('Project, Applicant, Threshold'!$AD$24,'Assisted Units'!L98) ->  | AE98: =CONCATENATE('Project, Applicant, Threshold'!$AD$24,"0.35") -> 0.35
M99: =IFERROR(INDEX('Rent Limits'!$A$1:$I$1045,MATCH(AE99,'Rent Limits'!$A$1:$A$1045,0),MATCH(D99,'Rent Limits'!$A$1:$I$1,0)),0) -> 0 | N99: 0 | O99: 0 | P99: =IFERROR(INDEX('Rent Limits'!$J$1:$P$1045,MATCH(AD99,'Rent Limits'!$A$1:$A$1045,0),MATCH(E99,'Rent Limits'!$J$1:$P$1)),0) -> 0 | Q99: 0 | R99: 0 | S99: 0 | T99: 0 | U99: 0 | V99: 0 | W99: 0 | X99: 0 | Y99: 0 | Z99: No | AD99: =CONCATENATE('Project, Applicant, Threshold'!$AD$24,'Assisted Units'!L99) ->  | AE99: =CONCATENATE('Project, Applicant, Threshold'!$AD$24,"0.35") -> 0.35
M100: =IFERROR(INDEX('Rent Limits'!$A$1:$I$1045,MATCH(AE100,'Rent Limits'!$A$1:$A$1045,0),MATCH(D100,'Rent Limits'!$A$1:$I$1,0)),0) -> 0 | N100: 0 | O100: 0 | P100: =IFERROR(INDEX('Rent Limits'!$J$1:$P$1045,MATCH(AD100,'Rent Limits'!$A$1:$A$1045,0),MATCH(E100,'Rent Limits'!$J$1:$P$1)),0) -> 0 | Q100: 0 | R100: 0 | S100: 0 | T100: 0 | U100: 0 | V100: 0 | W100: 0 | X100: 0 | Y100: 0 | Z100: No | AD100: =CONCATENATE('Project, Applicant, Threshold'!$AD$24,'Assisted Units'!L100) ->  | AE100: =CONCATENATE('Project, Applicant, Threshold'!$AD$24,"0.35") -> 0.35
M101: =IFERROR(INDEX('Rent Limits'!$A$1:$I$1045,MATCH(AE101,'Rent Limits'!$A$1:$A$1045,0),MATCH(D101,'Rent Limits'!$A$1:$I$1,0)),0) -> 0 | N101: 0 | O101: 0 | P101: =IFERROR(INDEX('Rent Limits'!$J$1:$P$1045,MATCH(AD101,'Rent Limits'!$A$1:$A$1045,0),MATCH(E101,'Rent Limits'!$J$1:$P$1)),0) -> 0 | Q101: 0 | R101: 0 | S101: 0 | T101: 0 | U101: 0 | V101: 0 | W101: 0 | X101: 0 | Y101: 0 | Z101: No | AD101: =CONCATENATE('Project, Applicant, Threshold'!$AD$24,'Assisted Units'!L101) ->  | AE101: =CONCATENATE('Project, Applicant, Threshold'!$AD$24,"0.35") -> 0.35
M102: =IFERROR(INDEX('Rent Limits'!$A$1:$I$1045,MATCH(AE102,'Rent Limits'!$A$1:$A$1045,0),MATCH(D102,'Rent Limits'!$A$1:$I$1,0)),0) -> 0 | N102: 0 | O102: 0 | P102: =IFERROR(INDEX('Rent Limits'!$J$1:$P$1045,MATCH(AD102,'Rent Limits'!$A$1:$A$1045,0),MATCH(E102,'Rent Limits'!$J$1:$P$1)),0) -> 0 | Q102: 0 | R102: 0 | S102: 0 | T102: 0 | U102: 0 | V102: 0 | W102: 0 | X102: 0 | Y102: 0 | Z102: No | AD102: =CONCATENATE('Project, Applicant, Threshold'!$AD$24,'Assisted Units'!L102) ->  | AE102: =CONCATENATE('Project, Applicant, Threshold'!$AD$24,"0.35") -> 0.35
M103: =IFERROR(INDEX('Rent Limits'!$A$1:$I$1045,MATCH(AE103,'Rent Limits'!$A$1:$A$1045,0),MATCH(D103,'Rent Limits'!$A$1:$I$1,0)),0) -> 0 | N103: 0 | O103: 0 | P103: =IFERROR(INDEX('Rent Limits'!$J$1:$P$1045,MATCH(AD103,'Rent Limits'!$A$1:$A$1045,0),MATCH(E103,'Rent Limits'!$J$1:$P$1)),0) -> 0 | Q103: 0 | R103: 0 | S103: 0 | T103: 0 | U103: 0 | V103: 0 | W103: 0 | X103: 0 | Y103: 0 | Z103: No | AD103: =CONCATENATE('Project, Applicant, Threshold'!$AD$24,'Assisted Units'!L103) ->  | AE103: =CONCATENATE('Project, Applicant, Threshold'!$AD$24,"0.35") -> 0.35
M104: =IFERROR(INDEX('Rent Limits'!$A$1:$I$1045,MATCH(AE104,'Rent Limits'!$A$1:$A$1045,0),MATCH(D104,'Rent Limits'!$A$1:$I$1,0)),0) -> 0 | N104: 0 | O104: 0 | P104: =IFERROR(INDEX('Rent Limits'!$J$1:$P$1045,MATCH(AD104,'Rent Limits'!$A$1:$A$1045,0),MATCH(E104,'Rent Limits'!$J$1:$P$1)),0) -> 0 | Q104: 0 | R104: 0 | S104: 0 | T104: 0 | U104: 0 | V104: 0 | W104: 0 | X104: 0 | Y104: 0 | Z104: No | AD104: =CONCATENATE('Project, Applicant, Threshold'!$AD$24,'Assisted Units'!L104) ->  | AE104: =CONCATENATE('Project, Applicant, Threshold'!$AD$24,"0.35") -> 0.35
M105: =IFERROR(INDEX('Rent Limits'!$A$1:$I$1045,MATCH(AE105,'Rent Limits'!$A$1:$A$1045,0),MATCH(D105,'Rent Limits'!$A$1:$I$1,0)),0) -> 0 | N105: 0 | O105: 0 | P105: =IFERROR(INDEX('Rent Limits'!$J$1:$P$1045,MATCH(AD105,'Rent Limits'!$A$1:$A$1045,0),MATCH(E105,'Rent Limits'!$J$1:$P$1)),0) -> 0 | Q105: 0 | R105: 0 | S105: 0 | T105: 0 | U105: 0 | V105: 0 | W105: 0 | X105: 0 | Y105: 0 | Z105: No | AD105: =CONCATENATE('Project, Applicant, Threshold'!$AD$24,'Assisted Units'!L105) ->  | AE105: =CONCATENATE('Project, Applicant, Threshold'!$AD$24,"0.35") -> 0.35
M106: =IFERROR(INDEX('Rent Limits'!$A$1:$I$1045,MATCH(AE106,'Rent Limits'!$A$1:$A$1045,0),MATCH(D106,'Rent Limits'!$A$1:$I$1,0)),0) -> 0 | N106: 0 | O106: 0 | P106: =IFERROR(INDEX('Rent Limits'!$J$1:$P$1045,MATCH(AD106,'Rent Limits'!$A$1:$A$1045,0),MATCH(E106,'Rent Limits'!$J$1:$P$1)),0) -> 0 | Q106: 0 | R106: 0 | S106: 0 | T106: 0 | U106: 0 | V106: 0 | W106: 0 | X106: 0 | Y106: 0 | Z106: No | AD106: =CONCATENATE('Project, Applicant, Threshold'!$AD$24,'Assisted Units'!L106) ->  | AE106: =CONCATENATE('Project, Applicant, Threshold'!$AD$24,"0.35") -> 0.35
M107: =IFERROR(INDEX('Rent Limits'!$A$1:$I$1045,MATCH(AE107,'Rent Limits'!$A$1:$A$1045,0),MATCH(D107,'Rent Limits'!$A$1:$I$1,0)),0) -> 0 | N107: 0 | O107: 0 | P107: =IFERROR(INDEX('Rent Limits'!$J$1:$P$1045,MATCH(AD107,'Rent Limits'!$A$1:$A$1045,0),MATCH(E107,'Rent Limits'!$J$1:$P$1)),0) -> 0 | Q107: 0 | R107: 0 | S107: 0 | T107: 0 | U107: 0 | V107: 0 | W107: 0 | X107: 0 | Y107: 0 | Z107: No | AD107: =CONCATENATE('Project, Applicant, Threshold'!$AD$24,'Assisted Units'!L107) ->  | AE107: =CONCATENATE('Project, Applicant, Threshold'!$AD$24,"0.35") -> 0.35
M108: =IFERROR(INDEX('Rent Limits'!$A$1:$I$1045,MATCH(AE108,'Rent Limits'!$A$1:$A$1045,0),MATCH(D108,'Rent Limits'!$A$1:$I$1,0)),0) -> 0 | N108: 0 | O108: 0 | P108: =IFERROR(INDEX('Rent Limits'!$J$1:$P$1045,MATCH(AD108,'Rent Limits'!$A$1:$A$1045,0),MATCH(E108,'Rent Limits'!$J$1:$P$1)),0) -> 0 | Q108: 0 | R108: 0 | S108: 0 | T108: 0 | U108: 0 | V108: 0 | W108: 0 | X108: 0 | Y108: 0 | Z108: No | AD108: =CONCATENATE('Project, Applicant, Threshold'!$AD$24,'Assisted Units'!L108) ->  | AE108: =CONCATENATE('Project, Applicant, Threshold'!$AD$24,"0.35") -> 0.35
M109: =IFERROR(INDEX('Rent Limits'!$A$1:$I$1045,MATCH(AE109,'Rent Limits'!$A$1:$A$1045,0),MATCH(D109,'Rent Limits'!$A$1:$I$1,0)),0) -> 0 | N109: 0 | O109: 0 | P109: =IFERROR(INDEX('Rent Limits'!$J$1:$P$1045,MATCH(AD109,'Rent Limits'!$A$1:$A$1045,0),MATCH(E109,'Rent Limits'!$J$1:$P$1)),0) -> 0 | Q109: 0 | R109: 0 | S109: 0 | T109: 0 | U109: 0 | V109: 0 | W109: 0 | X109: 0 | Y109: 0 | Z109: No | AD109: =CONCATENATE('Project, Applicant, Threshold'!$AD$24,'Assisted Units'!L109) ->  | AE109: =CONCATENATE('Project, Applicant, Threshold'!$AD$24,"0.35") -> 0.35
M110: =IFERROR(INDEX('Rent Limits'!$A$1:$I$1045,MATCH(AE110,'Rent Limits'!$A$1:$A$1045,0),MATCH(D110,'Rent Limits'!$A$1:$I$1,0)),0) -> 0 | N110: 0 | O110: 0 | P110: =IFERROR(INDEX('Rent Limits'!$J$1:$P$1045,MATCH(AD110,'Rent Limits'!$A$1:$A$1045,0),MATCH(E110,'Rent Limits'!$J$1:$P$1)),0) -> 0 | Q110: 0 | R110: 0 | S110: 0 | T110: 0 | U110: 0 | V110: 0 | W110: 0 | X110: 0 | Y110: 0 | Z110: No | AD110: =CONCATENATE('Project, Applicant, Threshold'!$AD$24,'Assisted Units'!L110) ->  | AE110: =CONCATENATE('Project, Applicant, Threshold'!$AD$24,"0.35") -> 0.35
M111: =IFERROR(INDEX('Rent Limits'!$A$1:$I$1045,MATCH(AE111,'Rent Limits'!$A$1:$A$1045,0),MATCH(D111,'Rent Limits'!$A$1:$I$1,0)),0) -> 0 | N111: 0 | O111: 0 | P111: =IFERROR(INDEX('Rent Limits'!$J$1:$P$1045,MATCH(AD111,'Rent Limits'!$A$1:$A$1045,0),MATCH(E111,'Rent Limits'!$J$1:$P$1)),0) -> 0 | Q111: 0 | R111: 0 | S111: 0 | T111: 0 | U111: 0 | V111: 0 | W111: 0 | X111: 0 | Y111: 0 | Z111: No | AD111: =CONCATENATE('Project, Applicant, Threshold'!$AD$24,'Assisted Units'!L111) ->  | AE111: =CONCATENATE('Project, Applicant, Threshold'!$AD$24,"0.35") -> 0.35
M112: =IFERROR(INDEX('Rent Limits'!$A$1:$I$1045,MATCH(AE112,'Rent Limits'!$A$1:$A$1045,0),MATCH(D112,'Rent Limits'!$A$1:$I$1,0)),0) -> 0 | N112: 0 | O112: 0 | P112: =IFERROR(INDEX('Rent Limits'!$J$1:$P$1045,MATCH(AD112,'Rent Limits'!$A$1:$A$1045,0),MATCH(E112,'Rent Limits'!$J$1:$P$1)),0) -> 0 | Q112: 0 | R112: 0 | S112: 0 | T112: 0 | U112: 0 | V112: 0 | W112: 0 | X112: 0 | Y112: 0 | Z112: No | AD112: =CONCATENATE('Project, Applicant, Threshold'!$AD$24,'Assisted Units'!L112) ->  | AE112: =CONCATENATE('Project, Applicant, Threshold'!$AD$24,"0.35") -> 0.35
M113: =IFERROR(INDEX('Rent Limits'!$A$1:$I$1045,MATCH(AE113,'Rent Limits'!$A$1:$A$1045,0),MATCH(D113,'Rent Limits'!$A$1:$I$1,0)),0) -> 0 | N113: 0 | O113: 0 | P113: =IFERROR(INDEX('Rent Limits'!$J$1:$P$1045,MATCH(AD113,'Rent Limits'!$A$1:$A$1045,0),MATCH(E113,'Rent Limits'!$J$1:$P$1)),0) -> 0 | Q113: 0 | R113: 0 | S113: 0 | T113: 0 | U113: 0 | V113: 0 | W113: 0 | X113: 0 | Y113: 0 | Z113: No | AD113: =CONCATENATE('Project, Applicant, Threshold'!$AD$24,'Assisted Units'!L113) ->  | AE113: =CONCATENATE('Project, Applicant, Threshold'!$AD$24,"0.35") -> 0.35
M114: =IFERROR(INDEX('Rent Limits'!$A$1:$I$1045,MATCH(AE114,'Rent Limits'!$A$1:$A$1045,0),MATCH(D114,'Rent Limits'!$A$1:$I$1,0)),0) -> 0 | N114: 0 | O114: 0 | P114: =IFERROR(INDEX('Rent Limits'!$J$1:$P$1045,MATCH(AD114,'Rent Limits'!$A$1:$A$1045,0),MATCH(E114,'Rent Limits'!$J$1:$P$1)),0) -> 0 | Q114: 0 | R114: 0 | S114: 0 | T114: 0 | U114: 0 | V114: 0 | W114: 0 | X114: 0 | Y114: 0 | Z114: No | AD114: =CONCATENATE('Project, Applicant, Threshold'!$AD$24,'Assisted Units'!L114) ->  | AE114: =CONCATENATE('Project, Applicant, Threshold'!$AD$24,"0.35") -> 0.35
M115: =IFERROR(INDEX('Rent Limits'!$A$1:$I$1045,MATCH(AE115,'Rent Limits'!$A$1:$A$1045,0),MATCH(D115,'Rent Limits'!$A$1:$I$1,0)),0) -> 0 | N115: 0 | O115: 0 | P115: =IFERROR(INDEX('Rent Limits'!$J$1:$P$1045,MATCH(AD115,'Rent Limits'!$A$1:$A$1045,0),MATCH(E115,'Rent Limits'!$J$1:$P$1)),0) -> 0 | Q115: 0 | R115: 0 | S115: 0 | T115: 0 | U115: 0 | V115: 0 | W115: 0 | X115: 0 | Y115: 0 | Z115: No | AD115: =CONCATENATE('Project, Applicant, Threshold'!$AD$24,'Assisted Units'!L115) ->  | AE115: =CONCATENATE('Project, Applicant, Threshold'!$AD$24,"0.35") -> 0.35
M116: =IFERROR(INDEX('Rent Limits'!$A$1:$I$1045,MATCH(AE116,'Rent Limits'!$A$1:$A$1045,0),MATCH(D116,'Rent Limits'!$A$1:$I$1,0)),0) -> 0 | N116: 0 | O116: 0 | P116: =IFERROR(INDEX('Rent Limits'!$J$1:$P$1045,MATCH(AD116,'Rent Limits'!$A$1:$A$1045,0),MATCH(E116,'Rent Limits'!$J$1:$P$1)),0) -> 0 | Q116: 0 | R116: 0 | S116: 0 | T116: 0 | U116: 0 | V116: 0 | W116: 0 | X116: 0 | Y116: 0 | Z116: No | AD116: =CONCATENATE('Project, Applicant, Threshold'!$AD$24,'Assisted Units'!L116) ->  | AE116: =CONCATENATE('Project, Applicant, Threshold'!$AD$24,"0.35") -> 0.35
M117: =IFERROR(INDEX('Rent Limits'!$A$1:$I$1045,MATCH(AE117,'Rent Limits'!$A$1:$A$1045,0),MATCH(D117,'Rent Limits'!$A$1:$I$1,0)),0) -> 0 | N117: 0 | O117: 0 | P117: =IFERROR(INDEX('Rent Limits'!$J$1:$P$1045,MATCH(AD117,'Rent Limits'!$A$1:$A$1045,0),MATCH(E117,'Rent Limits'!$J$1:$P$1)),0) -> 0 | Q117: 0 | R117: 0 | S117: 0 | T117: 0 | U117: 0 | V117: 0 | W117: 0 | X117: 0 | Y117: 0 | Z117: No | AD117: =CONCATENATE('Project, Applicant, Threshold'!$AD$24,'Assisted Units'!L117) ->  | AE117: =CONCATENATE('Project, Applicant, Threshold'!$AD$24,"0.35") -> 0.35
M118: =IFERROR(INDEX('Rent Limits'!$A$1:$I$1045,MATCH(AE118,'Rent Limits'!$A$1:$A$1045,0),MATCH(D118,'Rent Limits'!$A$1:$I$1,0)),0) -> 0 | N118: 0 | O118: 0 | P118: =IFERROR(INDEX('Rent Limits'!$J$1:$P$1045,MATCH(AD118,'Rent Limits'!$A$1:$A$1045,0),MATCH(E118,'Rent Limits'!$J$1:$P$1)),0) -> 0 | Q118: 0 | R118: 0 | S118: 0 | T118: 0 | U118: 0 | V118: 0 | W118: 0 | X118: 0 | Y118: 0 | Z118: No | AD118: =CONCATENATE('Project, Applicant, Threshold'!$AD$24,'Assisted Units'!L118) ->  | AE118: =CONCATENATE('Project, Applicant, Threshold'!$AD$24,"0.35") -> 0.35
M119: =IFERROR(INDEX('Rent Limits'!$A$1:$I$1045,MATCH(AE119,'Rent Limits'!$A$1:$A$1045,0),MATCH(D119,'Rent Limits'!$A$1:$I$1,0)),0) -> 0 | N119: 0 | O119: 0 | P119: =IFERROR(INDEX('Rent Limits'!$J$1:$P$1045,MATCH(AD119,'Rent Limits'!$A$1:$A$1045,0),MATCH(E119,'Rent Limits'!$J$1:$P$1)),0) -> 0 | Q119: 0 | R119: 0 | S119: 0 | T119: 0 | U119: 0 | V119: 0 | W119: 0 | X119: 0 | Y119: 0 | Z119: No | AD119: =CONCATENATE('Project, Applicant, Threshold'!$AD$24,'Assisted Units'!L119) ->  | AE119: =CONCATENATE('Project, Applicant, Threshold'!$AD$24,"0.35") -> 0.35
M120: =IFERROR(INDEX('Rent Limits'!$A$1:$I$1045,MATCH(AE120,'Rent Limits'!$A$1:$A$1045,0),MATCH(D120,'Rent Limits'!$A$1:$I$1,0)),0) -> 0 | N120: 0 | O120: 0 | P120: =IFERROR(INDEX('Rent Limits'!$J$1:$P$1045,MATCH(AD120,'Rent Limits'!$A$1:$A$1045,0),MATCH(E120,'Rent Limits'!$J$1:$P$1)),0) -> 0 | Q120: 0 | R120: 0 | S120: 0 | T120: 0 | U120: 0 | V120: 0 | W120: 0 | X120: 0 | Y120: 0 | Z120: No | AD120: =CONCATENATE('Project, Applicant, Threshold'!$AD$24,'Assisted Units'!L120) ->  | AE120: =CONCATENATE('Project, Applicant, Threshold'!$AD$24,"0.35") -> 0.35
M121: =IFERROR(INDEX('Rent Limits'!$A$1:$I$1045,MATCH(AE121,'Rent Limits'!$A$1:$A$1045,0),MATCH(D121,'Rent Limits'!$A$1:$I$1,0)),0) -> 0 | N121: 0 | O121: 0 | P121: =IFERROR(INDEX('Rent Limits'!$J$1:$P$1045,MATCH(AD121,'Rent Limits'!$A$1:$A$1045,0),MATCH(E121,'Rent Limits'!$J$1:$P$1)),0) -> 0 | Q121: 0 | R121: 0 | S121: 0 | T121: 0 | U121: 0 | V121: 0 | W121: 0 | X121: 0 | Y121: 0 | Z121: No | AD121: =CONCATENATE('Project, Applicant, Threshold'!$AD$24,'Assisted Units'!L121) ->  | AE121: =CONCATENATE('Project, Applicant, Threshold'!$AD$24,"0.35") -> 0.35
M122: =IFERROR(INDEX('Rent Limits'!$A$1:$I$1045,MATCH(AE122,'Rent Limits'!$A$1:$A$1045,0),MATCH(D122,'Rent Limits'!$A$1:$I$1,0)),0) -> 0 | N122: 0 | O122: 0 | P122: =IFERROR(INDEX('Rent Limits'!$J$1:$P$1045,MATCH(AD122,'Rent Limits'!$A$1:$A$1045,0),MATCH(E122,'Rent Limits'!$J$1:$P$1)),0) -> 0 | Q122: 0 | R122: 0 | S122: 0 | T122: 0 | U122: 0 | V122: 0 | W122: 0 | X122: 0 | Y122: 0 | Z122: No | AD122: =CONCATENATE('Project, Applicant, Threshold'!$AD$24,'Assisted Units'!L122) ->  | AE122: =CONCATENATE('Project, Applicant, Threshold'!$AD$24,"0.35") -> 0.35
M123: =IFERROR(INDEX('Rent Limits'!$A$1:$I$1045,MATCH(AE123,'Rent Limits'!$A$1:$A$1045,0),MATCH(D123,'Rent Limits'!$A$1:$I$1,0)),0) -> 0 | N123: 0 | O123: 0 | P123: =IFERROR(INDEX('Rent Limits'!$J$1:$P$1045,MATCH(AD123,'Rent Limits'!$A$1:$A$1045,0),MATCH(E123,'Rent Limits'!$J$1:$P$1)),0) -> 0 | Q123: 0 | R123: 0 | S123: 0 | T123: 0 | U123: 0 | V123: 0 | W123: 0 | X123: 0 | Y123: 0 | Z123: No | AD123: =CONCATENATE('Project, Applicant, Threshold'!$AD$24,'Assisted Units'!L123) ->  | AE123: =CONCATENATE('Project, Applicant, Threshold'!$AD$24,"0.35") -> 0.35
M124: =IFERROR(INDEX('Rent Limits'!$A$1:$I$1045,MATCH(AE124,'Rent Limits'!$A$1:$A$1045,0),MATCH(D124,'Rent Limits'!$A$1:$I$1,0)),0) -> 0 | N124: 0 | O124: 0 | P124: =IFERROR(INDEX('Rent Limits'!$J$1:$P$1045,MATCH(AD124,'Rent Limits'!$A$1:$A$1045,0),MATCH(E124,'Rent Limits'!$J$1:$P$1)),0) -> 0 | Q124: 0 | R124: 0 | S124: 0 | T124: 0 | U124: 0 | V124: 0 | W124: 0 | X124: 0 | Y124: 0 | Z124: No | AD124: =CONCATENATE('Project, Applicant, Threshold'!$AD$24,'Assisted Units'!L124) ->  | AE124: =CONCATENATE('Project, Applicant, Threshold'!$AD$24,"0.35") -> 0.35
M125: =IFERROR(INDEX('Rent Limits'!$A$1:$I$1045,MATCH(AE125,'Rent Limits'!$A$1:$A$1045,0),MATCH(D125,'Rent Limits'!$A$1:$I$1,0)),0) -> 0 | N125: 0 | O125: 0 | P125: =IFERROR(INDEX('Rent Limits'!$J$1:$P$1045,MATCH(AD125,'Rent Limits'!$A$1:$A$1045,0),MATCH(E125,'Rent Limits'!$J$1:$P$1)),0) -> 0 | Q125: 0 | R125: 0 | S125: 0 | T125: 0 | U125: 0 | V125: 0 | W125: 0 | X125: 0 | Y125: 0 | Z125: No | AD125: =CONCATENATE('Project, Applicant, Threshold'!$AD$24,'Assisted Units'!L125) ->  | AE125: =CONCATENATE('Project, Applicant, Threshold'!$AD$24,"0.35") -> 0.35
M126: =IFERROR(INDEX('Rent Limits'!$A$1:$I$1045,MATCH(AE126,'Rent Limits'!$A$1:$A$1045,0),MATCH(D126,'Rent Limits'!$A$1:$I$1,0)),0) -> 0 | N126: 0 | O126: 0 | P126: =IFERROR(INDEX('Rent Limits'!$J$1:$P$1045,MATCH(AD126,'Rent Limits'!$A$1:$A$1045,0),MATCH(E126,'Rent Limits'!$J$1:$P$1)),0) -> 0 | Q126: 0 | R126: 0 | S126: 0 | T126: 0 | U126: 0 | V126: 0 | W126: 0 | X126: 0 | Y126: 0 | Z126: No | AD126: =CONCATENATE('Project, Applicant, Threshold'!$AD$24,'Assisted Units'!L126) ->  | AE126: =CONCATENATE('Project, Applicant, Threshold'!$AD$24,"0.35") -> 0.35
M127: =IFERROR(INDEX('Rent Limits'!$A$1:$I$1045,MATCH(AE127,'Rent Limits'!$A$1:$A$1045,0),MATCH(D127,'Rent Limits'!$A$1:$I$1,0)),0) -> 0 | N127: 0 | O127: 0 | P127: =IFERROR(INDEX('Rent Limits'!$J$1:$P$1045,MATCH(AD127,'Rent Limits'!$A$1:$A$1045,0),MATCH(E127,'Rent Limits'!$J$1:$P$1)),0) -> 0 | Q127: 0 | R127: 0 | S127: 0 | T127: 0 | U127: 0 | V127: 0 | W127: 0 | X127: 0 | Y127: 0 | Z127: No | AD127: =CONCATENATE('Project, Applicant, Threshold'!$AD$24,'Assisted Units'!L127) ->  | AE127: =CONCATENATE('Project, Applicant, Threshold'!$AD$24,"0.35") -> 0.35
M128: =IFERROR(INDEX('Rent Limits'!$A$1:$I$1045,MATCH(AE128,'Rent Limits'!$A$1:$A$1045,0),MATCH(D128,'Rent Limits'!$A$1:$I$1,0)),0) -> 0 | N128: 0 | O128: 0 | P128: =IFERROR(INDEX('Rent Limits'!$J$1:$P$1045,MATCH(AD128,'Rent Limits'!$A$1:$A$1045,0),MATCH(E128,'Rent Limits'!$J$1:$P$1)),0) -> 0 | Q128: 0 | R128: 0 | S128: 0 | T128: 0 | U128: 0 | V128: 0 | W128: 0 | X128: 0 | Y128: 0 | Z128: No | AD128: =CONCATENATE('Project, Applicant, Threshold'!$AD$24,'Assisted Units'!L128) ->  | AE128: =CONCATENATE('Project, Applicant, Threshold'!$AD$24,"0.35") -> 0.35
M129: =IFERROR(INDEX('Rent Limits'!$A$1:$I$1045,MATCH(AE129,'Rent Limits'!$A$1:$A$1045,0),MATCH(D129,'Rent Limits'!$A$1:$I$1,0)),0) -> 0 | N129: 0 | O129: 0 | P129: =IFERROR(INDEX('Rent Limits'!$J$1:$P$1045,MATCH(AD129,'Rent Limits'!$A$1:$A$1045,0),MATCH(E129,'Rent Limits'!$J$1:$P$1)),0) -> 0 | Q129: 0 | R129: 0 | S129: 0 | T129: 0 | U129: 0 | V129: 0 | W129: 0 | X129: 0 | Y129: 0 | Z129: No | AD129: =CONCATENATE('Project, Applicant, Threshold'!$AD$24,'Assisted Units'!L129) ->  | AE129: =CONCATENATE('Project, Applicant, Threshold'!$AD$24,"0.35") -> 0.35
M130: =IFERROR(INDEX('Rent Limits'!$A$1:$I$1045,MATCH(AE130,'Rent Limits'!$A$1:$A$1045,0),MATCH(D130,'Rent Limits'!$A$1:$I$1,0)),0) -> 0 | N130: 0 | O130: 0 | P130: =IFERROR(INDEX('Rent Limits'!$J$1:$P$1045,MATCH(AD130,'Rent Limits'!$A$1:$A$1045,0),MATCH(E130,'Rent Limits'!$J$1:$P$1)),0) -> 0 | Q130: 0 | R130: 0 | S130: 0 | T130: 0 | U130: 0 | V130: 0 | W130: 0 | X130: 0 | Y130: 0 | Z130: No | AD130: =CONCATENATE('Project, Applicant, Threshold'!$AD$24,'Assisted Units'!L130) ->  | AE130: =CONCATENATE('Project, Applicant, Threshold'!$AD$24,"0.35") -> 0.35
M131: =IFERROR(INDEX('Rent Limits'!$A$1:$I$1045,MATCH(AE131,'Rent Limits'!$A$1:$A$1045,0),MATCH(D131,'Rent Limits'!$A$1:$I$1,0)),0) -> 0 | N131: 0 | O131: =H131*(1+N131) -> 0 | P131: =IFERROR(INDEX('Rent Limits'!$J$1:$P$1045,MATCH(AD131,'Rent Limits'!$A$1:$A$1045,0),MATCH(E131,'Rent Limits'!$J$1:$P$1)),0) -> 0 | Q131: =ROUND(G131*0.5/12,0) -> 0 | R131: 0 | S131: 0 | T131: 0 | U131: =IF(D131="Vacant",S131-T131,S131) -> 0 | V131: =U131*12 -> 0 | W131: 0 | X131: 0 | Y131: =IFERROR(S131*12/G131,0) -> 0 | Z131: No | AD131: =CONCATENATE('Project, Applicant, Threshold'!$AD$24,'Assisted Units'!L131) ->  | AE131: =CONCATENATE('Project, Applicant, Threshold'!$AD$24,"0.35") -> 0.35
M132: =IFERROR(INDEX('Rent Limits'!$A$1:$I$1045,MATCH(AE132,'Rent Limits'!$A$1:$A$1045,0),MATCH(D132,'Rent Limits'!$A$1:$I$1,0)),0) -> 0 | N132: =IF(OR(G132="",D132="Vacant"),0,IF(G132<=M132,0.05,0.1)) -> 0 | O132: 0 | P132: =IFERROR(INDEX('Rent Limits'!$J$1:$P$1045,MATCH(AD132,'Rent Limits'!$A$1:$A$1045,0),MATCH(E132,'Rent Limits'!$J$1:$P$1)),0) -> 0 | Q132: 0 | R132: =H132 -> 0 | S132: 0 | T132: 0 | U132: 0 | V132: 0 | W132: 0 | X132: 0 | Y132: 0 | Z132: =IF(OR(AND(K132="VLI",L132>0.3),AND(K132="LI",L132>$AA$3),AND(OR(J132="New PRP",K132="New PRP"),L132=0.8)),"Yes","No") -> No | AD132: =CONCATENATE('Project, Applicant, Threshold'!$AD$24,'Assisted Units'!L132) ->  | AE132: =CONCATENATE('Project, Applicant, Threshold'!$AD$24,"0.35") -> 0.35
M133: =IFERROR(INDEX('Rent Limits'!$A$1:$I$1045,MATCH(AE133,'Rent Limits'!$A$1:$A$1045,0),MATCH(D133,'Rent Limits'!$A$1:$I$1,0)),0) -> 0 | N133: 0 | O133: 0 | P133: =IFERROR(INDEX('Rent Limits'!$J$1:$P$1045,MATCH(AD133,'Rent Limits'!$A$1:$A$1045,0),MATCH(E133,'Rent Limits'!$J$1:$P$1)),0) -> 0 | Q133: 0 | R133: 0 | S133: 0 | T133: 0 | U133: 0 | V133: 0 | W133: 0 | X133: 0 | Y133: 0 | Z133: No | AD133: =CONCATENATE('Project, Applicant, Threshold'!$AD$24,'Assisted Units'!L133) ->  | AE133: =CONCATENATE('Project, Applicant, Threshold'!$AD$24,"0.35") -> 0.35
M134: =IFERROR(INDEX('Rent Limits'!$A$1:$I$1045,MATCH(AE134,'Rent Limits'!$A$1:$A$1045,0),MATCH(D134,'Rent Limits'!$A$1:$I$1,0)),0) -> 0 | N134: 0 | O134: 0 | P134: =IFERROR(INDEX('Rent Limits'!$J$1:$P$1045,MATCH(AD134,'Rent Limits'!$A$1:$A$1045,0),MATCH(E134,'Rent Limits'!$J$1:$P$1)),0) -> 0 | Q134: 0 | R134: 0 | S134: =IF(OR(D134="Vacant",J134="New PRP"),P134,MAX(R134,MIN(P134,O134,Q134))) -> 0 | T134: 0 | U134: 0 | V134: 0 | W134: 0 | X134: 0 | Y134: 0 | Z134: No | AD134: =CONCATENATE('Project, Applicant, Threshold'!$AD$24,'Assisted Units'!L134) ->  | AE134: =CONCATENATE('Project, Applicant, Threshold'!$AD$24,"0.35") -> 0.35
M135: =IFERROR(INDEX('Rent Limits'!$A$1:$I$1045,MATCH(AE135,'Rent Limits'!$A$1:$A$1045,0),MATCH(D135,'Rent Limits'!$A$1:$I$1,0)),0) -> 0 | N135: 0 | O135: 0 | P135: =IFERROR(INDEX('Rent Limits'!$J$1:$P$1045,MATCH(AD135,'Rent Limits'!$A$1:$A$1045,0),MATCH(E135,'Rent Limits'!$J$1:$P$1)),0) -> 0 | Q135: 0 | R135: 0 | S135: 0 | T135: 0 | U135: 0 | V135: 0 | W135: 0 | X135: 0 | Y135: 0 | Z135: No | AD135: =CONCATENATE('Project, Applicant, Threshold'!$AD$24,'Assisted Units'!L135) ->  | AE135: =CONCATENATE('Project, Applicant, Threshold'!$AD$24,"0.35") -> 0.35
M136: =IFERROR(INDEX('Rent Limits'!$A$1:$I$1045,MATCH(AE136,'Rent Limits'!$A$1:$A$1045,0),MATCH(D136,'Rent Limits'!$A$1:$I$1,0)),0) -> 0 | N136: 0 | O136: 0 | P136: =IFERROR(INDEX('Rent Limits'!$J$1:$P$1045,MATCH(AD136,'Rent Limits'!$A$1:$A$1045,0),MATCH(E136,'Rent Limits'!$J$1:$P$1)),0) -> 0 | Q136: 0 | R136: 0 | S136: 0 | T136: 0 | U136: 0 | V136: 0 | W136: 0 | X136: 0 | Y136: 0 | Z136: No | AD136: =CONCATENATE('Project, Applicant, Threshold'!$AD$24,'Assisted Units'!L136) ->  | AE136: =CONCATENATE('Project, Applicant, Threshold'!$AD$24,"0.35") -> 0.35
M137: =IFERROR(INDEX('Rent Limits'!$A$1:$I$1045,MATCH(AE137,'Rent Limits'!$A$1:$A$1045,0),MATCH(D137,'Rent Limits'!$A$1:$I$1,0)),0) -> 0 | N137: 0 | O137: 0 | P137: =IFERROR(INDEX('Rent Limits'!$J$1:$P$1045,MATCH(AD137,'Rent Limits'!$A$1:$A$1045,0),MATCH(E137,'Rent Limits'!$J$1:$P$1)),0) -> 0 | Q137: 0 | R137: 0 | S137: 0 | T137: 0 | U137: 0 | V137: 0 | W137: 0 | X137: 0 | Y137: 0 | Z137: No | AD137: =CONCATENATE('Project, Applicant, Threshold'!$AD$24,'Assisted Units'!L137) ->  | AE137: =CONCATENATE('Project, Applicant, Threshold'!$AD$24,"0.35") -> 0.35
M138: =IFERROR(INDEX('Rent Limits'!$A$1:$I$1045,MATCH(AE138,'Rent Limits'!$A$1:$A$1045,0),MATCH(D138,'Rent Limits'!$A$1:$I$1,0)),0) -> 0 | N138: 0 | O138: 0 | P138: =IFERROR(INDEX('Rent Limits'!$J$1:$P$1045,MATCH(AD138,'Rent Limits'!$A$1:$A$1045,0),MATCH(E138,'Rent Limits'!$J$1:$P$1)),0) -> 0 | Q138: 0 | R138: 0 | S138: 0 | T138: 0 | U138: 0 | V138: 0 | W138: 0 | X138: 0 | Y138: 0 | Z138: No | AD138: =CONCATENATE('Project, Applicant, Threshold'!$AD$24,'Assisted Units'!L138) ->  | AE138: =CONCATENATE('Project, Applicant, Threshold'!$AD$24,"0.35") -> 0.35
M139: =IFERROR(INDEX('Rent Limits'!$A$1:$I$1045,MATCH(AE139,'Rent Limits'!$A$1:$A$1045,0),MATCH(D139,'Rent Limits'!$A$1:$I$1,0)),0) -> 0 | N139: 0 | O139: 0 | P139: =IFERROR(INDEX('Rent Limits'!$J$1:$P$1045,MATCH(AD139,'Rent Limits'!$A$1:$A$1045,0),MATCH(E139,'Rent Limits'!$J$1:$P$1)),0) -> 0 | Q139: 0 | R139: 0 | S139: 0 | T139: 0 | U139: 0 | V139: 0 | W139: 0 | X139: 0 | Y139: 0 | Z139: No | AD139: =CONCATENATE('Project, Applicant, Threshold'!$AD$24,'Assisted Units'!L139) ->  | AE139: =CONCATENATE('Project, Applicant, Threshold'!$AD$24,"0.35") -> 0.35
M140: =IFERROR(INDEX('Rent Limits'!$A$1:$I$1045,MATCH(AE140,'Rent Limits'!$A$1:$A$1045,0),MATCH(D140,'Rent Limits'!$A$1:$I$1,0)),0) -> 0 | N140: 0 | O140: 0 | P140: =IFERROR(INDEX('Rent Limits'!$J$1:$P$1045,MATCH(AD140,'Rent Limits'!$A$1:$A$1045,0),MATCH(E140,'Rent Limits'!$J$1:$P$1)),0) -> 0 | Q140: 0 | R140: 0 | S140: 0 | T140: 0 | U140: 0 | V140: 0 | W140: 0 | X140: 0 | Y140: 0 | Z140: No | AD140: =CONCATENATE('Project, Applicant, Threshold'!$AD$24,'Assisted Units'!L140) ->  | AE140: =CONCATENATE('Project, Applicant, Threshold'!$AD$24,"0.35") -> 0.35
M141: =IFERROR(INDEX('Rent Limits'!$A$1:$I$1045,MATCH(AE141,'Rent Limits'!$A$1:$A$1045,0),MATCH(D141,'Rent Limits'!$A$1:$I$1,0)),0) -> 0 | N141: 0 | O141: 0 | P141: =IFERROR(INDEX('Rent Limits'!$J$1:$P$1045,MATCH(AD141,'Rent Limits'!$A$1:$A$1045,0),MATCH(E141,'Rent Limits'!$J$1:$P$1)),0) -> 0 | Q141: 0 | R141: 0 | S141: 0 | T141: 0 | U141: 0 | V141: 0 | W141: 0 | X141: 0 | Y141: 0 | Z141: No | AD141: =CONCATENATE('Project, Applicant, Threshold'!$AD$24,'Assisted Units'!L141) ->  | AE141: =CONCATENATE('Project, Applicant, Threshold'!$AD$24,"0.35") -> 0.35
M142: =IFERROR(INDEX('Rent Limits'!$A$1:$I$1045,MATCH(AE142,'Rent Limits'!$A$1:$A$1045,0),MATCH(D142,'Rent Limits'!$A$1:$I$1,0)),0) -> 0 | N142: 0 | O142: 0 | P142: =IFERROR(INDEX('Rent Limits'!$J$1:$P$1045,MATCH(AD142,'Rent Limits'!$A$1:$A$1045,0),MATCH(E142,'Rent Limits'!$J$1:$P$1)),0) -> 0 | Q142: 0 | R142: 0 | S142: 0 | T142: 0 | U142: 0 | V142: 0 | W142: 0 | X142: 0 | Y142: 0 | Z142: No | AD142: =CONCATENATE('Project, Applicant, Threshold'!$AD$24,'Assisted Units'!L142) ->  | AE142: =CONCATENATE('Project, Applicant, Threshold'!$AD$24,"0.35") -> 0.35
M143: =IFERROR(INDEX('Rent Limits'!$A$1:$I$1045,MATCH(AE143,'Rent Limits'!$A$1:$A$1045,0),MATCH(D143,'Rent Limits'!$A$1:$I$1,0)),0) -> 0 | N143: 0 | O143: 0 | P143: =IFERROR(INDEX('Rent Limits'!$J$1:$P$1045,MATCH(AD143,'Rent Limits'!$A$1:$A$1045,0),MATCH(E143,'Rent Limits'!$J$1:$P$1)),0) -> 0 | Q143: 0 | R143: 0 | S143: 0 | T143: 0 | U143: 0 | V143: 0 | W143: 0 | X143: 0 | Y143: 0 | Z143: No | AD143: =CONCATENATE('Project, Applicant, Threshold'!$AD$24,'Assisted Units'!L143) ->  | AE143: =CONCATENATE('Project, Applicant, Threshold'!$AD$24,"0.35") -> 0.35
M144: =IFERROR(INDEX('Rent Limits'!$A$1:$I$1045,MATCH(AE144,'Rent Limits'!$A$1:$A$1045,0),MATCH(D144,'Rent Limits'!$A$1:$I$1,0)),0) -> 0 | N144: 0 | O144: 0 | P144: =IFERROR(INDEX('Rent Limits'!$J$1:$P$1045,MATCH(AD144,'Rent Limits'!$A$1:$A$1045,0),MATCH(E144,'Rent Limits'!$J$1:$P$1)),0) -> 0 | Q144: 0 | R144: 0 | S144: 0 | T144: 0 | U144: 0 | V144: 0 | W144: 0 | X144: 0 | Y144: 0 | Z144: No | AD144: =CONCATENATE('Project, Applicant, Threshold'!$AD$24,'Assisted Units'!L144) ->  | AE144: =CONCATENATE('Project, Applicant, Threshold'!$AD$24,"0.35") -> 0.35
M145: =IFERROR(INDEX('Rent Limits'!$A$1:$I$1045,MATCH(AE145,'Rent Limits'!$A$1:$A$1045,0),MATCH(D145,'Rent Limits'!$A$1:$I$1,0)),0) -> 0 | N145: 0 | O145: 0 | P145: =IFERROR(INDEX('Rent Limits'!$J$1:$P$1045,MATCH(AD145,'Rent Limits'!$A$1:$A$1045,0),MATCH(E145,'Rent Limits'!$J$1:$P$1)),0) -> 0 | Q145: 0 | R145: 0 | S145: 0 | T145: 0 | U145: 0 | V145: 0 | W145: 0 | X145: 0 | Y145: 0 | Z145: No | AD145: =CONCATENATE('Project, Applicant, Threshold'!$AD$24,'Assisted Units'!L145) ->  | AE145: =CONCATENATE('Project, Applicant, Threshold'!$AD$24,"0.35") -> 0.35
M146: =IFERROR(INDEX('Rent Limits'!$A$1:$I$1045,MATCH(AE146,'Rent Limits'!$A$1:$A$1045,0),MATCH(D146,'Rent Limits'!$A$1:$I$1,0)),0) -> 0 | N146: 0 | O146: 0 | P146: =IFERROR(INDEX('Rent Limits'!$J$1:$P$1045,MATCH(AD146,'Rent Limits'!$A$1:$A$1045,0),MATCH(E146,'Rent Limits'!$J$1:$P$1)),0) -> 0 | Q146: 0 | R146: 0 | S146: 0 | T146: 0 | U146: 0 | V146: 0 | W146: 0 | X146: 0 | Y146: 0 | Z146: No | AD146: =CONCATENATE('Project, Applicant, Threshold'!$AD$24,'Assisted Units'!L146) ->  | AE146: =CONCATENATE('Project, Applicant, Threshold'!$AD$24,"0.35") -> 0.35
M147: =IFERROR(INDEX('Rent Limits'!$A$1:$I$1045,MATCH(AE147,'Rent Limits'!$A$1:$A$1045,0),MATCH(D147,'Rent Limits'!$A$1:$I$1,0)),0) -> 0 | N147: 0 | O147: 0 | P147: =IFERROR(INDEX('Rent Limits'!$J$1:$P$1045,MATCH(AD147,'Rent Limits'!$A$1:$A$1045,0),MATCH(E147,'Rent Limits'!$J$1:$P$1)),0) -> 0 | Q147: 0 | R147: 0 | S147: 0 | T147: 0 | U147: 0 | V147: 0 | W147: 0 | X147: 0 | Y147: 0 | Z147: No | AD147: =CONCATENATE('Project, Applicant, Threshold'!$AD$24,'Assisted Units'!L147) ->  | AE147: =CONCATENATE('Project, Applicant, Threshold'!$AD$24,"0.35") -> 0.35
M148: =IFERROR(INDEX('Rent Limits'!$A$1:$I$1045,MATCH(AE148,'Rent Limits'!$A$1:$A$1045,0),MATCH(D148,'Rent Limits'!$A$1:$I$1,0)),0) -> 0 | N148: 0 | O148: 0 | P148: =IFERROR(INDEX('Rent Limits'!$J$1:$P$1045,MATCH(AD148,'Rent Limits'!$A$1:$A$1045,0),MATCH(E148,'Rent Limits'!$J$1:$P$1)),0) -> 0 | Q148: 0 | R148: 0 | S148: 0 | T148: 0 | U148: 0 | V148: 0 | W148: 0 | X148: 0 | Y148: 0 | Z148: No | AD148: =CONCATENATE('Project, Applicant, Threshold'!$AD$24,'Assisted Units'!L148) ->  | AE148: =CONCATENATE('Project, Applicant, Threshold'!$AD$24,"0.35") -> 0.35
M149: =IFERROR(INDEX('Rent Limits'!$A$1:$I$1045,MATCH(AE149,'Rent Limits'!$A$1:$A$1045,0),MATCH(D149,'Rent Limits'!$A$1:$I$1,0)),0) -> 0 | N149: 0 | O149: 0 | P149: =IFERROR(INDEX('Rent Limits'!$J$1:$P$1045,MATCH(AD149,'Rent Limits'!$A$1:$A$1045,0),MATCH(E149,'Rent Limits'!$J$1:$P$1)),0) -> 0 | Q149: 0 | R149: 0 | S149: 0 | T149: 0 | U149: 0 | V149: 0 | W149: 0 | X149: 0 | Y149: 0 | Z149: No | AD149: =CONCATENATE('Project, Applicant, Threshold'!$AD$24,'Assisted Units'!L149) ->  | AE149: =CONCATENATE('Project, Applicant, Threshold'!$AD$24,"0.35") -> 0.35
M150: =IFERROR(INDEX('Rent Limits'!$A$1:$I$1045,MATCH(AE150,'Rent Limits'!$A$1:$A$1045,0),MATCH(D150,'Rent Limits'!$A$1:$I$1,0)),0) -> 0 | N150: 0 | O150: 0 | P150: =IFERROR(INDEX('Rent Limits'!$J$1:$P$1045,MATCH(AD150,'Rent Limits'!$A$1:$A$1045,0),MATCH(E150,'Rent Limits'!$J$1:$P$1)),0) -> 0 | Q150: 0 | R150: 0 | S150: 0 | T150: 0 | U150: 0 | V150: 0 | W150: 0 | X150: 0 | Y150: 0 | Z150: No | AD150: =CONCATENATE('Project, Applicant, Threshold'!$AD$24,'Assisted Units'!L150) ->  | AE150: =CONCATENATE('Project, Applicant, Threshold'!$AD$24,"0.35") -> 0.35
M151: =IFERROR(INDEX('Rent Limits'!$A$1:$I$1045,MATCH(AE151,'Rent Limits'!$A$1:$A$1045,0),MATCH(D151,'Rent Limits'!$A$1:$I$1,0)),0) -> 0 | N151: 0 | O151: 0 | P151: =IFERROR(INDEX('Rent Limits'!$J$1:$P$1045,MATCH(AD151,'Rent Limits'!$A$1:$A$1045,0),MATCH(E151,'Rent Limits'!$J$1:$P$1)),0) -> 0 | Q151: 0 | R151: 0 | S151: 0 | T151: 0 | U151: 0 | V151: 0 | W151: 0 | X151: 0 | Y151: 0 | Z151: No | AD151: =CONCATENATE('Project, Applicant, Threshold'!$AD$24,'Assisted Units'!L151) ->  | AE151: =CONCATENATE('Project, Applicant, Threshold'!$AD$24,"0.35") -> 0.35
M152: =IFERROR(INDEX('Rent Limits'!$A$1:$I$1045,MATCH(AE152,'Rent Limits'!$A$1:$A$1045,0),MATCH(D152,'Rent Limits'!$A$1:$I$1,0)),0) -> 0 | N152: 0 | O152: 0 | P152: =IFERROR(INDEX('Rent Limits'!$J$1:$P$1045,MATCH(AD152,'Rent Limits'!$A$1:$A$1045,0),MATCH(E152,'Rent Limits'!$J$1:$P$1)),0) -> 0 | Q152: 0 | R152: 0 | S152: 0 | T152: 0 | U152: 0 | V152: 0 | W152: 0 | X152: 0 | Y152: 0 | Z152: No | AD152: =CONCATENATE('Project, Applicant, Threshold'!$AD$24,'Assisted Units'!L152) ->  | AE152: =CONCATENATE('Project, Applicant, Threshold'!$AD$24,"0.35") -> 0.35
M153: =IFERROR(INDEX('Rent Limits'!$A$1:$I$1045,MATCH(AE153,'Rent Limits'!$A$1:$A$1045,0),MATCH(D153,'Rent Limits'!$A$1:$I$1,0)),0) -> 0 | N153: 0 | O153: 0 | P153: =IFERROR(INDEX('Rent Limits'!$J$1:$P$1045,MATCH(AD153,'Rent Limits'!$A$1:$A$1045,0),MATCH(E153,'Rent Limits'!$J$1:$P$1)),0) -> 0 | Q153: 0 | R153: 0 | S153: 0 | T153: 0 | U153: 0 | V153: 0 | W153: 0 | X153: 0 | Y153: 0 | Z153: No | AD153: =CONCATENATE('Project, Applicant, Threshold'!$AD$24,'Assisted Units'!L153) ->  | AE153: =CONCATENATE('Project, Applicant, Threshold'!$AD$24,"0.35") -> 0.35
M154: =IFERROR(INDEX('Rent Limits'!$A$1:$I$1045,MATCH(AE154,'Rent Limits'!$A$1:$A$1045,0),MATCH(D154,'Rent Limits'!$A$1:$I$1,0)),0) -> 0 | N154: 0 | O154: 0 | P154: =IFERROR(INDEX('Rent Limits'!$J$1:$P$1045,MATCH(AD154,'Rent Limits'!$A$1:$A$1045,0),MATCH(E154,'Rent Limits'!$J$1:$P$1)),0) -> 0 | Q154: 0 | R154: 0 | S154: 0 | T154: 0 | U154: 0 | V154: 0 | W154: 0 | X154: 0 | Y154: 0 | Z154: No | AD154: =CONCATENATE('Project, Applicant, Threshold'!$AD$24,'Assisted Units'!L154) ->  | AE154: =CONCATENATE('Project, Applicant, Threshold'!$AD$24,"0.35") -> 0.35
M155: =IFERROR(INDEX('Rent Limits'!$A$1:$I$1045,MATCH(AE155,'Rent Limits'!$A$1:$A$1045,0),MATCH(D155,'Rent Limits'!$A$1:$I$1,0)),0) -> 0 | N155: 0 | O155: 0 | P155: =IFERROR(INDEX('Rent Limits'!$J$1:$P$1045,MATCH(AD155,'Rent Limits'!$A$1:$A$1045,0),MATCH(E155,'Rent Limits'!$J$1:$P$1)),0) -> 0 | Q155: 0 | R155: 0 | S155: 0 | T155: 0 | U155: 0 | V155: 0 | W155: 0 | X155: 0 | Y155: 0 | Z155: No | AD155: =CONCATENATE('Project, Applicant, Threshold'!$AD$24,'Assisted Units'!L155) ->  | AE155: =CONCATENATE('Project, Applicant, Threshold'!$AD$24,"0.35") -> 0.35
M156: =IFERROR(INDEX('Rent Limits'!$A$1:$I$1045,MATCH(AE156,'Rent Limits'!$A$1:$A$1045,0),MATCH(D156,'Rent Limits'!$A$1:$I$1,0)),0) -> 0 | N156: 0 | O156: 0 | P156: =IFERROR(INDEX('Rent Limits'!$J$1:$P$1045,MATCH(AD156,'Rent Limits'!$A$1:$A$1045,0),MATCH(E156,'Rent Limits'!$J$1:$P$1)),0) -> 0 | Q156: 0 | R156: 0 | S156: 0 | T156: 0 | U156: 0 | V156: 0 | W156: 0 | X156: 0 | Y156: 0 | Z156: No | AD156: =CONCATENATE('Project, Applicant, Threshold'!$AD$24,'Assisted Units'!L156) ->  | AE156: =CONCATENATE('Project, Applicant, Threshold'!$AD$24,"0.35") -> 0.35
M157: =IFERROR(INDEX('Rent Limits'!$A$1:$I$1045,MATCH(AE157,'Rent Limits'!$A$1:$A$1045,0),MATCH(D157,'Rent Limits'!$A$1:$I$1,0)),0) -> 0 | N157: 0 | O157: 0 | P157: =IFERROR(INDEX('Rent Limits'!$J$1:$P$1045,MATCH(AD157,'Rent Limits'!$A$1:$A$1045,0),MATCH(E157,'Rent Limits'!$J$1:$P$1)),0) -> 0 | Q157: 0 | R157: 0 | S157: 0 | T157: 0 | U157: 0 | V157: 0 | W157: 0 | X157: 0 | Y157: 0 | Z157: No | AD157: =CONCATENATE('Project, Applicant, Threshold'!$AD$24,'Assisted Units'!L157) ->  | AE157: =CONCATENATE('Project, Applicant, Threshold'!$AD$24,"0.35") -> 0.35
M158: =IFERROR(INDEX('Rent Limits'!$A$1:$I$1045,MATCH(AE158,'Rent Limits'!$A$1:$A$1045,0),MATCH(D158,'Rent Limits'!$A$1:$I$1,0)),0) -> 0 | N158: 0 | O158: 0 | P158: =IFERROR(INDEX('Rent Limits'!$J$1:$P$1045,MATCH(AD158,'Rent Limits'!$A$1:$A$1045,0),MATCH(E158,'Rent Limits'!$J$1:$P$1)),0) -> 0 | Q158: 0 | R158: 0 | S158: 0 | T158: 0 | U158: 0 | V158: 0 | W158: 0 | X158: 0 | Y158: 0 | Z158: No | AD158: =CONCATENATE('Project, Applicant, Threshold'!$AD$24,'Assisted Units'!L158) ->  | AE158: =CONCATENATE('Project, Applicant, Threshold'!$AD$24,"0.35") -> 0.35
M159: =IFERROR(INDEX('Rent Limits'!$A$1:$I$1045,MATCH(AE159,'Rent Limits'!$A$1:$A$1045,0),MATCH(D159,'Rent Limits'!$A$1:$I$1,0)),0) -> 0 | N159: 0 | O159: 0 | P159: =IFERROR(INDEX('Rent Limits'!$J$1:$P$1045,MATCH(AD159,'Rent Limits'!$A$1:$A$1045,0),MATCH(E159,'Rent Limits'!$J$1:$P$1)),0) -> 0 | Q159: 0 | R159: 0 | S159: 0 | T159: 0 | U159: 0 | V159: 0 | W159: 0 | X159: 0 | Y159: 0 | Z159: No | AD159: =CONCATENATE('Project, Applicant, Threshold'!$AD$24,'Assisted Units'!L159) ->  | AE159: =CONCATENATE('Project, Applicant, Threshold'!$AD$24,"0.35") -> 0.35
M160: =IFERROR(INDEX('Rent Limits'!$A$1:$I$1045,MATCH(AE160,'Rent Limits'!$A$1:$A$1045,0),MATCH(D160,'Rent Limits'!$A$1:$I$1,0)),0) -> 0 | N160: 0 | O160: 0 | P160: =IFERROR(INDEX('Rent Limits'!$J$1:$P$1045,MATCH(AD160,'Rent Limits'!$A$1:$A$1045,0),MATCH(E160,'Rent Limits'!$J$1:$P$1)),0) -> 0 | Q160: 0 | R160: 0 | S160: 0 | T160: 0 | U160: 0 | V160: 0 | W160: 0 | X160: 0 | Y160: 0 | Z160: No | AD160: =CONCATENATE('Project, Applicant, Threshold'!$AD$24,'Assisted Units'!L160) ->  | AE160: =CONCATENATE('Project, Applicant, Threshold'!$AD$24,"0.35") -> 0.35
M161: =IFERROR(INDEX('Rent Limits'!$A$1:$I$1045,MATCH(AE161,'Rent Limits'!$A$1:$A$1045,0),MATCH(D161,'Rent Limits'!$A$1:$I$1,0)),0) -> 0 | N161: 0 | O161: 0 | P161: =IFERROR(INDEX('Rent Limits'!$J$1:$P$1045,MATCH(AD161,'Rent Limits'!$A$1:$A$1045,0),MATCH(E161,'Rent Limits'!$J$1:$P$1)),0) -> 0 | Q161: 0 | R161: 0 | S161: 0 | T161: 0 | U161: 0 | V161: 0 | W161: 0 | X161: 0 | Y161: 0 | Z161: No | AD161: =CONCATENATE('Project, Applicant, Threshold'!$AD$24,'Assisted Units'!L161) ->  | AE161: =CONCATENATE('Project, Applicant, Threshold'!$AD$24,"0.35") -> 0.35
M162: =IFERROR(INDEX('Rent Limits'!$A$1:$I$1045,MATCH(AE162,'Rent Limits'!$A$1:$A$1045,0),MATCH(D162,'Rent Limits'!$A$1:$I$1,0)),0) -> 0 | N162: 0 | O162: 0 | P162: =IFERROR(INDEX('Rent Limits'!$J$1:$P$1045,MATCH(AD162,'Rent Limits'!$A$1:$A$1045,0),MATCH(E162,'Rent Limits'!$J$1:$P$1)),0) -> 0 | Q162: 0 | R162: 0 | S162: 0 | T162: 0 | U162: 0 | V162: 0 | W162: 0 | X162: 0 | Y162: 0 | Z162: No | AD162: =CONCATENATE('Project, Applicant, Threshold'!$AD$24,'Assisted Units'!L162) ->  | AE162: =CONCATENATE('Project, Applicant, Threshold'!$AD$24,"0.35") -> 0.35
M163: =IFERROR(INDEX('Rent Limits'!$A$1:$I$1045,MATCH(AE163,'Rent Limits'!$A$1:$A$1045,0),MATCH(D163,'Rent Limits'!$A$1:$I$1,0)),0) -> 0 | N163: 0 | O163: 0 | P163: =IFERROR(INDEX('Rent Limits'!$J$1:$P$1045,MATCH(AD163,'Rent Limits'!$A$1:$A$1045,0),MATCH(E163,'Rent Limits'!$J$1:$P$1)),0) -> 0 | Q163: 0 | R163: 0 | S163: 0 | T163: 0 | U163: 0 | V163: 0 | W163: 0 | X163: 0 | Y163: 0 | Z163: No | AD163: =CONCATENATE('Project, Applicant, Threshold'!$AD$24,'Assisted Units'!L163) ->  | AE163: =CONCATENATE('Project, Applicant, Threshold'!$AD$24,"0.35") -> 0.35
M164: =IFERROR(INDEX('Rent Limits'!$A$1:$I$1045,MATCH(AE164,'Rent Limits'!$A$1:$A$1045,0),MATCH(D164,'Rent Limits'!$A$1:$I$1,0)),0) -> 0 | N164: 0 | O164: 0 | P164: =IFERROR(INDEX('Rent Limits'!$J$1:$P$1045,MATCH(AD164,'Rent Limits'!$A$1:$A$1045,0),MATCH(E164,'Rent Limits'!$J$1:$P$1)),0) -> 0 | Q164: 0 | R164: 0 | S164: 0 | T164: 0 | U164: 0 | V164: 0 | W164: 0 | X164: 0 | Y164: 0 | Z164: No | AD164: =CONCATENATE('Project, Applicant, Threshold'!$AD$24,'Assisted Units'!L164) ->  | AE164: =CONCATENATE('Project, Applicant, Threshold'!$AD$24,"0.35") -> 0.35
M165: =IFERROR(INDEX('Rent Limits'!$A$1:$I$1045,MATCH(AE165,'Rent Limits'!$A$1:$A$1045,0),MATCH(D165,'Rent Limits'!$A$1:$I$1,0)),0) -> 0 | N165: 0 | O165: 0 | P165: =IFERROR(INDEX('Rent Limits'!$J$1:$P$1045,MATCH(AD165,'Rent Limits'!$A$1:$A$1045,0),MATCH(E165,'Rent Limits'!$J$1:$P$1)),0) -> 0 | Q165: 0 | R165: 0 | S165: 0 | T165: 0 | U165: 0 | V165: 0 | W165: 0 | X165: 0 | Y165: 0 | Z165: No | AD165: =CONCATENATE('Project, Applicant, Threshold'!$AD$24,'Assisted Units'!L165) ->  | AE165: =CONCATENATE('Project, Applicant, Threshold'!$AD$24,"0.35") -> 0.35
M166: =IFERROR(INDEX('Rent Limits'!$A$1:$I$1045,MATCH(AE166,'Rent Limits'!$A$1:$A$1045,0),MATCH(D166,'Rent Limits'!$A$1:$I$1,0)),0) -> 0 | N166: 0 | O166: 0 | P166: =IFERROR(INDEX('Rent Limits'!$J$1:$P$1045,MATCH(AD166,'Rent Limits'!$A$1:$A$1045,0),MATCH(E166,'Rent Limits'!$J$1:$P$1)),0) -> 0 | Q166: 0 | R166: 0 | S166: 0 | T166: 0 | U166: 0 | V166: 0 | W166: 0 | X166: 0 | Y166: 0 | Z166: No | AD166: =CONCATENATE('Project, Applicant, Threshold'!$AD$24,'Assisted Units'!L166) ->  | AE166: =CONCATENATE('Project, Applicant, Threshold'!$AD$24,"0.35") -> 0.35
M167: =IFERROR(INDEX('Rent Limits'!$A$1:$I$1045,MATCH(AE167,'Rent Limits'!$A$1:$A$1045,0),MATCH(D167,'Rent Limits'!$A$1:$I$1,0)),0) -> 0 | N167: 0 | O167: 0 | P167: =IFERROR(INDEX('Rent Limits'!$J$1:$P$1045,MATCH(AD167,'Rent Limits'!$A$1:$A$1045,0),MATCH(E167,'Rent Limits'!$J$1:$P$1)),0) -> 0 | Q167: 0 | R167: 0 | S167: 0 | T167: 0 | U167: 0 | V167: 0 | W167: 0 | X167: 0 | Y167: 0 | Z167: No | AD167: =CONCATENATE('Project, Applicant, Threshold'!$AD$24,'Assisted Units'!L167) ->  | AE167: =CONCATENATE('Project, Applicant, Threshold'!$AD$24,"0.35") -> 0.35
M168: =IFERROR(INDEX('Rent Limits'!$A$1:$I$1045,MATCH(AE168,'Rent Limits'!$A$1:$A$1045,0),MATCH(D168,'Rent Limits'!$A$1:$I$1,0)),0) -> 0 | N168: 0 | O168: 0 | P168: =IFERROR(INDEX('Rent Limits'!$J$1:$P$1045,MATCH(AD168,'Rent Limits'!$A$1:$A$1045,0),MATCH(E168,'Rent Limits'!$J$1:$P$1)),0) -> 0 | Q168: 0 | R168: 0 | S168: 0 | T168: 0 | U168: 0 | V168: 0 | W168: 0 | X168: 0 | Y168: 0 | Z168: No | AD168: =CONCATENATE('Project, Applicant, Threshold'!$AD$24,'Assisted Units'!L168) ->  | AE168: =CONCATENATE('Project, Applicant, Threshold'!$AD$24,"0.35") -> 0.35
M169: =IFERROR(INDEX('Rent Limits'!$A$1:$I$1045,MATCH(AE169,'Rent Limits'!$A$1:$A$1045,0),MATCH(D169,'Rent Limits'!$A$1:$I$1,0)),0) -> 0 | N169: 0 | O169: 0 | P169: =IFERROR(INDEX('Rent Limits'!$J$1:$P$1045,MATCH(AD169,'Rent Limits'!$A$1:$A$1045,0),MATCH(E169,'Rent Limits'!$J$1:$P$1)),0) -> 0 | Q169: 0 | R169: 0 | S169: 0 | T169: 0 | U169: 0 | V169: 0 | W169: 0 | X169: 0 | Y169: 0 | Z169: No | AD169: =CONCATENATE('Project, Applicant, Threshold'!$AD$24,'Assisted Units'!L169) ->  | AE169: =CONCATENATE('Project, Applicant, Threshold'!$AD$24,"0.35") -> 0.35
M170: =IFERROR(INDEX('Rent Limits'!$A$1:$I$1045,MATCH(AE170,'Rent Limits'!$A$1:$A$1045,0),MATCH(D170,'Rent Limits'!$A$1:$I$1,0)),0) -> 0 | N170: 0 | O170: 0 | P170: =IFERROR(INDEX('Rent Limits'!$J$1:$P$1045,MATCH(AD170,'Rent Limits'!$A$1:$A$1045,0),MATCH(E170,'Rent Limits'!$J$1:$P$1)),0) -> 0 | Q170: 0 | R170: 0 | S170: 0 | T170: 0 | U170: 0 | V170: 0 | W170: 0 | X170: 0 | Y170: 0 | Z170: No | AD170: =CONCATENATE('Project, Applicant, Threshold'!$AD$24,'Assisted Units'!L170) ->  | AE170: =CONCATENATE('Project, Applicant, Threshold'!$AD$24,"0.35") -> 0.35
M171: =IFERROR(INDEX('Rent Limits'!$A$1:$I$1045,MATCH(AE171,'Rent Limits'!$A$1:$A$1045,0),MATCH(D171,'Rent Limits'!$A$1:$I$1,0)),0) -> 0 | N171: 0 | O171: 0 | P171: =IFERROR(INDEX('Rent Limits'!$J$1:$P$1045,MATCH(AD171,'Rent Limits'!$A$1:$A$1045,0),MATCH(E171,'Rent Limits'!$J$1:$P$1)),0) -> 0 | Q171: 0 | R171: 0 | S171: 0 | T171: 0 | U171: 0 | V171: 0 | W171: 0 | X171: 0 | Y171: 0 | Z171: No | AD171: =CONCATENATE('Project, Applicant, Threshold'!$AD$24,'Assisted Units'!L171) ->  | AE171: =CONCATENATE('Project, Applicant, Threshold'!$AD$24,"0.35") -> 0.35
M172: =IFERROR(INDEX('Rent Limits'!$A$1:$I$1045,MATCH(AE172,'Rent Limits'!$A$1:$A$1045,0),MATCH(D172,'Rent Limits'!$A$1:$I$1,0)),0) -> 0 | N172: 0 | O172: 0 | P172: =IFERROR(INDEX('Rent Limits'!$J$1:$P$1045,MATCH(AD172,'Rent Limits'!$A$1:$A$1045,0),MATCH(E172,'Rent Limits'!$J$1:$P$1)),0) -> 0 | Q172: 0 | R172: 0 | S172: 0 | T172: 0 | U172: 0 | V172: 0 | W172: 0 | X172: 0 | Y172: 0 | Z172: No | AD172: =CONCATENATE('Project, Applicant, Threshold'!$AD$24,'Assisted Units'!L172) ->  | AE172: =CONCATENATE('Project, Applicant, Threshold'!$AD$24,"0.35") -> 0.35
M173: =IFERROR(INDEX('Rent Limits'!$A$1:$I$1045,MATCH(AE173,'Rent Limits'!$A$1:$A$1045,0),MATCH(D173,'Rent Limits'!$A$1:$I$1,0)),0) -> 0 | N173: 0 | O173: 0 | P173: =IFERROR(INDEX('Rent Limits'!$J$1:$P$1045,MATCH(AD173,'Rent Limits'!$A$1:$A$1045,0),MATCH(E173,'Rent Limits'!$J$1:$P$1)),0) -> 0 | Q173: 0 | R173: 0 | S173: 0 | T173: 0 | U173: 0 | V173: 0 | W173: 0 | X173: 0 | Y173: 0 | Z173: No | AD173: =CONCATENATE('Project, Applicant, Threshold'!$AD$24,'Assisted Units'!L173) ->  | AE173: =CONCATENATE('Project, Applicant, Threshold'!$AD$24,"0.35") -> 0.35
M174: =IFERROR(INDEX('Rent Limits'!$A$1:$I$1045,MATCH(AE174,'Rent Limits'!$A$1:$A$1045,0),MATCH(D174,'Rent Limits'!$A$1:$I$1,0)),0) -> 0 | N174: 0 | O174: 0 | P174: =IFERROR(INDEX('Rent Limits'!$J$1:$P$1045,MATCH(AD174,'Rent Limits'!$A$1:$A$1045,0),MATCH(E174,'Rent Limits'!$J$1:$P$1)),0) -> 0 | Q174: 0 | R174: 0 | S174: 0 | T174: 0 | U174: 0 | V174: 0 | W174: 0 | X174: 0 | Y174: 0 | Z174: No | AD174: =CONCATENATE('Project, Applicant, Threshold'!$AD$24,'Assisted Units'!L174) ->  | AE174: =CONCATENATE('Project, Applicant, Threshold'!$AD$24,"0.35") -> 0.35
M175: =IFERROR(INDEX('Rent Limits'!$A$1:$I$1045,MATCH(AE175,'Rent Limits'!$A$1:$A$1045,0),MATCH(D175,'Rent Limits'!$A$1:$I$1,0)),0) -> 0 | N175: 0 | O175: 0 | P175: =IFERROR(INDEX('Rent Limits'!$J$1:$P$1045,MATCH(AD175,'Rent Limits'!$A$1:$A$1045,0),MATCH(E175,'Rent Limits'!$J$1:$P$1)),0) -> 0 | Q175: 0 | R175: 0 | S175: 0 | T175: 0 | U175: 0 | V175: 0 | W175: 0 | X175: 0 | Y175: 0 | Z175: No | AD175: =CONCATENATE('Project, Applicant, Threshold'!$AD$24,'Assisted Units'!L175) ->  | AE175: =CONCATENATE('Project, Applicant, Threshold'!$AD$24,"0.35") -> 0.35
M176: =IFERROR(INDEX('Rent Limits'!$A$1:$I$1045,MATCH(AE176,'Rent Limits'!$A$1:$A$1045,0),MATCH(D176,'Rent Limits'!$A$1:$I$1,0)),0) -> 0 | N176: 0 | O176: 0 | P176: =IFERROR(INDEX('Rent Limits'!$J$1:$P$1045,MATCH(AD176,'Rent Limits'!$A$1:$A$1045,0),MATCH(E176,'Rent Limits'!$J$1:$P$1)),0) -> 0 | Q176: 0 | R176: 0 | S176: 0 | T176: 0 | U176: 0 | V176: 0 | W176: 0 | X176: 0 | Y176: 0 | Z176: No | AD176: =CONCATENATE('Project, Applicant, Threshold'!$AD$24,'Assisted Units'!L176) ->  | AE176: =CONCATENATE('Project, Applicant, Threshold'!$AD$24,"0.35") -> 0.35
M177: =IFERROR(INDEX('Rent Limits'!$A$1:$I$1045,MATCH(AE177,'Rent Limits'!$A$1:$A$1045,0),MATCH(D177,'Rent Limits'!$A$1:$I$1,0)),0) -> 0 | N177: 0 | O177: 0 | P177: =IFERROR(INDEX('Rent Limits'!$J$1:$P$1045,MATCH(AD177,'Rent Limits'!$A$1:$A$1045,0),MATCH(E177,'Rent Limits'!$J$1:$P$1)),0) -> 0 | Q177: 0 | R177: 0 | S177: 0 | T177: 0 | U177: 0 | V177: 0 | W177: 0 | X177: 0 | Y177: 0 | Z177: No | AD177: =CONCATENATE('Project, Applicant, Threshold'!$AD$24,'Assisted Units'!L177) ->  | AE177: =CONCATENATE('Project, Applicant, Threshold'!$AD$24,"0.35") -> 0.35
M178: =IFERROR(INDEX('Rent Limits'!$A$1:$I$1045,MATCH(AE178,'Rent Limits'!$A$1:$A$1045,0),MATCH(D178,'Rent Limits'!$A$1:$I$1,0)),0) -> 0 | N178: 0 | O178: 0 | P178: =IFERROR(INDEX('Rent Limits'!$J$1:$P$1045,MATCH(AD178,'Rent Limits'!$A$1:$A$1045,0),MATCH(E178,'Rent Limits'!$J$1:$P$1)),0) -> 0 | Q178: 0 | R178: 0 | S178: 0 | T178: 0 | U178: 0 | V178: 0 | W178: 0 | X178: 0 | Y178: 0 | Z178: No | AD178: =CONCATENATE('Project, Applicant, Threshold'!$AD$24,'Assisted Units'!L178) ->  | AE178: =CONCATENATE('Project, Applicant, Threshold'!$AD$24,"0.35") -> 0.35
M179: =IFERROR(INDEX('Rent Limits'!$A$1:$I$1045,MATCH(AE179,'Rent Limits'!$A$1:$A$1045,0),MATCH(D179,'Rent Limits'!$A$1:$I$1,0)),0) -> 0 | N179: 0 | O179: 0 | P179: =IFERROR(INDEX('Rent Limits'!$J$1:$P$1045,MATCH(AD179,'Rent Limits'!$A$1:$A$1045,0),MATCH(E179,'Rent Limits'!$J$1:$P$1)),0) -> 0 | Q179: 0 | R179: 0 | S179: 0 | T179: 0 | U179: 0 | V179: 0 | W179: 0 | X179: 0 | Y179: 0 | Z179: No | AD179: =CONCATENATE('Project, Applicant, Threshold'!$AD$24,'Assisted Units'!L179) ->  | AE179: =CONCATENATE('Project, Applicant, Threshold'!$AD$24,"0.35") -> 0.35
M180: =IFERROR(INDEX('Rent Limits'!$A$1:$I$1045,MATCH(AE180,'Rent Limits'!$A$1:$A$1045,0),MATCH(D180,'Rent Limits'!$A$1:$I$1,0)),0) -> 0 | N180: 0 | O180: 0 | P180: =IFERROR(INDEX('Rent Limits'!$J$1:$P$1045,MATCH(AD180,'Rent Limits'!$A$1:$A$1045,0),MATCH(E180,'Rent Limits'!$J$1:$P$1)),0) -> 0 | Q180: 0 | R180: 0 | S180: 0 | T180: 0 | U180: 0 | V180: 0 | W180: 0 | X180: 0 | Y180: 0 | Z180: No | AD180: =CONCATENATE('Project, Applicant, Threshold'!$AD$24,'Assisted Units'!L180) ->  | AE180: =CONCATENATE('Project, Applicant, Threshold'!$AD$24,"0.35") -> 0.35
M181: =IFERROR(INDEX('Rent Limits'!$A$1:$I$1045,MATCH(AE181,'Rent Limits'!$A$1:$A$1045,0),MATCH(D181,'Rent Limits'!$A$1:$I$1,0)),0) -> 0 | N181: 0 | O181: 0 | P181: =IFERROR(INDEX('Rent Limits'!$J$1:$P$1045,MATCH(AD181,'Rent Limits'!$A$1:$A$1045,0),MATCH(E181,'Rent Limits'!$J$1:$P$1)),0) -> 0 | Q181: 0 | R181: 0 | S181: 0 | T181: 0 | U181: 0 | V181: 0 | W181: 0 | X181: 0 | Y181: 0 | Z181: No | AD181: =CONCATENATE('Project, Applicant, Threshold'!$AD$24,'Assisted Units'!L181) ->  | AE181: =CONCATENATE('Project, Applicant, Threshold'!$AD$24,"0.35") -> 0.35
M182: =IFERROR(INDEX('Rent Limits'!$A$1:$I$1045,MATCH(AE182,'Rent Limits'!$A$1:$A$1045,0),MATCH(D182,'Rent Limits'!$A$1:$I$1,0)),0) -> 0 | N182: 0 | O182: 0 | P182: =IFERROR(INDEX('Rent Limits'!$J$1:$P$1045,MATCH(AD182,'Rent Limits'!$A$1:$A$1045,0),MATCH(E182,'Rent Limits'!$J$1:$P$1)),0) -> 0 | Q182: 0 | R182: 0 | S182: 0 | T182: 0 | U182: 0 | V182: 0 | W182: 0 | X182: 0 | Y182: 0 | Z182: No | AD182: =CONCATENATE('Project, Applicant, Threshold'!$AD$24,'Assisted Units'!L182) ->  | AE182: =CONCATENATE('Project, Applicant, Threshold'!$AD$24,"0.35") -> 0.35
M183: =IFERROR(INDEX('Rent Limits'!$A$1:$I$1045,MATCH(AE183,'Rent Limits'!$A$1:$A$1045,0),MATCH(D183,'Rent Limits'!$A$1:$I$1,0)),0) -> 0 | N183: 0 | O183: 0 | P183: =IFERROR(INDEX('Rent Limits'!$J$1:$P$1045,MATCH(AD183,'Rent Limits'!$A$1:$A$1045,0),MATCH(E183,'Rent Limits'!$J$1:$P$1)),0) -> 0 | Q183: 0 | R183: 0 | S183: 0 | T183: 0 | U183: 0 | V183: 0 | W183: 0 | X183: 0 | Y183: 0 | Z183: No | AD183: =CONCATENATE('Project, Applicant, Threshold'!$AD$24,'Assisted Units'!L183) ->  | AE183: =CONCATENATE('Project, Applicant, Threshold'!$AD$24,"0.35") -> 0.35
M184: =IFERROR(INDEX('Rent Limits'!$A$1:$I$1045,MATCH(AE184,'Rent Limits'!$A$1:$A$1045,0),MATCH(D184,'Rent Limits'!$A$1:$I$1,0)),0) -> 0 | N184: 0 | O184: 0 | P184: =IFERROR(INDEX('Rent Limits'!$J$1:$P$1045,MATCH(AD184,'Rent Limits'!$A$1:$A$1045,0),MATCH(E184,'Rent Limits'!$J$1:$P$1)),0) -> 0 | Q184: 0 | R184: 0 | S184: 0 | T184: 0 | U184: 0 | V184: 0 | W184: 0 | X184: 0 | Y184: 0 | Z184: No | AD184: =CONCATENATE('Project, Applicant, Threshold'!$AD$24,'Assisted Units'!L184) ->  | AE184: =CONCATENATE('Project, Applicant, Threshold'!$AD$24,"0.35") -> 0.35
M185: =IFERROR(INDEX('Rent Limits'!$A$1:$I$1045,MATCH(AE185,'Rent Limits'!$A$1:$A$1045,0),MATCH(D185,'Rent Limits'!$A$1:$I$1,0)),0) -> 0 | N185: 0 | O185: 0 | P185: =IFERROR(INDEX('Rent Limits'!$J$1:$P$1045,MATCH(AD185,'Rent Limits'!$A$1:$A$1045,0),MATCH(E185,'Rent Limits'!$J$1:$P$1)),0) -> 0 | Q185: 0 | R185: 0 | S185: 0 | T185: 0 | U185: 0 | V185: 0 | W185: 0 | X185: 0 | Y185: 0 | Z185: No | AD185: =CONCATENATE('Project, Applicant, Threshold'!$AD$24,'Assisted Units'!L185) ->  | AE185: =CONCATENATE('Project, Applicant, Threshold'!$AD$24,"0.35") -> 0.35
M186: =IFERROR(INDEX('Rent Limits'!$A$1:$I$1045,MATCH(AE186,'Rent Limits'!$A$1:$A$1045,0),MATCH(D186,'Rent Limits'!$A$1:$I$1,0)),0) -> 0 | N186: 0 | O186: 0 | P186: =IFERROR(INDEX('Rent Limits'!$J$1:$P$1045,MATCH(AD186,'Rent Limits'!$A$1:$A$1045,0),MATCH(E186,'Rent Limits'!$J$1:$P$1)),0) -> 0 | Q186: 0 | R186: 0 | S186: 0 | T186: 0 | U186: 0 | V186: 0 | W186: 0 | X186: 0 | Y186: 0 | Z186: No | AD186: =CONCATENATE('Project, Applicant, Threshold'!$AD$24,'Assisted Units'!L186) ->  | AE186: =CONCATENATE('Project, Applicant, Threshold'!$AD$24,"0.35") -> 0.35
M187: =IFERROR(INDEX('Rent Limits'!$A$1:$I$1045,MATCH(AE187,'Rent Limits'!$A$1:$A$1045,0),MATCH(D187,'Rent Limits'!$A$1:$I$1,0)),0) -> 0 | N187: 0 | O187: 0 | P187: =IFERROR(INDEX('Rent Limits'!$J$1:$P$1045,MATCH(AD187,'Rent Limits'!$A$1:$A$1045,0),MATCH(E187,'Rent Limits'!$J$1:$P$1)),0) -> 0 | Q187: 0 | R187: 0 | S187: 0 | T187: 0 | U187: 0 | V187: 0 | W187: 0 | X187: 0 | Y187: 0 | Z187: No | AD187: =CONCATENATE('Project, Applicant, Threshold'!$AD$24,'Assisted Units'!L187) ->  | AE187: =CONCATENATE('Project, Applicant, Threshold'!$AD$24,"0.35") -> 0.35
M188: =IFERROR(INDEX('Rent Limits'!$A$1:$I$1045,MATCH(AE188,'Rent Limits'!$A$1:$A$1045,0),MATCH(D188,'Rent Limits'!$A$1:$I$1,0)),0) -> 0 | N188: 0 | O188: 0 | P188: =IFERROR(INDEX('Rent Limits'!$J$1:$P$1045,MATCH(AD188,'Rent Limits'!$A$1:$A$1045,0),MATCH(E188,'Rent Limits'!$J$1:$P$1)),0) -> 0 | Q188: 0 | R188: 0 | S188: 0 | T188: 0 | U188: 0 | V188: 0 | W188: 0 | X188: 0 | Y188: 0 | Z188: No | AD188: =CONCATENATE('Project, Applicant, Threshold'!$AD$24,'Assisted Units'!L188) ->  | AE188: =CONCATENATE('Project, Applicant, Threshold'!$AD$24,"0.35") -> 0.35
M189: =IFERROR(INDEX('Rent Limits'!$A$1:$I$1045,MATCH(AE189,'Rent Limits'!$A$1:$A$1045,0),MATCH(D189,'Rent Limits'!$A$1:$I$1,0)),0) -> 0 | N189: 0 | O189: 0 | P189: =IFERROR(INDEX('Rent Limits'!$J$1:$P$1045,MATCH(AD189,'Rent Limits'!$A$1:$A$1045,0),MATCH(E189,'Rent Limits'!$J$1:$P$1)),0) -> 0 | Q189: 0 | R189: 0 | S189: 0 | T189: 0 | U189: 0 | V189: 0 | W189: 0 | X189: 0 | Y189: 0 | Z189: No | AD189: =CONCATENATE('Project, Applicant, Threshold'!$AD$24,'Assisted Units'!L189) ->  | AE189: =CONCATENATE('Project, Applicant, Threshold'!$AD$24,"0.35") -> 0.35
M190: =IFERROR(INDEX('Rent Limits'!$A$1:$I$1045,MATCH(AE190,'Rent Limits'!$A$1:$A$1045,0),MATCH(D190,'Rent Limits'!$A$1:$I$1,0)),0) -> 0 | N190: 0 | O190: 0 | P190: =IFERROR(INDEX('Rent Limits'!$J$1:$P$1045,MATCH(AD190,'Rent Limits'!$A$1:$A$1045,0),MATCH(E190,'Rent Limits'!$J$1:$P$1)),0) -> 0 | Q190: 0 | R190: 0 | S190: 0 | T190: 0 | U190: 0 | V190: 0 | W190: 0 | X190: 0 | Y190: 0 | Z190: No | AD190: =CONCATENATE('Project, Applicant, Threshold'!$AD$24,'Assisted Units'!L190) ->  | AE190: =CONCATENATE('Project, Applicant, Threshold'!$AD$24,"0.35") -> 0.35
M191: =IFERROR(INDEX('Rent Limits'!$A$1:$I$1045,MATCH(AE191,'Rent Limits'!$A$1:$A$1045,0),MATCH(D191,'Rent Limits'!$A$1:$I$1,0)),0) -> 0 | N191: 0 | O191: 0 | P191: =IFERROR(INDEX('Rent Limits'!$J$1:$P$1045,MATCH(AD191,'Rent Limits'!$A$1:$A$1045,0),MATCH(E191,'Rent Limits'!$J$1:$P$1)),0) -> 0 | Q191: 0 | R191: 0 | S191: 0 | T191: 0 | U191: 0 | V191: 0 | W191: 0 | X191: 0 | Y191: 0 | Z191: No | AD191: =CONCATENATE('Project, Applicant, Threshold'!$AD$24,'Assisted Units'!L191) ->  | AE191: =CONCATENATE('Project, Applicant, Threshold'!$AD$24,"0.35") -> 0.35
M192: =IFERROR(INDEX('Rent Limits'!$A$1:$I$1045,MATCH(AE192,'Rent Limits'!$A$1:$A$1045,0),MATCH(D192,'Rent Limits'!$A$1:$I$1,0)),0) -> 0 | N192: 0 | O192: 0 | P192: =IFERROR(INDEX('Rent Limits'!$J$1:$P$1045,MATCH(AD192,'Rent Limits'!$A$1:$A$1045,0),MATCH(E192,'Rent Limits'!$J$1:$P$1)),0) -> 0 | Q192: 0 | R192: 0 | S192: 0 | T192: 0 | U192: 0 | V192: 0 | W192: 0 | X192: 0 | Y192: 0 | Z192: No | AD192: =CONCATENATE('Project, Applicant, Threshold'!$AD$24,'Assisted Units'!L192) ->  | AE192: =CONCATENATE('Project, Applicant, Threshold'!$AD$24,"0.35") -> 0.35
M193: =IFERROR(INDEX('Rent Limits'!$A$1:$I$1045,MATCH(AE193,'Rent Limits'!$A$1:$A$1045,0),MATCH(D193,'Rent Limits'!$A$1:$I$1,0)),0) -> 0 | N193: 0 | O193: 0 | P193: =IFERROR(INDEX('Rent Limits'!$J$1:$P$1045,MATCH(AD193,'Rent Limits'!$A$1:$A$1045,0),MATCH(E193,'Rent Limits'!$J$1:$P$1)),0) -> 0 | Q193: 0 | R193: 0 | S193: 0 | T193: 0 | U193: 0 | V193: 0 | W193: 0 | X193: 0 | Y193: 0 | Z193: No | AD193: =CONCATENATE('Project, Applicant, Threshold'!$AD$24,'Assisted Units'!L193) ->  | AE193: =CONCATENATE('Project, Applicant, Threshold'!$AD$24,"0.35") -> 0.35
M194: =IFERROR(INDEX('Rent Limits'!$A$1:$I$1045,MATCH(AE194,'Rent Limits'!$A$1:$A$1045,0),MATCH(D194,'Rent Limits'!$A$1:$I$1,0)),0) -> 0 | N194: 0 | O194: 0 | P194: =IFERROR(INDEX('Rent Limits'!$J$1:$P$1045,MATCH(AD194,'Rent Limits'!$A$1:$A$1045,0),MATCH(E194,'Rent Limits'!$J$1:$P$1)),0) -> 0 | Q194: 0 | R194: 0 | S194: 0 | T194: 0 | U194: 0 | V194: 0 | W194: 0 | X194: 0 | Y194: 0 | Z194: No | AD194: =CONCATENATE('Project, Applicant, Threshold'!$AD$24,'Assisted Units'!L194) ->  | AE194: =CONCATENATE('Project, Applicant, Threshold'!$AD$24,"0.35") -> 0.35
M195: =IFERROR(INDEX('Rent Limits'!$A$1:$I$1045,MATCH(AE195,'Rent Limits'!$A$1:$A$1045,0),MATCH(D195,'Rent Limits'!$A$1:$I$1,0)),0) -> 0 | N195: 0 | O195: =H195*(1+N195) -> 0 | P195: =IFERROR(INDEX('Rent Limits'!$J$1:$P$1045,MATCH(AD195,'Rent Limits'!$A$1:$A$1045,0),MATCH(E195,'Rent Limits'!$J$1:$P$1)),0) -> 0 | Q195: =ROUND(G195*0.5/12,0) -> 0 | R195: 0 | S195: 0 | T195: 0 | U195: =IF(D195="Vacant",S195-T195,S195) -> 0 | V195: =U195*12 -> 0 | W195: 0 | X195: 0 | Y195: =IFERROR(S195*12/G195,0) -> 0 | Z195: No | AD195: =CONCATENATE('Project, Applicant, Threshold'!$AD$24,'Assisted Units'!L195) ->  | AE195: =CONCATENATE('Project, Applicant, Threshold'!$AD$24,"0.35") -> 0.35
M196: =IFERROR(INDEX('Rent Limits'!$A$1:$I$1045,MATCH(AE196,'Rent Limits'!$A$1:$A$1045,0),MATCH(D196,'Rent Limits'!$A$1:$I$1,0)),0) -> 0 | N196: =IF(OR(G196="",D196="Vacant"),0,IF(G196<=M196,0.05,0.1)) -> 0 | O196: 0 | P196: =IFERROR(INDEX('Rent Limits'!$J$1:$P$1045,MATCH(AD196,'Rent Limits'!$A$1:$A$1045,0),MATCH(E196,'Rent Limits'!$J$1:$P$1)),0) -> 0 | Q196: 0 | R196: =H196 -> 0 | S196: 0 | T196: 0 | U196: 0 | V196: 0 | W196: 0 | X196: 0 | Y196: 0 | Z196: =IF(OR(AND(K196="VLI",L196>0.3),AND(K196="LI",L196>$AA$3),AND(OR(J196="New PRP",K196="New PRP"),L196=0.8)),"Yes","No") -> No | AD196: =CONCATENATE('Project, Applicant, Threshold'!$AD$24,'Assisted Units'!L196) ->  | AE196: =CONCATENATE('Project, Applicant, Threshold'!$AD$24,"0.35") -> 0.35
M197: =IFERROR(INDEX('Rent Limits'!$A$1:$I$1045,MATCH(AE197,'Rent Limits'!$A$1:$A$1045,0),MATCH(D197,'Rent Limits'!$A$1:$I$1,0)),0) -> 0 | N197: 0 | O197: 0 | P197: =IFERROR(INDEX('Rent Limits'!$J$1:$P$1045,MATCH(AD197,'Rent Limits'!$A$1:$A$1045,0),MATCH(E197,'Rent Limits'!$J$1:$P$1)),0) -> 0 | Q197: 0 | R197: 0 | S197: 0 | T197: 0 | U197: 0 | V197: 0 | W197: 0 | X197: 0 | Y197: 0 | Z197: No | AD197: =CONCATENATE('Project, Applicant, Threshold'!$AD$24,'Assisted Units'!L197) ->  | AE197: =CONCATENATE('Project, Applicant, Threshold'!$AD$24,"0.35") -> 0.35
M198: =IFERROR(INDEX('Rent Limits'!$A$1:$I$1045,MATCH(AE198,'Rent Limits'!$A$1:$A$1045,0),MATCH(D198,'Rent Limits'!$A$1:$I$1,0)),0) -> 0 | N198: 0 | O198: 0 | P198: =IFERROR(INDEX('Rent Limits'!$J$1:$P$1045,MATCH(AD198,'Rent Limits'!$A$1:$A$1045,0),MATCH(E198,'Rent Limits'!$J$1:$P$1)),0) -> 0 | Q198: 0 | R198: 0 | S198: =IF(OR(D198="Vacant",J198="New PRP"),P198,MAX(R198,MIN(P198,O198,Q198))) -> 0 | T198: 0 | U198: 0 | V198: 0 | W198: 0 | X198: 0 | Y198: 0 | Z198: No | AD198: =CONCATENATE('Project, Applicant, Threshold'!$AD$24,'Assisted Units'!L198) ->  | AE198: =CONCATENATE('Project, Applicant, Threshold'!$AD$24,"0.35") -> 0.35
M199: =IFERROR(INDEX('Rent Limits'!$A$1:$I$1045,MATCH(AE199,'Rent Limits'!$A$1:$A$1045,0),MATCH(D199,'Rent Limits'!$A$1:$I$1,0)),0) -> 0 | N199: 0 | O199: 0 | P199: =IFERROR(INDEX('Rent Limits'!$J$1:$P$1045,MATCH(AD199,'Rent Limits'!$A$1:$A$1045,0),MATCH(E199,'Rent Limits'!$J$1:$P$1)),0) -> 0 | Q199: 0 | R199: 0 | S199: 0 | T199: 0 | U199: 0 | V199: 0 | W199: 0 | X199: 0 | Y199: 0 | Z199: No | AD199: =CONCATENATE('Project, Applicant, Threshold'!$AD$24,'Assisted Units'!L199) ->  | AE199: =CONCATENATE('Project, Applicant, Threshold'!$AD$24,"0.35") -> 0.35
M200: =IFERROR(INDEX('Rent Limits'!$A$1:$I$1045,MATCH(AE200,'Rent Limits'!$A$1:$A$1045,0),MATCH(D200,'Rent Limits'!$A$1:$I$1,0)),0) -> 0 | N200: 0 | O200: 0 | P200: =IFERROR(INDEX('Rent Limits'!$J$1:$P$1045,MATCH(AD200,'Rent Limits'!$A$1:$A$1045,0),MATCH(E200,'Rent Limits'!$J$1:$P$1)),0) -> 0 | Q200: 0 | R200: 0 | S200: 0 | T200: 0 | U200: 0 | V200: 0 | W200: 0 | X200: 0 | Y200: 0 | Z200: No | AD200: =CONCATENATE('Project, Applicant, Threshold'!$AD$24,'Assisted Units'!L200) ->  | AE200: =CONCATENATE('Project, Applicant, Threshold'!$AD$24,"0.35") -> 0.35
... 80 more rows

Sheet Non Assisted Units
A1: Non-Assisted Units (enter manager units on 'Assisted Units' worksheet) | H1: ='PRP Cover Page'!B9 -> 2022-04-07
A2: (A) | C2: (B) | E2: (C) | F2: (D) | G2: (E) | H2: (F)
A3: Unit Size Number of Bedrooms GHOCC = Group Home Occupancy (Use 0 for GHOCC, SRO or Studio apts) | C3: Number of Units (include all non-assisted manager units) | E3: Total Average Monthly Rent (include all non-assisted manager units in average) | F3: Total Annual Rent | G3: Total Annual Tenant Assistance Subsidies | H3: Total Annual Rental Revenue
A4: 0 | F4: =E4*C4*12 -> 0 | H4: =F4+G4 -> 0
A5: 1 | F5: 0 | H5: 0
A6: 2 | F6: 0 | H6: 0
A7: 3 | F7: 0 | H7: 0
A8: 4 | F8: 0 | H8: 0
A9: 5 | F9: 0 | H9: 0
A10: TOTALS | C10: =SUM(C4:D9) -> 0 | F10: =SUM(F4:F9) -> 0 | G10: =SUM(G4:G9) -> 0 | H10: =SUM(H4:H9) -> 0

Sheet Summary Original Assisted Units
A1: Original Assisted and New PRP Assisted Units from 'Assisted Units' worksheet | C1: HCD Unit Designation
A2: Bedroom size (to see data: right click and select 'Refresh') | B2: Original HCD RA Targeted Income Level | C2: (blank) | D2: Grand Total
A3: (blank)
B4: (blank)
B6: (blank) Count
A7: Grand Total

Sheet Summary Proposed Assisted Units
A1: Proposed Assisted Units from 'Assisted Units' worksheet | C1: HCD Unit Designation
A2: Bedroom size (to see data: right click and select 'Refresh') | B2: HCD New PRP RA Targeted AMI Level | C2: (blank) | D2: Grand Total
A3: (blank)
B4: (blank)
B6: (blank) Count
A7: Grand Total

Sheet Dev Budget
A1: ='PRP Cover Page'!B9 -> 2022-04-07 | B1: Residential Permanent Sources/Uses of Funds | J1: Commercial Sources/Uses
A2: Uses of Funds | B2: HCD PRP Rehab Loan | C2: Residential Source Name: | D2: Residential Source Name: | E2: Residential Source Name: | F2: Residential Source Name: | G2: Private mortgage financing | H2: Deferred costs | I2: Total Residential Sources/Costs | J2: Total Commercial Sources/Costs | K2: Commercial Source Name: | L2: Commercial Source Name:
A4: Project Development Costs
A5: LAND COST/ACQUISITION
A6: Land Cost or Value | I6: =SUM(B6:H6) -> 0 | J6: =K6+L6 -> 0
A7: Demolition | I7: =SUM(B7:H7) -> 0 | J7: =K7+L7 -> 0
A8: Legal | I8: =SUM(B8:H8) -> 0 | J8: 0
A9: Land Lease Rent Prepayment | I9: =SUM(B9:H9) -> 0 | J9: 0
A10: Total Land Cost or Value | B10: =SUM(B6:B9) -> 0 | C10: =SUM(C6:C9) -> 0 | D10: 0 | E10: 0 | F10: 0 | G10: 0 | H10: 0 | I10: 0 | J10: 0 | K10: =SUM(K6:K9) -> 0 | L10: 0
A11: Existing Improvements Cost or Value | I11: =SUM(B11:H11) -> 0 | J11: 0
A12: Off-Site Improvements | I12: =SUM(B12:H12) -> 0 | J12: 0
A13: Total Acquisition Cost | B13: =SUM(B11:B12) -> 0 | C13: =SUM(C11:C12) -> 0 | D13: 0 | E13: 0 | F13: 0 | G13: 0 | H13: 0 | I13: 0 | J13: 0 | K13: =SUM(K11:K12) -> 0 | L13: 0
A14: Total Land Cost / Acquisition Cost | B14: =SUM(B10+B13) -> 0 | C14: =SUM(C10+C13) -> 0 | D14: =SUM(D10+D13) -> 0 | E14: 0 | F14: 0 | G14: 0 | H14: 0 | I14: 0 | J14: 0 | K14: =SUM(K10+K13) -> 0 | L14: 0
A15: Predevelopment Interest/Holding Cost | I15: =SUM(B15:H15) -> 0 | J15: 0
A16: Assumed, Accrued Interest on Existing Debt (Rehab/Acq) | I16: =SUM(B16:H16) -> 0 | J16: 0
A17: Excess Purchase Price Over Appraisal | I17: =SUM(B17:H17) -> 0 | J17: 0
A18: REHABILITATION
A19: Site Work | I19: =SUM(B19:H19) -> 0 | J19: 0
A20: Structures | I20: 0 | J20: 0
A21: General Requirements | I21: 0 | J21: 0
A22: Contractor Overhead | I22: 0 | J22: 0
A23: Contractor Profit | I23: 0 | J23: 0
A24: Prevailing Wages | I24: 0 | J24: 0
A25: General Liability Insurance | I25: 0 | J25: 0
A26: Urban Greening | I26: 0 | J26: 0
A27: Other Rehabilitation: (Specify) | I27: 0 | J27: 0
A28: Other Rehabilitation: (Specify) | I28: 0 | J28: 0
A29: Other Rehabilitation: (Specify) | I29: 0 | J29: 0
A30: Total Rehabilitation Costs | B30: =SUM(B19:B29) -> 0 | C30: =SUM(C19:C29) -> 0 | D30: =SUM(D19:D29) -> 0 | E30: 0 | F30: 0 | G30: 0 | H30: 0 | I30: 0 | J30: =SUM(J19:J29) -> 0 | K30: 0 | L30: 0
A31: Total Relocation Expenses | I31: =SUM(B31:H31) -> 0 | J31: 0
A32: NEW CONSTRUCTION
A33: Site Work | I33: =SUM(B33:H33) -> 0 | J33: =K33+L33 -> 0
A34: Structures | I34: 0 | J34: 0
A35: General Requirements | I35: 0 | J35: 0
A36: Contractor Overhead | I36: 0 | J36: 0
A37: Contractor Profit | I37: 0 | J37: 0
A38: Prevailing Wages | I38: 0 | J38: 0
A39: General Liability Insurance | I39: 0 | J39: 0
A40: Urban Greening | I40: 0 | J40: 0
A41: Other New Construction: (Specify) | I41: 0 | J41: 0
A42: Other New Construction: (Specify) | I42: 0 | J42: 0
A43: Other New Construction: (Specify) | I43: 0 | J43: 0
A44: Total New Construction Costs | B44: =SUM(B33:B43) -> 0 | C44: =SUM(C33:C43) -> 0 | D44: =SUM(D33:D43) -> 0 | E44: 0 | F44: 0 | G44: 0 | H44: 0 | I44: 0 | J44: 0 | K44: =SUM(K33:K43) -> 0 | L44: 0
A45: ARCHITECTURAL FEES
A46: Design | I46: =SUM(B46:H46) -> 0 | J46: =K46+L46 -> 0
A47: Supervision | I47: =SUM(B47:H47) -> 0 | J47: 0
A48: Total Architectural Costs | B48: =SUM(B45:B47) -> 0 | C48: =SUM(C45:C47) -> 0 | D48: =SUM(D45:D47) -> 0 | E48: 0 | F48: 0 | G48: 0 | H48: 0 | I48: 0 | J48: 0 | K48: =SUM(K45:K47) -> 0 | L48: 0
A49: Total Survey & Engineering | I49: =SUM(B49:H49) -> 0 | J49: 0
A50: CONSTRUCTION INTEREST & FEES
A51: Construction Loan Interest | I51: =SUM(B51:H51) -> 0 | J51: =K51+L51 -> 0
A52: Origination Fee | I52: 0 | J52: 0
A53: Credit Enhancement/Application Fee | I53: 0 | J53: 0
A54: Bond Premium | I54: 0 | J54: 0
A55: Cost of Issuance | I55: 0 | J55: 0
A56: Title & Recording | I56: 0 | J56: 0
A57: Taxes | I57: 0 | J57: 0
A58: Insurance | I58: 0 | J58: 0
A59: Employment Reporting | I59: 0 | J59: 0
A60: Other Construction Int. & Fees: (Specify) | I60: 0 | J60: 0
A61: Other Construction Int. & Fees: (Specify) | I61: 0 | J61: 0
A62: Other Construction Int. & Fees: (Specify) | I62: 0 | J62: 0
A63: Other Construction Int. & Fees: (Specify) | I63: 0 | J63: 0
A64: Total Construction Interest & Fees | B64: =SUM(B51:B63) -> 0 | C64: =SUM(C51:C63) -> 0 | D64: =SUM(D51:D63) -> 0 | E64: 0 | F64: 0 | G64: 0 | H64: 0 | I64: 0 | J64: 0 | K64: =SUM(K51:K63) -> 0 | L64: 0
A65: PERMANENT FINANCING
A66: Loan Origination Fee | I66: =SUM(B66:H66) -> 0 | J66: =K66+L66 -> 0
A67: Credit Enhancement/Application Fee | I67: 0 | J67: 0
A68: Title & Recording | I68: 0 | J68: 0
A69: Taxes | I69: 0 | J69: 0
A70: Insurance | I70: 0 | J70: 0
A71: Other Perm. Financing Costs: (Specify) | I71: 0 | J71: 0
A72: Other Perm. Financing Costs: (Specify) | I72: 0 | J72: 0
A73: Other Perm. Financing Costs: (Specify) | I73: 0 | J73: 0
A74: Other Perm. Financing Costs: (Specify) | I74: 0 | J74: 0
A75: Total Permanent Financing Costs | B75: =SUM(B66:B74) -> 0 | C75: =SUM(C66:C74) -> 0 | D75: 0 | E75: 0 | F75: 0 | G75: 0 | H75: 0 | I75: 0 | J75: 0 | K75: =SUM(K66:K74) -> 0 | L75: 0
A76: Subtotals Forward | B76: =SUM(B10+B13+B15+B16+B17+B30+B31+B44+B48+B49+B64+B75) -> 0 | C76: =SUM(C10+C13+C15+C16+C17+C30+C31+C44+C48+C49+C64+C75) -> 0 | D76: =SUM(D10+D13+D15+D16+D17+D30+D31+D44+D48+D49+D64+D75) -> 0 | E76: 0 | F76: 0 | G76: 0 | H76: 0 | I76: 0 | J76: =SUM(J10+J13+J15+J16+J17+J31+J44+J48+J49+J64+J75) -> 0 | K76: 0 | L76: 0
A77: LEGAL FEES
A78: Legal Paid by Applicant | I78: =SUM(B78:H78) -> 0 | J78: =K78+L78 -> 0
A79: Other Attorney Costs: (Specify) | I79: =SUM(B79:H79) -> 0 | J79: 0
A80: Other Attorney Costs: (Specify) | I80: =SUM(B80:H80) -> 0 | J80: 0
A81: Other Attorney Costs: (Specify) | I81: =SUM(B81:H81) -> 0 | J81: 0
A82: Total Attorney Costs | B82: =SUM(B77:B81) -> 0 | C82: =SUM(C77:C81) -> 0 | D82: =SUM(D77:D81) -> 0 | E82: 0 | F82: 0 | G82: 0 | H82: 0 | I82: 0 | J82: 0 | K82: 0 | L82: 0
A83: RESERVES
A84: Operating Reserve | I84: =SUM(B84:H84) -> 0 | J84: =K84+L84 -> 0
A85: Replacement Reserve | I85: 0 | J85: 0
A86: Transition Reserve | I86: 0 | J86: 0
A87: Rent Reserve | I87: 0 | J87: 0
A88: Other Reserve Costs: (Specify) | I88: 0 | J88: 0
A89: Other Reserve Costs: (Specify) | I89: 0 | J89: 0
A90: Other Reserve Costs: (Specify) | I90: 0 | J90: 0
A91: Total Reserve Costs | B91: =SUM(B84:B90) -> 0 | C91: =SUM(C84:C90) -> 0 | D91: 0 | E91: 0 | F91: 0 | G91: 0 | H91: 0 | I91: 0 | J91: 0 | K91: =SUM(K84:K90) -> 0 | L91: 0
A92: CONTINGENCY COSTS
A93: Construction Hard Cost Contingency | I93: =SUM(B93:H93) -> 0 | J93: =K93+L93 -> 0
A94: Soft Cost Contingency | I94: =SUM(B94:H94) -> 0 | J94: 0
A95: Total Contingency Costs | B95: =SUM(B93:B94) -> 0 | C95: =SUM(C93:C94) -> 0 | D95: 0 | E95: 0 | F95: 0 | G95: 0 | H95: 0 | I95: 0 | J95: 0 | K95: =SUM(K93:K94) -> 0 | L95: 0
A96: OTHER PROJECT COSTS
A97: TCAC App/Allocation/Monitoring Fees | I97: =SUM(B97:H97) -> 0 | J97: =K97+L97 -> 0
A98: Environmental Audit | I98: 0 | J98: 0
A99: Local Development Impact Fees | I99: 0 | J99: 0
A100: Permit Processing Fees | I100: 0 | J100: 0
A101: Capital Fees | I101: 0 | J101: 0
A102: Marketing | I102: 0 | J102: 0
A103: Furnishings | I103: 0 | J103: 0
A104: Market Study | I104: 0 | J104: 0
A105: Accounting/Reimbursable | I105: 0 | J105: 0
A106: Appraisal Costs | I106: 0 | J106: 0
A107: Other Costs: (Specify) | I107: 0 | J107: 0
A108: Other Costs: (Specify) | I108: 0 | J108: 0
A109: Other Costs: (Specify) | I109: 0 | J109: 0
A110: Other Costs: (Specify) | I110: 0 | J110: 0
A111: Other Costs: (Specify) | I111: 0 | J111: 0
A112: Other Costs: (Specify) | I112: 0 | J112: 0
A113: Total Other Costs | B113: =SUM(B97:B112) -> 0 | C113: =SUM(C97:C112) -> 0 | D113: =SUM(D97:D112) -> 0 | E113: 0 | F113: 0 | G113: 0 | H113: 0 | I113: 0 | J113: 0 | K113: =SUM(K97:K112) -> 0 | L113: 0
A114: SUBTOTAL PROJECT COST | B114: =SUM(B76+B82+B91+B95+B113) -> 0 | C114: =SUM(C76+C82+C91+C95+C113) -> 0 | D114: =SUM(D76+D82+D91+D95+D113) -> 0 | E114: 0 | F114: 0 | G114: 0 | H114: 0 | I114: 0 | J114: 0 | K114: =SUM(K76+K82+K91+K95+K113) -> 0 | L114: 0
A115: DEVELOPER COSTS
A116: Developer Overhead/Profit | I116: =SUM(B116:H116) -> 0 | J116: =K116+L116 -> 0
A117: Consultant/Processing Agent | I117: 0 | J117: 0
A118: HCD PRP Administration | I118: 0 | J118: 0
A119: Broker Fees Paid to a Related Party | I119: 0 | J119: 0
A120: Construction Oversight by Developer | I120: 0 | J120: 0
A121: Other Developer Costs: (Specify) | I121: 0 | J121: 0
A122: Total Developer Costs | B122: =SUM(B116:B121) -> 0 | C122: =SUM(C116:C121) -> 0 | D122: 0 | E122: 0 | F122: 0 | G122: 0 | H122: 0 | I122: 0 | J122: 0 | K122: =SUM(K116:K121) -> 0 | L122: 0
A123: Total Project Costs | B123: =SUM(B114+B122) -> 0 | C123: =SUM(C114+C122) -> 0 | D123: =SUM(D114+D122) -> 0 | E123: 0 | F123: 0 | G123: 0 | H123: 0 | I123: 0 | J123: =J114+J122 -> 0 | K123: 0 | L123: 0

Sheet Dev Sources
A1: Sources of Funds | P1: ='PRP Cover Page'!B9 -> 2022-04-07
A2: Construction Period Sources of Funds
A3: Funding Committed by Application Submittal Date? | C3: Source Name (listed in order of lien priority) | F3: Source Type | G3: Lien No. | H3: Residential Amount | I3: Commercial Amount | J3: Total Amount | K3: Interest Rate | L3: Required Payment | M3: Loan Term (months) | N3: *Details of Deferred Costs
N4: Amount | O4: Description
A5: 1 | J5: =H5+I5 -> 0
A6: 2 | J6: 0
A7: 3 | J7: 0
A8: 4 | J8: 0
A9: 5 | J9: 0
A10: 6 | J10: =H10+I10 -> 0
A11: 7 | J11: 0
A12: 8 | J12: 0
A13: 9 | C13: Deferred costs (detail at right) | H13: =N14 -> 0 | J13: 0
F14: Totals | H14: =SUM(H5:H13) -> 0 | I14: =SUM(I5:I13) -> 0 | J14: =SUM(J5:J13) -> 0 | N14: =SUM(N5:N13) -> 0
A16: Permanent Sources of Funds
A17: Funding Committed by Application Submittal Date? | C17: Source Name | F17: Source Type | G17: Lien No. | H17: Residential Funding Amount | I17: Commercial Funding Amount | J17: Total Amount | K17: Interest Rate | M17: Repayment Terms | O17: Required Residential Debt Service | P17: Required Commercial Debt Service
K18: Type | L18: Rate | M18: Type | N18: Due in (yrs)
A19: 1 | B19: Yes | C19: ='Dev Budget'!B2 -> HCD PRP Rehab Loan | F19: State-HCD | H19: ='Dev Budget'!B123 -> 0 | J19: =H19+I19 -> 0
A20: 2 | C20: ='Dev Budget'!C2 -> Residential Source Name: | H20: ='Dev Budget'!C123 -> 0 | J20: =H20+I20 -> 0
A21: 3 | C21: ='Dev Budget'!D2 -> Residential Source Name: | H21: ='Dev Budget'!D123 -> 0 | J21: =H21+I21 -> 0
A22: 4 | C22: ='Dev Budget'!E2 -> Residential Source Name: | H22: ='Dev Budget'!E123 -> 0 | J22: 0
A23: 5 | C23: ='Dev Budget'!F2 -> Residential Source Name: | H23: ='Dev Budget'!F123 -> 0 | J23: 0
A24: 6 | C24: ='Dev Budget'!G2 -> Private mortgage financing | H24: ='Dev Budget'!G123 -> 0 | J24: =H24+I24 -> 0
A25: 7 | C25: ='Dev Budget'!H2 -> Deferred costs | F25: Other | H25: ='Dev Budget'!H123 -> 0 | J25: 0
A26: 8 | C26: ='Dev Budget'!K2 -> Commercial Source Name: | I26: ='Dev Budget'!K123 -> 0 | J26: 0
A27: 9 | C27: ='Dev Budget'!L2 -> Commercial Source Name: | I27: ='Dev Budget'!L123 -> 0 | J27: 0
F28: Totals | H28: =SUM(H19:H27) -> 0 | I28: =SUM(I19:I27) -> 0 | J28: =SUM(J19:J27) -> 0 | M28: Totals | O28: =SUM(O19:O27) -> 0 | P28: =SUM(P19:P27) -> 0
A29: Applicant comments: Include a description of balloon payments and unusual or extraordinary circumstances that have resulted in higher than expected project costs and provide a justification as to why these costs are reasonable.

Sheet TBL and High Cost Test (hidden)
A1: 2022 TCAC Threshold Basis Limit for HCD Developer Fee 2017 UMR §8312(c) & (b) and High Cost Test for HCD Limits on Development Costs 2017 UMR §8311(a) & (b) (revised 2/25/22) Complete all yellow shaded cells; see cell comments for tips | BA1: 1/31/22 | BB1: SRO & STUDIO 4% & 9 | BC1: 1 BEDROOM | BD1: 2 BEDROOMS | BE1: 3 BEDROOMS | BF1: 4+ BEDROOMS | BG1: SRO & STUDIO | BH1: 1 BEDROOM | BI1: 2 BEDROOMS | BJ1: 3 BEDROOMS | BK1: 4+ BEDROOMS
A2: Project Name: | F2: =IF('Project, Applicant, Threshold'!E22="","",'Project, Applicant, Threshold'!E22) ->  | Z2: County: | AC2: =IF('Project, Applicant, Threshold'!AD24="","",'Project, Applicant, Threshold'!AD24) ->  | AI2: HCD Phase: | AO2: Origination | BA2: ALAMEDA | BB2: 384234 | BC2: 443018 | BD2: 534400 | BE2: 684032 | BF2: 762054
A3: Rep Name: | BA3: ALPINE | BB3: 278972 | BC3: 321652 | BD3: 388000 | BE3: 496640 | BF3: 553288
A4: Unit Size | I4: =CONCATENATE(BA1," TCAC Threshold Basis Limits (TBL) ") -> 1/31/22 TCAC Threshold Basis Limits (TBL) | Y4: Number of Units | AO4: Basis x Number of Units | BA4: AMADOR | BB4: 278972 | BC4: 321652 | BD4: 388000 | BE4: 496640 | BF4: 553288
A5: SRO/Studio | I5: =IF($AC$2="","",VLOOKUP($AC$2,$BA$1:$BF$59,AX5)) ->  | Y5: =(COUNTIF(('Assisted Units'!$E$3:$E$278),0))+'Non Assisted Units'!#REF!+'Non Assisted Units'!C4 ->  | AO5: =IF(ISERROR((I5*Y5)),0,(I5*Y5)) -> 0 | AX5: 2 | AY5: 7 | BA5: BUTTE | BB5: 246186 | BC5: 283850 | BD5: 342400 | BE5: 438272 | BF5: 488262
A6: 1 Bedroom | I6: =IF($AC$2="","",VLOOKUP($AC$2,$BA$1:$BF$59,AX6)) ->  | Y6: =(COUNTIF(('Assisted Units'!$E$3:$E$278),1))+'Non Assisted Units'!C5 -> 0 | AO6: =IF(ISERROR((I6*Y6)),0,(I6*Y6)) -> 0 | AX6: =AX5+1 -> 3 | AY6: =AY5+1 -> 8 | BA6: CALAVERAS | BB6: 278972 | BC6: 321652 | BD6: 388000 | BE6: 496640 | BF6: 553288
A7: 2 Bedrooms | I7: =IF($AC$2="","",VLOOKUP($AC$2,$BA$1:$BF$59,AX7)) ->  | Y7: =(COUNTIF(('Assisted Units'!$E$3:$E$278),2))+'Non Assisted Units'!C6 -> 0 | AO7: =IF(ISERROR((I7*Y7)),0,(I7*Y7)) -> 0 | AX7: =AX6+1 -> 4 | AY7: =AY6+1 -> 9 | BA7: COLUSA | BB7: 278972 | BC7: 321652 | BD7: 388000 | BE7: 496640 | BF7: 553288
A8: 3 Bedrooms | I8: =IF($AC$2="","",VLOOKUP($AC$2,$BA$1:$BF$59,AX8)) ->  | Y8: =(COUNTIF(('Assisted Units'!$E$3:$E$278),3))+'Non Assisted Units'!C7 -> 0 | AO8: =IF(ISERROR((I8*Y8)),0,(I8*Y8)) -> 0 | AX8: 5 | AY8: =AY7+1 -> 10 | BA8: CONTRA COSTA | BB8: 384234 | BC8: 443018 | BD8: 534400 | BE8: 684032 | BF8: 762054
A9: 4+ Bedrooms | I9: =IF($AC$2="","",VLOOKUP($AC$2,$BA$1:$BF$59,AX9)) ->  | Y9: =(COUNTIF(('Assisted Units'!$E$3:$E$278),4))+'Non Assisted Units'!C8+(COUNTIF(('Assisted Units'!$E$3:$E$278),5))+'Non Assisted Units'!C9 -> 0 | AO9: =IF(ISERROR((I9*Y9)),0,(I9*Y9)) -> 0 | AX9: 6 | AY9: =AY8+1 -> 11 | BA9: DEL NORTE | BB9: 278972 | BC9: 321652 | BD9: 388000 | BE9: 496640 | BF9: 553288
A10: Number of Manager Units in Project: | T10: TOTAL UNITS: | Y10: =SUM(Y5:Y9) ->  | BA10: EL DORADO | BB10: 278397 | BC10: 320989 | BD10: 387200 | BE10: 495616 | BF10: 552147
A11: TOTAL UNADJUSTED THRESHOLD BASIS LIMIT (TBL): | AO11: =SUM(AO5:AO9) -> 0 | BA11: FRESNO | BB11: 238133 | BC11: 274565 | BD11: 331200 | BE11: 423936 | BF11: 472291
A12: TBL ADJUSTMENTS §10327(c)(5)(A-F): | AL12: Yes/No | BA12: GLENN | BB12: 278972 | BC12: 321652 | BD12: 388000 | BE12: 496640 | BF12: 553288
A13: (A) | B13: Project paid in whole or part out of public funds subject to a legal requirement for the payment of state or federal prevailing wages or financed in part by a labor-affiliated organization requiring the employment of construction workers who are paid at least state or federal prevailing wages. (20%) | AO13: =ROUND(IF(AL13="Yes",AO11*0.2,0),0) -> 0 | BA13: HUMBOLDT | BB13: 278972 | BC13: 321652 | BD13: 388000 | BE13: 496640 | BF13: 553288
BA14: IMPERIAL | BB14: 240434 | BC14: 277218 | BD14: 334400 | BE14: 428032 | BF14: 476854
B15: Project certifies that (1) they are subject to a project labor agreement within the meaning of §2500(b)(1) of the Public Contract Code, or (2) they will use a skilled and trained workforce as defined by §25536.7 of the Health and Safety Code to perform all onsite work within an apprenticeable occupation in the building and construction trades. (5%) | AO15: =ROUND(IF(AL15="Yes",AO11*0.05,0),0) -> 0 | BA15: INYO | BB15: 278972 | BC15: 321652 | BD15: 388000 | BE15: 496640 | BF15: 553288
BA16: KERN | BB16: 238133 | BC16: 274565 | BD16: 331200 | BE16: 423936 | BF16: 472291
B17: New construction project required to provide parking beneath residential units (not "tuck under" parking) or through construction of an on-site parking structure of two or more levels. (10%) | AO17: =ROUND(IF(AL17="Yes",AO11*0.1,0),0) -> 0 | BA17: KINGS | BB17: 238133 | BC17: 274565 | BD17: 331200 | BE17: 423936 | BF17: 472291
BA18: LAKE | BB18: 278972 | BC18: 321652 | BD18: 388000 | BE18: 496640 | BF18: 553288
B19: Project where a day care center is part of the development. (2%) | AO19: =ROUND(IF(AL19="Yes",AO11*0.02,0),0) -> 0 | BA19: LASSEN | BB19: 278972 | BC19: 321652 | BD19: 388000 | BE19: 496640 | BF19: 553288
B20: Project where 100 percent of the Low Income units are for Special Needs populations. (2%) | AO20: =ROUND(IF(AL20="Yes",AO11*0.02,0),0) -> 0 | BA20: LOS ANGELES | BB20: 341094 | BC20: 393278 | BD20: 474400 | BE20: 607232 | BF20: 676494
B21: Project where at least 95% of the project's upper floor units are serviced by an elevator. (10%) | AO21: =ROUND(IF(AL21="Yes",(AO11*0.1),0),0) -> 0 | BA21: MADERA | BB21: 238133 | BC21: 274565 | BD21: 331200 | BE21: 423936 | BF21: 472291
BA22: MARIN | BB22: 307732 | BC22: 354812 | BD22: 428000 | BE22: 547840 | BF22: 610328
B23: Project wherein at least 95% of the building(s) is constructed as Type I as defined in the California Building Code, in which case, the Type III 10% increase below is not allowed. (15%) | AO23: =ROUND(IF(AL23="Yes",(AO11*0.15),0),0) -> 0 | BA23: MARIPOSA | BB23: 278972 | BC23: 321652 | BD23: 388000 | BE23: 496640 | BF23: 553288
BA24: MENDOCINO | BB24: 278972 | BC24: 321652 | BD24: 388000 | BE24: 496640 | BF24: 553288
B25: Project wherein at least 95% of the building(s) is constructed as a Type III as defined in the California Building Code, or a Type III/Type I combination, in which case, the Type I 15% increase above is not allowed. (10%) | AO25: =IF(AL23="Yes",0,ROUND(IF(AL25="Yes",(AO11*0.1),0),0)) -> 0 | BA25: MERCED | BB25: 238133 | BC25: 274565 | BD25: 331200 | BE25: 423936 | BF25: 472291
BA26: MODOC | BB26: 278972 | BC26: 321652 | BD26: 388000 | BE26: 496640 | BF26: 553288
A27: (B) | B27: Project applying under §10325 or §10326 of these regulations that include one or more of the features below. (up to 10%) | AO27: =IF(SUM(AL29:AL46)>0.005,MIN(0.1,SUM(AL29:AL46))*AO11,0) -> 0 | BA27: MONO | BB27: 278972 | BC27: 321652 | BD27: 388000 | BE27: 496640 | BF27: 553288
BA28: MONTEREY | BB28: 311183 | BC28: 358791 | BD28: 432800 | BE28: 553984 | BF28: 617173
A29: Proposed energy efficiency/resource conservation/indoor air quality items | B29: (1) Project shall have onsite renewable generation estimated to produce 50% or more of annual tenant electricity use. If the combined available roof area of the Project structures, including carports, is insufficient for provision of 50% of annual electricity use, then the Project shall have onsite renewable generation based on at least 90% of the available solar accessible roof area. Available solar accessible area is defined as roof area less north facing roof area for sloped roofs, equipment, solar thermal hot water and required local or state fire department set-backs and access routes. A Project not availing itself of the 90% roof area exception may also receive an increase under paragraph (2) only if the renewable generation used to calculate each basis increase does not overlap. (5%) | BA29: NAPA | BB29: 307732 | BC29: 354812 | BD29: 428000 | BE29: 547840 | BF29: 610328
AL30: =IF(AL29="Yes",0.05,0) -> 0 | BA30: NEVADA | BB30: 278972 | BC30: 321652 | BD30: 388000 | BE30: 496640 | BF30: 553288
B31: (2) Project shall have onsite renewable generation estimated to produce 75% or more of annual common area electricity use. If the combined available roof area of the Project structures, including carports, is insufficient for provision of 75% of annual electricity use, then the Project shall have onsite renewable generation based on at least 90% of the available solar accessible roof area. Available solar accessible area is defined as roof area less north facing roof area for sloped roofs, equipment, solar thermal hot water and required local or state fire department set-backs and access routes. A Project not availing itself of the 90% roof area exception may also receive an increase under paragraph (1) only if the renewable generation used to calculate each basis increase does not overlap. (2%) | BA31: ORANGE | BB31: 308882 | BC31: 356138 | BD31: 429600 | BE31: 549888 | BF31: 612610
AL32: =IF(AL31="Yes",0.02,0) -> 0 | BA32: PLACER | BB32: 278397 | BC32: 320989 | BD32: 387200 | BE32: 495616 | BF32: 552147
B33: (3) Newly constructed Project buildings shall be 15% or more energy efficient than the 2016 Energy Efficiency Standards (California Code of Regulations, Part 6 of Title 24), except that if the local building department has determined that building permit applications submitted on or before December 31, 2016 are complete, then newly constructed Project buildings shall be fifteen percent (15%) or more energy efficient than the 2013 Energy Efficiency Standards (California Code of Regulations, Part 6 of Title 24). (4%) | BA33: PLUMAS | BB33: 278972 | BC33: 321652 | BD33: 388000 | BE33: 496640 | BF33: 553288
AL34: =IF(AL33="Yes",0.04,0) -> 0 | BA34: RIVERSIDE | BB34: 240434 | BC34: 277218 | BD34: 334400 | BE34: 428032 | BF34: 476854
B35: (4) Rehab Project buildings shall have 80% decrease in estimated TDV energy use (or improvement in energy efficiency) post rehab as demonstrated using the appropriate performance module of CEC software. (4%) | BA35: SACRAMENTO | BB35: 278397 | BC35: 320989 | BD35: 387200 | BE35: 495616 | BF35: 552147
AL36: =IF(AL35="Yes",0.04,0) -> 0 | BA36: SAN BENITO | BB36: 278972 | BC36: 321652 | BD36: 388000 | BE36: 496640 | BF36: 553288
B37: (5) Irrigate only with reclaimed water, greywater, or rainwater (excepting water used for Community Gardens) or irrigate with reclaimed water, grey water, or rainwater in an amount that annually equals or exceeds 20,000 gallons or 300 gallons per unit, whichever is less. (1%) | BA37: SAN BERNARDINO | BB37: 240434 | BC37: 277218 | BD37: 334400 | BE37: 428032 | BF37: 476854
AL38: =IF(AL37="Yes",0.01,0) -> 0 | BA38: SAN DIEGO | BB38: 268043 | BC38: 309051 | BD38: 372800 | BE38: 477184 | BF38: 531613
B39: (6) Community Gardens of at least 60 square feet per unit. Permanent site improvements that provide a viable growing space within the Project including solar access, fencing, watering systems, secure storage space for tools, and pedestrian access. (1%) | BA39: SAN FRANCISCO | BB39: 530910 | BC39: 612134 | BD39: 738400 | BE39: 945152 | BF39: 1052958
AL40: =IF(AL39="Yes",0.01,0) -> 0 | BA40: SAN JOAQUIN | BB40: 238133 | BC40: 274565 | BD40: 331200 | BE40: 423936 | BF40: 472291
B41: (7) Install bamboo, cork, salvaged or FSC-Certified wood, natural linoleum, natural rubber, or ceramic tile in all kitchens, living rooms, and bathrooms (where no VOC adhesives or backing is also used). (1%) | BA41: SAN LUIS OBISPO | BB41: 311183 | BC41: 358791 | BD41: 432800 | BE41: 553984 | BF41: 617173
AL42: =IF(AL41="Yes",0.01,0) -> 0 | BA42: SAN MATEO | BB42: 440028 | BC42: 507348 | BD42: 612000 | BE42: 783360 | BF42: 872712
B43: (8) Install bamboo, stained concrete, cork, salvaged or FSC-Certified wood, ceramic tile, or natural linoleum in all common areas. (2%) | BA43: SANTA BARBARA | BB43: 311183 | BC43: 358791 | BD43: 432800 | BE43: 553984 | BF43: 617173
AL44: =IF(AL43="Yes",0.02,0) -> 0 | BA44: SANTA CLARA | BB44: 440028 | BC44: 507348 | BD44: 612000 | BE44: 783360 | BF44: 872712
B45: (9) Meet all requirements of the U.S. Environmental Protection Agency Indoor Air Plus Program. (2%) | BA45: SANTA CRUZ | BB45: 311183 | BC45: 358791 | BD45: 432800 | BE45: 553984 | BF45: 617173
AL46: =IF(AL45="Yes",0.02,0) -> 0 | BA46: SHASTA | BB46: 246186 | BC46: 283850 | BD46: 342400 | BE46: 438272 | BF46: 488262
A47: (D) | B47: Project requires seismic upgrading of existing structures, and/or requires toxic or other environmental mitigation as certified by the Project architect/ engineer. (lesser of costs or 15% basis adjustment) | AO47: =IF(AL47="Yes",MIN(AG49,AO11*0.15),0) -> 0 | BA47: SIERRA | BB47: 278972 | BC47: 321652 | BD47: 388000 | BE47: 496640 | BF47: 553288
AL48: =IF(AL47="yes","Please Select Type of Work and Enter Cost:",0) -> 0 | BA48: SISKIYOU | BB48: 278972 | BC48: 321652 | BD48: 388000 | BE48: 496640 | BF48: 553288
B49: If Yes, select type of work: | U49: Enter Certified Costs of Work: | AG49: 0 | BA49: SOLANO | BB49: 307732 | BC49: 354812 | BD49: 428000 | BE49: 547840 | BF49: 610328
A50: (E) | B50: Local development impact fees required to be paid to local government entities. Certification from local entities assessing fees also required. WAIVED IMPACT FEES ARE INELIGIBLE. | AO50: 0 | BA50: SONOMA | BB50: 307732 | BC50: 354812 | BD50: 428000 | BE50: 547840 | BF50: 610328
AL51: =IF(AL50="yes","Please Enter Amount Above:",0) -> 0 | BA51: STANISLAUS | BB51: 238133 | BC51: 274565 | BD51: 331200 | BE51: 423936 | BF51: 472291
A52: (F) | B52: Projects within a county with an unadjusted 9% threshold basis limit for a 2-bedroom unit equal or less than $400,000 and within a census tract designated on the TCAC/HCD Opportunity Map as Highest or High Resource. (10%) | AL52: =IF(AND(F54="Yes",OR(AB54="Highest Resource",AB54="High Resource")),"Yes","No") -> No | AO52: =ROUND(IF(AND(F54="Yes",OR(AB54="High Resource",AB54="Highest Resource"),AL52="Yes"),AO11*0.1,0),0) -> 0 | BA52: SUTTER | BB52: 278397 | BC52: 320989 | BD52: 387200 | BE52: 495616 | BF52: 552147
AL53: =IF(F54="Yes","In yellow cells, enter Tract ID # and TCAC/HCD Opportunity Map Resource level","") ->  | BA53: TEHAMA | BB53: 278972 | BC53: 321652 | BD53: 388000 | BE53: 496640 | BF53: 553288
B54: County eligibility: | F54: =IFERROR(IF(VLOOKUP(AC2,BA1:BF59,AX7,FALSE)<=400000,"Yes","No"),"") ->  | H54: TCAC/HCD Opportunity Area Map Tract ID #: | V54: Opportunity Map Resource level: | BA54: TRINITY | BB54: 278972 | BC54: 321652 | BD54: 388000 | BE54: 496640 | BF54: 553288
A55: TOTAL HCD ADJ. THRESHOLD BASIS LIMIT: | AO55: =AO11+AO13+AO15+AO17+AO19+AO20+AO21+AO23+AO25+AO27+AO47+AO50+AO52 -> 0 | BA55: TULARE | BB55: 238133 | BC55: 274565 | BD55: 331200 | BE55: 423936 | BF55: 472291
A56: =IF(AO2="Perm Close","Adjusted Threshold Basis Limit multiplied by 170%:","Adjusted Threshold Basis Limit multiplied by 160%:") -> Adjusted Threshold Basis Limit multiplied by 160%: | AO56: =IF(AO2="Perm Close",AO55*1.7,AO55*1.6) -> 0 | BA56: TUOLUMNE | BB56: 278972 | BC56: 321652 | BD56: 388000 | BE56: 496640 | BF56: 553288
A57: =IF(G2="",CONCATENATE("HCD HIGH COST TEST RESULT: ",G2),CONCATENATE("HCD HIGH COST TEST RESULT FOR: ",G2)) -> HCD HIGH COST TEST RESULT: | AE57: =IF(AO55=0,0,AE58/AO55) -> 0 | BA57: VENTURA | BB57: 311183 | BC57: 358791 | BD57: 432800 | BE57: 553984 | BF57: 617173
A58: (j) | B58: Total Eligible Basis (Dev Budget T125) | AE58: ='Dev Budget'!#REF! ->  | AL58: =IF(AE58=0,"",IF(AE58<=AO56,"Costs Reasonable",IF(AO2="Perm Close","Costs too high > 170%","Costs too high > 160%"))) ->  | BA58: YOLO | BB58: 278397 | BC58: 320989 | BD58: 387200 | BE58: 495616 | BF58: 552147
BA59: YUBA | BB59: 278397 | BC59: 320989 | BD59: 387200 | BE59: 495616 | BF59: 552147

Sheet Max Rehab Loan
A1: PRP Rehabilitation Loan Amount - NOFA §G | AK1: ='PRP Cover Page'!B9 -> 2022-04-07
A2: PRP Rehab Loan Summary (must fully complete the section below for this summary section to properly populate)
A3: Max PRP Rehab Loan (maximum base loan amount plus additional funding Boost) | K3: =MIN(G9,AI9+AI13) -> 0 | O3: Requested amount as shown in the 'Dev Sources' worksheet cell H19. | Z3: ='Dev Sources'!H19 -> 0 | AD3: Proposed HCD PRP Rehab loan | AI3: =MIN(K3,Z3) -> 0
A5: PRP Rehab base loan amount
A6: Total units in the Project | M6: ='Assisted Units'!A279+'Non Assisted Units'!C10 -> 0 | O6: Total Assisted units in the Project | Z6: ='Assisted Units'!E279 -> 0
A7: Total Project Rehab costs from the "Dev Budget" worksheet cell I23 | Q7: ='Dev Budget'!I123 -> 0 | U7: Is Project a Residential Hotel MHP §7301(v)?
A8: Applicant's eligible set-aside NOFA §G(1) | J8: =IF(AG7="Yes","Residential Hotel set-aside",IF(AND(M6>4,M6<21,Q7>2500000),"Small Project set-aside; permitted to apply outside of set-aside",IF(AND(M6>4,M6<21),"Small Project set-aside","No qualifying set-aside"))) -> No qualifying set-aside | Z8: Set-aside Applicant is applying for | AN8: =IF(OR(J8="Small Project set-aside; permitted to apply outside of set-aside",J8="Small Project set-aside"),"Small Project",IF(J8="Residential Hotel set-aside","Residential Hotel",IF(J8="No qualifying set-aside","None",""))) -> None | AO8: Small Project set-aside; permitted to apply outside of set-aside | AP8: Small Project set-aside
A9: Project's loan limit per NOFA | G9: =IF(AG8="",20000000,IF(AG8="Small Project",2500000,20000000)) -> 20000000 | K9: $200,000 per Assisted unit | Q9: =Z6*200000 -> 0 | U9: Max PRP Rehab base loan: lesser of NOFA and Assisted unit limits | AI9: =MIN(G9,Q9) -> 0
A11: PRP Rehab loan Boost based on High Costs NOFA §G(2)(c) | AI11: Boost Amount
A12: Project is eligible for additional funding boosts NOFA §G(2)(c). If Yes, enter the applicable high-costs below and attach required documentation | AI12: =IF(AND(G9=20000000,AI9<20000000),"Yes","No") -> Yes
A13: Max Boost (no more than two high-cost factors below can be used) | O13: Largest high-cost factor | T13: =LARGE(AN15:AN20, ROWS(A$6:A6)) -> 0 | W13: 2nd largest high-cost factor | AC13: =LARGE(AN15:AN20, ROWS(A$6:A7)) -> 0 | AF13: Max boost | AI13: =T13+AC13 -> 0
A15: 1. Temporary or permanent relocation of at least half of the tenant households (boost of 25% of actual relocation costs, as indicated by an HCD approved relocation plan)? | Z15: Relocation costs | AE15: ='Dev Budget'!I31 -> 0 | AI15: =IF(OR(AI12="No",AK16<>"Yes"),0,AE15*0.25) -> 0 | AN15: =AI15 -> 0
A16: File Name | D16: Relocation Plan | L16: Submit a relocation plan including costs of relocation | AF16: Uploaded to HCD? | AN16: =AI17 -> 0
A17: 2. Elevator replacement or repair that represents 25% or more of the total hard construction costs, as indicated by an elevator study (boost of 25% of projected elevator costs)? | P17: Total hard construction costs | S17: ='Dev Budget'!I19+'Dev Budget'!I20+'Dev Budget'!I26+'Dev Budget'!I93 -> 0 | W17: Elevator costs as indicated by an elevator study | AE17: % of costs | AG17: =IFERROR(AA17/S17,0) -> 0 | AI17: =IF(OR(AI12="No",AK18<>"Yes"),0,IF(AG17>=0.25,AA17*0.25,0)) -> 0 | AN17: =AI19 -> 0
A18: File Name | D18: Elevator study | L18: Submit elevator repair or replacement study | AF18: Uploaded to HCD? | AN18: =AI21 -> 0
A19: 3. Seismic work required by an enforcement agency accounting for 25% or more of the total hard construction costs, as specified by a letter from the enforcement agency (boost of 25% of projected seismic costs)? | P19: Total hard construction costs | S19: ='Dev Budget'!I19+'Dev Budget'!I20+'Dev Budget'!I26+'Dev Budget'!I93 -> 0 | W19: Seismic costs required by an enforcement agency | AE19: % of costs | AG19: =IFERROR(AA19/S19,0) -> 0 | AI19: =IF(OR(AI12="No",AK20<>"Yes"),0,IF(AG19>=0.25,AA19*0.25,0)) -> 0 | AN19: =AI23 -> 0
A20: File Name | D20: Seismic letter | L20: Submit seismic work description as described in a letter from an enforcement agency | AF20: Uploaded to HCD? | AN20: =AI25 -> 0
A21: 4. Structural work required by an enforcement agency that accounts for 25% or more of the total hard construction costs, as specified by a letter from the enforcement agency (boost of 25% of projected structural costs)? | P21: Total hard construction costs | S21: ='Dev Budget'!I19+'Dev Budget'!I20+'Dev Budget'!I26+'Dev Budget'!I93 -> 0 | W21: Structural costs required by an enforcement agency | AE21: % of costs | AG21: =IFERROR(AA21/S21,0) -> 0 | AI21: =IF(OR(AI12="No",AK22<>"Yes"),0,IF(AG21>=0.25,AA21*0.25,0)) -> 0
A22: File Name | D22: Structural work | L22: Submit structural work as described in a letter from an enforcement agency | AF22: Uploaded to HCD?
A23: 5. Required environmental remediation accounting for 25% or more of the total hard construction costs, as specified by a letter from a third-party environmental company (boost of 25% of projected environmental costs)? | P23: Total hard construction costs | S23: ='Dev Budget'!I19+'Dev Budget'!I20+'Dev Budget'!I26+'Dev Budget'!I93 -> 0 | W23: Environmental remediation costs as specified in an environmental company letter | AE23: % of costs | AG23: =IFERROR(AA23/S23,0) -> 0 | AI23: =IF(OR(AI12="No",AK24<>"Yes"),0,IF(AG23>=0.25,AA23*0.25,0)) -> 0
A24: File Name | D24: Environmental remediation | L24: Submit environmental work as specified in a letter from a third-party environmental company | AF24: Uploaded to HCD?
A25: 6. Accessibility modifications accounting for 25% or more of the total construction cost, as specified by an accessibility study performed by a certified access specialist (boost of 25% of projected accessibility costs)? | P25: Total hard construction costs | S25: ='Dev Budget'!I19+'Dev Budget'!I20+'Dev Budget'!I26+'Dev Budget'!I93 -> 0 | W25: Accessibility modification costs as specified by an accessibility study | AE25: % of costs | AG25: =IFERROR(AA25/S25,0) -> 0 | AI25: =IF(OR(AI12="No",AK26<>"Yes"),0,IF(AG25>=0.25,AA25*0.25,0)) -> 0
A26: File Name | D26: Accessibility work | L26: Submit an accessibility study from a Certified Access Specialist | AF26: Uploaded to HCD?

Sheet PRP Admin Allowance
A1: HCD PRP 2022 Administrative Allowance Calculator NOFA §II(C)(m) - 2/22/22 (complete YELLOW shaded cells)
A2: Project Phase: | C2: Origination | D2: Proposed Project Type: | F2: No Tax Credits | G2: TCAC Project #:
A3: Project Name: | C3: ='Project, Applicant, Threshold'!E22 -> 0 | F3: HCD Contract #s:
A4: Maximum HCD Administrative Allowance Fee (from Section 2 or 3 below) | H4: =IF(OR(I11="No",I11=""),I16,H36) -> 0
B5: =IF(LEFT(F2,1)="9","Max Developer Fee payable from development funding sources - 1e","Max Developer Fee payable from development funding sources - lesser of 1e & 2d") -> Max Developer Fee payable from development funding sources - lesser of 1e & 2d | G5: =H4 -> 0 | H5: =MAX(0,#REF!-F9-I9) ->  | I5: =MAX(0,ROUND(H5,0)-ROUND(G5,0)) -> 
B6: Deferred Developer Fee payable on a priority basis from available Cash Flow | G6: =MAX(0,MIN(H4,3500000)-G5) -> 0 | H6: =MAX(0,MIN(H4,#REF!-F9)-H5) -> 
B7: Deferred Developer Fee payable exclusively from Sponsor Distributions | G7: =H4-G5-G6 -> 0 | H7: =MAX(0,#REF!-H5-H6-F9) -> 
A8: Budgeted HCD Administrative Allowance Fee from 'Dev Budget' worksheet cell B118 | H8: ='Dev Budget'!B118 -> 0
A9: Developer Fee Contributed as Capital | G9: Deferred Developer Fee
A11: Section 1. Is there another funding source that is funding a developer fee? If "No", complete Section 2. If "Yes", complete Section 3
A13: Section 2. No other funding sources that are funding a developer fee (lesser of 5% of PRP overall rehabilitation loan or $750,000)
A14: a. | B14: 5% of the overall Rehabilitation loan amount including the Administrative Allowance | I14: =ROUND((('Dev Budget'!B123-'Dev Budget'!B118)/0.95)-('Dev Budget'!B123-'Dev Budget'!B118),0) -> 0
A15: b. | B15: PRP administrative allowance cap | I15: 750000
A16: c. | B16: Maximum total administrative allowance - lesser of 2a or 2b | I16: =MIN(I14,I15) -> 0
A18: Section 3. UMR §8312(a) for Projects with a developer fee paid by another funding source
A19: Project's rehab costs (total construction less contractor profit and overhead) - from 'Dev Budget' worksheet cell I30 minus I22 and I23 | I19: ='Dev Budget'!I30-'Dev Budget'!I22-'Dev Budget'!I23 -> 0
A20: Number of units in Project including manager units | E20: ='Assisted Units'!A279+'Non Assisted Units'!C10 -> 0 | F20: Rehab work costs per unit | I20: =IFERROR(I19/E20,0) -> 0
A21: a. Substantial rehab projects UMR §8312(a)(1)
B22: substantial rehab = construction cost for rehab work (excluding contractor profit and overhead) in excess of $41,000 per unit
A23: a1. | B23: Number of units (include manager's unit) | F23: =IF(I11="No",0,IF(I20>41000,E20,0)) -> 0
A24: a2. | B24: First 30 units at: | D24: 30000 | E24: each | G24: =IF(F23>29,D24*30,+F23*D24) -> 0
A25: a3. | B25: Units in excess of 30 at: | D25: 11500 | E25: each | G25: =IF(F23<30,0,(F23-30)*D25) -> 0
A26: a4. | B26: Total substantial rehab (a2 + a3) | H26: =+G24+G25 -> 0
A27: b. Acquisition and rehab projects UMR §8312(a)(2)
B28: with construction cost for rehab work (excluding contractor profit and overhead) between $11,500 - $41,000 per unit
A29: b1. | B29: Number of units (include manager's unit) | F29: =IF(I11="No",0,IF(AND(I20<41001,I20>11499),E20,0)) -> 0
A30: b2. | B30: First 30 units at: | D30: 14000 | E30: each | G30: =IF(F29>29,D30*30,+F29*D30) -> 0
A31: b3. | B31: Units in excess of 30 at: | D31: 6500 | E31: each | G31: =IF(F29<30,0,(F29-30)*D31) -> 0
A32: b4. | B32: Total acquisition and non-substantial rehab (b2 + b3) | H32: =+G30+G31 -> 0
A33: c. All other projects UMR §8312(a)(3)
A34: c1. | B34: Number of units (include manager's unit) | F34: =IF(I11="No",0,IF(I20<11500,E20,0)) -> 0
A35: c2. | B35: Total other at: | D35: 2000 | E35: per unit | H35: =+F34*D35 -> 0
A36: d. Maximum allowable developer fee and administrative allowance (a4 + b4 + c2) | H36: =H26+H32+H35 -> 0

Sheet Supportive Services Costs
A1: Supportive Services Costs - HCD 2017 UMR Limits (for projects with HCD funding) - 2.5% annual increase | AQ1: Fiscal Year | AR1: Chronic Homelessness | AS1: Special Needs Population | AT1: Supportiv Services | AU1: Other | AV1: Chronic Homelessness | AW1: Special Needs Population | AX1: Supportiv Services | AY1: Other
A2: HCD UMR §8301(t): “Supportive Services” - social, health, educational, income support and employment services and benefits, coordination of community building and educational activities, individualized needs assessment, and individualized assistance with obtaining services and benefits. | AQ2: 2017 | AR2: 4080 | AS2: 3060 | AT2: 1051 | AU2: 250
A3: HCD UMR §8301(u): “Supportive Services Costs” - the costs of providing tenants service coordination, case management, and direct resident and Supportive Services. It includes: (1) the cost of providing tenants with information on and referral to social, health, educational, income support and employment services and benefits, coordination of community building and educational activities, individualized needs assessment, and individualized assistance with obtaining services and benefits; (2) salaries, benefits, contracted services, telecommunication expenses, travel costs, supplies, office expenses, staff training, maintenance of on-site equipment used in services programs, such as computer labs, incidental costs related to resident events, and other similar costs approved by the Department. | AQ3: =+AQ2+1 -> 2018 | AR3: =ROUND(AR2*1.025,0) -> 4182 | AS3: =ROUND(AS2*1.025,0) -> 3137 | AT3: =ROUND(AT2*1.025,0) -> 1077 | AU3: =ROUND(AU2*1.025,0) -> 256 | AV3: 4182 | AW3: 3137 | AX3: 1077 | AY3: 256
AQ4: =+AQ3+1 -> 2019 | AR4: =ROUND(AR3*1.025,0) -> 4287 | AS4: 3215 | AT4: 1104 | AU4: 262 | AV4: =ROUND(AV3*1.035,0) -> 4328 | AW4: 3247 | AX4: 1115 | AY4: 265
A5: A. Supportive Services Units: | I5: Total number of units: | M5: ='Assisted Units'!A279+'Non Assisted Units'!C10 -> 0 | O5: Certification Year for allowable supportive services costs: | AA5: 2022 | AC5: Total Units | AE5: Max PUPY Expense | AH5: Max Costs | AQ5: =+AQ4+1 -> 2020 | AR5: 4394 | AS5: 3295 | AT5: 1132 | AU5: 269 | AV5: 4479 | AW5: 3361 | AX5: 1154 | AY5: 274
A6: (1) UMR §8314(e)(1): Total number of Supportive Housing (SH) units anticipated to be restricted to individuals or families experiencing chronic homelessness as defined consistent with Health and Safety Code (HSC) §50675.14. | AE6: =VLOOKUP($AA$5,$AQ$2:$AY$60,2,FALSE) -> 4617 | AH6: =IFERROR(AE6*AC6,"") -> 0 | AQ6: =+AQ5+1 -> 2021 | AR6: 4504 | AS6: 3377 | AT6: 1160 | AU6: 276 | AV6: 4636 | AW6: 3479 | AX6: 1194 | AY6: 284
A7: (2) UMR §8314(e)(2): Total number of Supportive Housing (SH) units (other than those restricted to individuals or families experiencing chronic homelessness pursuant to HSC §50675.14), PLUS the total number of units restricted to occupancy by Special Needs Populations (SNP)* under any HCD program. (*click here for definition - §7301(s) of the MHP Regulations). Do not include units included in (1) above. | AE7: =VLOOKUP($AA$5,$AQ$2:$AY$60,3,FALSE) -> 3461 | AH7: =IFERROR(AE7*AC7,"") -> 0 | AQ7: 2022 | AR7: 4617 | AS7: 3461 | AT7: 1189 | AU7: 283 | AV7: 4798 | AW7: 3601 | AX7: 1236 | AY7: 294
A8: (3) UMR §8314(e)(3): Total number of units where the Sponsor, their affiliate, or a service provider under contract to provide Supportive Services at the Project has both: (A) qualified staff devoted exclusively to oversight and quality control of resident services in affordable housing, including the Project; and (B) a system to track and report on tenant outcomes, such as changes in employment status and income. Do not include units included in items (1) and (2) above. | AE8: =VLOOKUP($AA$5,$AQ$2:$AY$60,4,FALSE) -> 1189 | AH8: =IFERROR(AE8*AC8,"") -> 0 | AQ8: 2023 | AR8: 4732 | AS8: 3548 | AT8: 1219 | AU8: 290 | AV8: 4966 | AW8: 3727 | AX8: 1279 | AY8: 304
A9: (4) UMR §8314(e)(4): Total number of units anticipated to be offered Supportive Services provided by the Project Sponsor, a Sponsor affiliate, or contracted service provider that do not satisfy the criteria in items (1), (2) and (3) above. | AE9: =VLOOKUP($AA$5,$AQ$2:$AY$60,5,FALSE) -> 283 | AH9: =IFERROR(AE9*AC9,"") -> 0 | AQ9: 2024 | AR9: 4850 | AS9: 3637 | AT9: 1249 | AU9: 297 | AV9: 5140 | AW9: 3857 | AX9: 1324 | AY9: 315
A10: (5) Maximum Supportive Services Costs | AC10: =SUM(AC6:AD9) -> 0 | AH10: =SUM(AH6:AL9) -> 0 | AQ10: 2025 | AR10: 4971 | AS10: 3728 | AT10: 1280 | AU10: 304 | AV10: 5320 | AW10: 3992 | AX10: 1370 | AY10: 326
AQ11: 2026 | AR11: 5095 | AS11: 3821 | AT11: 1312 | AU11: 312 | AV11: 5506 | AW11: 4132 | AX11: 1418 | AY11: 337

Sheet Operating
A1: ='Project, Applicant, Threshold'!E22 -> 0
A2: ='Project, Applicant, Threshold'!AK1 -> 2022-04-07 | C2: Year 1 Annual Income and Expenses
A4: Employee Information | F4: Comments
A5: No. | B5: FTE | C5: Employee Job Title | D5: Salary/Wages | E5: Value of Free Rent
C6: On-Site Manager(s) | D6: 0 | E6: 0
C7: On-Site Assistant Manager(s) | D7: 0 | E7: 0
C8: Supportive Services Staff Supervisor(s) | D8: 0
C9: Supportive Services Coordinator, On-Site | D9: 0
C10: Other Supportive Services Staff (inc. Case Manager) | D10: 0
C11: On-Site Maintenance Employee(s) | D11: 0 | E11: 0
C12: On-Site Leasing Agent/Administrative Employee(s) | D12: 0 | E12: 0
C13: On-Site Security Employee(s) | D13: 0 | E13: 0
D14: 0 | E14: 0
D15: 0 | E15: 0
C16: Total Salaries and Value of Free Rent Units | D16: =SUM(D6:D15) -> 0 | E16: =SUM(E6:E15) -> 0
B17: 6711 | C17: Payroll Taxes | D17: 0 | E17: Show free rent as an
B18: 6722 | C18: Workers Compensation | D18: 0 | E18: expense? | H18: Count free rent as an
B19: 6723 | C19: Employee Benefits | D19: 0 | E19: Yes | H19: expense?
C20: Employee(s) Payroll Taxes, Workers Comp. & Benefits | D20: =SUM(D17:D19) -> 0 | H20: =IF(E19="Yes",1,0) -> 1
C21: Total Employee(s) Expenses | D21: =D20+D16 -> 0
A24: Employee Units
A25: Income Limit | C25: Job Title(s) of Employee(s) Living On-Site | D25: Unit Type (No. of bdrms.) | E25: Square Footage | G25: Income Limit | H25: Job Title(s) of Employee(s) Living On-Site
D26: 0 | E26: 0 | G26: 0.6 | H26: On-Site Manager(s)
D27: 0 | E27: 0 | G27: 0.55 | H27: On-Site Assistant Manager(s)
D28: 0 | E28: 0 | G28: 0.5 | H28: On-Site Maintenance Employee(s)
D29: Total Square Footage | E29: =SUM(E26:E28) -> 0 | G29: None | H29: On-Site Leasing Agent/Administrative Employee(s)
A30: Year 1 Annual Operating Budget | G30: Other | H30: On-Site Security Employee(s)
A31: Acct. No. | C31: Revenue - Income | D31: Residential | E31: Commercial | F31: Comments | H31: Services Coordinator
A32: 5120/5140 | C32: Rent Revenue - Gross Potential | E32: 0
C33: Assisted Unit Rents | D33: ='Assisted Units'!V280 -> 0
C34: Non-Assisted Unit Rents | D34: ='Non Assisted Units'!H10 -> 0
A35: 5121 | C35: Non Assisted Unit Subsidies | D35: ='Non Assisted Units'!G10 -> 0
C36: ='Assisted Units'!W2 -> Enter rent subsidy source #1 here & monthly amounts below | D36: ='Assisted Units'!W280 -> 0
C37: ='Assisted Units'!X2 -> Enter rent subsidy source #2 here & monthly amounts below | D37: ='Assisted Units'!X280 -> 0
C38: Operating Subsidies | D38: 0
C39: Other: (specify) | D39: 0 | E39: 0
A40: 5910 | C40: Laundry and Vending Revenue | D40: 0
A41: 5170 | C41: Garage and Parking Spaces | D41: 0 | E41: 0
A42: 5990 | C42: Miscellaneous Rent Revenue | D42: 0 | E42: 0
C43: Gross Potential Income (GPI) | D43: =SUM(D32:D42) -> 0 | E43: =SUM(E32:E42) -> 0
C45: Vacancy Rate: Restricted Units | D45: 0.05
C46: Vacancy Rate: Unrestricted Units | D46: 0.05
C47: Vacancy Rate: Tenant Assistance Payments | D47: 0.05
C48: ="Vacancy Rate: " & C39 -> Vacancy Rate: Other: (specify) | D48: 0.05
C49: Vacancy Rate: Laundry & Vending & Other Income | D49: 0.05
C50: Vacancy Rate: Commercial Income | E50: 0.5
A51: 5220/5240 | C51: Vacancy Loss(es) | D51: =(D33*D45)+(D34*D46)+((D36+D37)*D47)+(D39*D48)+((D40+D41+D42)*D49) -> 0 | E51: =+E43*E50 -> 0
C52: Effective Gross Income (EGI) | D52: =+D43-D51 -> 0 | E52: =+E43-E51 -> 0
A53: Acct. No. | C53: Expenses | D53: Residential | E53: Commercial | F53: Comments
C55: Administrative Expenses: 6200/6300
A56: 6203 | C56: Conventions and Meetings | D56: 0 | E56: 0
A57: 6210 | C57: Advertising and Marketing | D57: 0 | E57: 0
A58: 6250 | C58: Other Renting Expenses | D58: 0 | E58: 0
A59: 6310 | C59: Office/Administrative Salaries -- from above | D59: =D12 -> 0 | E59: 0
A60: 6311 | C60: Office Expenses | D60: 0 | E60: 0
A61: 6312 | C61: Office or Model Apartment Rent | D61: 0 | E61: 0
A62: 6320 | C62: Management Fee | D62: 0 | E62: 0
A63: 6330 | C63: Site/Resident Manager(s) Salaries -- from above | D63: =D6+D7 -> 0 | E63: 0
A64: 6331 | C64: Administrative Free Rent Unit -- from above | D64: =IF(H20=1,E6+E7+E12,0) -> 0 | E64: 0
A65: 6340 | C65: Legal Expense -- Project | D65: 0 | E65: 0
A66: 6350 | C66: Audit Expense | D66: 0 | E66: 0
A67: 6351 | C67: Bookkeeping Fees/Accounting Services | D67: 0 | E67: 0
A68: 6390 | C68: Miscellaneous Administrative Expenses | D68: 0 | E68: 0
A69: 6263T | C69: Total Administrative Expenses | D69: =SUM(D56:D68) -> 0 | E69: =SUM(E56:E68) -> 0
A70: Acct. No. | C70: Expenses | D70: Residential | E70: Commercial | F70: Comments
C71: Utilities Expenses: 6400
A72: 6450 | C72: Electricity | D72: 0 | E72: 0
A73: 6451 | C73: Water | D73: 0 | E73: 0
A74: 6452 | C74: Gas | D74: 0 | E74: 0
A75: 6453 | C75: Sewer | D75: 0 | E75: 0
C76: Other Utilities: (specify) | D76: 0 | E76: 0
A77: 6400T | C77: Total Utilities Expenses | D77: =SUM(D72:D76) -> 0 | E77: =SUM(E72:E76) -> 0
C78: Operating and Maintenane Expenses: 6500 | F78: Comments
A79: 6510 | C79: Payroll -- from above | D79: =D11+D13+D14+D15 -> 0 | E79: 0
A80: 6515 | C80: Supplies | D80: 0 | E80: 0
A81: 6520 | C81: Contracts | D81: 0 | E81: 0
A82: 6521 | C82: Operating & Maintenance Free Rent Unit -- from above | D82: =IF(H20=1,E11+E14+E15,0) -> 0 | E82: 0
A83: 6525 | C83: Garbage and Trash Removal | D83: 0 | E83: 0
A84: 6530 | C84: Security Contract | D84: 0 | E84: 0
A85: 6531 | C85: Security Free Rent Unit -- from above | D85: =IF(H20=1,E13,0) -> 0 | E85: 0
A86: 6546 | C86: Heating/Cooling Repairs and Maintenance | D86: 0 | E86: 0
A87: 6548 | C87: Snow Removal | D87: 0 | E87: 0
A88: 6570 | C88: Vehicle & Maintenance Equipment Operation/Reports | D88: 0 | E88: 0
A89: 6590 | C89: Miscellaneous Operating and Maintenance Expenses | D89: 0 | E89: 0
A90: 6500T | C90: Total Operating & Maintenance Expenses | D90: =SUM(D79:D89) -> 0 | E90: =SUM(E79:E89) -> 0
C91: Taxes and Insurance: 6700 | F91: Comments
A92: 6710 | C92: Real Estate Taxes | D92: 0 | E92: 0
A93: 6711 | C93: Payroll Taxes (Project's Share) -- from above | D93: =D17 -> 0 | E93: 0
A94: 6720 | C94: Property and Liability Insurance (Hazard) | D94: 0 | E94: 0
A95: 6729 | C95: Other Insurance (e.g. Earthquake) | D95: 0 | E95: 0
A96: 6721 | C96: Fidelity Bond Insurance | D96: 0 | E96: 0
A97: 6722 | C97: Worker's Compensation -- from above | D97: =D18 -> 0 | E97: 0
A98: 6723 | C98: Health Insurance/Other Employee Benefits--from above | D98: =D19 -> 0 | E98: 0
A99: 6790 | C99: Miscellaneous Taxes, Licenses, Permits & Insurance | D99: 0 | E99: 0
A100: 6700T | C100: Total Taxes and Insurance | D100: =SUM(D92:D99) -> 0 | E100: =SUM(E92:E99) -> 0
C101: Supportive Services Costs: 6900 | F101: Comments | G101: Max allowed
A102: 6990 | C102: Staff Supervisor(s) Salaries - from above | D102: =D8 -> 0 | E102: 0 | G102: =(D103+D104)*0.1 -> 0
A103: 6990 | C103: Services Coordinator Salaries, On-Site - from above | D103: =D9 -> 0 | E103: 0
A104: 6990 | C104: Other Supportive Services Staff Salaries - from above | D104: =D10 -> 0 | E104: 0
A105: 6990 | C105: Supportive Services Admin Overhead | D105: 0 | E105: 0 | G105: =SUM(D102:D107)*0.15 -> 0
A106: 6990 | C106: Other Supportive Services Costs: (specify) | D106: 0 | E106: 0
A107: 6990 | C107: Other Supportive Services Costs: (specify) | D107: 0 | E107: 0
A108: 6900T | C108: Total Supportive Services Costs | D108: =SUM(D102:D107) -> 0 | E108: =SUM(E102:E107) -> 0 | G108: ='Supportive Services Costs'!AH10 -> 0
C110: Total Operating Expenses | D110: =D69+D77+D90+D100+D108 -> 0 | E110: =E69+E77+E90+E100+E108 -> 0 | F110: Comments
C111: Funded Reserves: 7200 | D111: Residential | E111: Commercial
A112: 7210 | C112: Required Replacement Reserve Deposits | D112: =500*('Assisted Units'!A279+'Non Assisted Units'!C10) -> 0 | E112: 0
A113: 7220 | C113: Other Reserves: (specify) | D113: 0 | E113: 0
A114: 7230 | C114: Other Reserves: (specify) | D114: 0 | E114: 0
A115: 7240 | C115: Other Reserves: (specify) | D115: 0 | E115: 0
C116: Total Reserves | D116: =SUM(D112:D115) -> 0 | E116: =SUM(E112:E115) -> 0
C117: Ground Lease | D117: Residential | E117: Commercial
C118: Ground Lease | D118: 0 | E118: 0
C119: Total Ground Lease | D119: =SUM(D118:D118) -> 0 | E119: =SUM(E118:E118) -> 0
C120: Net Operating Income | D120: =D52-D110-D116-D119 -> 0 | E120: =E52-E110-E116-E119 -> 0
C122: Financial Expenses: 6800 | F122: Comments
A123: 6820 | C123: 1st Mortgage Debt Service | D123: 0 | E123: 0
A124: 6830 | C124: 2nd Mortgage Debt Service | D124: 0 | E124: 0
A125: 6840 | C125: 3rd Mortgage Debt Service | D125: 0 | E125: 0
A126: 6890 | C126: HCD PRP Monitoring Fee - see NOFA §II(G)(5) | D126: =0.0042*'Dev Sources'!J19 -> 0
A127: 6890 | C127: Misc. Financial Expenses: (specify) | D127: 0 | E127: 0
A128: 6890 | C128: Misc. Financial Expenses: (specify) | D128: 0 | E128: 0
A129: 6890 | C129: Misc. Financial Expenses: (specify) | D129: 0 | E129: 0
A130: 6800T | C130: Total Financial Expenses | D130: =SUM(D123:D129) -> 0 | E130: =SUM(E123:E129) -> 0
C131: Cash Flow | D131: =+D120-D130 -> 0 | E131: =+E120-E130 -> 0
A133: 7190 | C133: Asset Management/Similar Fees UMR §8314(e) | D133: 0 | E133: 0
D134: Per Year | E134: Per Month
A135: Total Operating Expenses Per Unit
A136: Without any Adjustments | D136: =IFERROR(D110/('Assisted Units'!A279+'Non Assisted Units'!C10),0) -> 0 | E136: =+D136/12 -> 0
A137: Without RE Taxes, Social Services Coordinator or Social Services/Social Programs and With the Value of Rent Fee Units Included | D137: =IFERROR((IF(H20=1,+((E16+D110)-(D92+D108))/('Assisted Units'!A279+'Non Assisted Units'!C10),(D110-(D92+D108))/('Assisted Units'!A279+'Non Assisted Units'!C10))),0) -> 0 | E137: =+D137/12 -> 0

Sheet Cash Flow
A1: Cash Flow Analysis | R1: ='PRP Cover Page'!B9 -> 2022-04-07
A2: Income From Housing Units | C2: Inflation | D2: Year 1 | E2: Year 2 | F2: Year 3 | G2: Year 4 | H2: Year 5 | I2: Year 6 | J2: Year 7 | K2: Year 8 | L2: Year 9 | M2: Year 10 | N2: Year 11 | O2: Year 12 | P2: Year 13 | Q2: Year 14 | R2: Year 15
A3: Assisted Unit Rents | C3: ='Assisted Units'!N280 -> 0 | D3: =Operating!D33 -> 0 | E3: =D3*(1+$C$3) -> 0 | F3: 0 | G3: 0 | H3: 0 | I3: 0 | J3: 0 | K3: 0 | L3: 0 | M3: 0 | N3: =M3*(1+$C$3) -> 0 | O3: =N3*(1+$C$3) -> 0 | P3: =O3*(1+$C$3) -> 0 | Q3: =P3*(1+$C$3) -> 0 | R3: =Q3*(1+$C$3) -> 0
A4: Non-Assisted Unit Rents | C4: 0.025 | D4: =Operating!D34 -> 0 | E4: =D4*(1+$C$4) -> 0 | F4: 0 | G4: 0 | H4: 0 | I4: 0 | J4: 0 | K4: 0 | L4: 0 | M4: 0 | N4: =M4*(1+$C$4) -> 0 | O4: =N4*(1+$C$4) -> 0 | P4: =O4*(1+$C$4) -> 0 | Q4: =P4*(1+$C$4) -> 0 | R4: =Q4*(1+$C$4) -> 0
A5: Non Assisted Unit Subsidies | C5: 0.025 | D5: =Operating!D35 -> 0 | E5: =D5*(1+$C$6) -> 0 | F5: =E5*(1+$C$6) -> 0 | G5: =F5*(1+$C$6) -> 0 | H5: =G5*(1+$C$6) -> 0 | I5: =H5*(1+$C$6) -> 0 | J5: =I5*(1+$C$6) -> 0 | K5: =J5*(1+$C$6) -> 0 | L5: =K5*(1+$C$6) -> 0 | M5: =L5*(1+$C$6) -> 0 | N5: =M5*(1+$C$6) -> 0 | O5: =N5*(1+$C$6) -> 0 | P5: =O5*(1+$C$6) -> 0 | Q5: =P5*(1+$C$6) -> 0 | R5: =Q5*(1+$C$6) -> 0
A6: =Operating!C36 -> Enter rent subsidy source #1 here & monthly amounts below | C6: 0.025 | D6: =Operating!D36 -> 0 | E6: =D6*(1+$C$6) -> 0 | F6: =E6*(1+$C$6) -> 0 | G6: =F6*(1+$C$6) -> 0 | H6: 0 | I6: 0 | J6: 0 | K6: 0 | L6: 0 | M6: 0 | N6: 0 | O6: 0 | P6: 0 | Q6: 0 | R6: 0
A7: =Operating!C37 -> Enter rent subsidy source #2 here & monthly amounts below | C7: 0.025 | D7: =Operating!D37 -> 0 | E7: =D7*(1+$C$7) -> 0 | F7: 0 | G7: 0 | H7: 0 | I7: 0 | J7: 0 | K7: 0 | L7: 0 | M7: 0 | N7: =M7*(1+$C$7) -> 0 | O7: =N7*(1+$C$7) -> 0 | P7: =O7*(1+$C$7) -> 0 | Q7: =P7*(1+$C$7) -> 0 | R7: =Q7*(1+$C$7) -> 0
A8: =Operating!C38 -> Operating Subsidies | C8: 0.02 | D8: =Operating!D38 -> 0 | E8: =D8*(1+$C$8) -> 0 | F8: 0 | G8: 0 | H8: 0 | I8: 0 | J8: 0 | K8: 0 | L8: 0 | M8: 0 | N8: =M8*(1+$C$8) -> 0 | O8: =N8*(1+$C$8) -> 0 | P8: =O8*(1+$C$8) -> 0 | Q8: =P8*(1+$C$8) -> 0 | R8: =Q8*(1+$C$8) -> 0
A9: =Operating!C39 -> Other: (specify) | C9: =C6 -> 0.025 | D9: =Operating!D39 -> 0 | E9: =D9*(1+$C$9) -> 0 | F9: =E9*(1+$C$9) -> 0 | G9: 0 | H9: 0 | I9: 0 | J9: 0 | K9: 0 | L9: 0 | M9: 0 | N9: 0 | O9: 0 | P9: 0 | Q9: 0 | R9: 0
A10: Gross Potential Income - Housing | D10: =SUM(D3:D9) -> 0 | E10: 0 | F10: 0 | G10: 0 | H10: 0 | I10: 0 | J10: 0 | K10: 0 | L10: 0 | M10: 0 | N10: =SUM(N3:N9) -> 0 | O10: 0 | P10: 0 | Q10: 0 | R10: 0
A12: Other Income
A13: Laundry & Vending | C13: 0.025 | D13: =Operating!D40 -> 0 | E13: =D13*(1+$C$13) -> 0 | F13: 0 | G13: 0 | H13: 0 | I13: 0 | J13: 0 | K13: 0 | L13: 0 | M13: 0 | N13: =M13*(1+$C$13) -> 0 | O13: =N13*(1+$C$13) -> 0 | P13: =O13*(1+$C$13) -> 0 | Q13: =P13*(1+$C$13) -> 0 | R13: =Q13*(1+$C$13) -> 0
A14: Other Income | C14: 0.025 | D14: =Operating!D41+Operating!D42 -> 0 | E14: =D14*(1+$C$14) -> 0 | F14: 0 | G14: 0 | H14: 0 | I14: 0 | J14: 0 | K14: 0 | L14: 0 | M14: 0 | N14: =M14*(1+$C$14) -> 0 | O14: =N14*(1+$C$14) -> 0 | P14: =O14*(1+$C$14) -> 0 | Q14: =P14*(1+$C$14) -> 0 | R14: =Q14*(1+$C$14) -> 0
A15: Commercial Income | C15: 0.025 | D15: =Operating!E43 -> 0 | E15: =D15*(1+$C$15) -> 0 | F15: 0 | G15: 0 | H15: 0 | I15: 0 | J15: 0 | K15: 0 | L15: 0 | M15: 0 | N15: =M15*(1+$C$15) -> 0 | O15: =N15*(1+$C$15) -> 0 | P15: =O15*(1+$C$15) -> 0 | Q15: =P15*(1+$C$15) -> 0 | R15: =Q15*(1+$C$15) -> 0
A16: Gross Potential Income - Other | D16: =SUM(D13:D15) -> 0 | E16: 0 | F16: 0 | G16: 0 | H16: 0 | I16: 0 | J16: 0 | K16: 0 | L16: 0 | M16: 0 | N16: =SUM(N13:N15) -> 0 | O16: 0 | P16: 0 | Q16: 0 | R16: 0
A18: Gross Potential Income - Total | D18: =D10+D16 -> 0 | E18: 0 | F18: 0 | G18: 0 | H18: 0 | I18: 0 | J18: 0 | K18: 0 | L18: 0 | M18: 0 | N18: =N10+N16 -> 0 | O18: 0 | P18: 0 | Q18: 0 | R18: 0
A20: Vacancy Assumptions
A21: Restricted Units | C21: =Operating!D45 -> 0.05 | D21: =$C21*D3 -> 0 | E21: =$C21*E3 -> 0 | F21: 0 | G21: 0 | H21: 0 | I21: 0 | J21: 0 | K21: 0 | L21: 0 | M21: 0 | N21: =$C21*N3 -> 0 | O21: 0 | P21: 0 | Q21: 0 | R21: 0
A22: Unrestricted Units | C22: =Operating!D46 -> 0.05 | D22: =$C22*D4 -> 0 | E22: 0 | F22: 0 | G22: 0 | H22: 0 | I22: 0 | J22: 0 | K22: 0 | L22: 0 | M22: 0 | N22: =$C22*N4 -> 0 | O22: 0 | P22: 0 | Q22: 0 | R22: 0
A23: Tenant Assistance Payments | C23: =Operating!D47 -> 0.05 | D23: =$C23*(D6+D7) -> 0 | E23: =$C23*(E6+E7) -> 0 | F23: 0 | G23: 0 | H23: 0 | I23: 0 | J23: 0 | K23: 0 | L23: 0 | M23: 0 | N23: =$C23*(N6+N7) -> 0 | O23: 0 | P23: 0 | Q23: 0 | R23: 0
A24: =Operating!C39 -> Other: (specify) | C24: =Operating!D48 -> 0.05 | D24: =$C24*D9 -> 0 | E24: =$C24*E9 -> 0 | F24: 0 | G24: 0 | H24: 0 | I24: 0 | J24: 0 | K24: 0 | L24: 0 | M24: 0 | N24: =$C24*N9 -> 0 | O24: 0 | P24: 0 | Q24: 0 | R24: 0
A25: Laundry/Vending/Other Income | C25: =Operating!D49 -> 0.05 | D25: =$C25*(D13+D14) -> 0 | E25: =$C25*(E13+E14) -> 0 | F25: 0 | G25: 0 | H25: 0 | I25: 0 | J25: 0 | K25: 0 | L25: 0 | M25: 0 | N25: =$C25*(N13+N14) -> 0 | O25: 0 | P25: 0 | Q25: 0 | R25: 0
A26: Commercial Income | C26: =Operating!E50 -> 0.5 | D26: =$C26*D15 -> 0 | E26: =$C26*E15 -> 0 | F26: 0 | G26: 0 | H26: 0 | I26: 0 | J26: 0 | K26: 0 | L26: 0 | M26: 0 | N26: =$C26*N15 -> 0 | O26: 0 | P26: 0 | Q26: 0 | R26: 0
A27: Total Vacancy Loss | D27: =SUM(D21:D26) -> 0 | E27: =SUM(E21:E26) -> 0 | F27: 0 | G27: 0 | H27: 0 | I27: 0 | J27: 0 | K27: 0 | L27: 0 | M27: 0 | N27: =SUM(N21:N26) -> 0 | O27: 0 | P27: 0 | Q27: 0 | R27: 0
A29: Effective Gross Income | D29: =D18-D27 -> 0 | E29: 0 | F29: 0 | G29: 0 | H29: 0 | I29: 0 | J29: 0 | K29: 0 | L29: 0 | M29: 0 | N29: =N18-N27 -> 0 | O29: 0 | P29: 0 | Q29: 0 | R29: 0
A31: Operating Expenses & Reserve Deposits
A32: Residential Exp. (w/o Real Estate Taxes & Sup. Services) | C32: 0.035 | D32: =Operating!D110-Operating!D92-Operating!D108 -> 0 | E32: =(1+$C$32)*D32 -> 0 | F32: 0 | G32: 0 | H32: 0 | I32: 0 | J32: 0 | K32: 0 | L32: 0 | M32: 0 | N32: =(1+$C$32)*M32 -> 0 | O32: =(1+$C$32)*N32 -> 0 | P32: =(1+$C$32)*O32 -> 0 | Q32: =(1+$C$32)*P32 -> 0 | R32: =(1+$C$32)*Q32 -> 0
A33: Real Estate Taxes | C33: 0.02 | D33: =Operating!D92 -> 0 | E33: =(1+$C$33)*D33 -> 0 | F33: 0 | G33: 0 | H33: 0 | I33: 0 | J33: 0 | K33: 0 | L33: 0 | M33: 0 | N33: =(1+$C$33)*M33 -> 0 | O33: =(1+$C$33)*N33 -> 0 | P33: =(1+$C$33)*O33 -> 0 | Q33: =(1+$C$33)*P33 -> 0 | R33: =(1+$C$33)*Q33 -> 0
A34: Supportive Services Costs | C34: 0.025 | D34: =Operating!D108 -> 0 | E34: =(1+$C$34)*D34 -> 0 | F34: 0 | G34: 0 | H34: 0 | I34: 0 | J34: 0 | K34: 0 | L34: 0 | M34: 0 | N34: =(1+$C$34)*M34 -> 0 | O34: =(1+$C$34)*N34 -> 0 | P34: =(1+$C$34)*O34 -> 0 | Q34: =(1+$C$34)*P34 -> 0 | R34: =(1+$C$34)*Q34 -> 0
A35: Replacement Reserve | C35: 0 | D35: =Operating!D112+Operating!E112 -> 0 | E35: =(1+$C$35)*D35 -> 0 | F35: 0 | G35: 0 | H35: 0 | I35: 0 | J35: 0 | K35: 0 | L35: 0 | M35: 0 | N35: =(1+$C$35)*M35 -> 0 | O35: =(1+$C$35)*N35 -> 0 | P35: =(1+$C$35)*O35 -> 0 | Q35: =(1+$C$35)*P35 -> 0 | R35: =(1+$C$35)*Q35 -> 0
A36: Other Reserves | C36: 0 | D36: =Operating!D113+Operating!D114+Operating!D115+Operating!E113+Operating!E114+Operating!E115 -> 0 | E36: =(1+$C$36)*D36 -> 0 | F36: 0 | G36: 0 | H36: 0 | I36: 0 | J36: 0 | K36: 0 | L36: 0 | M36: 0 | N36: =(1+$C$36)*M36 -> 0 | O36: =(1+$C$36)*N36 -> 0 | P36: =(1+$C$36)*O36 -> 0 | Q36: =(1+$C$36)*P36 -> 0 | R36: =(1+$C$36)*Q36 -> 0
A37: Ground Lease | C37: 0.02 | D37: =Operating!D118+Operating!E118 -> 0 | E37: =(1+$C$37)*D37 -> 0 | F37: 0 | G37: 0 | H37: 0 | I37: 0 | J37: 0 | K37: 0 | L37: 0 | M37: 0 | N37: =(1+$C$37)*M37 -> 0 | O37: =(1+$C$37)*N37 -> 0 | P37: =(1+$C$37)*O37 -> 0 | Q37: =(1+$C$37)*P37 -> 0 | R37: =(1+$C$37)*Q37 -> 0
A38: Commercial Expenses | C38: 0.035 | D38: =Operating!E110 -> 0 | E38: =(1+$C$38)*D38 -> 0 | F38: 0 | G38: 0 | H38: 0 | I38: 0 | J38: 0 | K38: 0 | L38: 0 | M38: 0 | N38: =(1+$C$38)*M38 -> 0 | O38: =(1+$C$38)*N38 -> 0 | P38: =(1+$C$38)*O38 -> 0 | Q38: =(1+$C$38)*P38 -> 0 | R38: =(1+$C$38)*Q38 -> 0
A39: Total Expenses & Reserves | D39: =SUM(D32:D38) -> 0 | E39: 0 | F39: 0 | G39: 0 | H39: 0 | I39: 0 | J39: 0 | K39: 0 | L39: 0 | M39: 0 | N39: =SUM(N32:N38) -> 0 | O39: 0 | P39: 0 | Q39: 0 | R39: 0
A41: Net Operating Income | D41: =D29-D39 -> 0 | E41: 0 | F41: 0 | G41: 0 | H41: 0 | I41: 0 | J41: 0 | K41: 0 | L41: 0 | M41: 0 | N41: =N29-N39 -> 0 | O41: 0 | P41: 0 | Q41: 0 | R41: 0
A43: Debt Service
A44: 1st Mortgage | D44: =Operating!D123+Operating!E123 -> 0 | E44: =$D$44 -> 0 | F44: 0 | G44: 0 | H44: 0 | I44: 0 | J44: 0 | K44: 0 | L44: 0 | M44: 0 | N44: 0 | O44: 0 | P44: 0 | Q44: 0 | R44: 0
A45: Bridge Loan (repaid from Investor equity) | D45: 0 | E45: 0 | F45: 0 | G45: 0 | H45: 0
A46: 2nd Mortgage | D46: =Operating!D124+Operating!E124 -> 0 | E46: =$D$46 -> 0 | F46: 0 | G46: 0 | H46: 0 | I46: 0 | J46: 0 | K46: 0 | L46: 0 | M46: 0 | N46: 0 | O46: 0 | P46: 0 | Q46: 0 | R46: 0
A47: 3rd Mortgage Debt Service | D47: =Operating!D125+Operating!E125 -> 0 | E47: =$D$47 -> 0 | F47: 0 | G47: 0 | H47: 0 | I47: 0 | J47: 0 | K47: 0 | L47: 0 | M47: 0 | N47: 0 | O47: 0 | P47: 0 | Q47: 0 | R47: 0
A48: HCD PRP Monitoring Fee | D48: =Operating!$D$126 -> 0 | E48: =$D$48 -> 0 | F48: =$D$48 -> 0 | G48: 0 | H48: 0 | I48: 0 | J48: 0 | K48: 0 | L48: 0 | M48: 0 | N48: 0 | O48: 0 | P48: 0 | Q48: 0 | R48: 0
A49: =Operating!C127 -> Misc. Financial Expenses: (specify) | D49: =Operating!D127+Operating!E127 -> 0 | E49: =$D$49 -> 0 | F49: 0 | G49: 0 | H49: 0 | I49: 0 | J49: 0 | K49: 0 | L49: 0 | M49: 0 | N49: 0 | O49: 0 | P49: 0 | Q49: 0 | R49: 0
A50: =Operating!C128 -> Misc. Financial Expenses: (specify) | D50: =Operating!D128+Operating!E128 -> 0 | E50: =$D$50 -> 0 | F50: 0 | G50: 0 | H50: 0 | I50: 0 | J50: 0 | K50: 0 | L50: 0 | M50: 0 | N50: 0 | O50: 0 | P50: 0 | Q50: 0 | R50: 0
A51: =Operating!C129 -> Misc. Financial Expenses: (specify) | D51: =Operating!D129+Operating!E129 -> 0 | E51: =$D$51 -> 0 | F51: 0 | G51: 0 | H51: 0 | I51: 0 | J51: 0 | K51: 0 | L51: 0 | M51: 0 | N51: 0 | O51: 0 | P51: 0 | Q51: 0 | R51: 0
A52: Total Required Debt Service | D52: =SUM(D44:D51)-D45 -> 0 | E52: =SUM(E44:E51)-E45 -> 0 | F52: 0 | G52: 0 | H52: 0 | I52: 0 | J52: 0 | K52: 0 | L52: 0 | M52: 0 | N52: =SUM(N44:N51)-N45 -> 0 | O52: 0 | P52: 0 | Q52: 0 | R52: 0
A55: Cash Flow after all debt service | D55: =D41-D52 -> 0 | E55: 0 | F55: 0 | G55: 0 | H55: 0 | I55: 0 | J55: 0 | K55: 0 | L55: 0 | M55: 0 | N55: =N41-N52 -> 0 | O55: 0 | P55: 0 | Q55: 0 | R55: 0
A57: Debt Service Coverage Ratio (DSCR) | D57: =IF(D52<=0,0,((D41/D52))) -> 0 | E57: =IF(E52<=0,0,((E41/E52))) -> 0 | F57: 0 | G57: 0 | H57: 0 | I57: 0 | J57: 0 | K57: 0 | L57: 0 | M57: 0 | N57: =IF(N52<=0,0,((N41/N52))) -> 0 | O57: 0 | P57: 0 | Q57: 0 | R57: 0
A58: Use of Cash Flow After Debt Service - HCD Projects
A59: Asset Mgmt./ Similar Fees | D59: =IF(D55>=D71,D71,MAX(0,D55)) -> 0 | E59: =IF(E55>=E71,E71,MAX(0,E55)) -> 0 | F59: =IF(F55>=F71,F71,MAX(0,F55)) -> 0 | G59: 0 | H59: 0 | I59: 0 | J59: 0 | K59: 0 | L59: 0 | M59: 0 | N59: =IF(N55>=N71,N71,MAX(0,N55)) -> 0 | O59: 0 | P59: 0 | Q59: 0 | R59: 0
A60: Deferred Developer Fee prior to
A61: Distributions & residual receipt payments | D61: =IF(D55-D59<=$D$74,MAX(0,D55-D59),$D$74) -> 0 | E61: =IF(D72+E55-E59<=$D$74,MAX(0,E55-E59),$D$74-D72) -> 0 | F61: 0 | G61: 0 | H61: 0 | I61: 0 | J61: 0 | K61: 0 | L61: 0 | M61: 0 | N61: =IF(M72+N55-N59<=$D$74,MAX(0,N55-N59),$D$74-M72) -> 0 | O61: =IF(N72+O55-O59<=$D$74,MAX(0,O55-O59),$D$74-N72) -> 0 | P61: =IF(O72+P55-P59<=$D$74,MAX(0,P55-P59),$D$74-O72) -> 0 | Q61: =IF(P72+Q55-Q59<=$D$74,MAX(0,Q55-Q59),$D$74-P72) -> 0 | R61: =IF(Q72+R55-R59<=$D$74,MAX(0,R55-R59),$D$74-Q72) -> 0
A62: Cash Available for Residual Receipts Loans
A63: and Sponsor Distributions | D63: =MAX(0,D55-D59-D61) -> 0 | E63: =MAX(0,E55-E59-E61) -> 0 | F63: =MAX(0,F55-F59-F61) -> 0 | G63: 0 | H63: 0 | I63: 0 | J63: 0 | K63: 0 | L63: 0 | M63: 0 | N63: =MAX(0,N55-N59-N61) -> 0 | O63: 0 | P63: 0 | Q63: 0 | R63: 0
A64: Sponsor Distributions | C64: 0.5 | D64: =$C64*D63 -> 0 | E64: =+$C64*E63 -> 0 | F64: 0 | G64: 0 | H64: 0 | I64: 0 | J64: 0 | K64: 0 | L64: 0 | M64: 0 | N64: =+$C64*N63 -> 0 | O64: 0 | P64: 0 | Q64: 0 | R64: 0
A65: HCD Residual Payment | C65: 0.5 | D65: =$C65*D63 -> 0 | E65: =+$C65*E63 -> 0 | F65: 0 | G65: 0 | H65: 0 | I65: 0 | J65: 0 | K65: 0 | L65: 0 | M65: 0 | N65: =+$C65*N63 -> 0 | O65: 0 | P65: 0 | Q65: 0 | R65: 0
A66: Other Residual Payments | C66: 0 | D66: =$C66*D63 -> 0 | E66: =+$C66*E63 -> 0 | F66: 0 | G66: 0 | H66: 0 | I66: 0 | J66: 0 | K66: 0 | L66: 0 | M66: 0 | N66: =+$C66*N63 -> 0 | O66: 0 | P66: 0 | Q66: 0 | R66: 0
A67: Other Residual Payments | C67: 0 | D67: =$C67*D63 -> 0 | E67: =+$C67*E63 -> 0 | F67: 0 | G67: 0 | H67: 0 | I67: 0 | J67: 0 | K67: 0 | L67: 0 | M67: 0 | N67: =+$C67*N63 -> 0 | O67: 0 | P67: 0 | Q67: 0 | R67: 0
A68: Other Residual Payments | C68: 0 | D68: =$C68*D63 -> 0 | E68: =+$C68*E63 -> 0 | F68: 0 | G68: 0 | H68: 0 | I68: 0 | J68: 0 | K68: 0 | L68: 0 | M68: 0 | N68: =+$C68*N63 -> 0 | O68: 0 | P68: 0 | Q68: 0 | R68: 0
A69: Other Residual Payments | C69: 0 | D69: =$C69*D63 -> 0 | E69: =+$C69*E63 -> 0 | F69: 0 | G69: 0 | H69: 0 | I69: 0 | J69: 0 | K69: 0 | L69: 0 | M69: 0 | N69: =+$C69*N63 -> 0 | O69: 0 | P69: 0 | Q69: 0 | R69: 0
A71: Max Asset Mgmt/Similar Fees | C71: 0.035 | D71: =Operating!D133 -> 0 | E71: =(1+$C$71)*D71 -> 0 | F71: 0 | G71: 0 | H71: 0 | I71: 0 | J71: 0 | K71: 0 | L71: 0 | M71: 0 | N71: =(1+$C$71)*M71 -> 0 | O71: =(1+$C$71)*N71 -> 0 | P71: =(1+$C$71)*O71 -> 0 | Q71: =(1+$C$71)*P71 -> 0 | R71: =(1+$C$71)*Q71 -> 0
A72: Cumulative paid Deferred Dev. Fee | D72: =+D61 -> 0 | E72: =+D72+E61 -> 0 | F72: 0 | G72: 0 | H72: 0 | I72: 0 | J72: 0 | K72: 0 | L72: 0 | M72: 0 | N72: =+M72+N61 -> 0 | O72: =+N72+O61 -> 0 | P72: =+O72+P61 -> 0 | Q72: =+P72+Q61 -> 0 | R72: =+Q72+R61 -> 0
A73: Total Deferred Developer Fee budgeted for payment prior
A74: to distributions and residual receipt payments | D74: 0
A76: COSR ANALYSIS - if applicable
A77: Net Operating Income (NOI) | D77: =D41 -> 0 | E77: =E41 -> 0 | F77: 0 | G77: 0 | H77: 0 | I77: 0 | J77: 0 | K77: 0 | L77: 0 | M77: 0 | N77: =N41 -> 0 | O77: 0 | P77: 0 | Q77: 0 | R77: 0
A78: Cash Flow after all debt service | D78: =D55 -> 0 | E78: 0 | F78: 0 | G78: 0 | H78: 0 | I78: 0 | J78: 0 | K78: 0 | L78: 0 | M78: 0 | N78: =N55 -> 0 | O78: 0 | P78: 0 | Q78: 0 | R78: 0
A79: COSR Draw (or other) | D79: =MIN(D84,'COSR Calculation'!I15) -> 0 | E79: =IF('COSR Calculation'!I6>1,MIN(E84,'COSR Calculation'!I15),0) -> 0 | F79: =IF('COSR Calculation'!I6>2,MIN(E84,'COSR Calculation'!I15),0) -> 0 | G79: =IF('COSR Calculation'!I6>3,MIN(E84,'COSR Calculation'!I15),0) -> 0 | H79: =IF('COSR Calculation'!I6>4,MIN(E84,'COSR Calculation'!I15),0) -> 0
A80: Cash Flow after COSR | D80: =D78+D79 -> 0 | E80: =E78+E79 -> 0 | F80: 0 | G80: 0 | H80: 0 | I80: 0 | J80: 0 | K80: 0 | L80: 0 | M80: 0 | N80: =N78+N79 -> 0 | O80: 0 | P80: 0 | Q80: 0 | R80: 0
A81: Net Operating Income after COSR | D81: =D77+D79 -> 0 | E81: 0 | F81: 0 | G81: 0 | H81: 0 | I81: 0 | J81: 0 | K81: 0 | L81: 0 | M81: 0 | N81: =N77+N79 -> 0 | O81: 0 | P81: 0 | Q81: 0 | R81: 0
A82: DSCR with COSR | D82: =IF(D52<=0,0,((D77+D79)/D52)) -> 0 | E82: =IF(E52<=0,0,((E77+E79)/E52)) -> 0 | F82: 0 | G82: 0 | H82: 0 | I82: 0 | J82: 0 | K82: 0 | L82: 0 | M82: 0 | N82: =IF(N52<=0,0,((N77+N79)/N52)) -> 0 | O82: 0 | P82: 0 | Q82: 0 | R82: 0
D83: =D52*1.2 -> 0 | E83: =E52*1.1 -> 0 | F83: =F52*1.1 -> 0 | G83: 0 | H83: 0 | I83: 0 | J83: 0 | K83: 0 | L83: 0 | M83: 0 | N83: =N52*1.1 -> 0 | O83: 0 | P83: 0 | Q83: 0 | R83: 0
D84: =IF(D83-D77<0,0,D83-D77) -> 0 | E84: =IF(E83-E77<0,0,E83-E77) -> 0 | F84: 0 | G84: 0 | H84: 0 | I84: 0 | J84: 0 | K84: 0 | L84: 0 | M84: 0 | N84: =IF(N83-N77<0,0,N83-N77) -> 0 | O84: 0 | P84: 0 | Q84: 0 | R84: 0

Sheet COSR Calculation
A1: ='PRP Cover Page'!B9 -> 2022-04-07 | B1: Cash Flow (CF) for Calculating COSR - NOFA §F
A2: Critical - enter the approximate date that Applicant anticipates construction loans will close. | K2: 2026-06-30
A3: Total PRP Assisted units including all manager units | F3: ='Assisted Units'!A279 -> 0 | G3: Total units | H3: ='Assisted Units'!A279+'Non Assisted Units'!C10 -> 0 | I3: Proration | J3: =IFERROR(F3/H3,0) -> 0
A4: PRP COSR Funding Summary
A5: 1. COSR CF eligibile months (6/30/26 less loan close date) | I5: =MIN(60,YEARFRAC(K2,J2)*12) -> 60
A6: 2. COSR CF years of analysis (eligible months in #1 rounded up) | I6: =IF(I5>48,5,IF(I5>36,4,IF(I5>24,3,IF(I5>12,2,IF(I5>0,1,0))))) -> 5
A7: 3. COSR CF months of analysis (years of analysis in #2 multiplied by 12) | I7: =I6*12 -> 60
A8: 4. Proration (eligible months in #1 above / months of analysis in #3) | I8: =I5/I7 -> 1
A9: 5. Eligible CF (negative cash flow amount for the eligible years; from #12 bottom of worksheet) | I9: =IF(I6=1,F59,IF(I6=2,F59+G59,IF(I6=3,F59+G59+H59,IF(I6=4,F59+G59+H59+I59,IF(I6=5,F59+G59+H59+I59+J59,0))))) -> 0
A10: 6. Max COSR amount per CF (eligible CF in #5 multiplied by Proration in #4) = | I10: =I8*I9 -> 0
A11: 7. Max COSR per NOFA §II(F) | C11: PRP Rehab Loan | E11: ='Max Rehab Loan'!AI3 -> 0 | G11: multiplied by | H11: 0.25 | I11: =0.25*'Max Rehab Loan'!K3 -> 0
A12: 8. Max COSR amount (lesser of Max COSR amount per CF in #6 and max COSR per NOFA in #7) | I12: =MIN(I10,I11) -> 0
A13: 9. COSR amount requested by Applicant (cannot exceed max COSR amount in #8) | I13: 0
A14: 10. Max COSR amount (lesser of max COSR amount in #8 and COSR amount requested in #9) | I14: =MIN(I12,I13) -> 0
A15: 11. Max COSR distribution per year (max COSR in #10 divided by COSR CF years of analysis in #2) | I15: =I14/I6 -> 0
A17: Income from Housing Units | C17: Project Amount | D17: Proration | E17: Inflation | F17: Year 1 | G17: Year 2 | H17: Year 3 | I17: Year 4 | J17: Year 5
A18: PRP Assisted Rent Revenue | D18: =J3 -> 0 | E18: 0.025 | F18: =Operating!D33 -> 0 | G18: =F18*(1+$E18) -> 0 | H18: 0 | I18: 0 | J18: 0
A20: =IF(Operating!C36="Enter rent subsidy source here & monthly amounts below","No Tenant Assistance Payments",Operating!C36) -> Enter rent subsidy source #1 here & monthly amounts below | C20: =Operating!D36 -> 0 | E20: 0.025 | F20: =Operating!D36 -> 0 | G20: =F20*(1+$E20) -> 0 | H20: 0 | I20: 0 | J20: 0
A21: =IF(Operating!C37="Enter rent subsidy source here & monthly amounts below","No Tenant Assistance Payments",Operating!C37) -> Enter rent subsidy source #2 here & monthly amounts below | C21: =Operating!D37 -> 0 | E21: 0.025 | F21: =Operating!D37 -> 0 | G21: 0 | H21: 0 | I21: 0 | J21: 0
A22: ='Cash Flow'!A8 -> Operating Subsidies | C22: =Operating!D38 -> 0 | D22: =$D$18 -> 0 | E22: 0.025 | F22: =IF(C22=0,0,C22*D22) -> 0 | G22: 0 | H22: 0 | I22: 0 | J22: 0
A23: ='Cash Flow'!A9 -> Other: (specify) | C23: =Operating!D39 -> 0 | D23: =$D$18 -> 0 | E23: 0.025 | F23: =IF(C23=0,0,C23*D23) -> 0 | G23: 0 | H23: 0 | I23: 0 | J23: 0
A24: Gross Rent Potential - Housing | F24: =SUM(F18:F23) -> 0 | G24: 0 | H24: 0 | I24: 0 | J24: 0
A26: Other Income | C26: Project Amount | D26: Proration | E26: Inflation
A27: Laundry & Vending | C27: =Operating!D40 -> 0 | D27: =$D$18 -> 0 | E27: 0.025 | F27: =IF(C27=0,0,C27*D27) -> 0 | G27: =F27*(1+$E27) -> 0 | H27: 0 | I27: 0 | J27: 0
A28: Other Income | C28: =Operating!D41+Operating!D42 -> 0 | D28: =$D$18 -> 0 | E28: 0.025 | F28: =IF(C28=0,0,C28*D28) -> 0 | G28: 0 | H28: 0 | I28: 0 | J28: 0
A29: Gross Potential Income - Other | F29: =SUM(F27:F28) -> 0 | G29: 0 | H29: 0 | I29: 0 | J29: 0
A30: Gross Potential Income - Total | F30: =F24+F29 -> 0 | G30: 0 | H30: 0 | I30: 0 | J30: 0
A32: Vacancy Assumptions
A33: PRP Assisted Units vacancy rate | F33: 0.05 | G33: 0.05 | H33: 0.05 | I33: 0.05 | J33: 0.05
A34: PRP Assisted Units | F34: =F18*F33 -> 0 | G34: 0 | H34: 0 | I34: 0 | J34: 0
A35: Tenant Assistance Payments | E35: 0.05 | F35: =$E$35*(F20+F21) -> 0 | G35: =$E$35*(G20+G21) -> 0 | H35: =$E$35*(H20+H21) -> 0 | I35: =$E$35*(I20+I21) -> 0 | J35: =$E$35*(J20+J21) -> 0
A36: =A23 -> Other: (specify) | E36: 0.05 | F36: =$E36*F23 -> 0 | G36: =$E36*G23 -> 0 | H36: 0 | I36: 0 | J36: 0
A37: Laundry, Vending & Other Income | E37: 0.05 | F37: =$E37*(F27+F28) -> 0 | G37: =$E37*(G27+G28) -> 0 | H37: 0 | I37: 0 | J37: 0
A38: Total Vacancy Loss | F38: =SUM(F34:F37) -> 0 | G38: 0 | H38: 0 | I38: 0 | J38: 0
